Workbook

Sheet Forklaring
B2: Foreløbige driftsgrensresultater 2021, samt historisk overblik 2013-2021 | C2: Oversigt over driftsgrensresultater. Tallet i parentes henviser til Ø90 standardkolonnen.
B4: Driftsgrensresultater 2021 er baseret på de driftsgrensanalyser i 2021 årsrapporter fra DLBR virksomhederne, som er blevet overført til økonomidatabasen samt godkent til statistisk formål. | C4: Tabel 1 Mælkeproduktion – stor race, konventionel og økologi (6000) | E4: Tryk på teksten for at komme direkte til resultat
C5: Tabel 2 Mælkeproduktion – jersey, konventionel og økologi (6000)
B6: Driftsgrensanalysen tager udgangspunkt i opdelingen i landbrugsvirksomhedens forskellige driftsgrene som produktion af smågrise, slagtesvin, mælkeproduktion, salgsafgrøder, grovfoder etc. Resultaterne i driftsgrensanalysen præsenteres pr. enhed. | C6: Tabel 3 Grovfoder (5950)
C7: Tabel 4 Sohold – fravænnede grise og smågrise (7000 og 7910)
C8: Tabel 5 Slagtesvin (7200)
B9: De nøgletal, som driftsgrensresultaterne har fokus på, er dækningsbidrag pr. enhed, krav til dækningsbidrag, årets resultat pr. enhed og fremstillingspris. | C9: Tabel 6 Smågrise (7100)
C10: Tabel 7 Minkproduktion (8400)
B11: Resultaterne er ikke udvalgt efter kriterier for repræsentativitet eller vejet i forhold til for eksempel bedriftsstørrelser, geografisk repræsentativitet eller produktionssystem. Gennem inddeling i forskellige grupper viser vi dog forskelle indenfor samme driftsgren, som bør indgå i fortolkning af resultaterne. Ved malkeproduktion er der således vist resultater inddelt efter økologi/konventionel produktion, race, malkesystem samt størrelse. Ved slagtesvin er der valgt at vise inddeling efter antal producerede slagtesvin, idet størrelse her antages at have en væsentlig betydning for resultatet pr. produceret slagtesvin. | C11: Tabel 8 Slagtekalveproduktion (6300)
C12: Tabel 9 Slagtekyllingeproduktion (8100)
C13: Tabel 10 Salgsafgrøder, korn mv. (5910)
C14: Tabel 11 Kartofler (3300)
C15: Tabel 12 Fabriksroer (3400)
B16: Da driftsgrensresultater er pr. enhed, og da dataudarbejdelsen sker efter samme retningslinjer og samme procedurer, anser vi de viste resultater for at være særdeles valide og repræsentative for de forskellige driftsgrene. Usikkerheden er selvfølgelig størst indenfor de driftsgrene, hvor der er få bedrifter og få regnskaber med driftsgrensanalyser.
B19: Resultaterne i tabellerne er beregnet ud fra de foreløbige driftsgrensresultater for 2021 regnskaber.
B21: Først i tabellerne vises resultaterne for det pågælende år. Herefter følger de historiske resultater startende fra 2013 og frem
B23: For tidligere år henvises til de offentliggjorte Business Check hæfter.
B25: I tabellerne viser vi resultatet for gennemsnittet af gruppen samt resultatet for den bedste tredjedel.
B27: Gruppen bedste tredjedel er et gennemsnitsresultat af driftsgrensresultaterne for de bedrifter, hvis regnskabsresultater ligger i den bedste tredjedel (mht. afkastningsgrad). Ved afgrøder er der derfor to bedste 1/3-grupper, så der ses på resultaterne for hhv. svineproduktioner og planteavlere. På grund af denne definition af bedste 1/3 er forholdet mellem bedrifter i gennemsnitsgruppen og bedste gruppen ikke altid 1/3.
B29: Enkelte resultater vises ikke da der f.eks. kan være for få ejendomme i gruppen.
B31: Vi viser også en underopdeling af de forskellige driftsgrene. Inden for driftsgrenen er enheden altid den samme. Ved animalsk produktion er antal årsdyr eller antal producerede dyr valgt som enhed. Ved planteproduktion er enheden altid hektar.
B33: Da driftsgrensanalyser er baseret på driftsgrensopgørelser i Ø90 årsrapporter, er der anført, hvilke standardkolonner der danner udgangspunkt for de forskellige tabeller.

Sheet Tabel 1 og 2 Malkeproduktion
A1: 2021 | AG1: Historik
A2: Mælkeproduktion | B2: ="Alle (stor race og jersey) "& A1 -> Alle (stor race og jersey) 2021 | D2: ="Stor race, Konventionel "&A1 -> Stor race, Konventionel 2021 | F2: ="Stor race, Konventionel, Malkestald < 150 årskøer "&A1 -> Stor race, Konventionel, Malkestald < 150 årskøer 2021 | H2: ="Stor race, Konventionel, Malkestald 150-300 årskøer "&A1 -> Stor race, Konventionel, Malkestald 150-300 årskøer 2021 | J2: ="Stor race, Konventionel, Malkestald >300 årskøer "&A1 -> Stor race, Konventionel, Malkestald >300 årskøer 2021 | L2: ="Stor race, Konventionel, AMS <150 køer "&A1 -> Stor race, Konventionel, AMS <150 køer 2021 | N2: ="Stor race, Konventionel, AMS 150-300 køer "&A1 -> Stor race, Konventionel, AMS 150-300 køer 2021 | P2: ="Stor race, Konventionel, AMS > 300 køer "&A1 -> Stor race, Konventionel, AMS > 300 køer 2021 | R2: ="Stor race, Konventionel, Karrusel "&A1 -> Stor race, Konventionel, Karrusel 2021 | T2: ="Stor race, Økologi "&A1 -> Stor race, Økologi 2021 | V2: ="Jersey, Konventionel "&A1 -> Jersey, Konventionel 2021 | X2: ="Jersey, Konventionel, Malkestald "&A1 -> Jersey, Konventionel, Malkestald 2021 | Z2: ="Jersey, Konventionel, AMS "&A1 -> Jersey, Konventionel, AMS 2021 | AB2: ="Jersey, Konventionel, Karrusel "&A1 -> Jersey, Konventionel, Karrusel 2021 | AD2: ="Jersey, Økologi "&A1 -> Jersey, Økologi 2021 | AG2: Alle (stor race og jersey) 2013 | AI2: Alle (stor race og jersey) 2014 | AK2: Alle (stor race og jersey) 2015 | AM2: Alle (stor race og jersey) 2016 | AO2: Alle (stor race og jersey) 2017 | AQ2: Alle (stor race og jersey) 2018 | AS2: Alle (stor race og jersey) 2019 | AU2: Alle (stor race og jersey) 2020 | AW2: Alle (stor race og jersey) 2021 | AY2: Stor race, Konventionel 2013 | BA2: Stor race, Konventionel 2014 | BC2: Stor race, Konventionel 2015 | BE2: Stor race, Konventionel 2016 | BG2: Stor race, Konventionel 2017 | BI2: Stor race, Konventionel 2018 | BK2: Stor race, Konventionel 2019 | BM2: Stor race, Konventionel 2020 | BO2: Stor race, Konventionel 2021 | BQ2: Stor race, Konventionel, Malkestald 2013 | BS2: Stor race, Konventionel, Malkestald 2014 | BU2: Stor race, Konventionel, Malkestald < 150 årskøer 2015 | BW2: Stor race, Konventionel, Malkestald < 150 årskøer 2016 | BY2: Stor race, Konventionel, Malkestald < 150 årskøer 2017 | CA2: Stor race, Konventionel, Malkestald < 150 årskøer 2018 | CC2: Stor race, Konventionel, Malkestald < 150 årskøer 2019 | CE2: Stor race, Konventionel, Malkestald < 150 årskøer 2020 | CG2: Stor race, Konventionel, Malkestald < 150 årskøer 2021 | CI2: Stor race, Konventionel, Malkestald 150-300 årskøer 2015 | CK2: Stor race, Konventionel, Malkestald 150-300 årskøer 2016 | CM2: Stor race, Konventionel, Malkestald 150-300 årskøer 2017 | CO2: Stor race, Konventionel, Malkestald 150-300 årskøer 2018 | CQ2: Stor race, Konventionel, Malkestald 150-300 årskøer 2019 | CS2: Stor race, Konventionel, Malkestald 150-300 årskøer 2020 | CU2: Stor race, Konventionel, Malkestald 150-300 årskøer 2021 | CW2: Stor race, Konventionel, Malkestald >300 årskøer 2015 | CY2: Stor race, Konventionel, Malkestald >300 årskøer 2016 | DA2: Stor race, Konventionel, Malkestald >300 årskøer 2017 | DC2: Stor race, Konventionel, Malkestald >300 årskøer 2018 | DE2: Stor race, Konventionel, Malkestald >300 årskøer 2019 | DG2: Stor race, Konventionel, Malkestald >300 årskøer 2020 | DI2: Stor race, Konventionel, Malkestald >300 årskøer 2021 | DK2: Stor race, Konventionel, AMS 2013 | DM2: Stor race, Konventionel, AMS 2014 | DO2: Stor race, Konventionel, AMS <150 køer 2015 | DQ2: Stor race, Konventionel, AMS <150 køer 2016 | DS2: Stor race, Konventionel, AMS <150 køer 2017 | DU2: Stor race, Konventionel, AMS <150 køer 2018 | DW2: Stor race, Konventionel, AMS <150 køer 2019 | DY2: Stor race, Konventionel, AMS <150 køer 2020 | EA2: Stor race, Konventionel, AMS <150 køer 2021 | EC2: Stor race, Konventionel, AMS 150-300 køer 2015 | EE2: Stor race, Konventionel, AMS 150-300 køer 2016 | EG2: Stor race, Konventionel, AMS 150-300 køer 2017 | EI2: Stor race, Konventionel, AMS 150-300 køer 2018 | EK2: Stor race, Konventionel, AMS 150-300 køer 2019 | EM2: Stor race, Konventionel, AMS 150-300 køer 2020 | EO2: Stor race, Konventionel, AMS 150-300 køer 2021 | EQ2: Stor race, Konventionel, AMS > 300 køer 2015 | ES2: Stor race, Konventionel, AMS > 300 køer 2016 | EU2: Stor race, Konventionel, AMS > 300 køer 2017 | EW2: Stor race, Konventionel, AMS > 300 køer 2018 | EY2: Stor race, Konventionel, AMS > 300 køer 2019 | FA2: Stor race, Konventionel, AMS > 300 køer 2020 | FC2: Stor race, Konventionel, AMS > 300 køer 2021 | FE2: Stor race, Konventionel, Karrusel 2013 | FG2: Stor race, Konventionel, Karrusel 2014 | FI2: Stor race, Konventionel, Karrusel 2015 | FK2: Stor race, Konventionel, Karrusel 2016 | FM2: Stor race, Konventionel, Karrusel 2017 | FO2: Stor race, Konventionel, Karrusel 2018 | FQ2: Stor race, Konventionel, Karrusel 2019 | FS2: Stor race, Konventionel, Karrusel 2020 | FU2: Stor race, Konventionel, Karrusel 2021 | FW2: Stor race, Økologi 2013 | FY2: Stor race, Økologi 2014 | GA2: Stor race, Økologi 2015 | GC2: Stor race, Økologi 2016 | GE2: Stor race, Økologi 2017 | GG2: Stor race, Økologi 2018 | GI2: Stor race, Økologi 2019 | GK2: Stor race, Økologi 2020 | GM2: Stor race, Økologi 2021 | GO2: Jersey, Konventionel 2013 | GQ2: Jersey, Konventionel 2014 | GS2: Jersey, Konventionel 2015 | GU2: Jersey, Konventionel 2016 | GW2: Jersey, Konventionel 2017 | GY2: Jersey, Konventionel 2018 | HA2: Jersey, Konventionel 2019 | HC2: Jersey, Konventionel 2020 | HE2: Jersey, Konventionel 2021 | HG2: Jersey, Konventionel, Malkestald 2013 | HI2: Jersey, Konventionel, Malkestald 2014 | HK2: Jersey, Konventionel, Malkestald 2015 | HM2: Jersey, Konventionel, Malkestald 2016 | HO2: Jersey, Konventionel, Malkestald 2017 | HQ2: Jersey, Konventionel, Malkestald 2018 | HS2: Jersey, Konventionel, Malkestald 2019 | HU2: Jersey, Konventionel, Malkestald 2020 | HW2: Jersey, Konventionel, Malkestald 2021 | HY2: Jersey, Konventionel, AMS 2013 | IA2: Jersey, Konventionel, AMS 2014 | IC2: Jersey, Konventionel, AMS 2015 | IE2: Jersey, Konventionel, AMS 2016 | IG2: Jersey, Konventionel, AMS 2017 | II2: Jersey, Konventionel, AMS 2018 | IK2: Jersey, Konventionel, AMS 2019 | IM2: Jersey, Konventionel, AMS 2020 | IO2: Jersey, Konventionel, AMS 2021 | IQ2: Jersey, Konventionel, Karrusel 2013 | IS2: Jersey, Konventionel, Karrusel 2014 | IU2: Jersey, Konventionel, Karrusel 2015 | IW2: Jersey, Konventionel, Karrusel 2016 | IY2: Jersey, Konventionel, Karrusel 2017 | JA2: Jersey, Konventionel, Karrusel 2018 | JC2: Jersey, Konventionel, Karrusel 2019 | JE2: Jersey, Konventionel, Karrusel 2020 | JG2: Jersey, Konventionel, Karrusel 2021 | JI2: Jersey, Økologi 2013 | JK2: Jersey, Økologi 2014 | JM2: Jersey, Økologi 2015 | JO2: Jersey, Økologi 2016 | JQ2: Jersey, Økologi 2017 | JS2: Jersey, Økologi 2018 | JU2: Jersey, Økologi 2019 | JW2: Jersey, Økologi 2020 | JY2: Jersey, Økologi 2021
A3: DG6000 | B3: Gns | C3: Bedste 1/3 | D3: Gns | E3: Bedste 1/3 | F3: Gns | G3: Bedste 1/3 | H3: Gns | I3: Bedste 1/3 | J3: Gns | K3: Bedste 1/3 | L3: Gns | M3: Bedste 1/3 | N3: Gns | O3: Bedste 1/3 | P3: Gns | Q3: Bedste 1/3 | R3: Gns | S3: Bedste 1/3 | T3: Gns | U3: Bedste 1/3 | V3: Gns | W3: Bedste 1/3 | X3: Gns | Y3: Bedste 1/3 | Z3: Gns | AA3: Bedste 1/3 | AB3: Gns | AC3: Bedste 1/3 | AD3: Gns | AE3: Bedste 1/3 | AG3: Gns | AH3: Bedste 1/3 | AI3: Gns | AJ3: Bedste 1/3 | AK3: Gns | AL3: Bedste 1/3 | AM3: Gns | AN3: Bedste 1/3 | AO3: Gns | AP3: Bedste 1/3 | AQ3: Gns | AR3: Bedste 1/3 | AS3: Gns | AT3: Bedste 1/3 | AU3: Gns | AV3: Bedste 1/3 | AW3: Gns | AX3: Bedste 1/3 | AY3: Gns | AZ3: Bedste 1/3 | BA3: Gns | BB3: Bedste 1/3 | BC3: Gns | BD3: Bedste 1/3 | BE3: Gns | BF3: Bedste 1/3 | BG3: Gns | BH3: Bedste 1/3 | BI3: Gns | BJ3: Bedste 1/3 | BK3: Gns | BL3: Bedste 1/3 | BM3: Gns | BN3: Bedste 1/3 | BO3: Gns | BP3: Bedste 1/3 | BQ3: Gns | BR3: Bedste 1/3 | BS3: Gns | BT3: Bedste 1/3 | BU3: Gns | BV3: Bedste 1/3 | BW3: Gns | BX3: Bedste 1/3 | BY3: Gns | BZ3: Bedste 1/3 | CA3: Gns | CB3: Bedste 1/3 | CC3: Gns | CD3: Bedste 1/3 | CE3: Gns | CF3: Bedste 1/3 | CG3: Gns | CH3: Bedste 1/3 | CI3: Gns | CJ3: Bedste 1/3 | CK3: Gns | CL3: Bedste 1/3 | CM3: Gns | CN3: Bedste 1/3 | CO3: Gns | CP3: Bedste 1/3 | CQ3: Gns | CR3: Bedste 1/3 | CS3: Gns | CT3: Bedste 1/3 | CU3: Gns | CV3: Bedste 1/3 | CW3: Gns | CX3: Bedste 1/3 | CY3: Gns | CZ3: Bedste 1/3 | DA3: Gns | DB3: Bedste 1/3 | DC3: Gns | DD3: Bedste 1/3 | DE3: Gns | DF3: Bedste 1/3 | DG3: Gns | DH3: Bedste 1/3 | DI3: Gns | DJ3: Bedste 1/3 | DK3: Gns | DL3: Bedste 1/3 | DM3: Gns | DN3: Bedste 1/3 | DO3: Gns | DP3: Bedste 1/3 | DQ3: Gns | DR3: Bedste 1/3 | DS3: Gns | DT3: Bedste 1/3 | DU3: Gns | DV3: Bedste 1/3 | DW3: Gns | DX3: Bedste 1/3 | DY3: Gns | DZ3: Bedste 1/3 | EA3: Gns | EB3: Bedste 1/3 | EC3: Gns | ED3: Bedste 1/3 | EE3: Gns | EF3: Bedste 1/3 | EG3: Gns | EH3: Bedste 1/3 | EI3: Gns | EJ3: Bedste 1/3 | EK3: Gns | EL3: Bedste 1/3 | EM3: Gns | EN3: Bedste 1/3 | EO3: Gns | EP3: Bedste 1/3 | EQ3: Gns | ER3: Bedste 1/3 | ES3: Gns | ET3: Bedste 1/3 | EU3: Gns | EV3: Bedste 1/3 | EW3: Gns | EX3: Bedste 1/3 | EY3: Gns | EZ3: Bedste 1/3 | FA3: Gns | FB3: Bedste 1/3 | FC3: Gns | FD3: Bedste 1/3 | FE3: Gns | FF3: Bedste 1/3 | FG3: Gns | FH3: Bedste 1/3 | FI3: Gns | FJ3: Bedste 1/3 | FK3: Gns | FL3: Bedste 1/3 | FM3: Gns | FN3: Bedste 1/3 | FO3: Gns | FP3: Bedste 1/3 | FQ3: Gns | FR3: Bedste 1/3 | FS3: Gns | FT3: Bedste 1/3 | FU3: Gns | FV3: Bedste 1/3 | FW3: Gns | FX3: Bedste 1/3 | FY3: Gns | FZ3: Bedste 1/3 | GA3: Gns | GB3: Bedste 1/3 | GC3: Gns | GD3: Bedste 1/3 | GE3: Gns | GF3: Bedste 1/3 | GG3: Gns | GH3: Bedste 1/3 | GI3: Gns | GJ3: Bedste 1/3 | GK3: Gns | GL3: Bedste 1/3 | GM3: Gns | GN3: Bedste 1/3 | GO3: Gns | GP3: Bedste 1/3 | GQ3: Gns | GR3: Bedste 1/3 | GS3: Gns | GT3: Bedste 1/3 | GU3: Gns | GV3: Bedste 1/3 | GW3: Gns | GX3: Bedste 1/3 | GY3: Gns | GZ3: Bedste 1/3 | HA3: Gns | HB3: Bedste 1/3 | HC3: Gns | HD3: Bedste 1/3 | HE3: Gns | HF3: Bedste 1/3 | HG3: Gns | HH3: Bedste 1/3 | HI3: Gns | HJ3: Bedste 1/3 | HK3: Gns | HL3: Bedste 1/3 | HM3: Gns | HN3: Bedste 1/3 | HO3: Gns | HP3: Bedste 1/3 | HQ3: Gns | HR3: Bedste 1/3 | HS3: Gns | HT3: Bedste 1/3 | HU3: Gns | HV3: Bedste 1/3 | HW3: Gns | HX3: Bedste 1/3 | HY3: Gns | HZ3: Bedste 1/3 | IA3: Gns | IB3: Bedste 1/3 | IC3: Gns | ID3: Bedste 1/3 | IE3: Gns | IF3: Bedste 1/3 | IG3: Gns | IH3: Bedste 1/3 | II3: Gns | IJ3: Bedste 1/3 | IK3: Gns | IL3: Bedste 1/3 | IM3: Gns | IN3: Bedste 1/3 | IO3: Gns | IP3: Bedste 1/3 | IQ3: Gns | IR3: Bedste 1/3 | IS3: Gns | IT3: Bedste 1/3 | IU3: Gns | IV3: Bedste 1/3 | IW3: Gns | IX3: Bedste 1/3 | IY3: Gns | IZ3: Bedste 1/3 | JA3: Gns | JB3: Bedste 1/3 | JC3: Gns | JD3: Bedste 1/3 | JE3: Gns | JF3: Bedste 1/3 | JG3: Gns | JH3: Bedste 1/3 | JI3: Gns | JJ3: Bedste 1/3 | JK3: Gns | JL3: Bedste 1/3 | JM3: Gns | JN3: Bedste 1/3 | JO3: Gns | JP3: Bedste 1/3 | JQ3: Gns | JR3: Bedste 1/3 | JS3: Gns | JT3: Bedste 1/3 | JU3: Gns | JV3: Bedste 1/3 | JW3: Gns | JX3: Bedste 1/3 | JY3: Gns | JZ3: Bedste 1/3
A4: Antal | B4: =_xlfn.XLOOKUP($B$2,$AG$2:$JZ$2,AG4:JZ4) -> 727 | C4: =_xlfn.XLOOKUP($B$2,$AG$2:$JZ$2,AH4:KA4) -> 255 | D4: =_xlfn.XLOOKUP($D$2,$AG$2:$JZ$2,AG4:JZ4) -> 637 | E4: =_xlfn.XLOOKUP($D$2,$AG$2:$JZ$2,AH4:KA4) -> 225 | F4: =_xlfn.XLOOKUP($F$2,$AG$2:$JZ$2,AG4:JZ4) -> 65 | G4: =_xlfn.XLOOKUP($F$2,$AG$2:$JZ$2,AH4:KA4) -> 13 | H4: =_xlfn.XLOOKUP($H$2,$AG$2:$JZ$2,AG4:JZ4) -> 148 | I4: =_xlfn.XLOOKUP($H$2,$AG$2:$JZ$2,AH4:KA4) -> 50 | J4: =_xlfn.XLOOKUP($J$2,$AG$2:$JZ$2,AG4:JZ4) -> 120 | K4: =_xlfn.XLOOKUP($J$2,$AG$2:$JZ$2,AH4:KA4) -> 41 | L4: =_xlfn.XLOOKUP($L$2,$AG$2:$JZ$2,AG4:JZ4) -> 52 | M4: =_xlfn.XLOOKUP($L$2,$AG$2:$JZ$2,AH4:KA4) -> 8 | N4: =_xlfn.XLOOKUP($N$2,$AG$2:$JZ$2,AG4:JZ4) -> 92 | O4: =_xlfn.XLOOKUP($N$2,$AG$2:$JZ$2,AH4:KA4) -> 28 | P4: =_xlfn.XLOOKUP($P$2,$AG$2:$JZ$2,AG4:JZ4) -> 61 | Q4: =_xlfn.XLOOKUP($P$2,$AG$2:$JZ$2,AH4:KA4) -> 20 | R4: =_xlfn.XLOOKUP($R$2,$AG$2:$JZ$2,AG4:JZ4) -> 66 | S4: =_xlfn.XLOOKUP($R$2,$AG$2:$JZ$2,AH4:KA4) -> 26 | T4: =_xlfn.XLOOKUP($T$2,$AG$2:$JZ$2,AG4:JZ4) -> 107 | U4: =_xlfn.XLOOKUP($T$2,$AG$2:$JZ$2,AH4:KA4) -> 32 | V4: =_xlfn.XLOOKUP($V$2,$AG$2:$JZ$2,AG4:JZ4) -> 84 | W4: =_xlfn.XLOOKUP($V$2,$AG$2:$JZ$2,AH4:KA4) -> 30 | X4: =_xlfn.XLOOKUP($X$2,$AG$2:$JZ$2,AG4:JZ4) -> 44 | Y4: =_xlfn.XLOOKUP($X$2,$AG$2:$JZ$2,AH4:KA4) -> 15 | Z4: =_xlfn.XLOOKUP($Z$2,$AG$2:$JZ$2,AG4:JZ4) -> 12 | AA4: =_xlfn.XLOOKUP($Z$2,$AG$2:$JZ$2,AH4:KA4) -> 4 | AB4: =_xlfn.XLOOKUP($AB$2,$AG$2:$JZ$2,AG4:JZ4) -> 15 | AC4: =_xlfn.XLOOKUP($AB$2,$AG$2:$JZ$2,AH4:KA4) -> 6 | AD4: =_xlfn.XLOOKUP($AD$2,$AG$2:$JZ$2,AG4:JZ4) -> 14 | AE4: =_xlfn.XLOOKUP($AD$2,$AG$2:$JZ$2,AH4:KA4) -> 7 | AG4: 1296 | AH4: 432 | AI4: 1222 | AJ4: 408 | AK4: 1224 | AL4: 388 | AM4: 1167 | AN4: 363 | AO4: 1195 | AP4: 438 | AQ4: 1094 | AR4: 405 | AS4: 1056 | AT4: 393 | AU4: 966 | AV4: 298 | AW4: 727 | AX4: 255 | AY4: 1037 | AZ4: 346 | BA4: 1107 | BB4: 369 | BC4: 1102 | BD4: 356 | BE4: 1052 | BF4: 324 | BG4: 1067 | BH4: 392 | BI4: 984 | BJ4: 358 | BK4: 941 | BL4: 289 | BM4: 864 | BN4: 269 | BO4: 637 | BP4: 225 | BQ4: 488 | BR4: 163 | BS4: 528 | BT4: 176 | BU4: 199 | BV4: 69 | BW4: 165 | BX4: 42 | BY4: 147 | BZ4: 33 | CA4: 126 | CB4: 38 | CC4: 247 | CD4: 73 | CE4: 90 | CF4: 18 | CG4: 65 | CH4: 13 | CI4: 273 | CJ4: 87 | CK4: 263 | CL4: 80 | CM4: 264 | CN4: 85 | CO4: 233 | CP4: 75 | CQ4: 247 | CR4: 73 | CS4: 218 | CT4: 61 | CU4: 148 | CV4: 50 | CW4: 62 | CX4: 20 | CY4: 86 | CZ4: 27 | DA4: 112 | DB4: 35 | DC4: 110 | DD4: 33 | DE4: 127 | DF4: 40 | DG4: 140 | DH4: 41 | DI4: 120 | DJ4: 41 | DK4: 289 | DL4: 97 | DM4: 307 | DN4: 103 | DO4: 112 | DP4: 41 | DQ4: 106 | DR4: 31 | DS4: 100 | DT4: 33 | DU4: 98 | DV4: 31 | DW4: 91 | DX4: 24 | DY4: 80 | DZ4: 18 | EA4: 52 | EB4: 8 | EC4: 134 | ED4: 40 | EE4: 124 | EF4: 34 | EG4: 138 | EH4: 44 | EI4: 122 | EJ4: 39 | EK4: 108 | EL4: 37 | EM4: 117 | EN4: 33 | EO4: 92 | EP4: 28 | EQ4: 39 | ER4: 14 | ES4: 48 | ET4: 13 | EU4: 58 | EV4: 20 | EW4: 64 | EX4: 21 | EY4: 58 | EZ4: 13 | FA4: 64 | FB4: 19 | FC4: 61 | FD4: 20 | FE4: 91 | FF4: 31 | FG4: 93 | FH4: 31 | FI4: 92 | FJ4: 30 | FK4: 95 | FL4: 28 | FM4: 93 | FN4: 30 | FO4: 96 | FP4: 34 | FQ4: 104 | FR4: 30 | FS4: 88 | FT4: 27 | FU4: 66 | FV4: 26 | FW4: 141 | FX4: 47 | FY4: 158 | FZ4: 53 | GA4: 150 | GB4: 52 | GC4: 147 | GD4: 43 | GE4: 181 | GF4: 64 | GG4: 177 | GH4: 62 | GI4: 178 | GJ4: 51 | GK4: 161 | GL4: 39 | GM4: 107 | GN4: 32 | GO4: 99 | GP4: 33 | GQ4: 113 | GR4: 38 | GS4: 121 | GT4: 33 | GU4: 114 | GV4: 40 | GW4: 125 | GX4: 47 | GY4: 113 | GZ4: 42 | HA4: 114 | HB4: 32 | HC4: 97 | HD4: 28 | HE4: 84 | HF4: 30 | HG4: 53 | HH4: 18 | HI4: 58 | HJ4: 20 | HK4: 68 | HL4: 21 | HM4: 64 | HN4: 23 | HO4: 64 | HP4: 23 | HQ4: 59 | HR4: 22 | HS4: 61 | HT4: 18 | HU4: 51 | HV4: 13 | HW4: 44 | HX4: 15 | HY4: 23 | HZ4: 8 | IA4: 26 | IB4: 9 | IC4: 26 | ID4: 5 | IE4: 27 | IF4: 8 | IG4: 33 | IH4: 11 | II4: 28 | IJ4: 9 | IK4: 28 | IL4: 10 | IM4: 25 | IN4: 8 | IO4: 12 | IP4: 4 | IQ4: 20 | IR4: 8 | IS4: 11 | IT4: 4 | IU4: 13 | IV4: 4 | IW4: 10 | IX4: 3 | IY4: 12 | IZ4: 5 | JA4: 11 | JB4: 4 | JC4: 15 | JD4: 6 | JE4: 14 | JF4: 5 | JG4: 15 | JH4: 6 | JI4: 14 | JK4: 14 | JL4: 5 | JM4: 12 | JN4: 3 | JO4: 14 | JP4: 5 | JQ4: 23 | JR4: 10 | JS4: 19 | JT4: 8 | JU4: 20 | JV4: 6 | JW4: 21 | JX4: 7 | JY4: 14 | JZ4: 7
A5: Årskøer | B5: 314 | C5: 436 | D5: 313 | E5: 438 | F5: 124 | G5: 134 | H5: 218 | I5: 221 | J5: 500 | K5: 598 | L5: 127 | N5: 215 | O5: 230 | P5: 448 | Q5: 504 | R5: 501 | S5: 690 | T5: 240 | U5: 287 | V5: 323 | W5: 422 | X5: 291 | Y5: 412 | Z5: 262 | AB5: 457 | AD5: 214 | AG5: 193.2 | AH5: 231.1 | AI5: 194 | AJ5: 221 | AK5: 208 | AL5: 207 | AM5: 228 | AN5: 285 | AO5: 241 | AP5: 327 | AQ5: 253 | AR5: 317 | AS5: 265 | AT5: 343 | AU5: 283 | AV5: 376 | AW5: 314 | AX5: 436 | AY5: 192.5 | AZ5: 231.7 | BA5: 193 | BB5: 221 | BC5: 208 | BD5: 209 | BE5: 228 | BF5: 283 | BG5: 242 | BH5: 327 | BI5: 254 | BJ5: 318 | BK5: 264 | BL5: 348 | BM5: 280 | BN5: 366 | BO5: 313 | BP5: 438 | BQ5: 188.5 | BR5: 209.6 | BS5: 182 | BT5: 201 | BU5: 117 | BV5: 118 | BW5: 117 | BX5: 126 | BY5: 120 | BZ5: 126 | CA5: 120 | CB5: 124 | CC5: 211 | CD5: 217 | CE5: 119 | CF5: 131 | CG5: 124 | CH5: 134 | CI5: 202 | CJ5: 201 | CK5: 203 | CL5: 211 | CM5: 203 | CN5: 214 | CO5: 209 | CP5: 218 | CQ5: 211 | CR5: 217 | CS5: 213 | CT5: 218 | CU5: 218 | CV5: 221 | CW5: 433 | CX5: 435 | CY5: 455 | CZ5: 515 | DA5: 449 | DB5: 501 | DC5: 449 | DD5: 432 | DE5: 472 | DF5: 526 | DG5: 481 | DH5: 509 | DI5: 500 | DJ5: 598 | DK5: 200.6 | DL5: 241.8 | DM5: 199 | DN5: 233 | DO5: 121 | DP5: 119 | DQ5: 123 | DR5: 130 | DS5: 122 | DT5: 129 | DU5: 124 | DV5: 131 | DW5: 124 | DX5: 132 | DY5: 127 | DZ5: 132 | EA5: 127 | EC5: 212 | ED5: 212 | EE5: 214 | EF5: 208 | EG5: 217 | EH5: 228 | EI5: 218 | EJ5: 227 | EK5: 225 | EL5: 227 | EM5: 220 | EN5: 238 | EO5: 215 | EP5: 230 | EQ5: 437 | ER5: 424 | ES5: 443 | ET5: 454 | EU5: 434 | EV5: 476 | EW5: 421 | EX5: 426 | EY5: 442 | EZ5: 451 | FA5: 441 | FB5: 466 | FC5: 448 | FD5: 504 | FE5: 290.8 | FF5: 317.6 | FG5: 324 | FH5: 318 | FI5: 334 | FJ5: 329 | FK5: 355 | FL5: 401 | FM5: 376 | FN5: 478 | FO5: 414 | FP5: 466 | FQ5: 422 | FR5: 506 | FS5: 399 | FT5: 417 | FU5: 501 | FV5: 690 | FW5: 174.5 | FX5: 186.6 | FY5: 184 | FZ5: 213 | GA5: 183 | GB5: 208 | GC5: 197 | GD5: 276 | GE5: 208 | GF5: 275 | GG5: 216 | GH5: 271 | GI5: 226 | GJ5: 291 | GK5: 227 | GL5: 274 | GM5: 240 | GN5: 287 | GO5: 229 | GP5: 265.9 | GQ5: 210 | GR5: 248 | GS5: 205 | GT5: 208 | GU5: 231 | GV5: 305 | GW5: 234 | GX5: 305 | GY5: 254 | GZ5: 312 | HA5: 276 | HB5: 336 | HC5: 306 | HD5: 439 | HE5: 323 | HF5: 422 | HG5: 206.8 | HH5: 212.9 | HI5: 208 | HJ5: 204 | HK5: 218 | HL5: 239 | HM5: 224 | HN5: 282 | HO5: 227 | HP5: 286 | HQ5: 234 | HR5: 248 | HS5: 268 | HT5: 363 | HU5: 302 | HV5: 400 | HW5: 291 | HX5: 412 | HY5: 262.5 | IA5: 223 | IC5: 200 | IE5: 233 | IG5: 226 | IH5: 335 | II5: 245 | IK5: 256 | IL5: 309 | IM5: 262 | IO5: 262 | IQ5: 299 | IS5: 290 | IU5: 253 | IW5: 352 | IY5: 364 | JA5: 383 | JC5: 396 | JE5: 380 | JG5: 457 | JI5: 173.6 | JK5: 151 | JM5: 147 | JO5: 178 | JQ5: 204 | JR5: 251 | JS5: 218 | JU5: 197 | JW5: 211 | JY5: 214
A6: Antal årsopdræt pr. årsko | B6: 0.9 | C6: 0.9 | D6: 0.89 | E6: 0.88 | F6: 0.86 | G6: 0.81 | H6: 0.88 | I6: 0.88 | J6: 0.88 | K6: 0.84 | L6: 0.92 | N6: 0.92 | O6: 0.93 | P6: 0.9 | Q6: 0.92 | R6: 0.88 | S6: 0.91 | T6: 0.92 | U6: 0.93 | V6: 0.97 | W6: 1.03 | X6: 0.97 | Y6: 1.05 | Z6: 0.9 | AB6: 1.01 | AD6: 0.92 | AG6: 0.9368530021 | AH6: 0.926006058 | AI6: 0.9845360825 | AJ6: 0.9773755656 | AK6: 0.9663461538 | AL6: 0.9758454106 | AM6: 0.9298245614 | AN6: 0.9298245614 | AO6: 0.9045643154 | AP6: 0.8899082569 | AQ6: 0.9 | AR6: 0.87 | AS6: 0.89 | AT6: 0.88 | AU6: 0.89 | AV6: 0.86 | AW6: 0.9 | AX6: 0.9 | AY6: 0.9454545455 | AZ6: 0.9322399655 | BA6: 0.9896373057 | BB6: 0.9954751131 | BC6: 0.9807692308 | BD6: 0.980861244 | BE6: 0.9342105263 | BF6: 0.9434628975 | BG6: 0.9132231405 | BH6: 0.8990825688 | BI6: 0.9 | BJ6: 0.87 | BK6: 0.89 | BL6: 0.88 | BM6: 0.89 | BN6: 0.86 | BO6: 0.89 | BP6: 0.88 | BQ6: 0.9336870027 | BR6: 0.9255725191 | BS6: 0.9835164835 | BT6: 0.9900497512 | BU6: 0.9829059829 | BV6: 1 | BW6: 0.9401709402 | BX6: 0.9444444444 | BY6: 0.9333333333 | BZ6: 0.9761904762 | CA6: 0.92 | CB6: 0.88 | CC6: 0.88 | CD6: 0.87 | CE6: 0.86 | CF6: 0.8 | CG6: 0.86 | CH6: 0.81 | CI6: 0.9702970297 | CJ6: 0.9850746269 | CK6: 0.921182266 | CL6: 0.9146919431 | CM6: 0.9113300493 | CN6: 0.9018691589 | CO6: 0.89 | CP6: 0.87 | CQ6: 0.88 | CR6: 0.87 | CS6: 0.89 | CT6: 0.84 | CU6: 0.88 | CV6: 0.88 | CW6: 0.9445727483 | CX6: 0.9356321839 | CY6: 0.9186813187 | CZ6: 0.9184466019 | DA6: 0.8708240535 | DB6: 0.8522954092 | DC6: 0.82 | DD6: 0.77 | DE6: 0.83 | DF6: 0.77 | DG6: 0.86 | DH6: 0.85 | DI6: 0.88 | DJ6: 0.84 | DK6: 0.9670987039 | DL6: 0.9760132341 | DM6: 1.020100503 | DN6: 1.034334764 | DO6: 1 | DP6: 1.008403361 | DQ6: 0.9756097561 | DR6: 1.053846154 | DS6: 0.9508196721 | DT6: 0.9457364341 | DU6: 0.93 | DV6: 0.92 | DW6: 0.93 | DX6: 0.97 | DY6: 0.93 | DZ6: 0.9 | EA6: 0.92 | EC6: 1.009433962 | ED6: 1.037735849 | EE6: 0.9626168224 | EF6: 0.9951923077 | EG6: 0.9585253456 | EH6: 0.951754386 | EI6: 0.93 | EJ6: 0.93 | EK6: 0.93 | EL6: 0.92 | EM6: 0.93 | EN6: 0.94 | EO6: 0.92 | EP6: 0.93 | EQ6: 1 | ER6: 1.007075472 | ES6: 0.9548532731 | ET6: 0.9405286344 | EU6: 0.8940092166 | EV6: 0.8928571429 | EW6: 0.88 | EX6: 0.93 | EY6: 0.88 | EZ6: 0.91 | FA6: 0.88 | FB6: 0.9 | FC6: 0.9 | FD6: 0.92 | FE6: 0.9147180193 | FF6: 0.9036523929 | FG6: 0.9691358025 | FH6: 1 | FI6: 0.9790419162 | FJ6: 0.990881459 | FK6: 0.9267605634 | FL6: 0.9725685786 | FM6: 0.9095744681 | FN6: 0.8744769874 | FO6: 0.92 | FP6: 0.9 | FQ6: 0.89 | FR6: 0.85 | FS6: 0.86 | FT6: 0.89 | FU6: 0.88 | FV6: 0.91 | FW6: 0.9226361032 | FX6: 0.911039657 | FY6: 0.9565217391 | FZ6: 0.9812206573 | GA6: 0.9726775956 | GB6: 0.9711538462 | GC6: 0.9441624365 | GD6: 0.9166666667 | GE6: 0.9326923077 | GF6: 0.9018181818 | GG6: 0.92 | GH6: 0.91 | GI6: 0.92 | GJ6: 0.93 | GK6: 0.9 | GL6: 0.87 | GM6: 0.92 | GN6: 0.93 | GO6: 0.8777292576 | GP6: 0.9138773975 | GQ6: 0.880952381 | GR6: 0.8790322581 | GS6: 0.8780487805 | GT6: 0.8846153846 | GU6: 0.8571428571 | GV6: 0.8360655738 | GW6: 0.8205128205 | GX6: 0.793442623 | GY6: 0.86 | GZ6: 0.83 | HA6: 0.91 | HB6: 0.92 | HC6: 0.95 | HD6: 0.88 | HE6: 0.97 | HF6: 1.03 | HG6: 0.8994197292 | HH6: 0.9394081729 | HI6: 0.8942307692 | HJ6: 0.862745098 | HK6: 0.876146789 | HL6: 0.8953974895 | HM6: 0.8571428571 | HN6: 0.8581560284 | HO6: 0.8193832599 | HP6: 0.7797202797 | HQ6: 0.83 | HR6: 0.8 | HS6: 0.87 | HT6: 0.9 | HU6: 0.96 | HV6: 0.94 | HW6: 0.97 | HX6: 1.05 | HY6: 0.860952381 | IA6: 0.9147982063 | IC6: 0.89 | IE6: 0.9012875536 | IG6: 0.8672566372 | IH6: 0.8328358209 | II6: 0.92 | IK6: 1 | IL6: 0.96 | IM6: 0.93 | IO6: 0.9 | IQ6: 0.95 | IS6: 0.8068965517 | IU6: 0.8221343874 | IW6: 0.7982954545 | IY6: 0.771978022 | JA6: 0.86 | JC6: 0.86 | JE6: 0.93 | JG6: 1.01 | JI6: 0.8064516129 | JK6: 0.8145695364 | JM6: 0.7278911565 | JO6: 0.7247191011 | JQ6: 0.7990196078 | JR6: 0.780876494 | JS6: 0.83 | JU6: 0.9 | JW6: 0.93 | JY6: 0.92
A7: Kg EKM pr. årsko (leveret) | B7: 10952 | C7: 11297 | D7: 11097 | E7: 11421 | F7: 10724 | G7: 11108 | H7: 10843 | I7: 11032 | J7: 11306 | K7: 11776 | L7: 10890 | N7: 11234 | O7: 11520 | P7: 11589 | Q7: 11846 | R7: 11226 | S7: 11325 | T7: 9991 | U7: 10489 | V7: 9864 | W7: 10306 | X7: 9797 | Y7: 10149 | Z7: 9728 | AB7: 9933 | AD7: 8928 | AG7: 9180 | AH7: 9621 | AI7: 9675 | AJ7: 10010 | AK7: 10145 | AL7: 10258 | AM7: 10146 | AN7: 10527 | AO7: 10289 | AP7: 10676 | AQ7: 10476 | AR7: 10885 | AS7: 10749 | AT7: 11090 | AU7: 10831 | AV7: 11234 | AW7: 10952 | AX7: 11297 | AY7: 9375 | AZ7: 9754 | BA7: 9755 | BB7: 10126 | BC7: 10233 | BD7: 10335 | BE7: 10231 | BF7: 10601 | BG7: 10403 | BH7: 10748 | BI7: 10587 | BJ7: 10979 | BK7: 10869 | BL7: 11277 | BM7: 10943 | BN7: 11368 | BO7: 11097 | BP7: 11421 | BQ7: 9351 | BR7: 9680 | BS7: 9745 | BT7: 10064 | BU7: 10089 | BV7: 10069 | BW7: 10061 | BX7: 10488 | BY7: 10168 | BZ7: 10382 | CA7: 10306 | CB7: 10536 | CC7: 10796 | CD7: 11123 | CE7: 10602 | CF7: 10956 | CG7: 10724 | CH7: 11108 | CI7: 10285 | CJ7: 10360 | CK7: 10286 | CL7: 10432 | CM7: 10380 | CN7: 10597 | CO7: 10498 | CP7: 10762 | CQ7: 10796 | CR7: 11123 | CS7: 10821 | CT7: 11003 | CU7: 10843 | CV7: 11032 | CW7: 10430 | CX7: 10721 | CY7: 10526 | CZ7: 10935 | DA7: 10714 | DB7: 11233 | DC7: 10847 | DD7: 11433 | DE7: 11222 | DF7: 11673 | DG7: 11187 | DH7: 11680 | DI7: 11306 | DJ7: 11776 | DK7: 9611 | DL7: 10016 | DM7: 9962 | DN7: 10354 | DO7: 10241 | DP7: 10447 | DQ7: 10114 | DR7: 10408 | DS7: 10425 | DT7: 10759 | DU7: 10422 | DV7: 10837 | DW7: 10744 | DX7: 11044 | DY7: 10805 | DZ7: 10674 | EA7: 10890 | EC7: 10516 | ED7: 10634 | EE7: 10447 | EF7: 10851 | EG7: 10702 | EH7: 11016 | EI7: 10883 | EJ7: 11229 | EK7: 11129 | EL7: 11401 | EM7: 11166 | EN7: 11408 | EO7: 11234 | EP7: 11520 | EQ7: 10615 | ER7: 10794 | ES7: 10577 | ET7: 11010 | EU7: 10846 | EV7: 10977 | EW7: 11126 | EX7: 11300 | EY7: 11446 | EZ7: 11785 | FA7: 11547 | FB7: 11784 | FC7: 11589 | FD7: 11846 | FE7: 9408 | FF7: 9807 | FG7: 9698 | FH7: 10067 | FI7: 10228 | FJ7: 10223 | FK7: 10215 | FL7: 10484 | FM7: 10389 | FN7: 10673 | FO7: 10632 | FP7: 10856 | FQ7: 10854 | FR7: 11197 | FS7: 10944 | FT7: 11139 | FU7: 11226 | FV7: 11325 | FW7: 8270 | FX7: 8670 | FY7: 8735 | FZ7: 9072 | GA7: 9048 | GB7: 9381 | GC7: 9238 | GD7: 9569 | GE7: 9405 | GF7: 9813 | GG7: 9613 | GH7: 10154 | GI7: 9673 | GJ7: 10331 | GK7: 9796 | GL7: 10195 | GM7: 9991 | GN7: 10489 | GO7: 8609 | GP7: 9102 | GQ7: 8919 | GR7: 9275 | GS7: 9358 | GT7: 9627 | GU7: 9344 | GV7: 9615 | GW7: 9326 | GX7: 9718 | GY7: 9503 | GZ7: 9787 | HA7: 9749 | HB7: 10092 | HC7: 9850 | HD7: 10131 | HE7: 9864 | HF7: 10306 | HG7: 8653 | HH7: 9073 | HI7: 9036 | HJ7: 9263 | HK7: 9423 | HL7: 9699 | HM7: 9416 | HN7: 9666 | HO7: 9386 | HP7: 9747 | HQ7: 9532 | HR7: 9862 | HS7: 9792 | HT7: 10148 | HU7: 9903 | HV7: 10459 | HW7: 9797 | HX7: 10149 | HY7: 8739 | IA7: 8942 | IC7: 9162 | IE7: 9250 | IG7: 9331 | IH7: 9801 | II7: 9560 | IK7: 9683 | IL7: 9975 | IM7: 9785 | IO7: 9728 | IQ7: 9938 | IS7: 9034 | IU7: 9706 | IW7: 9576 | IY7: 9541 | JA7: 9555 | JC7: 9774 | JE7: 9955 | JG7: 9933 | JI7: 7877 | JK7: 8340 | JM7: 8890 | JO7: 8619 | JQ7: 8779 | JR7: 9302 | JS7: 8953 | JU7: 8810 | JW7: 9022 | JY7: 8928
B8: 3 | C8: 3 | D8: 3 | E8: 3 | F8: 4 | G8: 4 | H8: 4 | I8: 4 | J8: 4 | K8: 4 | L8: 3 | N8: 3 | O8: 3 | P8: 3 | Q8: 3 | R8: 2 | S8: 2 | T8: 4 | U8: 3 | V8: 3 | W8: 3 | X8: 4 | Y8: 4 | Z8: 3 | AB8: 2 | AD8: 3 | AU8: 3 | AV8: 3 | AW8: 3 | AX8: 3 | BM8: 3 | BN8: 3 | BO8: 3 | BP8: 3 | CE8: 4 | CF8: 4 | CG8: 4 | CH8: 4 | CS8: 4 | CT8: 4 | CU8: 4 | CV8: 4 | DG8: 4 | DH8: 4 | DI8: 4 | DJ8: 4 | DY8: 3 | DZ8: 3 | EA8: 3 | EM8: 3 | EN8: 3 | EO8: 3 | EP8: 3 | FA8: 3 | FB8: 3 | FC8: 3 | FD8: 3 | FS8: 2 | FT8: 2 | FU8: 2 | FV8: 2 | GK8: 4 | GL8: 4 | GM8: 4 | GN8: 3 | HC8: 3 | HD8: 3 | HE8: 3 | HF8: 3 | HU8: 4 | HV8: 4 | HW8: 4 | HX8: 4 | IM8: 3 | IO8: 3 | IQ8: 3 | JE8: 2 | JG8: 2 | JW8: 3 | JY8: 3
A9: Anvendt pris eget grovfoder kr./FEN | B9: 1.14 | C9: 1.13 | D9: 1.14 | E9: 1.13 | F9: 1.15 | G9: 1.16 | H9: 1.14 | I9: 1.14 | J9: 1.14 | K9: 1.13 | L9: 1.15 | N9: 1.15 | O9: 1.14 | P9: 1.14 | Q9: 1.13 | R9: 1.13 | S9: 1.12 | T9: 1.35 | U9: 1.37 | V9: 1.13 | W9: 1.12 | X9: 1.12 | Y9: 1.11 | Z9: 1.11 | AB9: 1.15 | AD9: 1.35 | AM9: 1.09 | AN9: 1.09 | AQ9: 1.11 | AR9: 1.11 | AS9: 1.14 | AT9: 1.13 | AU9: 1.16 | AV9: 1.15 | AW9: 1.14 | AX9: 1.13 | BI9: 1.11 | BJ9: 1.11 | BK9: 1.14 | BL9: 1.13 | BM9: 1.16 | BN9: 1.16 | BO9: 1.14 | BP9: 1.13 | CA9: 1.12 | CB9: 1.12 | CC9: 1.14 | CD9: 1.14 | CE9: 1.16 | CF9: 1.16 | CG9: 1.15 | CH9: 1.16 | CO9: 1.11 | CP9: 1.11 | CQ9: 1.14 | CR9: 1.14 | CS9: 1.16 | CT9: 1.16 | CU9: 1.14 | CV9: 1.14 | DC9: 1.11 | DD9: 1.11 | DE9: 1.14 | DF9: 1.13 | DG9: 1.15 | DH9: 1.15 | DI9: 1.14 | DJ9: 1.13 | DU9: 1.12 | DV9: 1.12 | DW9: 1.14 | DX9: 1.15 | DY9: 1.17 | DZ9: 1.17 | EA9: 1.15 | EI9: 1.11 | EJ9: 1.11 | EK9: 1.13 | EL9: 1.13 | EM9: 1.16 | EN9: 1.16 | EO9: 1.15 | EP9: 1.14 | EW9: 1.11 | EX9: 1.1 | EY9: 1.14 | EZ9: 1.12 | FA9: 1.16 | FB9: 1.18 | FC9: 1.14 | FD9: 1.13 | FO9: 1.11 | FP9: 1.11 | FQ9: 1.13 | FR9: 1.13 | FS9: 1.16 | FT9: 1.17 | FU9: 1.13 | FV9: 1.12 | GG9: 1.44 | GH9: 1.43 | GI9: 1.44 | GJ9: 1.44 | GK9: 1.35 | GL9: 1.36 | GM9: 1.35 | GN9: 1.37 | GY9: 1.1 | GZ9: 1.1 | HA9: 1.12 | HB9: 1.11 | HC9: 1.14 | HD9: 1.15 | HE9: 1.13 | HF9: 1.12 | HQ9: 1.1 | HR9: 1.09 | HS9: 1.11 | HT9: 1.09 | HU9: 1.14 | HV9: 1.14 | HW9: 1.12 | HX9: 1.11 | II9: 1.1 | IK9: 1.12 | IL9: 1.12 | IM9: 1.16 | IO9: 1.11 | IQ9: 1.13 | JA9: 1.1 | JC9: 1.12 | JE9: 1.15 | JG9: 1.15 | JS9: 1.44 | JU9: 1.46 | JW9: 1.35 | JY9: 1.35
A11: Nøgletal pr. kg EKM
A13: Dyreomsætning og andre landbrugsindtægter ekskl. værdiændringer pr. kg EKM | B13: -0.3 | C13: -0.31 | D13: -0.3 | E13: -0.3 | F13: -0.3 | G13: -0.25 | H13: -0.3 | I13: -0.31 | J13: -0.29 | K13: -0.28 | L13: -0.32 | N13: -0.33 | O13: -0.33 | P13: -0.32 | Q13: -0.33 | R13: -0.29 | S13: -0.32 | T13: -0.39 | U13: -0.4 | V13: -0.26 | W13: -0.31 | X13: -0.26 | Y13: -0.32 | Z13: -0.25 | AB13: -0.29 | AD13: -0.4 | AG13: -0.31 | AH13: -0.32 | AI13: -0.27 | AJ13: -0.27 | AK13: -0.3 | AL13: -0.31 | AM13: -0.27 | AN13: -0.28 | AO13: -0.3 | AP13: -0.3 | AQ13: -0.28 | AR13: -0.28 | AS13: -0.26 | AT13: -0.26 | AU13: -0.26 | AV13: -0.26 | AW13: -0.3 | AX13: -0.31 | AY13: -0.32 | AZ13: -0.33 | BA13: -0.28 | BB13: -0.28 | BC13: -0.31 | BD13: -0.32 | BE13: -0.28 | BF13: -0.28 | BG13: -0.31 | BH13: -0.3 | BI13: -0.29 | BJ13: -0.29 | BK13: -0.27 | BL13: -0.26 | BM13: -0.26 | BN13: -0.26 | BO13: -0.3 | BP13: -0.3 | BQ13: -0.32 | BR13: -0.33 | BS13: -0.27 | BT13: -0.27 | BU13: -0.31 | BV13: -0.31 | BW13: -0.27 | BX13: -0.29 | BY13: -0.31 | BZ13: -0.33 | CA13: -0.28 | CB13: -0.28 | CC13: -0.27 | CD13: -0.28 | CE13: -0.26 | CF13: -0.24 | CG13: -0.3 | CH13: -0.25 | CI13: -0.31 | CJ13: -0.32 | CK13: -0.27 | CL13: -0.28 | CM13: -0.31 | CN13: -0.32 | CO13: -0.31 | CP13: -0.29 | CQ13: -0.27 | CR13: -0.28 | CS13: -0.27 | CT13: -0.25 | CU13: -0.3 | CV13: -0.31 | CW13: -0.29 | CX13: -0.31 | CY13: -0.27 | CZ13: -0.27 | DA13: -0.28 | DB13: -0.28 | DC13: -0.27 | DD13: -0.25 | DE13: -0.24 | DF13: -0.23 | DG13: -0.25 | DH13: -0.25 | DI13: -0.29 | DJ13: -0.28 | DK13: -0.32 | DL13: -0.33 | DM13: -0.29 | DN13: -0.3 | DO13: -0.34 | DP13: -0.34 | DQ13: -0.29 | DR13: -0.3 | DS13: -0.33 | DT13: -0.36 | DU13: -0.32 | DV13: -0.33 | DW13: -0.3 | DX13: -0.34 | DY13: -0.29 | DZ13: -0.3 | EA13: -0.32 | EC13: -0.32 | ED13: -0.34 | EE13: -0.29 | EF13: -0.3 | EG13: -0.33 | EH13: -0.32 | EI13: -0.31 | EJ13: -0.31 | EK13: -0.29 | EL13: -0.28 | EM13: -0.28 | EN13: -0.29 | EO13: -0.33 | EP13: -0.33 | EQ13: -0.31 | ER13: -0.32 | ES13: -0.28 | ET13: -0.29 | EU13: -0.3 | EV13: -0.29 | EW13: -0.29 | EX13: -0.29 | EY13: -0.27 | EZ13: -0.29 | FA13: -0.27 | FB13: -0.28 | FC13: -0.32 | FD13: -0.33 | FE13: -0.31 | FF13: -0.34 | FG13: -0.25 | FH13: -0.29 | FI13: -0.31 | FJ13: -0.32 | FK13: -0.27 | FL13: -0.3 | FM13: -0.3 | FN13: -0.3 | FO13: -0.29 | FP13: -0.3 | FQ13: -0.27 | FR13: -0.26 | FS13: -0.25 | FT13: -0.26 | FU13: -0.29 | FV13: -0.32 | FW13: -0.35 | FX13: -0.35 | FY13: -0.32 | FZ13: -0.34 | GA13: -0.4 | GB13: -0.4 | GC13: -0.38 | GD13: -0.37 | GE13: -0.4 | GF13: -0.39 | GG13: -0.38 | GH13: -0.35 | GI13: -0.36 | GJ13: -0.36 | GK13: -0.33 | GL13: -0.31 | GM13: -0.39 | GN13: -0.4 | GO13: -0.2 | GP13: -0.2 | GQ13: -0.17 | GR13: -0.2 | GS13: -0.22 | GT13: -0.26 | GU13: -0.19 | GV13: -0.2 | GW13: -0.22 | GX13: -0.21 | GY13: -0.21 | GZ13: -0.21 | HA13: -0.24 | HB13: -0.26 | HC13: -0.25 | HD13: -0.23 | HE13: -0.26 | HF13: -0.31 | HG13: -0.21 | HH13: -0.22 | HI13: -0.18 | HJ13: -0.2 | HK13: -0.24 | HL13: -0.27 | HM13: -0.21 | HN13: -0.23 | HO13: -0.24 | HP13: -0.23 | HQ13: -0.22 | HR13: -0.24 | HS13: -0.24 | HT13: -0.25 | HU13: -0.25 | HV13: -0.26 | HW13: -0.26 | HX13: -0.32 | HY13: -0.21 | IA13: -0.18 | IC13: -0.21 | IE13: -0.2 | IG13: -0.21 | IH13: -0.22 | II13: -0.22 | IK13: -0.28 | IL13: -0.27 | IM13: -0.25 | IO13: -0.25 | IQ13: -0.27 | IS13: -0.13 | IU13: -0.17 | IW13: -0.13 | IY13: -0.16 | JA13: -0.14 | JC13: -0.19 | JE13: -0.26 | JG13: -0.29 | JI13: -0.23 | JK13: -0.15 | JM13: -0.3 | JO13: -0.24 | JQ13: -0.31 | JR13: -0.31 | JS13: -0.33 | JU13: -0.3 | JW13: -0.34 | JY13: -0.4
A14: Foderomkostninger ekskl. Værdiændring pr. kg EKM | B14: 1.48 | C14: 1.43 | D14: 1.48 | E14: 1.44 | F14: 1.51 | G14: 1.41 | H14: 1.51 | I14: 1.46 | J14: 1.48 | K14: 1.42 | L14: 1.51 | N14: 1.48 | O14: 1.43 | P14: 1.45 | Q14: 1.41 | R14: 1.49 | S14: 1.47 | T14: 1.95 | U14: 1.93 | V14: 1.45 | W14: 1.4 | X14: 1.46 | Y14: 1.44 | Z14: 1.46 | AB14: 1.49 | AD14: 1.9 | AG14: 1.62 | AH14: 1.51 | AI14: 1.48 | AJ14: 1.41 | AK14: 1.38 | AL14: 1.34 | AM14: 1.36 | AN14: 1.32 | AO14: 1.38 | AP14: 1.34 | AQ14: 1.4 | AR14: 1.35 | AS14: 1.39 | AT14: 1.35 | AU14: 1.4 | AV14: 1.36 | AW14: 1.48 | AX14: 1.43 | AY14: 1.59 | AZ14: 1.51 | BA14: 1.48 | BB14: 1.42 | BC14: 1.39 | BD14: 1.35 | BE14: 1.37 | BF14: 1.33 | BG14: 1.38 | BH14: 1.35 | BI14: 1.4 | BJ14: 1.36 | BK14: 1.39 | BL14: 1.35 | BM14: 1.4 | BN14: 1.36 | BO14: 1.48 | BP14: 1.44 | BQ14: 1.58 | BR14: 1.5 | BS14: 1.47 | BT14: 1.39 | BU14: 1.38 | BV14: 1.36 | BW14: 1.36 | BX14: 1.31 | BY14: 1.39 | BZ14: 1.39 | CA14: 1.4 | CB14: 1.34 | CC14: 1.4 | CD14: 1.34 | CE14: 1.4 | CF14: 1.36 | CG14: 1.51 | CH14: 1.41 | CI14: 1.39 | CJ14: 1.35 | CK14: 1.36 | CL14: 1.29 | CM14: 1.38 | CN14: 1.33 | CO14: 1.4 | CP14: 1.33 | CQ14: 1.4 | CR14: 1.34 | CS14: 1.41 | CT14: 1.36 | CU14: 1.51 | CV14: 1.46 | CW14: 1.39 | CX14: 1.33 | CY14: 1.38 | CZ14: 1.36 | DA14: 1.38 | DB14: 1.35 | DC14: 1.39 | DD14: 1.32 | DE14: 1.38 | DF14: 1.35 | DG14: 1.38 | DH14: 1.34 | DI14: 1.48 | DJ14: 1.42 | DK14: 1.59 | DL14: 1.52 | DM14: 1.5 | DN14: 1.44 | DO14: 1.42 | DP14: 1.38 | DQ14: 1.39 | DR14: 1.34 | DS14: 1.38 | DT14: 1.34 | DU14: 1.41 | DV14: 1.36 | DW14: 1.43 | DX14: 1.37 | DY14: 1.4 | DZ14: 1.35 | EA14: 1.51 | EC14: 1.41 | ED14: 1.35 | EE14: 1.39 | EF14: 1.34 | EG14: 1.39 | EH14: 1.32 | EI14: 1.39 | EJ14: 1.33 | EK14: 1.39 | EL14: 1.33 | EM14: 1.39 | EN14: 1.34 | EO14: 1.48 | EP14: 1.43 | EQ14: 1.39 | ER14: 1.4 | ES14: 1.37 | ET14: 1.3 | EU14: 1.36 | EV14: 1.38 | EW14: 1.39 | EX14: 1.37 | EY14: 1.39 | EZ14: 1.35 | FA14: 1.39 | FB14: 1.39 | FC14: 1.45 | FD14: 1.41 | FE14: 1.59 | FF14: 1.51 | FG14: 1.46 | FH14: 1.42 | FI14: 1.39 | FJ14: 1.36 | FK14: 1.37 | FL14: 1.31 | FM14: 1.4 | FN14: 1.36 | FO14: 1.42 | FP14: 1.35 | FQ14: 1.39 | FR14: 1.32 | FS14: 1.41 | FT14: 1.37 | FU14: 1.49 | FV14: 1.47 | FW14: 2.05 | FX14: 1.92 | FY14: 1.93 | FZ14: 1.85 | GA14: 1.88 | GB14: 1.85 | GC14: 1.92 | GD14: 1.9 | GE14: 1.99 | GF14: 1.91 | GG14: 2.05 | GH14: 1.99 | GI14: 2 | GJ14: 1.94 | GK14: 1.94 | GL14: 1.86 | GM14: 1.95 | GN14: 1.93 | GO14: 1.49 | GP14: 1.4 | GQ14: 1.4 | GR14: 1.35 | GS14: 1.28 | GT14: 1.19 | GU14: 1.26 | GV14: 1.23 | GW14: 1.31 | GX14: 1.26 | GY14: 1.33 | GZ14: 1.27 | HA14: 1.35 | HB14: 1.27 | HC14: 1.35 | HD14: 1.31 | HE14: 1.45 | HF14: 1.4 | HG14: 1.47 | HH14: 1.36 | HI14: 1.4 | HJ14: 1.33 | HK14: 1.28 | HL14: 1.2 | HM14: 1.25 | HN14: 1.22 | HO14: 1.3 | HP14: 1.22 | HQ14: 1.32 | HR14: 1.26 | HS14: 1.33 | HT14: 1.26 | HU14: 1.34 | HV14: 1.29 | HW14: 1.46 | HX14: 1.44 | HY14: 1.49 | IA14: 1.42 | IC14: 1.28 | IE14: 1.25 | IG14: 1.3 | IH14: 1.28 | II14: 1.29 | IK14: 1.33 | IL14: 1.29 | IM14: 1.3 | IO14: 1.46 | IQ14: 1.38 | IS14: 1.38 | IU14: 1.29 | IW14: 1.3 | IY14: 1.34 | JA14: 1.39 | JC14: 1.4 | JE14: 1.41 | JG14: 1.49 | JI14: 1.97 | JK14: 1.85 | JM14: 1.74 | JO14: 1.83 | JQ14: 1.97 | JR14: 1.99 | JS14: 2 | JU14: 2.02 | JW14: 1.94 | JY14: 1.9
A15: Dyrlæge og diverse pr. kg EKM | B15: 0.24 | C15: 0.23 | D15: 0.24 | E15: 0.22 | F15: 0.26 | G15: 0.25 | H15: 0.25 | I15: 0.24 | J15: 0.23 | K15: 0.2 | L15: 0.26 | N15: 0.25 | O15: 0.25 | P15: 0.23 | Q15: 0.22 | R15: 0.23 | S15: 0.22 | T15: 0.26 | U15: 0.25 | V15: 0.28 | W15: 0.27 | X15: 0.28 | Y15: 0.25 | Z15: 0.28 | AB15: 0.3 | AD15: 0.33 | AG15: 0.25 | AH15: 0.23 | AI15: 0.25 | AJ15: 0.23 | AK15: 0.24 | AL15: 0.21 | AM15: 0.23 | AN15: 0.21 | AO15: 0.23 | AP15: 0.21 | AQ15: 0.24 | AR15: 0.22 | AS15: 0.24 | AT15: 0.22 | AU15: 0.24 | AV15: 0.22 | AW15: 0.24 | AX15: 0.23 | AY15: 0.25 | AZ15: 0.23 | BA15: 0.25 | BB15: 0.23 | BC15: 0.24 | BD15: 0.21 | BE15: 0.23 | BF15: 0.21 | BG15: 0.23 | BH15: 0.21 | BI15: 0.23 | BJ15: 0.21 | BK15: 0.24 | BL15: 0.21 | BM15: 0.24 | BN15: 0.22 | BO15: 0.24 | BP15: 0.22 | BQ15: 0.24 | BR15: 0.22 | BS15: 0.26 | BT15: 0.24 | BU15: 0.25 | BV15: 0.22 | BW15: 0.24 | BX15: 0.22 | BY15: 0.26 | BZ15: 0.24 | CA15: 0.26 | CB15: 0.24 | CC15: 0.25 | CD15: 0.24 | CE15: 0.26 | CF15: 0.25 | CG15: 0.26 | CH15: 0.25 | CI15: 0.24 | CJ15: 0.22 | CK15: 0.24 | CL15: 0.23 | CM15: 0.24 | CN15: 0.22 | CO15: 0.25 | CP15: 0.23 | CQ15: 0.25 | CR15: 0.24 | CS15: 0.25 | CT15: 0.23 | CU15: 0.25 | CV15: 0.24 | CW15: 0.22 | CX15: 0.2 | CY15: 0.21 | CZ15: 0.2 | DA15: 0.21 | DB15: 0.19 | DC15: 0.21 | DD15: 0.19 | DE15: 0.22 | DF15: 0.19 | DG15: 0.22 | DH15: 0.2 | DI15: 0.23 | DJ15: 0.2 | DK15: 0.26 | DL15: 0.24 | DM15: 0.25 | DN15: 0.24 | DO15: 0.25 | DP15: 0.23 | DQ15: 0.24 | DR15: 0.24 | DS15: 0.25 | DT15: 0.23 | DU15: 0.25 | DV15: 0.24 | DW15: 0.25 | DX15: 0.24 | DY15: 0.25 | DZ15: 0.25 | EA15: 0.26 | EC15: 0.24 | ED15: 0.22 | EE15: 0.24 | EF15: 0.21 | EG15: 0.24 | EH15: 0.22 | EI15: 0.24 | EJ15: 0.22 | EK15: 0.24 | EL15: 0.23 | EM15: 0.24 | EN15: 0.24 | EO15: 0.25 | EP15: 0.25 | EQ15: 0.22 | ER15: 0.21 | ES15: 0.22 | ET15: 0.21 | EU15: 0.22 | EV15: 0.2 | EW15: 0.22 | EX15: 0.23 | EY15: 0.23 | EZ15: 0.22 | FA15: 0.23 | FB15: 0.23 | FC15: 0.23 | FD15: 0.22 | FE15: 0.23 | FF15: 0.21 | FG15: 0.24 | FH15: 0.21 | FI15: 0.22 | FJ15: 0.2 | FK15: 0.22 | FL15: 0.19 | FM15: 0.22 | FN15: 0.2 | FO15: 0.23 | FP15: 0.21 | FQ15: 0.23 | FR15: 0.2 | FS15: 0.23 | FT15: 0.21 | FU15: 0.23 | FV15: 0.22 | FW15: 0.27 | FX15: 0.25 | FY15: 0.27 | FZ15: 0.26 | GA15: 0.26 | GB15: 0.25 | GC15: 0.25 | GD15: 0.24 | GE15: 0.25 | GF15: 0.22 | GG15: 0.26 | GH15: 0.23 | GI15: 0.26 | GJ15: 0.24 | GK15: 0.26 | GL15: 0.24 | GM15: 0.26 | GN15: 0.25 | GO15: 0.25 | GP15: 0.23 | GQ15: 0.26 | GR15: 0.24 | GS15: 0.26 | GT15: 0.22 | GU15: 0.26 | GV15: 0.23 | GW15: 0.27 | GX15: 0.25 | GY15: 0.28 | GZ15: 0.26 | HA15: 0.29 | HB15: 0.27 | HC15: 0.29 | HD15: 0.27 | HE15: 0.28 | HF15: 0.27 | HG15: 0.24 | HH15: 0.21 | HI15: 0.26 | HJ15: 0.24 | HK15: 0.26 | HL15: 0.21 | HM15: 0.25 | HN15: 0.22 | HO15: 0.27 | HP15: 0.25 | HQ15: 0.29 | HR15: 0.28 | HS15: 0.28 | HT15: 0.28 | HU15: 0.28 | HV15: 0.27 | HW15: 0.28 | HX15: 0.25 | HY15: 0.27 | IA15: 0.28 | IC15: 0.27 | IE15: 0.27 | IG15: 0.27 | IH15: 0.24 | II15: 0.28 | IK15: 0.29 | IL15: 0.25 | IM15: 0.29 | IO15: 0.28 | IQ15: 0.27 | IS15: 0.24 | IU15: 0.26 | IW15: 0.25 | IY15: 0.26 | JA15: 0.28 | JC15: 0.3 | JE15: 0.3 | JG15: 0.3 | JI15: 0.32 | JK15: 0.26 | JM15: 0.25 | JO15: 0.26 | JQ15: 0.26 | JR15: 0.23 | JS15: 0.27 | JU15: 0.33 | JW15: 0.34 | JY15: 0.33
A16: Energi, vedligehold m.v. | B16: 0.23 | C16: 0.21 | D16: 0.23 | E16: 0.21 | F16: 0.22 | G16: 0.21 | H16: 0.21 | I16: 0.2 | J16: 0.21 | K16: 0.19 | L16: 0.28 | N16: 0.26 | O16: 0.26 | P16: 0.27 | Q16: 0.26 | R16: 0.21 | S16: 0.19 | T16: 0.29 | U16: 0.27 | V16: 0.24 | W16: 0.23 | X16: 0.24 | Y16: 0.24 | Z16: 0.29 | AB16: 0.21 | AD16: 0.31 | AQ16: 0.23 | AR16: 0.21 | AS16: 0.22 | AT16: 0.2 | AU16: 0.22 | AV16: 0.2 | AW16: 0.23 | AX16: 0.21 | BI16: 0.23 | BJ16: 0.21 | BK16: 0.22 | BL16: 0.19 | BM16: 0.21 | BN16: 0.2 | BO16: 0.23 | BP16: 0.21 | CA16: 0.22 | CB16: 0.21 | CC16: 0.2 | CD16: 0.18 | CE16: 0.22 | CF16: 0.17 | CG16: 0.22 | CH16: 0.21 | CO16: 0.21 | CP16: 0.2 | CQ16: 0.2 | CR16: 0.18 | CS16: 0.19 | CT16: 0.18 | CU16: 0.21 | CV16: 0.2 | DC16: 0.19 | DD16: 0.17 | DE16: 0.18 | DF16: 0.16 | DG16: 0.19 | DH16: 0.17 | DI16: 0.21 | DJ16: 0.19 | DU16: 0.29 | DV16: 0.27 | DW16: 0.28 | DX16: 0.26 | DY16: 0.27 | DZ16: 0.26 | EA16: 0.28 | EI16: 0.27 | EJ16: 0.24 | EK16: 0.26 | EL16: 0.23 | EM16: 0.24 | EN16: 0.22 | EO16: 0.26 | EP16: 0.26 | EW16: 0.25 | EX16: 0.25 | EY16: 0.24 | EZ16: 0.21 | FA16: 0.24 | FB16: 0.22 | FC16: 0.27 | FD16: 0.26 | FO16: 0.21 | FP16: 0.2 | FQ16: 0.2 | FR16: 0.18 | FS16: 0.21 | FT16: 0.18 | FU16: 0.21 | FV16: 0.19 | GG16: 0.29 | GH16: 0.26 | GI16: 0.28 | GJ16: 0.25 | GK16: 0.27 | GL16: 0.24 | GM16: 0.29 | GN16: 0.27 | GY16: 0.24 | GZ16: 0.21 | HA16: 0.24 | HB16: 0.22 | HC16: 0.23 | HD16: 0.22 | HE16: 0.24 | HF16: 0.23 | HQ16: 0.22 | HR16: 0.19 | HS16: 0.22 | HT16: 0.22 | HU16: 0.22 | HV16: 0.21 | HW16: 0.24 | HX16: 0.24 | II16: 0.29 | IK16: 0.28 | IL16: 0.29 | IM16: 0.27 | IO16: 0.29 | IQ16: 0.27 | JA16: 0.2 | JC16: 0.2 | JE16: 0.19 | JG16: 0.21 | JS16: 0.3 | JU16: 0.29 | JW16: 0.29 | JY16: 0.31
A17: Arbejdsomkostninger pr. kg EKM | B17: 0.42 | C17: 0.4 | D17: 0.41 | E17: 0.39 | F17: 0.46 | G17: 0.42 | H17: 0.45 | I17: 0.42 | J17: 0.42 | K17: 0.39 | L17: 0.38 | N17: 0.36 | O17: 0.32 | P17: 0.36 | Q17: 0.35 | R17: 0.41 | S17: 0.4 | T17: 0.51 | U17: 0.47 | V17: 0.48 | W17: 0.47 | X17: 0.49 | Y17: 0.49 | Z17: 0.46 | AB17: 0.48 | AD17: 0.55 | AG17: 0.43 | AH17: 0.39 | AI17: 0.43 | AJ17: 0.39 | AK17: 0.41 | AL17: 0.38 | AM17: 0.39 | AN17: 0.37 | AO17: 0.4 | AP17: 0.37 | AQ17: 0.4 | AR17: 0.37 | AS17: 0.41 | AT17: 0.38 | AU17: 0.4 | AV17: 0.37 | AW17: 0.42 | AX17: 0.4 | AY17: 0.42 | AZ17: 0.38 | BA17: 0.43 | BB17: 0.38 | BC17: 0.4 | BD17: 0.38 | BE17: 0.39 | BF17: 0.37 | BG17: 0.39 | BH17: 0.37 | BI17: 0.39 | BJ17: 0.37 | BK17: 0.4 | BL17: 0.38 | BM17: 0.39 | BN17: 0.37 | BO17: 0.41 | BP17: 0.39 | BQ17: 0.44 | BR17: 0.4 | BS17: 0.45 | BT17: 0.41 | BU17: 0.47 | BV17: 0.45 | BW17: 0.46 | BX17: 0.43 | BY17: 0.47 | BZ17: 0.45 | CA17: 0.46 | CB17: 0.41 | CC17: 0.44 | CD17: 0.43 | CE17: 0.45 | CF17: 0.4 | CG17: 0.46 | CH17: 0.42 | CI17: 0.43 | CJ17: 0.4 | CK17: 0.41 | CL17: 0.41 | CM17: 0.42 | CN17: 0.39 | CO17: 0.43 | CP17: 0.4 | CQ17: 0.44 | CR17: 0.43 | CS17: 0.43 | CT17: 0.41 | CU17: 0.45 | CV17: 0.42 | CW17: 0.39 | CX17: 0.34 | CY17: 0.38 | CZ17: 0.36 | DA17: 0.39 | DB17: 0.36 | DC17: 0.4 | DD17: 0.37 | DE17: 0.41 | DF17: 0.37 | DG17: 0.4 | DH17: 0.37 | DI17: 0.42 | DJ17: 0.39 | DK17: 0.36 | DL17: 0.32 | DM17: 0.37 | DN17: 0.33 | DO17: 0.39 | DP17: 0.36 | DQ17: 0.37 | DR17: 0.34 | DS17: 0.37 | DT17: 0.35 | DU17: 0.36 | DV17: 0.34 | DW17: 0.35 | DX17: 0.32 | DY17: 0.35 | DZ17: 0.35 | EA17: 0.38 | EC17: 0.35 | ED17: 0.34 | EE17: 0.34 | EF17: 0.35 | EG17: 0.34 | EH17: 0.33 | EI17: 0.35 | EJ17: 0.33 | EK17: 0.34 | EL17: 0.31 | EM17: 0.34 | EN17: 0.29 | EO17: 0.36 | EP17: 0.32 | EQ17: 0.32 | ER17: 0.29 | ES17: 0.33 | ET17: 0.31 | EU17: 0.32 | EV17: 0.32 | EW17: 0.32 | EX17: 0.3 | EY17: 0.33 | EZ17: 0.3 | FA17: 0.33 | FB17: 0.29 | FC17: 0.36 | FD17: 0.35 | FE17: 0.4 | FF17: 0.37 | FG17: 0.42 | FH17: 0.39 | FI17: 0.4 | FJ17: 0.38 | FK17: 0.37 | FL17: 0.35 | FM17: 0.39 | FN17: 0.37 | FO17: 0.4 | FP17: 0.38 | FQ17: 0.4 | FR17: 0.38 | FS17: 0.4 | FT17: 0.39 | FU17: 0.41 | FV17: 0.4 | FW17: 0.47 | FX17: 0.45 | FY17: 0.47 | FZ17: 0.44 | GA17: 0.46 | GB17: 0.44 | GC17: 0.47 | GD17: 0.43 | GE17: 0.47 | GF17: 0.44 | GG17: 0.48 | GH17: 0.44 | GI17: 0.48 | GJ17: 0.45 | GK17: 0.5 | GL17: 0.46 | GM17: 0.51 | GN17: 0.47 | GO17: 0.44 | GP17: 0.4 | GQ17: 0.45 | GR17: 0.39 | GS17: 0.44 | GT17: 0.43 | GU17: 0.43 | GV17: 0.41 | GW17: 0.46 | GX17: 0.43 | GY17: 0.47 | GZ17: 0.43 | HA17: 0.47 | HB17: 0.45 | HC17: 0.47 | HD17: 0.43 | HE17: 0.48 | HF17: 0.47 | HG17: 0.47 | HH17: 0.44 | HI17: 0.48 | HJ17: 0.42 | HK17: 0.46 | HL17: 0.42 | HM17: 0.43 | HN17: 0.43 | HO17: 0.47 | HP17: 0.42 | HQ17: 0.47 | HR17: 0.44 | HS17: 0.47 | HT17: 0.45 | HU17: 0.47 | HV17: 0.41 | HW17: 0.49 | HX17: 0.49 | HY17: 0.38 | IA17: 0.39 | IC17: 0.4 | IE17: 0.4 | IG17: 0.42 | IH17: 0.41 | II17: 0.45 | IK17: 0.45 | IL17: 0.39 | IM17: 0.44 | IO17: 0.46 | IQ17: 0.45 | IS17: 0.41 | IU17: 0.42 | IW17: 0.41 | IY17: 0.45 | JA17: 0.45 | JC17: 0.46 | JE17: 0.45 | JG17: 0.48 | JI17: 0.45 | JK17: 0.49 | JM17: 0.48 | JO17: 0.49 | JQ17: 0.48 | JR17: 0.45 | JS17: 0.48 | JU17: 0.55 | JW17: 0.51 | JY17: 0.55
A18: Ejendomsskat, fors, diverse | B18: 0.1 | C18: 0.08 | D18: 0.1 | E18: 0.08 | F18: 0.12 | G18: 0.11 | H18: 0.1 | I18: 0.1 | J18: 0.08 | K18: 0.07 | L18: 0.12 | N18: 0.1 | O18: 0.1 | P18: 0.08 | Q18: 0.07 | R18: 0.09 | S18: 0.07 | T18: 0.13 | U18: 0.11 | V18: 0.11 | W18: 0.1 | X18: 0.11 | Y18: 0.1 | Z18: 0.11 | AB18: 0.1 | AD18: 0.14 | AQ18: 0.1 | AR18: 0.08 | AS18: 0.1 | AT18: 0.08 | AU18: 0.1 | AV18: 0.08 | AW18: 0.1 | AX18: 0.08 | BI18: 0.1 | BJ18: 0.08 | BK18: 0.1 | BL18: 0.08 | BM18: 0.1 | BN18: 0.08 | BO18: 0.1 | BP18: 0.08 | CA18: 0.12 | CB18: 0.1 | CC18: 0.1 | CD18: 0.09 | CE18: 0.11 | CF18: 0.1 | CG18: 0.12 | CH18: 0.11 | CO18: 0.1 | CP18: 0.09 | CQ18: 0.1 | CR18: 0.09 | CS18: 0.1 | CT18: 0.09 | CU18: 0.1 | CV18: 0.1 | DC18: 0.08 | DD18: 0.07 | DE18: 0.08 | DF18: 0.07 | DG18: 0.08 | DH18: 0.07 | DI18: 0.08 | DJ18: 0.07 | DU18: 0.12 | DV18: 0.1 | DW18: 0.12 | DX18: 0.1 | DY18: 0.12 | DZ18: 0.11 | EA18: 0.12 | EI18: 0.1 | EJ18: 0.08 | EK18: 0.1 | EL18: 0.09 | EM18: 0.09 | EN18: 0.08 | EO18: 0.1 | EP18: 0.1 | EW18: 0.07 | EX18: 0.06 | EY18: 0.07 | EZ18: 0.06 | FA18: 0.08 | FB18: 0.07 | FC18: 0.08 | FD18: 0.07 | FO18: 0.09 | FP18: 0.07 | FQ18: 0.09 | FR18: 0.07 | FS18: 0.09 | FT18: 0.08 | FU18: 0.09 | FV18: 0.07 | GG18: 0.12 | GH18: 0.1 | GI18: 0.12 | GJ18: 0.1 | GK18: 0.12 | GL18: 0.1 | GM18: 0.13 | GN18: 0.11 | GY18: 0.12 | GZ18: 0.1 | HA18: 0.11 | HB18: 0.1 | HC18: 0.11 | HD18: 0.1 | HE18: 0.11 | HF18: 0.1 | HQ18: 0.11 | HR18: 0.1 | HS18: 0.11 | HT18: 0.1 | HU18: 0.11 | HV18: 0.09 | HW18: 0.11 | HX18: 0.1 | II18: 0.12 | IK18: 0.11 | IL18: 0.1 | IM18: 0.12 | IO18: 0.11 | IQ18: 0.11 | JA18: 0.09 | JC18: 0.09 | JE18: 0.09 | JG18: 0.1 | JS18: 0.12 | JU18: 0.12 | JW18: 0.12 | JY18: 0.14
A19: Afskrivninger | B19: 0.24 | C19: 0.21 | D19: 0.24 | E19: 0.21 | F19: 0.22 | G19: 0.19 | H19: 0.22 | I19: 0.2 | J19: 0.21 | K19: 0.2 | L19: 0.3 | N19: 0.3 | O19: 0.29 | P19: 0.27 | Q19: 0.24 | R19: 0.21 | S19: 0.18 | T19: 0.29 | U19: 0.23 | V19: 0.22 | W19: 0.22 | X19: 0.21 | Y19: 0.18 | Z19: 0.24 | AB19: 0.24 | AD19: 0.3 | AQ19: 0.24 | AR19: 0.22 | AS19: 0.23 | AT19: 0.21 | AU19: 0.23 | AV19: 0.22 | AW19: 0.24 | AX19: 0.21 | BI19: 0.24 | BJ19: 0.22 | BK19: 0.24 | BL19: 0.21 | BM19: 0.23 | BN19: 0.22 | BO19: 0.24 | BP19: 0.21 | CA19: 0.22 | CB19: 0.21 | CC19: 0.22 | CD19: 0.19 | CE19: 0.22 | CF19: 0.2 | CG19: 0.22 | CH19: 0.19 | CO19: 0.22 | CP19: 0.2 | CQ19: 0.22 | CR19: 0.19 | CS19: 0.22 | CT19: 0.19 | CU19: 0.22 | CV19: 0.2 | DC19: 0.21 | DD19: 0.2 | DE19: 0.21 | DF19: 0.19 | DG19: 0.2 | DH19: 0.19 | DI19: 0.21 | DJ19: 0.2 | DU19: 0.32 | DV19: 0.28 | DW19: 0.3 | DX19: 0.25 | DY19: 0.32 | DZ19: 0.25 | EA19: 0.3 | EI19: 0.28 | EJ19: 0.27 | EK19: 0.28 | EL19: 0.26 | EM19: 0.28 | EN19: 0.27 | EO19: 0.3 | EP19: 0.29 | EW19: 0.27 | EX19: 0.25 | EY19: 0.27 | EZ19: 0.26 | FA19: 0.26 | FB19: 0.26 | FC19: 0.27 | FD19: 0.24 | FO19: 0.22 | FP19: 0.19 | FQ19: 0.21 | FR19: 0.18 | FS19: 0.21 | FT19: 0.2 | FU19: 0.21 | FV19: 0.18 | GG19: 0.29 | GH19: 0.25 | GI19: 0.28 | GJ19: 0.24 | GK19: 0.28 | GL19: 0.23 | GM19: 0.29 | GN19: 0.23 | GY19: 0.23 | GZ19: 0.22 | HA19: 0.22 | HB19: 0.21 | HC19: 0.23 | HD19: 0.21 | HE19: 0.22 | HF19: 0.22 | HQ19: 0.23 | HR19: 0.2 | HS19: 0.21 | HT19: 0.19 | HU19: 0.23 | HV19: 0.2 | HW19: 0.21 | HX19: 0.18 | II19: 0.28 | IK19: 0.27 | IL19: 0.3 | IM19: 0.26 | IO19: 0.24 | IQ19: 0.25 | JA19: 0.21 | JC19: 0.22 | JE19: 0.22 | JG19: 0.24 | JS19: 0.28 | JU19: 0.31 | JW19: 0.3 | JY19: 0.3
A20: Renteromk. og leje | B20: 0.11 | C20: 0.12 | D20: 0.11 | E20: 0.12 | F20: 0.09 | G20: 0.1 | H20: 0.1 | I20: 0.1 | J20: 0.12 | K20: 0.12 | L20: 0.1 | N20: 0.12 | O20: 0.11 | P20: 0.14 | Q20: 0.14 | R20: 0.12 | S20: 0.15 | T20: 0.13 | U20: 0.13 | V20: 0.11 | W20: 0.11 | X20: 0.1 | Y20: 0.1 | Z20: 0.11 | AB20: 0.14 | AD20: 0.13 | AQ20: 0.13 | AR20: 0.13 | AS20: 0.12 | AT20: 0.13 | AU20: 0.12 | AV20: 0.12 | AW20: 0.11 | AX20: 0.12 | BI20: 0.13 | BJ20: 0.13 | BK20: 0.12 | BL20: 0.13 | BM20: 0.12 | BN20: 0.12 | BO20: 0.11 | BP20: 0.12 | CA20: 0.1 | CB20: 0.09 | CC20: 0.12 | CD20: 0.13 | CE20: 0.09 | CF20: 0.09 | CG20: 0.09 | CH20: 0.1 | CO20: 0.12 | CP20: 0.13 | CQ20: 0.12 | CR20: 0.13 | CS20: 0.11 | CT20: 0.11 | CU20: 0.1 | CV20: 0.1 | DC20: 0.15 | DD20: 0.15 | DE20: 0.13 | DF20: 0.12 | DG20: 0.13 | DH20: 0.13 | DI20: 0.12 | DJ20: 0.12 | DU20: 0.12 | DV20: 0.11 | DW20: 0.11 | DX20: 0.11 | DY20: 0.11 | DZ20: 0.1 | EA20: 0.1 | EI20: 0.13 | EJ20: 0.12 | EK20: 0.12 | EL20: 0.13 | EM20: 0.12 | EN20: 0.14 | EO20: 0.12 | EP20: 0.11 | EW20: 0.15 | EX20: 0.15 | EY20: 0.13 | EZ20: 0.13 | FA20: 0.13 | FB20: 0.13 | FC20: 0.14 | FD20: 0.14 | FO20: 0.15 | FP20: 0.14 | FQ20: 0.14 | FR20: 0.14 | FS20: 0.13 | FT20: 0.12 | FU20: 0.12 | FV20: 0.15 | GG20: 0.15 | GH20: 0.16 | GI20: 0.14 | GJ20: 0.15 | GK20: 0.13 | GL20: 0.15 | GM20: 0.13 | GN20: 0.13 | GY20: 0.13 | GZ20: 0.14 | HA20: 0.12 | HB20: 0.13 | HC20: 0.12 | HD20: 0.14 | HE20: 0.11 | HF20: 0.11 | HQ20: 0.13 | HR20: 0.14 | HS20: 0.12 | HT20: 0.13 | HU20: 0.12 | HV20: 0.15 | HW20: 0.1 | HX20: 0.1 | II20: 0.13 | IK20: 0.12 | IL20: 0.12 | IM20: 0.13 | IO20: 0.11 | IQ20: 0.11 | JA20: 0.16 | JC20: 0.15 | JE20: 0.14 | JG20: 0.14 | JS20: 0.13 | JU20: 0.14 | JW20: 0.14 | JY20: 0.13
A21: Fremstillingspris pr. kg EKM | B21: 2.52 | C21: 2.37 | D21: 2.51 | E21: 2.37 | F21: 2.58 | G21: 2.44 | H21: 2.54 | I21: 2.41 | J21: 2.46 | K21: 2.31 | L21: 2.63 | N21: 2.54 | O21: 2.43 | P21: 2.48 | Q21: 2.36 | R21: 2.47 | S21: 2.36 | T21: 3.17 | U21: 2.99 | V21: 2.63 | W21: 2.49 | X21: 2.63 | Y21: 2.48 | Z21: 2.7 | AB21: 2.67 | AD21: 3.26 | AG21: 2.81 | AH21: 2.48 | AI21: 2.68 | AJ21: 2.45 | AK21: 2.45 | AL21: 2.28 | AM21: 2.4 | AN21: 2.26 | AO21: 2.41 | AP21: 2.28 | AQ21: =SUM(AQ13:AQ20) -> 2.46 | AR21: =SUM(AR13:AR20) -> 2.3 | AS21: 2.43 | AT21: 2.3 | AU21: 2.45 | AV21: 2.31 | AW21: 2.52 | AX21: 2.37 | AY21: 2.75 | AZ21: 2.46 | BA21: 2.68 | BB21: 2.45 | BC21: 2.45 | BD21: 2.28 | BE21: 2.4 | BF21: 2.26 | BG21: 2.39 | BH21: 2.28 | BI21: =SUM(BI13:BI20) -> 2.43 | BJ21: =SUM(BJ13:BJ20) -> 2.29 | BK21: =SUM(BK13:BK20) -> 2.44 | BL21: =SUM(BL13:BL20) -> 2.29 | BM21: 2.43 | BN21: 2.31 | BO21: 2.51 | BP21: 2.37 | BQ21: 2.68 | BR21: 2.45 | BS21: 2.65 | BT21: 2.43 | BU21: 2.48 | BV21: 2.37 | BW21: 2.44 | BX21: 2.26 | BY21: 2.48 | BZ21: 2.36 | CA21: =SUM(CA13:CA20) -> 2.5 | CB21: =SUM(CB13:CB20) -> 2.32 | CC21: =SUM(CC13:CC20) -> 2.46 | CD21: =SUM(CD13:CD20) -> 2.32 | CE21: 2.49 | CF21: 2.33 | CG21: 2.58 | CH21: 2.44 | CI21: 2.44 | CJ21: 2.27 | CK21: 2.38 | CL21: 2.26 | CM21: 2.39 | CN21: 2.26 | CO21: =SUM(CO13:CO20) -> 2.42 | CP21: =SUM(CP13:CP20) -> 2.29 | CQ21: =SUM(CQ13:CQ20) -> 2.46 | CR21: =SUM(CR13:CR20) -> 2.32 | CS21: 2.44 | CT21: 2.32 | CU21: 2.54 | CV21: 2.41 | CW21: 2.38 | CX21: 2.18 | CY21: 2.33 | CZ21: 2.22 | DA21: 2.32 | DB21: 2.21 | DC21: =SUM(DC13:DC20) -> 2.36 | DD21: =SUM(DD13:DD20) -> 2.22 | DE21: =SUM(DE13:DE20) -> 2.37 | DF21: =SUM(DF13:DF20) -> 2.22 | DG21: 2.35 | DH21: 2.22 | DI21: 2.46 | DJ21: 2.31 | DK21: 2.8 | DL21: 2.55 | DM21: 2.75 | DN21: 2.52 | DO21: 2.62 | DP21: 2.44 | DQ21: 2.58 | DR21: 2.42 | DS21: 2.53 | DT21: 2.34 | DU21: =SUM(DU13:DU20) -> 2.55 | DV21: =SUM(DV13:DV20) -> 2.37 | DW21: =SUM(DW13:DW20) -> 2.54 | DX21: =SUM(DX13:DX20) -> 2.31 | DY21: 2.53 | DZ21: 2.37 | EA21: 2.63 | EC21: 2.54 | ED21: 2.37 | EE21: 2.51 | EF21: 2.34 | EG21: 2.46 | EH21: 2.31 | EI21: =SUM(EI13:EI20) -> 2.45 | EJ21: =SUM(EJ13:EJ20) -> 2.28 | EK21: =SUM(EK13:EK20) -> 2.44 | EL21: =SUM(EL13:EL20) -> 2.3 | EM21: 2.42 | EN21: 2.29 | EO21: 2.54 | EP21: 2.43 | EQ21: 2.43 | ER21: 2.3 | ES21: 2.42 | ET21: 2.25 | EU21: 2.35 | EV21: 2.29 | EW21: =SUM(EW13:EW20) -> 2.38 | EX21: =SUM(EX13:EX20) -> 2.32 | EY21: =SUM(EY13:EY20) -> 2.39 | EZ21: =SUM(EZ13:EZ20) -> 2.24 | FA21: 2.39 | FB21: 2.31 | FC21: 2.48 | FD21: 2.36 | FE21: 2.7 | FF21: 2.44 | FG21: 2.63 | FH21: 2.39 | FI21: 2.39 | FJ21: 2.23 | FK21: 2.35 | FL21: 2.17 | FM21: 2.39 | FN21: 2.28 | FO21: =SUM(FO13:FO20) -> 2.43 | FP21: =SUM(FP13:FP20) -> 2.24 | FQ21: =SUM(FQ13:FQ20) -> 2.39 | FR21: =SUM(FR13:FR20) -> 2.21 | FS21: 2.43 | FT21: 2.29 | FU21: 2.47 | FV21: 2.36 | FW21: 3.42 | FX21: 3.11 | FY21: 3.27 | FZ21: 3.01 | GA21: 3.08 | GB21: 2.96 | GC21: 3.13 | GD21: 3.01 | GE21: 3.16 | GF21: 2.97 | GG21: =SUM(GG13:GG20) -> 3.26 | GH21: =SUM(GH13:GH20) -> 3.08 | GI21: =SUM(GI13:GI20) -> 3.2 | GJ21: =SUM(GJ13:GJ20) -> 3.01 | GK21: 3.17 | GL21: 2.97 | GM21: 3.17 | GN21: 2.99 | GO21: 2.74 | GP21: 2.51 | GQ21: 2.68 | GR21: 2.44 | GS21: 2.46 | GT21: 2.24 | GU21: 2.43 | GV21: 2.29 | GW21: 2.53 | GX21: 2.37 | GY21: =SUM(GY13:GY20) -> 2.59 | GZ21: =SUM(GZ13:GZ20) -> 2.42 | HA21: =SUM(HA13:HA20) -> 2.56 | HB21: =SUM(HB13:HB20) -> 2.39 | HC21: 2.55 | HD21: 2.45 | HE21: 2.63 | HF21: 2.49 | HG21: 2.68 | HH21: 2.4 | HI21: 2.68 | HJ21: 2.4 | HK21: 2.4 | HL21: 2.19 | HM21: 2.36 | HN21: 2.22 | HO21: 2.5 | HP21: 2.31 | HQ21: =SUM(HQ13:HQ20) -> 2.55 | HR21: =SUM(HR13:HR20) -> 2.37 | HS21: =SUM(HS13:HS20) -> 2.5 | HT21: =SUM(HT13:HT20) -> 2.38 | HU21: 2.52 | HV21: 2.36 | HW21: 2.63 | HX21: 2.48 | HY21: 2.83 | IA21: 2.81 | IC21: 2.62 | IE21: 2.54 | IG21: 2.58 | IH21: 2.4 | II21: =SUM(II13:II20) -> 2.62 | IK21: =SUM(IK13:IK20) -> 2.57 | IL21: =SUM(IL13:IL20) -> 2.47 | IM21: 2.56 | IO21: 2.7 | IQ21: 2.57 | IS21: 2.55 | IU21: 2.48 | IW21: 2.45 | IY21: 2.51 | JA21: =SUM(JA13:JA20) -> 2.64 | JC21: =SUM(JC13:JC20) -> 2.63 | JE21: 2.54 | JG21: 2.67 | JI21: 3.43 | JK21: 3.39 | JM21: 3.13 | JO21: 3.24 | JQ21: 3.16 | JR21: 2.98 | JS21: =SUM(JS13:JS20) -> 3.25 | JU21: =SUM(JU13:JU20) -> 3.46 | JW21: 3.3 | JY21: 3.26
A22: Korrektion ved egen fremst.pris, grovfoder | B22: 0.01162477266 | C22: -0.007513551887 | D22: 0.01165054472 | E22: -0.007530318471 | F22: 0.02791253704 | G22: -0.0717754 | H22: 0.006727649573 | I22: -0.01184848718 | J22: 0.022514875 | K22: -0.001108714286 | L22: 0.01136423684 | N22: -0.008402974359 | O22: -0.03639756522 | P22: -0.02395418182 | Q22: -0.0307505 | R22: 0.02661553333 | S22: -0.009602153846 | T22: 0.004393894231 | U22: -0.01068676667 | V22: 0.03938780952 | W22: 0.01486843478 | X22: 0.04391838235 | Y22: 0.037314 | Z22: 0.0340079 | AB22: 0.020861 | AD22: -0.0604995 | AQ22: 0.1083233287 | AR22: 0.06015378635 | AS22: 0.009096801236 | AT22: -0.02121573508 | AU22: -0.004860070056 | AV22: -0.02495315094 | AW22: 0.01162477266 | AX22: -0.007513551887 | BI22: 0.1093647467 | BJ22: 0.07111791176 | BK22: 0.01922288359 | BL22: -0.01127146296 | BM22: -0.008062723338 | BN22: -0.02025570984 | BO22: 0.01165054472 | BP22: -0.007530318471 | CA22: 0.1119708152 | CB22: 0.02427468 | CC22: 0.02519671144 | CD22: -0.00978278125 | CE22: -0.006841090909 | CF22: -0.0540505 | CG22: 0.02791253704 | CH22: -0.0717754 | CO22: 0.1178859947 | CP22: 0.06584342 | CQ22: 0.02519671144 | CR22: -0.00978278125 | CS22: -0.006326642857 | CT22: -0.01841279167 | CU22: 0.006727649573 | CV22: -0.01184848718 | DC22: 0.106153 | DD22: 0.06540528 | DE22: 0.02903579121 | DF22: 0.01085965217 | DG22: 0.0002602884615 | DH22: -0.00366446875 | DI22: 0.022514875 | DJ22: -0.001108714286 | DU22: 0.1082810263 | DV22: 0.05592415 | DW22: 0.0109499697 | DX22: -0.0186894 | DY22: 0.006377442623 | DZ22: -0.01004741176 | EA22: 0.01136423684 | EI22: 0.07401361458 | EJ22: 0.022572 | EK22: -0.002367295918 | EL22: -0.01681784375 | EM22: -0.03806198837 | EN22: -0.06352628 | EO22: -0.008402974359 | EP22: -0.03639756522 | EW22: 0.08125920513 | EX22: 0.08179322222 | EY22: -0.007404232558 | EZ22: -0.05185466667 | FA22: -0.01527434884 | FB22: -0.0477525 | FC22: -0.02395418182 | FD22: -0.0307505 | FO22: 0.1128601061 | FP22: 0.08145535714 | FQ22: 0.01316083582 | FR22: -0.005846413793 | FS22: -0.01289340741 | FT22: -0.03864366667 | FU22: 0.02661553333 | FV22: -0.009602153846 | GG22: 0.1002566275 | GH22: 0.03774578 | GI22: -0.03985527778 | GJ22: -0.05558256842 | GK22: -0.004808458904 | GL22: -0.06651457895 | GM22: 0.004393894231 | GN22: -0.01068676667 | GY22: 0.1237277841 | GZ22: 0.09210388571 | HA22: 0.03453498718 | HB22: 0.01378308163 | HC22: 0.01908139474 | HD22: 0.004719035714 | HE22: 0.03938780952 | HF22: 0.01486843478 | HQ22: 0.1360446087 | HR22: 0.1003312222 | HS22: 0.05514910417 | HT22: 0.03053 | HU22: 0.03209897674 | HV22: 0.04611738462 | HW22: 0.04391838235 | HX22: 0.037314 | II22: 0.1188693478 | IK22: -0.050395 | IL22: -0.029468 | IM22: 0.009483157895 | IO22: 0.0340079 | IQ22: 0.03192592308 | JA22: 0.09928011111 | JC22: 0.06744825 | JE22: 0.03997544444 | JG22: 0.020861 | JS22: 0.06082594737 | JU22: -0.061672 | JW22: 0.0104543125 | JY22: -0.0604995
A23: Fremstillingspris inkl. korrektion | B23: 2.531624773 | C23: 2.362486448 | D23: 2.521650545 | E23: 2.362469682 | F23: 2.607912537 | G23: 2.3682246 | H23: 2.54672765 | I23: 2.398151513 | J23: 2.482514875 | K23: 2.308891286 | L23: 2.641364237 | N23: 2.531597026 | O23: 2.393602435 | P23: 2.456045818 | Q23: 2.3292495 | R23: 2.496615533 | S23: 2.350397846 | T23: 3.174393894 | U23: 2.979313233 | V23: 2.66938781 | W23: 2.504868435 | X23: 2.673918382 | Y23: 2.517314 | Z23: 2.7340079 | AA23: 0 | AB23: 2.690861 | AC23: 0 | AD23: 3.1995005 | AE23: 0 | AQ23: =AQ21+AQ22 -> 2.568323329 | AR23: =AR21+AR22 -> 2.360153786 | AS23: =AS21+AS22 -> 2.439096801 | AT23: =AT21+AT22 -> 2.278784265 | AU23: 2.44513993 | AV23: 2.285046849 | AW23: 2.531624773 | AX23: 2.362486448 | BI23: =BI21+BI22 -> 2.539364747 | BJ23: =BJ21+BJ22 -> 2.361117912 | BK23: =BK21+BK22 -> 2.459222884 | BL23: =BL21+BL22 -> 2.278728537 | BM23: 2.421937277 | BN23: 2.28974429 | BO23: 2.521650545 | BP23: 2.362469682 | CA23: =CA21+CA22 -> 2.611970815 | CB23: =CB21+CB22 -> 2.34427468 | CC23: =CC21+CC22 -> 2.485196711 | CD23: =CD21+CD22 -> 2.310217219 | CE23: 2.483158909 | CF23: 2.2759495 | CG23: 2.607912537 | CH23: 2.3682246 | CO23: =CO21+CO22 -> 2.537885995 | CP23: =CP21+CP22 -> 2.35584342 | CQ23: =CQ21+CQ22 -> 2.485196711 | CR23: =CR21+CR22 -> 2.310217219 | CS23: 2.433673357 | CT23: 2.301587208 | CU23: 2.54672765 | CV23: 2.398151513 | DC23: =DC21+DC22 -> 2.466153 | DD23: =DD21+DD22 -> 2.28540528 | DE23: =DE21+DE22 -> 2.399035791 | DF23: =DF21+DF22 -> 2.230859652 | DG23: 2.350260288 | DH23: 2.216335531 | DI23: 2.482514875 | DJ23: 2.308891286 | DU23: =DU21+DU22 -> 2.658281026 | DV23: =DV21+DV22 -> 2.42592415 | DW23: =DW21+DW22 -> 2.55094997 | DX23: =DX21+DX22 -> 2.2913106 | DY23: 2.536377443 | DZ23: 2.359952588 | EA23: 2.641364237 | EI23: =EI21+EI22 -> 2.524013615 | EJ23: =EJ21+EJ22 -> 2.302572 | EK23: =EK21+EK22 -> 2.437632704 | EL23: =EL21+EL22 -> 2.283182156 | EM23: 2.381938012 | EN23: 2.22647372 | EO23: 2.531597026 | EP23: 2.393602435 | EW23: =EW21+EW22 -> 2.461259205 | EX23: =EX21+EX22 -> 2.401793222 | EY23: =EY21+EY22 -> 2.382595767 | EZ23: =EZ21+EZ22 -> 2.188145333 | FA23: 2.374725651 | FB23: 2.2622475 | FC23: 2.456045818 | FD23: 2.3292495 | FO23: =FO21+FO22 -> 2.542860106 | FP23: =FP21+FP22 -> 2.321455357 | FQ23: =FQ21+FQ22 -> 2.403160836 | FR23: =FR21+FR22 -> 2.204153586 | FS23: 2.417106593 | FT23: 2.251356333 | FU23: 2.496615533 | FV23: 2.350397846 | GG23: =GG21+GG22 -> 3.360256627 | GH23: =GH21+GH22 -> 3.11774578 | GI23: =GI21+GI22 -> 3.160144722 | GJ23: =GJ21+GJ22 -> 2.954417432 | GK23: 3.165191541 | GL23: 2.903485421 | GM23: 3.174393894 | GN23: 2.979313233 | GY23: =GY21+GY22 -> 2.713727784 | GZ23: =GZ21+GZ22 -> 2.512103886 | HA23: =HA21+HA22 -> 2.594534987 | HB23: =HB21+HB22 -> 2.403783082 | HC23: 2.569081395 | HD23: 2.454719036 | HE23: 2.66938781 | HF23: 2.504868435 | HQ23: =HQ21+HQ22 -> 2.686044609 | HR23: =HR21+HR22 -> 2.470331222 | HS23: =HS21+HS22 -> 2.555149104 | HT23: =HT21+HT22 -> 2.41053 | HU23: 2.552098977 | HV23: 2.406117385 | HW23: 2.673918382 | HX23: 2.517314 | II23: =II21+II22 -> 2.738869348 | IK23: =IK21+IK22 -> 2.519605 | IL23: =IL21+IL22 -> 2.440532 | IM23: 2.569483158 | IO23: 2.7340079 | IQ23: 2.601925923 | JA23: =JA21+JA22 -> 2.739280111 | JC23: =JC21+JC22 -> 2.69744825 | JG23: 2.690861 | JS23: =JS21+JS22 -> 3.310825947 | JU23: =JU21+JU22 -> 3.398328 | JW23: 3.310454313 | JY23: 3.1995005
A24: Kr. pr. kg EKM leveret | B24: 2.84 | C24: 2.85 | D24: 2.83 | E24: 2.84 | F24: 2.81 | G24: 2.85 | H24: 2.83 | I24: 2.84 | J24: 2.83 | K24: 2.84 | L24: 2.81 | N24: 2.82 | O24: 2.84 | P24: 2.82 | Q24: 2.82 | R24: 2.83 | S24: 2.84 | T24: 3.45 | U24: 3.48 | V24: 2.93 | W24: 2.95 | X24: 2.93 | Y24: 2.94 | Z24: 2.91 | AB24: 2.93 | AD24: 3.58 | AG24: 2.93 | AH24: 2.92 | AI24: 2.9 | AJ24: 2.91 | AK24: 2.28 | AL24: 2.3 | AM24: 2.16 | AN24: 2.17 | AO24: 2.74 | AP24: 2.74 | AQ24: 2.65 | AR24: 2.66 | AS24: 2.59 | AT24: 2.59 | AU24: 2.61 | AV24: 2.62 | AW24: 2.84 | AX24: 2.85 | AY24: 2.87 | AZ24: 2.88 | BA24: 2.88 | BB24: 2.89 | BC24: 2.28 | BD24: 2.29 | BE24: 2.15 | BF24: 2.17 | BG24: 2.72 | BH24: 2.73 | BI24: 2.64 | BJ24: 2.65 | BK24: 2.57 | BL24: 2.58 | BM24: 2.6 | BN24: 2.61 | BO24: 2.83 | BP24: 2.84 | BQ24: 2.87 | BR24: 2.88 | BS24: 2.88 | BT24: 2.89 | BU24: 2.26 | BV24: 2.28 | BW24: 2.15 | BX24: 2.19 | BY24: 2.73 | BZ24: 2.78 | CA24: 2.61 | CB24: 2.63 | CC24: 2.58 | CD24: 2.58 | CE24: 2.6 | CF24: 2.61 | CG24: 2.81 | CH24: 2.85 | CI24: 2.27 | CJ24: 2.29 | CK24: 2.15 | CL24: 2.18 | CM24: 2.74 | CN24: 2.75 | CO24: 2.64 | CP24: 2.65 | CQ24: 2.58 | CR24: 2.58 | CS24: 2.6 | CT24: 2.61 | CU24: 2.83 | CV24: 2.84 | CW24: 2.29 | CX24: 2.3 | CY24: 2.16 | CZ24: 2.19 | DA24: 2.75 | DB24: 2.77 | DC24: 2.64 | DD24: 2.65 | DE24: 2.58 | DF24: 2.59 | DG24: 2.59 | DH24: 2.6 | DI24: 2.83 | DJ24: 2.84 | DK24: 2.87 | DL24: 2.88 | DM24: 2.88 | DN24: 2.89 | DO24: 2.27 | DP24: 2.27 | DQ24: 2.14 | DR24: 2.15 | DS24: 2.47 | DT24: 2.73 | DU24: 2.62 | DV24: 2.65 | DW24: 2.57 | DX24: 2.59 | DY24: 2.59 | DZ24: 2.61 | EA24: 2.81 | EC24: 2.27 | ED24: 2.27 | EE24: 2.14 | EF24: 2.16 | EG24: 2.73 | EH24: 2.74 | EI24: 2.62 | EJ24: 2.63 | EK24: 2.57 | EL24: 2.57 | EM24: 2.6 | EN24: 2.6 | EO24: 2.82 | EP24: 2.84 | EQ24: 2.3 | ER24: 2.33 | ES24: 2.15 | ET24: 2.17 | EU24: 2.73 | EV24: 2.75 | EW24: 2.63 | EX24: 2.64 | EY24: 2.57 | EZ24: 2.58 | FA24: 2.62 | FB24: 2.65 | FC24: 2.82 | FD24: 2.82 | FE24: 2.87 | FF24: 2.87 | FG24: 2.89 | FH24: 2.9 | FI24: 2.28 | FJ24: 2.29 | FK24: 2.16 | FL24: 2.16 | FM24: 2.75 | FN24: 2.77 | FO24: 2.65 | FP24: 2.67 | FQ24: 2.57 | FR24: 2.59 | FS24: 2.61 | FT24: 2.61 | FU24: 2.83 | FV24: 2.84 | FW24: 3.33 | FX24: 3.36 | FY24: 3.43 | FZ24: 3.44 | GA24: 3.15 | GB24: 3.18 | GC24: 3.34 | GD24: 3.43 | GE24: 3.55 | GF24: 3.58 | GG24: 3.39 | GH24: 3.45 | GI24: 3.37 | GJ24: 3.4 | GK24: 3.3 | GL24: 3.31 | GM24: 3.45 | GN24: 3.48 | GO24: 3.01 | GP24: 3.01 | GQ24: 3.01 | GR24: 3.03 | GS24: 2.35 | GT24: 2.36 | GU24: 2.22 | GV24: 2.24 | GW24: 2.84 | GX24: 2.85 | GY24: 2.77 | GZ24: 2.79 | HA24: 2.7 | HB24: 2.71 | HC24: 2.72 | HD24: 2.73 | HE24: 2.93 | HF24: 2.95 | HG24: 3.01 | HH24: 3.01 | HI24: 3.01 | HJ24: 3.03 | HK24: 2.36 | HL24: 2.36 | HM24: 2.23 | HN24: 2.25 | HO24: 2.84 | HP24: 2.85 | HQ24: 2.77 | HR24: 2.78 | HS24: 2.71 | HT24: 2.73 | HU24: 2.73 | HV24: 2.75 | HW24: 2.93 | HX24: 2.94 | HY24: 3 | IA24: 3.02 | IC24: 2.35 | IE24: 2.22 | IG24: 2.85 | IH24: 2.87 | II24: 2.77 | IK24: 2.69 | IL24: 2.69 | IM24: 2.72 | IO24: 2.91 | IQ24: 2.94 | IS24: 3.04 | IU24: 2.36 | IW24: 2.19 | IY24: 2.82 | JA24: 2.78 | JC24: 2.7 | JE24: 2.71 | JG24: 2.93 | JI24: 3.39 | JK24: 3.61 | JM24: 3.38 | JO24: 3.5 | JQ24: 3.64 | JR24: 3.64 | JS24: 3.55 | JU24: 3.53 | JW24: 3.45 | JY24: 3.58
A25: Dækningsbidrag pr. kg EKM | B25: 1.42 | C25: 1.5 | D25: 1.41 | E25: 1.48 | F25: 1.34 | G25: 1.44 | H25: 1.37 | I25: 1.45 | J25: 1.42 | K25: 1.5 | L25: 1.36 | N25: 1.43 | O25: 1.5 | P25: 1.45 | Q25: 1.51 | R25: 1.41 | S25: 1.47 | T25: 1.63 | U25: 1.71 | V25: 1.47 | W25: 1.6 | X25: 1.46 | Y25: 1.58 | Z25: 1.4 | AB25: 1.45 | AD25: 1.76 | AG25: 1.36 | AH25: 1.49 | AI25: 1.45 | AJ25: 1.57 | AK25: 0.97 | AL25: 1.06 | AM25: 0.84 | AN25: 0.92 | AO25: 1.43 | AP25: 1.49 | AQ25: 1.29 | AR25: 1.36 | AS25: 1.22 | AT25: 1.29 | AU25: 1.23 | AV25: 1.3 | AW25: 1.42 | AX25: 1.5 | AY25: 1.35 | AZ25: 1.47 | BA25: 1.44 | BB25: 1.55 | BC25: 0.96 | BD25: 1.05 | BE25: 0.84 | BF25: 0.92 | BG25: 1.43 | BH25: 1.49 | BI25: 1.29 | BJ25: 1.36 | BK25: 1.21 | BL25: 1.28 | BM25: 1.22 | BN25: 1.29 | BO25: 1.41 | BP25: 1.48 | BQ25: 1.36 | BR25: 1.5 | BS25: 1.44 | BT25: 1.55 | BU25: 0.95 | BV25: 1.01 | BW25: 0.82 | BX25: 0.95 | BY25: 1.39 | BZ25: 1.48 | CA25: 1.23 | CB25: 1.33 | CC25: 1.19 | CD25: 1.27 | CE25: 1.2 | CF25: 1.24 | CG25: 1.34 | CH25: 1.44 | CI25: 0.95 | CJ25: 1.05 | CK25: 0.83 | CL25: 0.95 | CM25: 1.43 | CN25: 1.51 | CO25: 1.29 | CP25: 1.38 | CQ25: 1.19 | CR25: 1.27 | CS25: 1.2 | CT25: 1.27 | CU25: 1.37 | CV25: 1.45 | CW25: 0.98 | CX25: 1.07 | CY25: 0.84 | CZ25: 0.91 | DA25: 1.45 | DB25: 1.51 | DC25: 1.3 | DD25: 1.39 | DE25: 1.22 | DF25: 1.28 | DG25: 1.23 | DH25: 1.3 | DI25: 1.42 | DJ25: 1.5 | DK25: 1.34 | DL25: 1.46 | DM25: 1.43 | DN25: 1.54 | DO25: 0.94 | DP25: 1 | DQ25: 0.8 | DR25: 0.88 | DS25: 1.41 | DT25: 1.51 | DU25: 1.27 | DV25: 1.38 | DW25: 1.18 | DX25: 1.31 | DY25: 1.23 | DZ25: 1.32 | EA25: 1.36 | EC25: 0.95 | ED25: 1.05 | EE25: 0.81 | EF25: 0.92 | EG25: 1.43 | EH25: 1.52 | EI25: 1.3 | EJ25: 1.36 | EK25: 1.22 | EL25: 1.27 | EM25: 1.25 | EN25: 1.32 | EO25: 1.43 | EP25: 1.5 | EQ25: 1 | ER25: 1.04 | ES25: 0.84 | ET25: 0.96 | EU25: 1.44 | EV25: 1.47 | EW25: 1.3 | EX25: 1.34 | EY25: 1.22 | EZ25: 1.31 | FA25: 1.25 | FB25: 1.29 | FC25: 1.45 | FD25: 1.51 | FE25: 1.35 | FF25: 1.49 | FG25: 1.45 | FH25: 1.59 | FI25: 0.98 | FJ25: 1.06 | FK25: 0.84 | FL25: 0.96 | FM25: 1.43 | FN25: 1.49 | FO25: 1.29 | FP25: 1.42 | FQ25: 1.23 | FR25: 1.36 | FS25: 1.21 | FT25: 1.29 | FU25: 1.41 | FV25: 1.47 | FW25: 1.36 | FX25: 1.55 | FY25: 1.57 | FZ25: 1.7 | GA25: 1.41 | GB25: 1.48 | GC25: 1.54 | GD25: 1.66 | GE25: 1.71 | GF25: 1.83 | GG25: 1.45 | GH25: 1.57 | GI25: 1.46 | GJ25: 1.57 | GK25: 1.44 | GL25: 1.53 | GM25: 1.63 | GN25: 1.71 | GO25: 1.47 | GP25: 1.6 | GQ25: 1.54 | GR25: 1.66 | GS25: 1.04 | GT25: 1.21 | GU25: 0.9 | GV25: 0.98 | GW25: 1.48 | GX25: 1.56 | GY25: 1.37 | GZ25: 1.47 | HA25: 1.31 | HB25: 1.42 | HC25: 1.33 | HD25: 1.39 | HE25: 1.47 | HF25: 1.6 | HG25: 1.51 | HH25: 1.67 | HI25: 1.55 | HJ25: 1.68 | HK25: 1.07 | HL25: 1.21 | HM25: 0.94 | HN25: 1.05 | HO25: 1.52 | HP25: 1.61 | HQ25: 1.37 | HR25: 1.48 | HS25: 1.35 | HT25: 1.45 | HU25: 1.36 | HV25: 1.44 | HW25: 1.46 | HX25: 1.58 | HY25: 1.46 | IA25: 1.52 | IC25: 1.02 | IE25: 0.91 | IG25: 1.49 | IH25: 1.54 | II25: 1.41 | IK25: 1.31 | IL25: 1.33 | IM25: 1.36 | IO25: 1.4 | IQ25: 1.56 | IS25: 1.57 | IU25: 0.97 | IW25: 0.77 | IY25: 1.37 | JA25: 1.25 | JC25: 1.2 | JE25: 1.26 | JG25: 1.45 | JI25: 1.32 | JK25: 1.66 | JM25: 1.69 | JO25: 1.65 | JQ25: 1.7 | JR25: 1.73 | JS25: 1.6 | JU25: 1.5 | JW25: 1.51 | JY25: 1.76
A28: Nøgletal pr. årsko
A30: Værdiændring besætning og beholdninger | B30: 789 | C30: 783 | D30: 825 | E30: 819 | F30: 823 | G30: 764 | H30: 860 | I30: 868 | J30: 815 | K30: 837 | L30: 872 | N30: 810 | O30: 843 | P30: 832 | Q30: 870 | R30: 785 | S30: 742 | T30: 866 | U30: 886 | V30: 519 | W30: 480 | X30: 447 | Y30: 344 | Z30: 529 | AB30: 628 | AD30: 592 | AM30: 17 | AN30: 15 | AQ30: 17 | AR30: 15 | AS30: 116 | AT30: 126 | AU30: 15 | AV30: 15 | AW30: 789 | AX30: 783 | BI30: 20 | BJ30: 18 | BK30: 31 | BL30: 36 | BM30: 15 | BN30: 16 | BO30: 825 | BP30: 819 | CA30: 39 | CB30: 26 | CC30: 42 | CD30: 31 | CE30: 26 | CF30: 27 | CG30: 823 | CH30: 764 | CO30: 18 | CP30: 13 | CQ30: 42 | CR30: 31 | CS30: -3 | CT30: 9 | CU30: 860 | CV30: 868 | DC30: 33 | DD30: 57 | DE30: 21 | DF30: 27 | DG30: 21 | DH30: 39 | DI30: 815 | DJ30: 837 | DU30: 43 | DV30: 19 | DW30: -37 | DX30: 26 | DY30: 30 | DZ30: 17 | EA30: 872 | EI30: 16 | EJ30: 1 | EK30: 27 | EL30: 2913 | EM30: -2 | EN30: -17 | EO30: 810 | EP30: 843 | EW30: 12 | EX30: 7 | EY30: 25 | EZ30: 3 | FA30: 18 | FB30: 11 | FC30: 832 | FD30: 870 | FO30: 9 | FP30: -17 | FQ30: 49 | FR30: 33 | FS30: 25 | FT30: 26 | FU30: 785 | FV30: 742 | GG30: 21 | GH30: -17 | GI30: 22 | GJ30: 11 | GK30: -73 | GL30: -47 | GM30: 866 | GN30: 886 | GY30: -9 | GZ30: -18 | HA30: 792 | HB30: 799 | HC30: 15 | HD30: 7 | HE30: 519 | HF30: 480 | HQ30: 2 | HR30: -6 | HS30: 776 | HT30: 806 | HU30: 34 | HV30: 3 | HW30: 447 | HX30: 344 | II30: -5 | IK30: 750 | IL30: 844 | IM30: -14 | IO30: 529 | IQ30: 536 | JA30: -19 | JC30: 842 | JE30: -1 | JG30: 628 | JS30: -40 | JU30: 756 | JW30: -62 | JY30: 592
A31: Dækningsbidrag pr. årsko | B31: 15636 | C31: 16883 | D31: 15813 | E31: 16938 | F31: 14418 | G31: 16034 | H31: 14806 | I31: 15966 | J31: 16077 | K31: 17604 | L31: 14740 | N31: 16006 | O31: 17180 | P31: 16753 | Q31: 17887 | R31: 15806 | S31: 16538 | T31: 16481 | U31: 17994 | V31: 14457 | W31: 16278 | X31: 14342 | Y31: 15902 | Z31: 13747 | AB31: 14077 | AD31: 15628 | AM31: 13721 | AN31: 14938 | AQ31: 13721 | AR31: 14938 | AS31: 13263 | AT31: 14314 | AU31: 13499 | AV31: 14556 | AW31: 15636 | AX31: 16883 | BI31: 13813 | BJ31: 15014 | BK31: 13332 | BL31: 14494 | BM31: 13549 | BN31: 14658 | BO31: 15813 | BP31: 16938 | CA31: 12748 | CB31: 13960 | CC31: 12945 | CD31: 14192 | CE31: 12771 | CF31: 13629 | CG31: 14418 | CH31: 16034 | CO31: 13614 | CP31: 14891 | CQ31: 12945 | CR31: 14192 | CS31: 13050 | CT31: 14018 | CU31: 14806 | CV31: 15966 | DC31: 14175 | DD31: 15939 | DE31: 13743 | DF31: 14901 | DG31: 13878 | DH31: 15235 | DI31: 16077 | DJ31: 17604 | DU31: 13393 | DV31: 14995 | DW31: 12798 | DX31: 14552 | DY31: 13233 | DZ31: 14078 | EA31: 14740 | EI31: 14217 | EJ31: 15571 | EK31: 13637 | EL31: 0 | EM31: 14054 | EN31: 15025 | EO31: 16006 | EP31: 17180 | EW31: 14550 | EX31: 15046 | EY31: 13960 | EZ31: 15394 | FA31: 14471 | FB31: 15340 | FC31: 16753 | FD31: 17887 | FO31: 13710 | FP31: 15422 | FQ31: 13268 | FR31: 14890 | FS31: 13346 | FT31: 14275 | FU31: 15806 | FV31: 16538 | GG31: 14165 | GH31: 16220 | GI31: 14331 | GJ31: 16307 | GK31: 14359 | GL31: 15861 | GM31: 16481 | GN31: 17994 | GY31: 13004 | GZ31: 14315 | HA31: 12716 | HB31: 14473 | HC31: 13143 | HD31: 14050 | HE31: 14457 | HF31: 16278 | HQ31: 13084 | HR31: 14508 | HS31: 13095 | HT31: 14500 | HU31: 13395 | HV31: 15194 | HW31: 14342 | HX31: 15902 | II31: 13463 | IK31: 13057 | IL31: 14170 | IM31: 13423 | IO31: 13747 | IQ31: 15545 | JA31: 11878 | JC31: 11459 | JE31: 12503 | JG31: 14077 | JS31: 14646 | JU31: 13259 | JW31: 13617 | JY31: 15628
A32: Krav til dækningsbidrag pr. årsko | B32: 11949 | C32: 11567 | D32: 12044 | E32: 11590 | F32: 11988 | G32: 11490 | H32: 11829 | I32: 11230 | J32: 11655 | K32: 11116 | L32: 12874 | N32: 12846 | O32: 12436 | P32: 12696 | Q32: 12395 | R32: 11588 | S32: 11245 | T32: 13300 | U32: 12738 | V32: 11269 | W32: 11350 | X32: 10996 | Y32: 11214 | Z32: 11622 | AB32: 11450 | AD32: 12753 | AG32: 11490 | AH32: 10549 | AI32: 11839 | AJ32: 10895 | AK32: 11653 | AL32: 10757 | AM32: 11092 | AN32: 10566 | AO32: 11373 | AP32: 10922 | AQ32: 11451 | AR32: 11022 | AS32: 11554 | AT32: 11110 | AU32: 11463 | AV32: 11036 | AW32: 11949 | AX32: 11567 | AY32: 11533 | AZ32: 10563 | BA32: 11968 | BB32: 11025 | BC32: 11747 | BD32: 10800 | BE32: 11167 | BF32: 10630 | BG32: 11415 | BH32: 10971 | BI32: 11480 | BJ32: 11035 | BK32: 11604 | BL32: 11139 | BM32: 11486 | BN32: 11053 | BO32: 12044 | BP32: 11590 | BQ32: 11114 | BR32: 10258 | BS32: 11672 | BT32: 10858 | BU32: 11765 | BV32: 11047 | BW32: 11246 | BX32: 10642 | BY32: 11564 | BZ32: 11114 | CA32: 11496 | CB32: 10730 | CC32: 11571 | CD32: 11314 | CE32: 11596 | CF32: 10543 | CG32: 11988 | CH32: 11490 | CI32: 11566 | CJ32: 10624 | CK32: 10891 | CL32: 10618 | CM32: 11282 | CN32: 10854 | CO32: 11303 | CP32: 10901 | CQ32: 11571 | CR32: 11314 | CS32: 11404 | CT32: 10837 | CU32: 11829 | CV32: 11230 | CW32: 11107 | CX32: 10221 | CY32: 10590 | CZ32: 10172 | DA32: 10955 | DB32: 10649 | DC32: 11045 | DD32: 10938 | DE32: 11289 | DF32: 10583 | DG32: 11185 | DH32: 10731 | DI32: 11655 | DJ32: 11116 | DK32: 12509 | DL32: 11611 | DM32: 12852 | DN32: 11766 | DO32: 13328 | DP32: 12218 | DQ32: 12630 | DR32: 11911 | DS32: 12827 | DT32: 12076 | DU32: 12567 | DV32: 12006 | DW32: 12461 | DX32: 11499 | DY32: 12601 | DZ32: 11470 | EA32: 12874 | EC32: 12810 | ED32: 12269 | EE32: 12233 | EF32: 11925 | EG32: 12422 | EH32: 12035 | EI32: 12221 | EJ32: 11736 | EK32: 12266 | EL32: 14696 | EM32: 12068 | EN32: 11550 | EO32: 12846 | EP32: 12436 | EQ32: 11914 | ER32: 10908 | ES32: 11637 | ET32: 11412 | EU32: 11528 | EV32: 11111 | EW32: 11836 | EX32: 11328 | EY32: 11959 | EZ32: 11005 | FA32: 11861 | FB32: 11279 | FC32: 12696 | FD32: 12395 | FE32: 10994 | FF32: 10223 | FG32: 11318 | FH32: 10552 | FI32: 11020 | FJ32: 10169 | FK32: 10588 | FL32: 10241 | FM32: 11093 | FN32: 10891 | FO32: 11265 | FP32: 10893 | FQ32: 11324 | FR32: 10890 | FS32: 11104 | FT32: 10557 | FU32: 11588 | FV32: 11245 | FW32: 12036 | FX32: 11235 | FY32: 12285 | FZ32: 11356 | GA32: 12319 | GB32: 12037 | GC32: 12508 | GD32: 11982 | GE32: 12651 | GF32: 12123 | GG32: 12830 | GH32: 12173 | GI32: 12483 | GJ32: 12246 | GK32: 12586 | GL32: 11967 | GM32: 13300 | GN32: 12738 | GO32: 10526 | GP32: 9949 | GQ32: 10713 | GR32: 9885 | GS32: 10781 | GT32: 10461 | GU32: 10372 | GV32: 9946 | GW32: 11005 | GX32: 10531 | GY32: 11179 | GZ32: 10630 | HA32: 11161 | HB32: 10960 | HC32: 11281 | HD32: 10994 | HE32: 11269 | HF32: 11350 | HG32: 10174 | HH32: 9661 | HI32: 10788 | HJ32: 9722 | HK32: 10448 | HL32: 10098 | HM32: 10054 | HN32: 9766 | HO32: 11047 | HP32: 10329 | HQ32: 11013 | HR32: 10513 | HS32: 11026 | HT32: 10878 | HU32: 11170 | HV32: 10976 | HW32: 10996 | HX32: 11214 | HY32: 11514 | IA32: 11638 | IC32: 11883 | IE32: 11505 | IG32: 11632 | IH32: 10834 | II32: 11778 | IK32: 11668 | IL32: 11457 | IM32: 11686 | IO32: 11622 | IQ32: 11526 | IS32: 9544 | IU32: 10514 | IW32: 9613 | IY32: 10032 | JA32: 10510 | JC32: 10684 | JE32: 10807 | JG32: 11450 | JI32: 10752 | JK32: 12031 | JM32: 12917 | JO32: 12140 | JQ32: 11097 | JR32: 10200 | JS32: 11537 | JU32: 12169 | JW32: 12257 | JY32: 12753
A33: Heraf afskrivninger pr. årsko | B33: 2500 | C33: 2317 | D33: 2548 | E33: 2328 | F33: 2362 | G33: 2134 | H33: 2408 | I33: 2214 | J33: 2373 | K33: 2336 | L33: 3244 | N33: 3399 | O33: 3418 | P33: 3029 | Q33: 2785 | R33: 2163 | S33: 1768 | T33: 2771 | U33: 2485 | V33: 2180 | W33: 2260 | X33: 2053 | Y33: 1989 | Z33: 2246 | AB33: 2333 | AD33: 2743 | AG33: 2588 | AH33: 2335 | AI33: 2618 | AJ33: 2444 | AK33: 2668 | AL33: 2407 | AM33: 2481 | AN33: 2395 | AO33: 2452 | AP33: 2286 | AQ33: 2463 | AR33: 2352 | AS33: 2483 | AT33: 2345 | AU33: 2486 | AV33: 2416 | AW33: 2500 | AX33: 2317 | AY33: 2579 | AZ33: 2363 | BA33: 2670 | BB33: 2495 | BC33: 2705 | BD33: 2425 | BE33: 2504 | BF33: 2417 | BG33: 2466 | BH33: 2298 | BI33: 2488 | BJ33: 2360 | BK33: 2523 | BL33: 2318 | BM33: 2514 | BN33: 2454 | BO33: 2548 | BP33: 2328 | BQ33: 2359 | BR33: 2231 | BS33: 2454 | BT33: 2381 | BU33: 2563 | BV33: 2394 | BW33: 2304 | BX33: 2202 | BY33: 2294 | BZ33: 2021 | CA33: 2270 | CB33: 2206 | CC33: 2361 | CD33: 2090 | CE33: 2376 | CF33: 2200 | CG33: 2362 | CH33: 2134 | CI33: 2528 | CJ33: 2366 | CK33: 2313 | CL33: 2233 | CM33: 2334 | CN33: 2214 | CO33: 2325 | CP33: 2120 | CQ33: 2361 | CR33: 2090 | CS33: 2375 | CT33: 2131 | CU33: 2408 | CV33: 2214 | CW33: 2467 | CX33: 2368 | CY33: 2271 | CZ33: 2215 | DA33: 2266 | DB33: 2152 | DC33: 2272 | DD33: 2326 | DE33: 2366 | DF33: 2196 | DG33: 2306 | DH33: 2213 | DI33: 2373 | DJ33: 2336 | DK33: 3305 | DL33: 3161 | DM33: 3368 | DN33: 3031 | DO33: 3701 | DP33: 3195 | DQ33: 3505 | DR33: 3224 | DS33: 3414 | DT33: 3064 | DU33: 3338 | DV33: 3055 | DW33: 3242 | DX33: 2830 | DY33: 3408 | DZ33: 2721 | EA33: 3244 | EC33: 3591 | ED33: 3439 | EE33: 3310 | EF33: 3241 | EG33: 3189 | EH33: 2924 | EI33: 3059 | EJ33: 3069 | EK33: 3177 | EL33: 11524 | EM33: 3188 | EN33: 3097 | EO33: 3399 | EP33: 3418 | EQ33: 3303 | ER33: 2776 | ES33: 3041 | ET33: 2864 | EU33: 2946 | EV33: 2437 | EW33: 3033 | EX33: 2757 | EY33: 3057 | EZ33: 2932 | FA33: 3037 | FB33: 2967 | FC33: 3029 | FD33: 2785 | FE33: 2169 | FF33: 2075 | FG33: 2329 | FH33: 2330 | FI33: 2237 | FJ33: 1944 | FK33: 2230 | FL33: 2363 | FM33: 2166 | FN33: 1746 | FO33: 2236 | FP33: 1911 | FQ33: 2192 | FR33: 1788 | FS33: 2274 | FT33: 2089 | FU33: 2163 | FV33: 1768 | FW33: 2959 | FX33: 2613 | FY33: 3042 | FZ33: 2799 | GA33: 2914 | GB33: 2679 | GC33: 2916 | GD33: 2684 | GE33: 2808 | GF33: 2568 | GG33: 2767 | GH33: 2564 | GI33: 2593 | GJ33: 2394 | GK33: 2680 | GL33: 2314 | GM33: 2771 | GN33: 2485 | GO33: 2222 | GP33: 2136 | GQ33: 2165 | GR33: 2089 | GS33: 2321 | GT33: 2330 | GU33: 2270 | GV33: 2299 | GW33: 2319 | GX33: 2110 | GY33: 2199 | GZ33: 2181 | HA33: 2158 | HB33: 2171 | HC33: 2273 | HD33: 2198 | HE33: 2180 | HF33: 2260 | HG33: 2031 | HH33: 2116 | HI33: 2030 | HJ33: 1958 | HK33: 2190 | HL33: 2317 | HM33: 2134 | HN33: 2075 | HO33: 2352 | HP33: 2074 | HQ33: 2135 | HR33: 1948 | HS33: 2031 | HT33: 2023 | HU33: 2231 | HV33: 2208 | HW33: 2053 | HX33: 1989 | HY33: 2705 | IA33: 2849 | IC33: 2956 | IE33: 2883 | IG33: 2692 | IH33: 2326 | II33: 2588 | IK33: 2578 | IL33: 2803 | IM33: 2505 | IO33: 2246 | IQ33: 2447 | IS33: 1895 | IU33: 2231 | IW33: 2005 | IY33: 2026 | JA33: 1994 | JC33: 2083 | JE33: 2226 | JG33: 2333 | JI33: 2585 | JK33: 2757 | JM33: 3209 | JO33: 2740 | JQ33: 2499 | JR33: 2146 | JS33: 2419 | JU33: 2581 | JW33: 2646 | JY33: 2743
A34: Arbejdsomkostninger pr. årsko | B34: 4618 | C34: 4510 | D34: 4603 | E34: 4469 | F34: 4994 | G34: 4675 | H34: 4866 | I34: 4640 | J34: 4769 | K34: 4551 | L34: 4110 | N34: 4036 | O34: 3706 | P34: 4181 | Q34: 4125 | R34: 4578 | S34: 4511 | T34: 5175 | U34: 4962 | V34: 4706 | W34: 4773 | X34: 4777 | Y34: 5002 | Z34: 4441 | AB34: 4729 | AD34: 4914 | AG34: 3945 | AH34: 3746 | AI34: 4190 | AJ34: 3901 | AK34: 4183 | AL34: 3995 | AM34: 4005 | AN34: 3904 | AO34: 4138 | AP34: 3963 | AQ34: 4246 | AR34: 4080 | AS34: 4416 | AT34: 4273 | AU34: 4373 | AV34: 4168 | AW34: 4618 | AX34: 4510 | AY34: 3965 | AZ34: 3715 | BA34: 4207 | BB34: 3919 | BC34: 4182 | BD34: 3971 | BE34: 4001 | BF34: 3896 | BG34: 4121 | BH34: 3944 | BI34: 4225 | BJ34: 4064 | BK34: 4396 | BL34: 4255 | BM34: 4347 | BN34: 4146 | BO34: 4603 | BP34: 4469 | BQ34: 4166 | BR34: 3895 | BS34: 4437 | BT34: 4141 | BU34: 4776 | BV34: 4531 | BW34: 4642 | BX34: 4453 | BY34: 4778 | BZ34: 4717 | CA34: 4748 | CB34: 4357 | CC34: 4749 | CD34: 4784 | CE34: 4754 | CF34: 4375 | CG34: 4994 | CH34: 4675 | CI34: 4432 | CJ34: 4173 | CK34: 4199 | CL34: 4317 | CM34: 4371 | CN34: 4183 | CO34: 4522 | CP34: 4323 | CQ34: 4749 | CR34: 4784 | CS34: 4706 | CT34: 4547 | CU34: 4866 | CV34: 4640 | CW34: 4095 | CX34: 3653 | CY34: 3963 | CZ34: 3924 | DA34: 4203 | DB34: 4060 | DC34: 4360 | DD34: 4196 | DE34: 4576 | DF34: 4309 | DG34: 4508 | DH34: 4333 | DI34: 4769 | DJ34: 4551 | DK34: 3506 | DL34: 3170 | DM34: 3732 | DN34: 3412 | DO34: 3982 | DP34: 3782 | DQ34: 3751 | DR34: 3560 | DS34: 3833 | DT34: 3805 | DU34: 3770 | DV34: 3686 | DW34: 3756 | DX34: 3547 | DY34: 3793 | DZ34: 3767 | EA34: 4110 | EC34: 3735 | ED34: 3666 | EE34: 3567 | EF34: 3818 | EG34: 3669 | EH34: 3617 | EI34: 3790 | EJ34: 3692 | EK34: 3800 | EL34: 2621 | EM34: 3817 | EN34: 3284 | EO34: 4036 | EP34: 3706 | EQ34: 3392 | ER34: 3162 | ES34: 3460 | ET34: 3395 | EU34: 3497 | EV34: 3548 | EW34: 3583 | EX34: 3366 | EY34: 3764 | EZ34: 3477 | FA34: 3752 | FB34: 3381 | FC34: 4181 | FD34: 4125 | FE34: 3783 | FF34: 3655 | FG34: 4077 | FH34: 3886 | FI34: 4027 | FJ34: 3902 | FK34: 3826 | FL34: 3674 | FM34: 4010 | FN34: 4008 | FO34: 4231 | FP34: 4182 | FQ34: 4415 | FR34: 4326 | FS34: 4348 | FT34: 4311 | FU34: 4578 | FV34: 4511 | FW34: 3917 | FX34: 3886 | FY34: 4129 | FZ34: 3969 | GA34: 4191 | GB34: 4130 | GC34: 4369 | GD34: 4098 | GE34: 4449 | GF34: 4312 | GG34: 4666 | GH34: 4472 | GI34: 4740 | GJ34: 4691 | GK34: 4933 | GL34: 4772 | GM34: 5175 | GN34: 4962 | GO34: 3850 | GP34: 3722 | GQ34: 4045 | GR34: 3710 | GS34: 4194 | GT34: 4198 | GU34: 4034 | GV34: 3900 | GW34: 4301 | GX34: 4142 | GY34: 4447 | GZ34: 4209 | HA34: 4572 | HB34: 4504 | HC34: 4605 | HD34: 4366 | HE34: 4706 | HF34: 4773 | HG34: 4041 | HH34: 4041 | HI34: 4351 | HJ34: 3920 | HK34: 4317 | HL34: 4091 | HM34: 4105 | HN34: 4165 | HO34: 4401 | HP34: 4102 | HQ34: 4467 | HR34: 4267 | HS34: 4638 | HT34: 4536 | HU34: 4650 | HV34: 4296 | HW34: 4777 | HX34: 5002 | HY34: 3368 | IA34: 3466 | IC34: 3676 | IE34: 3745 | IG34: 4020 | IH34: 4055 | II34: 4316 | IK34: 4390 | IL34: 3953 | IM34: 4289 | IO34: 4441 | IQ34: 4437 | IS34: 3707 | IU34: 4039 | IW34: 3830 | IY34: 4232 | JA34: 4298 | JC34: 4441 | JE34: 4503 | JG34: 4729 | JI34: 3550 | JK34: 4100 | JM34: 4341 | JO34: 4337 | JQ34: 4350 | JR34: 4233 | JS34: 4387 | JU34: 4817 | JW34: 4626 | JY34: 4914
A35: Bygningsomk. pr. årsko | B35: 2456 | C35: 2396 | D35: 2492 | E35: 2414 | F35: 2475 | G35: 2440 | H35: 2421 | I35: 2208 | J35: 2369 | K35: 2277 | L35: 2544 | N35: 2774 | O35: 2691 | P35: 2494 | Q35: 2244 | R35: 2585 | S35: 2668 | T35: 2738 | U35: 2704 | V35: 2221 | W35: 2327 | X35: 2145 | Y35: 2075 | Z35: 2214 | AB35: 2364 | AD35: 2500 | AQ35: 2510 | AR35: 2445 | AS35: 2536 | AT35: 2481 | AU35: 2493 | AV35: 2354 | AW35: 2456 | AX35: 2396 | BI35: 2519 | BJ35: 2444 | BK35: 2556 | BL35: 2492 | BM35: 2509 | BN35: 2367 | BO35: 2492 | BP35: 2414 | CA35: 2519 | CB35: 2316 | CC35: 2518 | CD35: 2409 | CE35: 2562 | CF35: 2522 | CG35: 2475 | CH35: 2440 | CO35: 2509 | CP35: 2353 | CQ35: 2518 | CR35: 2409 | CS35: 2454 | CT35: 2227 | CU35: 2421 | CV35: 2208 | DC35: 2476 | DD35: 2458 | DE35: 2486 | DF35: 2333 | DG35: 2416 | DH35: 2187 | DI35: 2369 | DJ35: 2277 | DU35: 2746 | DV35: 2650 | DW35: 2786 | DX35: 2740 | DY35: 2847 | DZ35: 2651 | EA35: 2544 | EI35: 2569 | EJ35: 2420 | EK35: 2682 | EL35: 3536 | EM35: 2708 | EN35: 2516 | EO35: 2774 | EP35: 2691 | EW35: 2701 | EX35: 2462 | EY35: 2716 | EZ35: 2584 | FA35: 2652 | FB35: 2537 | FC35: 2494 | FD35: 2244 | FO35: 2532 | FP35: 2570 | FQ35: 2546 | FR35: 2575 | FS35: 2399 | FT35: 2130 | FU35: 2585 | FV35: 2668 | GG35: 2729 | GH35: 2697 | GI35: 2687 | GJ35: 2601 | GK35: 2774 | GL35: 2688 | GM35: 2738 | GN35: 2704 | GY35: 2398 | GZ35: 2410 | HA35: 2375 | HB35: 2455 | HC35: 2370 | HD35: 2362 | HE35: 2221 | HF35: 2327 | HQ35: 2398 | HR35: 2338 | HS35: 2325 | HT35: 2388 | HU35: 2369 | HV35: 2440 | HW35: 2145 | HX35: 2075 | II35: 2563 | IK35: 2502 | IL35: 2551 | IM35: 2540 | IO35: 2214 | IQ35: 2244 | JA35: 2358 | JC35: 2338 | JE35: 2221 | JG35: 2364 | JS35: 2467 | JU35: 2659 | JW35: 2598 | JY35: 2500
A36: Inventar inkl. energi pr. årsko | B36: 3713 | C36: 3517 | D36: 3775 | E36: 3555 | F36: 3214 | G36: 3062 | H36: 3297 | I36: 3160 | J36: 3405 | K36: 3268 | L36: 4893 | N36: 4839 | O36: 4867 | P36: 4861 | Q36: 4704 | R36: 3358 | S36: 3021 | T36: 4109 | U36: 3902 | V36: 3277 | W36: 3196 | X36: 3005 | Y36: 3029 | Z36: 3904 | AB36: 3320 | AD36: 4098 | AQ36: 3537 | AR36: 3384 | AS36: 3459 | AT36: 3251 | AU36: 3448 | AV36: 3379 | AW36: 3713 | AX36: 3517 | BI36: 3574 | BJ36: 3411 | BK36: 3498 | BL36: 3253 | BM36: 3479 | BN36: 3414 | BO36: 3775 | BP36: 3555 | CA36: 2993 | CB36: 2929 | CC36: 3099 | CD36: 2848 | CE36: 3029 | CF36: 2491 | CG36: 3214 | CH36: 3062 | CO36: 3092 | CP36: 3003 | CQ36: 3099 | CR36: 2848 | CS36: 3047 | CT36: 2868 | CU36: 3297 | CV36: 3160 | DC36: 3111 | DD36: 3030 | DE36: 3140 | DF36: 2957 | DG36: 3180 | DH36: 3073 | DI36: 3405 | DJ36: 3268 | DU36: 4783 | DV36: 4450 | DW36: 4663 | DX36: 4083 | DY36: 4653 | DZ36: 3856 | EA36: 4893 | EI36: 4608 | EJ36: 4514 | EK36: 4537 | EL36: 2459 | EM36: 4336 | EN36: 4341 | EO36: 4839 | EP36: 4867 | EW36: 4538 | EX36: 4505 | EY36: 4454 | EZ36: 4060 | FA36: 4439 | FB36: 4303 | FC36: 4861 | FD36: 4704 | FO36: 3331 | FP36: 2986 | FQ36: 3224 | FR36: 2872 | FS36: 3207 | FT36: 2966 | FU36: 3358 | FV36: 3021 | GG36: 4139 | GH36: 3777 | GI36: 3788 | GJ36: 3715 | GK36: 3701 | GL36: 3381 | GM36: 4109 | GN36: 3902 | GY36: 3232 | GZ36: 2969 | HA36: 3151 | HB36: 2986 | HC36: 3195 | HD36: 3077 | HE36: 3277 | HF36: 3196 | HQ36: 2977 | HR36: 2711 | HS36: 2989 | HT36: 2961 | HU36: 3066 | HV36: 3037 | HW36: 3005 | HX36: 3029 | II36: 3833 | IK36: 3771 | IL36: 3942 | IM36: 3747 | IO36: 3904 | IQ36: 3794 | JA36: 2831 | JC36: 2880 | JE36: 3029 | JG36: 3320 | JS36: 3633 | JU36: 3626 | JW36: 3942 | JY36: 4098
A37: Forrentning driftskapital pr. årsko | B37: 440 | C37: 450 | D37: 453 | E37: 465 | F37: 420 | G37: 406 | H37: 440 | I37: 434 | J37: 475 | K37: 447 | L37: 420 | N37: 441 | O37: 423 | P37: 476 | Q37: 527 | R37: 398 | S37: 388 | T37: 463 | U37: 439 | V37: 343 | W37: 332 | X37: 334 | Y37: 327 | Z37: 356 | AB37: 376 | AD37: 339 | AQ37: 451 | AR37: 459 | AS37: 451 | AT37: 456 | AU37: 454 | AV37: 462 | AW37: 440 | AX37: 450 | BI37: 460 | BJ37: 466 | BK37: 462 | BL37: 476 | BM37: 463 | BN37: 471 | BO37: 453 | BP37: 465 | CA37: 431 | CB37: 415 | CC37: 470 | CD37: 512 | CE37: 432 | CF37: 460 | CG37: 420 | CH37: 406 | CO37: 452 | CP37: 493 | CQ37: 470 | CR37: 512 | CS37: 455 | CT37: 473 | CU37: 440 | CV37: 434 | DC37: 479 | DD37: 485 | DE37: 464 | DF37: 419 | DG37: 465 | DH37: 454 | DI37: 475 | DJ37: 447 | DU37: 461 | DV37: 520 | DW37: 458 | DX37: 489 | DY37: 446 | DZ37: 465 | EA37: 420 | EI37: 458 | EJ37: 445 | EK37: 440 | EL37: 4162 | EM37: 452 | EN37: 497 | EO37: 441 | EP37: 423 | EW37: 463 | EX37: 468 | EY37: 468 | EZ37: 432 | FA37: 463 | FB37: 457 | FC37: 476 | FD37: 527 | FO37: 474 | FP37: 417 | FQ37: 469 | FR37: 398 | FS37: 487 | FT37: 493 | FU37: 398 | FV37: 388 | GG37: 515 | GH37: 513 | GI37: 491 | GJ37: 521 | GK37: 448 | GL37: 459 | GM37: 463 | GN37: 439 | GY37: 359 | GZ37: 356 | HA37: 367 | HB37: 367 | HC37: 381 | HD37: 412 | HE37: 343 | HF37: 332 | HQ37: 345 | HR37: 360 | HS37: 358 | HT37: 374 | HU37: 362 | HV37: 417 | HW37: 334 | HX37: 327 | II37: 349 | IK37: 338 | IL37: 308 | IM37: 401 | IO37: 356 | IQ37: 319 | JA37: 423 | JC37: 398 | JE37: 390 | JG37: 376 | JS37: 333 | JU37: 366 | JW37: 348 | JY37: 339
A38: Øvrige omkostninger pr. årsko | B38: 723 | C38: 694 | D38: 721 | E38: 687 | F38: 884 | G38: 909 | H38: 806 | I38: 787 | J38: 636 | K38: 575 | L38: 907 | N38: 756 | O38: 750 | P38: 685 | Q38: 796 | R38: 671 | S38: 660 | T38: 815 | U38: 728 | V38: 721 | W38: 718 | X38: 737 | Y38: 778 | Z38: 700 | AB38: 656 | AD38: 908 | AQ38: 707 | AR38: 654 | AS38: 692 | AT38: 650 | AU38: 695 | AV38: 673 | AW38: 723 | AX38: 694 | BI38: 702 | BJ38: 648 | BK38: 692 | BL38: 664 | BM38: 689 | BN38: 655 | BO38: 721 | BP38: 687 | CA38: 806 | CB38: 712 | CC38: 736 | CD38: 762 | CE38: 818 | CF38: 698 | CG38: 884 | CH38: 909 | CO38: 728 | CP38: 731 | CQ38: 736 | CR38: 762 | CS38: 741 | CT38: 719 | CU38: 806 | CV38: 787 | DC38: 617 | DD38: 764 | DE38: 625 | DF38: 564 | DG38: 617 | DH38: 682 | DI38: 636 | DJ38: 575 | DU38: 805 | DV38: 698 | DW38: 800 | DX38: 640 | DY38: 859 | DZ38: 728 | EA38: 907 | EI38: 797 | EJ38: 665 | EK38: 808 | EL38: 468 | EM38: 753 | EN38: 909 | EO38: 756 | EP38: 750 | EW38: 555 | EX38: 531 | EY38: 556 | EZ38: 456 | FA38: 559 | FB38: 603 | FC38: 685 | FD38: 796 | FO38: 695 | FP38: 738 | FQ38: 670 | FR38: 718 | FS38: 662 | FT38: 652 | FU38: 671 | FV38: 660 | GG38: 780 | GH38: 713 | GI38: 776 | GJ38: 717 | GK38: 729 | GL38: 668 | GM38: 815 | GN38: 728 | GY38: 742 | GZ38: 686 | HA38: 691 | HB38: 640 | HC38: 728 | HD38: 775 | HE38: 721 | HF38: 718 | HQ38: 822 | HR38: 834 | HS38: 713 | HT38: 613 | HU38: 722 | HV38: 788 | HW38: 737 | HX38: 778 | II38: 719 | IK38: 663 | IL38: 696 | IM38: 705 | IO38: 700 | IQ38: 729 | JA38: 593 | JC38: 620 | JE38: 666 | JG38: 656 | JS38: 723 | JU38: 697 | JW38: 748 | JY38: 908
A40: Bundet kapital | B40: 49677 | C40: 47931 | D40: 50527 | E40: 48232 | F40: 44851 | G40: 45585 | H40: 48206 | I40: 44663 | J40: 50968 | K40: 50258 | L40: 56136 | N40: 57525 | O40: 52991 | P40: 56017 | Q40: 51725 | R40: 45204 | S40: 40921 | T40: 52292 | U40: 49190 | V40: 43106 | W40: 44507 | X40: 40867 | Y40: 39717 | Z40: 39954 | AB40: 49025 | AD40: 47271 | AG40: 53184 | AH40: 50131 | AI40: 51743 | AJ40: 49290 | AK40: 52866 | AL40: 48809 | AM40: 51805 | AN40: 52152 | AO40: 50476 | AP40: 49224 | AQ40: 49458 | AR40: 48599 | AS40: 49306 | AT40: 47751 | AU40: 49843 | AV40: 49104 | AW40: 49677 | AX40: 47931 | AY40: 53512 | AZ40: 50451 | BA40: 52800 | BB40: 50326 | BC40: 53827 | BD40: 49493 | BE40: 52470 | BF40: 52842 | BG40: 51207 | BH40: 49624 | BI40: 50095 | BJ40: 49049 | BK40: 49884 | BL40: 47828 | BM40: 50448 | BN40: 49870 | BO40: 50527 | BP40: 48232 | BQ40: 50663 | BR40: 49034 | BS40: 49842 | BT40: 48707 | BU40: 48075 | BV40: 46365 | BW40: 47626 | BX40: 46766 | BY40: 46732 | BZ40: 43110 | CA40: 45773 | CB40: 44682 | CC40: 47532 | CD40: 43713 | CE40: 46004 | CF40: 43438 | CG40: 44851 | CH40: 45585 | CI40: 50960 | CJ40: 48476 | CK40: 49911 | CL40: 50236 | CM40: 48652 | CN40: 47060 | CO40: 47699 | CP40: 46222 | CQ40: 47532 | CR40: 43713 | CS40: 47120 | CT40: 43908 | CU40: 48206 | CV40: 44663 | CW40: 55134 | CX40: 49490 | CY40: 53607 | CZ40: 54064 | DA40: 52760 | DB40: 50828 | DC40: 50021 | DD40: 47497 | DE40: 50241 | DF40: 46419 | DG40: 49993 | DH40: 48196 | DI40: 50968 | DJ40: 50258 | DK40: 62686 | DL40: 61707 | DM40: 61196 | DN40: 57490 | DO40: 60260 | DP40: 54172 | DQ40: 58813 | DR40: 55130 | DS40: 56438 | DT40: 49247 | DU40: 54395 | DV40: 50152 | DW40: 54143 | DX40: 49610 | DY40: 54038 | DZ40: 47048 | EA40: 56136 | EC40: 63575 | ED40: 61787 | EE40: 60062 | EF40: 60357 | EG40: 58117 | EH40: 55909 | EI40: 54220 | EJ40: 54686 | EK40: 55421 | EL40: 2.3 | EM40: 56400 | EN40: 56646 | EO40: 57525 | EP40: 52991 | EQ40: 63140 | ER40: 55848 | ES40: 59270 | ET40: 57549 | EU40: 56106 | EV40: 49723 | EW40: 57120 | EX40: 54844 | EY40: 56464 | EZ40: 53956 | FA40: 57009 | FB40: 55906 | FC40: 56017 | FD40: 51725 | FE40: 50148 | FF40: 46299 | FG40: 49787 | FH40: 48106 | FI40: 50529 | FJ40: 43400 | FK40: 49638 | FL40: 50471 | FM40: 49300 | FN40: 42727 | FO40: 48556 | FP40: 44404 | FQ40: 47686 | FR40: 40936 | FS40: 49131 | FT40: 47271 | FU40: 45204 | FV40: 40921 | FW40: 55543 | FX40: 54988 | FY40: 56720 | FZ40: 55611 | GA40: 55706 | GB40: 56198 | GC40: 57839 | GD40: 57060 | GE40: 55992 | GF40: 53564 | GG40: 52368 | GH40: 51927 | GI40: 51846 | GJ40: 51873 | GK40: 50307 | GL40: 44674 | GM40: 52292 | GN40: 49190 | GO40: 47333 | GP40: 45300 | GQ40: 42372 | GR40: 42961 | GS40: 43960 | GT40: 44015 | GU40: 45707 | GV40: 47959 | GW40: 43904 | GX40: 42960 | GY40: 43738 | GZ40: 43311 | HA40: 44761 | HB40: 45488 | HC40: 44532 | HD40: 42458 | HE40: 43106 | HF40: 44507 | HG40: 44682 | HH40: 46616 | HI40: 39125 | HJ40: 38240 | HK40: 42809 | HL40: 43888 | HM40: 42572 | HN40: 46098 | HO40: 43680 | HP40: 41238 | HQ40: 42583 | HR40: 39807 | HS40: 43215 | HT40: 41458 | HU40: 44340 | HV40: 42744 | HW40: 40867 | HX40: 39717 | HY40: 53326 | IA40: 54411 | IC40: 52156 | IE40: 53807 | IG40: 48886 | IH40: 46649 | II40: 46719 | IK40: 48226 | IL40: 51860 | IM40: 44308 | IO40: 39954 | IQ40: 42205 | IS40: 38384 | IU40: 42717 | IW40: 47476 | IY40: 42974 | JA40: 48241 | JC40: 46980 | JE40: 47389 | JG40: 49025 | JI40: 49993 | JK40: 47817 | JM40: 50029 | JO40: 50987 | JQ40: 47613 | JR40: 47699 | JS40: 45670 | JU40: 45375 | JW40: 47890 | JY40: 47271
A41: Anvendt rentesats, pct. | B41: 2.2 | C41: 2.3 | D41: 2.2 | E41: 2.3 | F41: 1.9 | G41: 2 | H41: 2.2 | I41: 2.1 | J41: 2.4 | K41: 2.4 | L41: 1.9 | N41: 2.1 | O41: 2.1 | P41: 2.4 | Q41: 2.6 | R41: 2.2 | S41: 2.2 | T41: 2.2 | U41: 2.3 | V41: 2.2 | W41: 2.2 | X41: 2.2 | Y41: 2.2 | Z41: 2.2 | AB41: 2.4 | AD41: 2.1 | AG41: 3.162605295 | AH41: 3.016097824 | AI41: 2.983978509 | AJ41: 2.826131061 | AK41: 2.873302312 | AL41: 2.827347415 | AM41: 2.712093427 | AN41: 2.686378279 | AO41: 2.698312069 | AP41: 2.862424833 | AQ41: 2.4 | AR41: 2.5 | AS41: 2.4 | AT41: 2.5 | AU41: 2.3 | AV41: 2.4 | AW41: 2.2 | AX41: 2.3 | AY41: 3.16003887 | AZ41: 3.006877961 | BA41: 2.984848485 | BB41: 2.839486548 | BC41: 2.874022331 | BD41: 2.85899016 | BE41: 2.721555174 | BF41: 2.708073124 | BG41: 2.706661199 | BH41: 2.907867161 | BI41: 2.4 | BJ41: 2.5 | BK41: 2.4 | BL41: 2.5 | BM41: 2.3 | BN41: 2.4 | BO41: 2.2 | BP41: 2.3 | BQ41: 3.160097112 | BR41: 2.983644002 | BS41: 2.979414951 | BT41: 2.825055947 | BU41: 2.697867915 | BV41: 2.629138359 | BW41: 2.469239491 | BX41: 2.388487363 | BY41: 2.407344004 | BZ41: 2.49362097 | CA41: 2.2 | CB41: 2.1 | CC41: 2.4 | CD41: 2.6 | CE41: 2 | CF41: 2.2 | CG41: 1.9 | CH41: 2 | CI41: 3.004317111 | CJ41: 2.751877218 | CK41: 2.811003586 | CL41: 2.697268891 | CM41: 2.746033051 | CN41: 2.926051849 | CO41: 2.4 | CP41: 2.7 | CQ41: 2.4 | CR41: 2.6 | CS41: 2.3 | CT41: 2.4 | CU41: 2.2 | CV41: 2.1 | CW41: 3.070700475 | CX41: 3.190543544 | CY41: 2.97162684 | CZ41: 2.881769754 | DA41: 2.879075057 | DB41: 3.086881247 | DC41: 2.7 | DD41: 2.8 | DE41: 2.5 | DF41: 2.4 | DG41: 2.4 | DH41: 2.5 | DI41: 2.4 | DJ41: 2.4 | DK41: 3.123504451 | DL41: 3.045035409 | DM41: 2.840054906 | DN41: 2.682205601 | DO41: 2.638566213 | DP41: 2.647123975 | DQ41: 2.428034618 | DR41: 2.597496826 | DS41: 2.46287962 | DT41: 2.696610961 | DU41: 2.3 | DV41: 2.5 | DW41: 2.2 | DX41: 2.3 | DY41: 2.1 | DZ41: 2.1 | EA41: 1.9 | EC41: 2.744789619 | ED41: 2.87762798 | EE41: 2.577336752 | EF41: 2.410656593 | EG41: 2.555190392 | EH41: 2.670410846 | EI41: 2.3 | EJ41: 2.3 | EK41: 2.2 | EL41: 8.59 | EM41: 2.2 | EN41: 2.3 | EO41: 2.1 | EP41: 2.1 | EQ41: 2.684510611 | ER41: 2.558730841 | ES41: 2.611776615 | ET41: 2.7715512 | EU41: 2.634299362 | EV41: 2.988556604 | EW41: 2.5 | EX41: 2.5 | EY41: 2.5 | EZ41: 2.4 | FA41: 2.4 | FB41: 2.4 | FC41: 2.4 | FD41: 2.6 | FE41: 3.439818138 | FF41: 3.146936219 | FG41: 3.340229377 | FH41: 2.995468341 | FI41: 3.120980031 | FJ41: 3.080645161 | FK41: 2.792215641 | FL41: 2.74216877 | FM41: 2.85801217 | FN41: 3.019168207 | FO41: 2.6 | FP41: 2.4 | FQ41: 2.5 | FR41: 2.3 | FS41: 2.5 | FT41: 2.5 | FU41: 2.2 | FV41: 2.2 | FW41: 3.219127523 | FX41: 2.822433986 | FY41: 2.574047955 | FZ41: 2.033770297 | GA41: 2.655010232 | GB41: 2.688707783 | GC41: 2.576116461 | GD41: 2.753242201 | GE41: 2.721817402 | GF41: 2.824658353 | GG41: 2.5 | GH41: 2.6 | GI41: 2.4 | GJ41: 2.4 | GK41: 2.2 | GL41: 2.5 | GM41: 2.2 | GN41: 2.3 | GO41: 3.169036402 | GP41: 3.240618102 | GQ41: 2.97838195 | GR41: 2.669863364 | GS41: 2.873066424 | GT41: 2.521867545 | GU41: 2.612291334 | GV41: 2.441668926 | GW41: 2.612518222 | GX41: 2.672253259 | GY41: 2.6 | GZ41: 2.7 | HA41: 2.5 | HB41: 2.5 | HC41: 2.4 | HD41: 2.6 | HE41: 2.2 | HF41: 2.2 | HG41: 3.090730048 | HH41: 2.833790973 | HI41: 2.880511182 | HJ41: 2.458158996 | HK41: 2.826508444 | HL41: 2.469923441 | HM41: 2.572113126 | HN41: 2.336326956 | HO41: 2.534340659 | HP41: 2.645618119 | HQ41: 2.6 | HR41: 2.6 | HS41: 2.5 | HT41: 2.5 | HU41: 2.3 | HV41: 2.6 | HW41: 2.2 | HX41: 2.2 | HY41: 3.304204328 | IA41: 2.872580912 | IC41: 2.757113276 | IE41: 2.679948706 | IG41: 2.655156896 | IH41: 2.673154837 | II41: 2.6 | IK41: 2.3 | IL41: 2.2 | IM41: 2.6 | IO41: 2.2 | IQ41: 2.1 | IS41: 3.371196332 | IU41: 3.317180514 | IW41: 2.771926868 | IY41: 2.806348024 | JA41: 2.8 | JC41: 2.6 | JE41: 2.5 | JG41: 2.4 | JI41: 2.890404657 | JK41: 2.814898467 | JM41: 2.340642427 | JO41: 2.36334752 | JQ41: 2.587528616 | JR41: 2.503197132 | JS41: 2.3 | JU41: 2.3 | JW41: 2.1 | JY41: 2.1
A42: Resultatkorrektion ved 4 % rente | B42: -875 | C42: -806 | D42: -887 | E42: -797 | F42: -929 | G42: -915 | H42: -890 | I42: -824 | J42: -833 | K42: -868 | L42: -1191 | N42: -1088 | O42: -1026 | P42: -934 | Q42: -771 | R42: -835 | S42: -728 | T42: -956 | U42: -932 | V42: -769 | W42: -825 | X42: -757 | Y42: -741 | Z42: -664 | AB42: -801 | AD42: -889 | AQ42: -739 | AR42: -691 | AS42: -779 | AT42: -730 | AU42: -837 | AV42: -786 | AW42: -875 | AX42: -806 | BI42: -753 | BJ42: -706 | BK42: -789 | BL42: -707 | BM42: -853 | BN42: -806 | BO42: -887 | BP42: -797 | CA42: -820 | CB42: -816 | CC42: -753 | CD42: -597 | CE42: -898 | CF42: -784 | CG42: -929 | CH42: -915 | CO42: -762 | CP42: -607 | CQ42: -753 | CR42: -597 | CS42: -830 | CT42: -694 | CU42: -890 | CV42: -824 | DC42: -654 | DD42: -557 | DE42: -750 | DF42: -751 | DG42: -789 | DH42: -777 | DI42: -833 | DJ42: -868 | DU42: -937 | DV42: -729 | DW42: -988 | DX42: -800 | DY42: -1043 | DZ42: -842 | EA42: -1191 | EI42: -903 | EJ42: -979 | EK42: -1005 | EL42: 51334 | EM42: -1059 | EN42: -986 | EO42: -1088 | EP42: -1026 | EW42: -805 | EX42: -831 | EY42: -818 | EZ42: -883 | FA42: -913 | FB42: -860 | FC42: -934 | FD42: -771 | FO42: -669 | FP42: -706 | FQ42: -705 | FR42: -703 | FS42: -799 | FT42: -825 | FU42: -835 | FV42: -728 | GG42: -737 | GH42: -796 | GI42: -827 | GJ42: -769 | GK42: -903 | GL42: -717 | GM42: -956 | GN42: -932 | GY42: -624 | GZ42: -593 | HA42: -696 | HB42: -686 | HC42: -699 | HD42: -592 | HE42: -769 | HF42: -825 | HQ42: -642 | HR42: -516 | HS42: -690 | HT42: -608 | HU42: -754 | HV42: -568 | HW42: -757 | HX42: -741 | II42: -666 | IK42: -881 | IL42: -950 | IM42: -647 | IO42: -664 | IQ42: -848 | JA42: -615 | JC42: -610 | JE42: -673 | JG42: -801 | JS42: -730 | JU42: -668 | JW42: -821 | JY42: -889
A44: Afkastningsgrad | B44: =_xlfn.XLOOKUP($B$2,$AG$2:$JZ$2,AG44:JZ44) -> 11.25 | C44: =_xlfn.XLOOKUP($B$2,$AG$2:$JZ$2,AH44:KA44) -> 15.04 | D44: =_xlfn.XLOOKUP($D$2,$AG$2:$JZ$2,AG44:JZ44) -> 11.33 | E44: =_xlfn.XLOOKUP($D$2,$AG$2:$JZ$2,AH44:KA44) -> 15.13 | F44: =_xlfn.XLOOKUP($F$2,$AG$2:$JZ$2,AG44:JZ44) -> 9.18 | G44: =_xlfn.XLOOKUP($F$2,$AG$2:$JZ$2,AH44:KA44) -> 13.63 | H44: =_xlfn.XLOOKUP($H$2,$AG$2:$JZ$2,AG44:JZ44) -> 10.11 | I44: =_xlfn.XLOOKUP($H$2,$AG$2:$JZ$2,AH44:KA44) -> 14.71 | J44: =_xlfn.XLOOKUP($J$2,$AG$2:$JZ$2,AG44:JZ44) -> 12.64 | K44: =_xlfn.XLOOKUP($J$2,$AG$2:$JZ$2,AH44:KA44) -> 16.85 | L44: =_xlfn.XLOOKUP($L$2,$AG$2:$JZ$2,AG44:JZ44) -> 6.76 | M44: =_xlfn.XLOOKUP($L$2,$AG$2:$JZ$2,AH44:KA44) ->  | N44: =_xlfn.XLOOKUP($N$2,$AG$2:$JZ$2,AG44:JZ44) -> 9.01 | O44: =_xlfn.XLOOKUP($N$2,$AG$2:$JZ$2,AH44:KA44) -> 12.6 | P44: =_xlfn.XLOOKUP($P$2,$AG$2:$JZ$2,AG44:JZ44) -> 11.06 | Q44: =_xlfn.XLOOKUP($P$2,$AG$2:$JZ$2,AH44:KA44) -> 14.8 | R44: =_xlfn.XLOOKUP($R$2,$AG$2:$JZ$2,AG44:JZ44) -> 13.22 | S44: =_xlfn.XLOOKUP($R$2,$AG$2:$JZ$2,AH44:KA44) -> 16.96 | T44: =_xlfn.XLOOKUP($T$2,$AG$2:$JZ$2,AG44:JZ44) -> 9.91 | U44: =_xlfn.XLOOKUP($T$2,$AG$2:$JZ$2,AH44:KA44) -> 14.6 | V44: =_xlfn.XLOOKUP($V$2,$AG$2:$JZ$2,AG44:JZ44) -> 10.82 | W44: =_xlfn.XLOOKUP($V$2,$AG$2:$JZ$2,AH44:KA44) -> 14.3 | X44: =_xlfn.XLOOKUP($X$2,$AG$2:$JZ$2,AG44:JZ44) -> 11.43 | Y44: =_xlfn.XLOOKUP($X$2,$AG$2:$JZ$2,AH44:KA44) -> 14.81 | Z44: =_xlfn.XLOOKUP($Z$2,$AG$2:$JZ$2,AG44:JZ44) -> 9 | AA44: =_xlfn.XLOOKUP($Z$2,$AG$2:$JZ$2,AH44:KA44) ->  | AB44: =_xlfn.XLOOKUP($AB$2,$AG$2:$JZ$2,AG44:JZ44) -> 9.01 | AC44: =_xlfn.XLOOKUP($AB$2,$AG$2:$JZ$2,AH44:KA44) ->  | AD44: =_xlfn.XLOOKUP($AD$2,$AG$2:$JZ$2,AG44:JZ44) -> 9.44 | AE44: =_xlfn.XLOOKUP($AD$2,$AG$2:$JZ$2,AH44:KA44) ->  | AG44: 3.91 | AH44: 10.87 | AI44: 6.87 | AJ44: 13.76 | AK44: 0.4 | AL44: 4.21 | AM44: -2 | AN44: 1.11 | AO44: 10.15 | AP44: 13.67 | AQ44: 7.13 | AR44: 10.67 | AS44: 6.12 | AT44: 9.44 | AU44: 6.43 | AV44: 9.6 | AW44: 11.25 | AX44: 15.04 | AY44: 4.06 | AZ44: 10.93 | BA44: 6.52 | BB44: 13.33 | BC44: 0.3 | BD44: 4.04 | BE44: -2.06 | BF44: 1.06 | BG44: 10.2 | BH44: 13.64 | BI44: 7.19 | BJ44: 10.71 | BK44: 5.94 | BL44: 9.61 | BM44: 6.43 | BN44: 9.64 | BO44: 11.33 | BP44: 15.13 | BQ44: 5.27 | BR44: 11.52 | BS44: 7.69 | BT44: 13.84 | BU44: -1 | BV44: 1.89 | BW44: -3.71 | BX44: 0.85 | BY44: 8.43 | BZ44: 13.08 | CA44: 5.03 | CB44: 9.46 | CC44: 5.39 | CD44: 9.29 | CE44: 4.66 | CF44: 9.35 | CG44: 9.18 | CH44: 13.63 | CI44: 0.34 | CJ44: 4.12 | CK44: -1.81 | CL44: 1.15 | CM44: 10.57 | CN44: 14.23 | CO44: 7.29 | CP44: 11.34 | CQ44: 5.39 | CR44: 9.29 | CS44: 5.73 | CT44: 9.69 | CU44: 10.11 | CV44: 14.71 | CW44: 2.24 | CX44: 6.53 | CY44: -0.19 | CZ44: 2.34 | DA44: 12 | DB44: 15.73 | DC44: 9.02 | DD44: 13.49 | DE44: 7.43 | DF44: 11.74 | DG44: 7.85 | DH44: 11.82 | DI44: 12.64 | DJ44: 16.85 | DK44: 2.84 | DL44: 7.95 | DM44: 4.53 | DN44: 10.42 | DO44: -2.76 | DP44: 0.17 | DQ44: -5.17 | DR44: -2.5 | DS44: 6.21 | DT44: 11.79 | DU44: 3.88 | DV44: 8.55 | DW44: 2.73 | DX44: 8.59 | DY44: 3.3 | DZ44: 7.79 | EA44: 6.76 | EC44: -1.11 | ED44: 1.82 | EE44: -3.65 | EF44: -0.84 | EG44: 7.91 | EH44: 11.62 | EI44: 6.04 | EJ44: 9.22 | EK44: 4.71 | EL44: 0 | EM44: 5.64 | EN44: 8.37 | EO44: 9.01 | EP44: 12.6 | EQ44: 1.19 | ER44: 3.92 | ES44: -2.05 | ET44: 1.29 | EU44: 10.36 | EV44: 13.42 | EW44: 7.36 | EX44: 9.27 | EY44: 6.14 | EZ44: 10.5 | FA44: 7 | FB44: 9.74 | FC44: 11.06 | FD44: 14.8 | FE44: 6.33 | FF44: 14.51 | FG44: 8.63 | FH44: 16.17 | FI44: 1.8 | FJ44: 5.52 | FK44: -1.01 | FL44: 2.72 | FM44: 11.17 | FN44: 15.78 | FO44: 7.68 | FP44: 12.57 | FQ44: 6.7 | FR44: 12.13 | FS44: 6.99 | FT44: 10.19 | FU44: 13.22 | FV44: 16.96 | FW44: 0.85 | FX44: 6.89 | FY44: 4.77 | FZ44: 10.86 | GA44: 4.52 | GB44: 7.04 | GC44: 5.93 | GD44: 9.78 | GE44: 9.72 | GF44: 14.43 | GG44: 5.18 | GH44: 10.23 | GI44: 6.02 | GJ44: 10.37 | GK44: 5.59 | GL44: 11 | GM44: 9.91 | GN44: 14.6 | GO44: 7.2 | GP44: 13.94 | GQ44: 10.26 | GR44: 17.17 | GS44: 1.59 | GT44: 6.24 | GU44: -1.39 | GV44: 1.66 | GW44: 9.86 | GX44: 14.09 | GY44: 6.73 | GZ44: 11.1 | HA44: 7.7 | HB44: 11.99 | HC44: 6.65 | HD44: 9.82 | HE44: 10.82 | HF44: 14.3 | HG44: 8.77 | HH44: 14.45 | HI44: 11.02 | HJ44: 18.78 | HK44: 3.01 | HL44: 7.13 | HM44: 0.11 | HN44: 3.51 | HO44: 10.41 | HP44: 16.09 | HQ44: 7.37 | HR44: 12.73 | HS44: 8.99 | HT44: 13.23 | HU44: 7.4 | HV44: 12.54 | HW44: 11.43 | HX44: 14.81 | HY44: 5.01 | IA44: 6.22 | IC44: -1.27 | IE44: -2.82 | IG44: 8.42 | IH44: 13.07 | II44: 6.17 | IK44: 6.62 | IL44: 9.04 | IM44: 6.44 | IO44: 9 | IQ44: 12.79 | IS44: 14.39 | IU44: 1.74 | IW44: -2.01 | IY44: 10.04 | JA44: 5.54 | JC44: 6.16 | JE44: 6.15 | JG44: 9.01 | JI44: 1.22 | JK44: 6.42 | JM44: 7.7 | JO44: 7.16 | JQ44: 12.07 | JR44: 16.07 | JS44: 9.11 | JU44: 6.61 | JW44: 4.98 | JY44: 9.44
A46: Specifikation af resultat
A48: Mælk | B48: 31344 | C48: 32163 | D48: 31687 | E48: 32411 | F48: 30316 | G48: 31749 | H48: 30693 | I48: 31335 | J48: 32118 | K48: 33425 | L48: 30578 | N48: 31807 | O48: 32657 | P48: 32596 | Q48: 33280 | R48: 31741 | S48: 31924 | T48: 34928 | U48: 36734 | V48: 28947 | W48: 30127 | X48: 28833 | Y48: 29860 | Z48: 28250 | AB48: 28736 | AD48: 32053 | AG48: 27133 | AH48: 28174 | AI48: 28382 | AJ48: 29580 | AK48: 23423 | AL48: 23856 | AM48: 22181 | AN48: 22941 | AO48: 28605 | AP48: 29529 | AQ48: 28025 | AR48: 29052 | AS48: 28108 | AT48: 28872 | AU48: 28515 | AV48: 29363 | AW48: 31344 | AX48: 32163 | AY48: 27168 | AZ48: 28212 | BA48: 28508 | BB48: 29703 | BC48: 23555 | BD48: 23973 | BE48: 22325 | BF48: 23119 | BG48: 28809 | BH48: 29664 | BI48: 28219 | BJ48: 29226 | BK48: 28328 | BL48: 29210 | BM48: 28724 | BN48: 29646 | BO48: 31687 | BP48: 32411 | BQ48: 26999 | BR48: 27959 | BS48: 28422 | BT48: 29550 | BU48: 22849 | BV48: 23031 | BW48: 21688 | BX48: 22889 | BY48: 27809 | BZ48: 28878 | CA48: 26957 | CB48: 27688 | CC48: 27880 | CD48: 28725 | CE48: 27640 | CF48: 28615 | CG48: 30316 | CH48: 31749 | CI48: 23367 | CJ48: 23792 | CK48: 22141 | CL48: 22775 | CM48: 28446 | CN48: 29113 | CO48: 27725 | CP48: 28558 | CQ48: 27880 | CR48: 28725 | CS48: 28193 | CT48: 28705 | CU48: 30693 | CV48: 31335 | CW48: 23984 | CX48: 24529 | CY48: 22819 | CZ48: 23724 | DA48: 29578 | DB48: 31052 | DC48: 28728 | DD48: 30436 | DE48: 28932 | DF48: 30166 | DG48: 29083 | DH48: 30439 | DI48: 32118 | DJ48: 33425 | DK48: 27713 | DL48: 28930 | DM48: 29045 | DN48: 30230 | DO48: 23300 | DP48: 23716 | DQ48: 21749 | DR48: 22455 | DS48: 28333 | DT48: 29420 | DU48: 27427 | DV48: 28720 | DW48: 27741 | DX48: 28755 | DY48: 28060 | DZ48: 27956 | EA48: 30578 | EC48: 23978 | ED48: 24188 | EE48: 22374 | EF48: 23456 | EG48: 29260 | EH48: 30190 | EI48: 28604 | EJ48: 29515 | EK48: 28650 | EL48: 29350 | EM48: 29136 | EN48: 29708 | EO48: 31807 | EP48: 32657 | EQ48: 24406 | ER48: 25197 | ES48: 22725 | ET48: 23940 | EU48: 29518 | EV48: 30115 | EW48: 29206 | EX48: 29729 | EY48: 29297 | EZ48: 30349 | FA48: 30082 | FB48: 30970 | FC48: 32596 | FD48: 33280 | FE48: 27005 | FF48: 28205 | FG48: 28006 | FH48: 29522 | FI48: 23237 | FJ48: 23382 | FK48: 22227 | FL48: 22898 | FM48: 28682 | FN48: 29628 | FO48: 28154 | FP48: 29079 | FQ48: 28025 | FR48: 29137 | FS48: 28561 | FT48: 28821 | FU48: 31741 | FV48: 31924 | FW48: 27746 | FX48: 29309 | FY48: 30310 | FZ48: 31612 | GA48: 28771 | GB48: 30142 | GC48: 31224 | GD48: 33040 | GE48: 33853 | GF48: 35321 | GG48: 33035 | GH48: 35354 | GI48: 33103 | GJ48: 35262 | GK48: 32805 | GL48: 34340 | GM48: 34928 | GN48: 36734 | GO48: 26185 | GP48: 27791 | GQ48: 27315 | GR48: 28736 | GS48: 22208 | GT48: 22853 | GU48: 20828 | GV48: 21423 | GW48: 26827 | GX48: 27793 | GY48: 26394 | GZ48: 27175 | HA48: 26356 | HB48: 27443 | HC48: 26875 | HD48: 27650 | HE48: 28947 | HF48: 30127 | HG48: 26079 | HH48: 27699 | HI48: 27316 | HJ48: 28601 | HK48: 22327 | HL48: 22841 | HM48: 21090 | HN48: 21728 | HO48: 26801 | HP48: 27822 | HQ48: 26358 | HR48: 27232 | HS48: 26581 | HT48: 27586 | HU48: 27032 | HV48: 29007 | HW48: 28833 | HX48: 29860 | HY48: 26502 | IA48: 27313 | IC48: 21683 | IE48: 20719 | IG48: 27105 | IH48: 28320 | II48: 26459 | IK48: 26122 | IL48: 26985 | IM48: 26681 | IO48: 28250 | IQ48: 29230 | IS48: 27732 | IU48: 22847 | IW48: 20495 | IY48: 26656 | JA48: 26477 | JC48: 25979 | JE48: 26801 | JG48: 28736 | JI48: 26745 | JK48: 30275 | JM48: 30330 | JO48: 30779 | JQ48: 32643 | JR48: 34464 | JS48: 32467 | JU48: 31323 | JW48: 31142 | JY48: 32053
A49: Salg af dyr inkl. andre indtægter kvæg | B49: 3264 | C49: 3343 | D49: 3362 | E49: 3386 | F49: 3326 | G49: 3367 | H49: 3316 | I49: 3403 | J49: 3215 | K49: 3060 | L49: 3510 | N49: 3679 | O49: 3628 | P49: 3424 | Q49: 3517 | R49: 3279 | S49: 3475 | T49: 4195 | U49: 4514 | V49: 2536 | W49: 2819 | X49: 2400 | Y49: 2651 | Z49: 3186 | AB49: 2559 | AD49: 3314 | AG49: 2933 | AH49: 2975 | AI49: 3018 | AJ49: 3088 | AK49: 2763 | AL49: 2755 | AM49: 2726 | AN49: 2682 | AO49: 3000 | AP49: 3014 | AQ49: 3040 | AR49: 3082 | AS49: 2955 | AT49: 2994 | AU49: 2809 | AV49: 2741 | AW49: 3264 | AX49: 3343 | AY49: 3098 | AZ49: 3195 | BA49: 3141 | BB49: 3236 | BC49: 2842 | BD49: 2821 | BE49: 2822 | BF49: 2745 | BG49: 3100 | BH49: 3094 | BI49: 3174 | BJ49: 3197 | BK49: 3035 | BL49: 3096 | BM49: 2878 | BN49: 2834 | BO49: 3362 | BP49: 3386 | BQ49: 3074 | BR49: 3243 | BS49: 3061 | BT49: 3134 | BU49: 2987 | BV49: 2881 | BW49: 2955 | BX49: 2948 | BY49: 3198 | BZ49: 3312 | CA49: 3213 | CB49: 3324 | CC49: 2986 | CD49: 3092 | CE49: 2954 | CF49: 3047 | CG49: 3326 | CH49: 3367 | CI49: 2749 | CJ49: 2684 | CK49: 2729 | CL49: 2740 | CM49: 3093 | CN49: 3104 | CO49: 3279 | CP49: 3195 | CQ49: 2986 | CR49: 3092 | CS49: 2843 | CT49: 2943 | CU49: 3316 | CV49: 3403 | CW49: 2392 | CX49: 2195 | CY49: 2572 | CZ49: 2524 | DA49: 2856 | DB49: 2914 | DC49: 2873 | DD49: 2921 | DE49: 2766 | DF49: 2600 | DG49: 2696 | DH49: 2796 | DI49: 3215 | DJ49: 3060 | DK49: 3172 | DL49: 3339 | DM49: 3299 | DN49: 3466 | DO49: 3325 | DP49: 3357 | DQ49: 3173 | DR49: 3092 | DS49: 3462 | DT49: 4033 | DU49: 3630 | DV49: 3877 | DW49: 3322 | DX49: 3624 | DY49: 3135 | DZ49: 3417 | EA49: 3510 | EC49: 3188 | ED49: 3343 | EE49: 2996 | EF49: 2933 | EG49: 3283 | EH49: 3406 | EI49: 3429 | EJ49: 3512 | EK49: 3154 | EL49: 3215 | EM49: 3012 | EN49: 3061 | EO49: 3679 | EP49: 3628 | EQ49: 2913 | ER49: 2991 | ES49: 2828 | ET49: 2926 | EU49: 2995 | EV49: 3086 | EW49: 3172 | EX49: 3047 | EY49: 3004 | EZ49: 3247 | FA49: 2955 | FB49: 3624 | FC49: 3424 | FD49: 3517 | FE49: 2948 | FF49: 3017 | FG49: 2968 | FH49: 3125 | FI49: 2788 | FJ49: 2858 | FK49: 2715 | FL49: 2797 | FM49: 3007 | FN49: 2901 | FO49: 3122 | FP49: 3295 | FQ49: 3326 | FR49: 3979 | FS49: 2812 | FT49: 2554 | FU49: 3279 | FV49: 3475 | FW49: 2912 | FX49: 2824 | FY49: 2908 | FZ49: 2997 | GA49: 2994 | GB49: 2903 | GC49: 3292 | GD49: 3305 | GE49: 3429 | GF49: 3433 | GG49: 3633 | GH49: 3395 | GI49: 3511 | GJ49: 3883 | GK49: 3513 | GL49: 3519 | GM49: 4195 | GN49: 4514 | GO49: 1585 | GP49: 1746 | GQ49: 1921 | GR49: 2216 | GS49: 2022 | GT49: 2273 | GU49: 1849 | GV49: 1872 | GW49: 2119 | GX49: 2046 | GY49: 1880 | GZ49: 1829 | HA49: 2318 | HB49: 2544 | HC49: 2263 | HD49: 2089 | HE49: 2536 | HF49: 2819 | HG49: 1623 | HH49: 1790 | HI49: 2033 | HJ49: 2244 | HK49: 2132 | HL49: 2248 | HM49: 2017 | HN49: 2203 | HO49: 2385 | HP49: 2345 | HQ49: 2084 | HR49: 2301 | HS49: 2340 | HT49: 2587 | HU49: 2424 | HV49: 2694 | HW49: 2400 | HX49: 2651 | HY49: 1657 | IA49: 1878 | IC49: 1920 | IE49: 1957 | IG49: 2176 | IH49: 1952 | II49: 1862 | IK49: 2523 | IL49: 2744 | IM49: 2171 | IO49: 3186 | IQ49: 3057 | IS49: 1631 | IU49: 1672 | IW49: 1297 | IY49: 1255 | JA49: 1312 | JC49: 2038 | JE49: 2280 | JG49: 2559 | JI49: 1710 | JK49: 1879 | JM49: 2303 | JO49: 1995 | JQ49: 2516 | JR49: 2621 | JS49: 2533 | JU49: 2522 | JW49: 2935 | JY49: 3314
A50: Køb af dyr, kvæg | B50: -365 | C50: -400 | D50: -353 | E50: -408 | F50: -156 | G50: -554 | H50: -207 | I50: -129 | J50: -385 | K50: -82 | L50: -392 | N50: -136 | O50: -9 | P50: -489 | Q50: -937 | R50: -343 | S50: -373 | T50: -615 | U50: -494 | V50: -361 | W50: -92 | X50: -364 | Y50: -12 | Z50: -1287 | AB50: -148 | AD50: -169 | AG50: 2876 | AH50: 2893 | AI50: -334 | AJ50: -323 | AK50: -292 | AL50: -247 | AM50: -259 | AN50: -240 | AO50: -429 | AP50: -445 | AQ50: -299 | AR50: -273 | AS50: -226 | AT50: -192 | AU50: -402 | AV50: -322 | AW50: -365 | AX50: -400 | AY50: 3039 | AZ50: 3097 | BA50: -361 | BB50: -353 | BC50: -307 | BD50: -262 | BE50: -266 | BF50: -264 | BG50: -431 | BH50: -448 | BI50: -305 | BJ50: -297 | BK50: -219 | BL50: -186 | BM50: -420 | BN50: -374 | BO50: -353 | BP50: -408 | BQ50: 2984 | BR50: 3060 | BS50: -300 | BT50: -302 | BU50: -274 | BV50: -348 | BW50: -211 | BX50: -73 | BY50: -210 | BZ50: -23 | CA50: -271 | CB50: -234 | CC50: -174 | CD50: -95 | CE50: -324 | CF50: -338 | CG50: -156 | CH50: -554 | CI50: -312 | CJ50: -115 | CK50: -213 | CL50: -268 | CM50: -317 | CN50: -153 | CO50: -337 | CP50: -325 | CQ50: -174 | CR50: -95 | CS50: -232 | CT50: -309 | CU50: -207 | CV50: -129 | CW50: -383 | CX50: -139 | CY50: -373 | CZ50: -172 | DA50: -474 | DB50: -357 | DC50: -322 | DD50: -252 | DE50: -226 | DF50: -130 | DG50: -413 | DH50: -567 | DI50: -385 | DJ50: -82 | DK50: 3138 | DL50: 3309 | DM50: -274 | DN50: -475 | DO50: -125 | DP50: -122 | DQ50: -184 | DR50: -11 | DS50: -241 | DT50: -250 | DU50: -364 | DV50: -356 | DW50: -241 | DX50: -76 | DY50: -175 | DZ50: -227 | EA50: -392 | EC50: -209 | ED50: -142 | EE50: -122 | EF50: -30 | EG50: -202 | EH50: -308 | EI50: -279 | EJ50: -699 | EK50: -244 | EL50: -479 | EM50: -188 | EN50: -198 | EO50: -136 | EP50: -9 | EQ50: -244 | ER50: -609 | ES50: -199 | ET50: -52 | EU50: -147 | EV50: -94 | EW50: -368 | EX50: -224 | EY50: -77 | EZ50: -69 | FA50: -264 | FB50: -735 | FC50: -489 | FD50: -937 | FE50: 2922 | FF50: 2986 | FG50: -758 | FH50: -168 | FI50: -395 | FJ50: -134 | FK50: -269 | FL50: -121 | FM50: -657 | FN50: -870 | FO50: -142 | FP50: -55 | FQ50: -386 | FR50: -399 | FS50: -1015 | FT50: -749 | FU50: -343 | FV50: -373 | FW50: 2839 | FX50: 2811 | FY50: -125 | FZ50: -38 | GA50: -150 | GB50: -163 | GC50: -300 | GD50: -148 | GE50: -297 | GF50: -355 | GG50: -237 | GH50: -303 | GI50: -269 | GJ50: -362 | GK50: -473 | GL50: -631 | GM50: -615 | GN50: -494 | GO50: -195 | GP50: -62 | GQ50: -95 | GR50: -51 | GS50: -153 | GT50: -130 | GU50: -201 | GV50: -44 | GW50: -414 | GX50: -456 | GY50: -222 | GZ50: -74 | HA50: -287 | HB50: -152 | HC50: -264 | HD50: -25 | HE50: -361 | HF50: -92 | HG50: -120 | HH50: -72 | HI50: -85 | HJ50: -27 | HK50: -165 | HL50: -170 | HM50: -240 | HN50: -74 | HO50: -385 | HP50: -394 | HQ50: -175 | HR50: -120 | HS50: -177 | HT50: -209 | HU50: -309 | HV50: -2 | HW50: -364 | HX50: -12 | HY50: -211 | IA50: -59 | IC50: -18 | IE50: -50 | IG50: -843 | IH50: -1050 | II50: -61 | IK50: -361 | IL50: -4 | IM50: -359 | IO50: -1287 | IQ50: -677 | IS50: -127 | IU50: -377 | IW50: -257 | IY50: -21 | JA50: -814 | JC50: -562 | JE50: -124 | JG50: -148 | JI50: -177 | JK50: -509 | JM50: -742 | JO50: -632 | JQ50: -586 | JR50: -175 | JS50: -23 | JU50: -474 | JW50: -40 | JY50: -169
A51: Besætningsforskydning | B51: 1136 | C51: 1230 | D51: 1156 | E51: 1254 | F51: 812 | G51: 793 | H51: 950 | I51: 945 | J51: 1257 | K51: 1139 | L51: 1147 | N51: 945 | O51: 964 | P51: 1489 | Q51: 2085 | R51: 1123 | S51: 1168 | T51: 1135 | U51: 1059 | V51: 911 | W51: 897 | X51: 954 | Y51: 835 | Z51: 1000 | AB51: 976 | AD51: 954 | AG51: -93 | AH51: -131 | AI51: -327 | AJ51: -256 | AK51: 1016 | AL51: 1121 | AM51: 323 | AN51: 526 | AO51: 695 | AP51: 776 | AQ51: 210 | AR51: 201 | AS51: 182 | AT51: 181 | AU51: 389 | AV51: 420 | AW51: 1136 | AX51: 1230 | AY51: -102 | AZ51: -144 | BA51: -303 | BB51: -220 | BC51: 1055 | BD51: 1159 | BE51: 327 | BF51: 568 | BG51: 717 | BH51: 784 | BI51: 202 | BJ51: 199 | BK51: 77 | BL51: 60 | BM51: 387 | BN51: 448 | BO51: 1156 | BP51: 1254 | BQ51: -103 | BR51: -227 | BS51: -316 | BT51: -269 | BU51: 843 | BV51: 1036 | BW51: 2 | BX51: 182 | BY51: 344 | BZ51: 385 | CA51: -49 | CB51: -210 | CC51: 112 | CD51: 43 | CE51: 118 | CF51: -81 | CG51: 812 | CH51: 793 | CI51: 1177 | CJ51: 1145 | CK51: 320 | CL51: 435 | CM51: 660 | CN51: 566 | CO51: 234 | CP51: 229 | CQ51: 112 | CR51: 43 | CS51: 229 | CT51: 123 | CU51: 950 | CV51: 945 | CW51: 1424 | CX51: 1605 | CY51: 644 | CZ51: 610 | DA51: 820 | DB51: 671 | DC51: 297 | DD51: 158 | DE51: 136 | DF51: 123 | DG51: 473 | DH51: 641 | DI51: 1257 | DJ51: 1139 | DK51: -163 | DL51: -131 | DM51: -411 | DN51: -198 | DO51: 629 | DP51: 599 | DQ51: -36 | DR51: 71 | DS51: 420 | DT51: 314 | DU51: 30 | DV51: 5 | DW51: 73 | DX51: 174 | DY51: 115 | DZ51: -11 | EA51: 1147 | EC51: 778 | ED51: 860 | EE51: 223 | EF51: 357 | EG51: 580 | EH51: 616 | EI51: 131 | EJ51: 558 | EK51: 242 | EL51: 438 | EM51: 254 | EN51: 329 | EO51: 945 | EP51: 964 | EQ51: 1005 | ER51: 1453 | ES51: 316 | ET51: 409 | EU51: 536 | EV51: 379 | EW51: 395 | EX51: 428 | EY51: 159 | EZ51: 264 | FA51: 293 | FB51: 317 | FC51: 1489 | FD51: 2085 | FE51: -26 | FF51: -64 | FG51: 0 | FH51: -342 | FI51: 1120 | FJ51: 997 | FK51: 357 | FL51: 543 | FM51: 972 | FN51: 1365 | FO51: 85 | FP51: -10 | FQ51: -58 | FR51: -667 | FS51: 946 | FT51: 1051 | FU51: 1123 | FV51: 1168 | FW51: -61 | FX51: 149 | FY51: -276 | FZ51: -186 | GA51: 1216 | GB51: 1409 | GC51: 503 | GD51: 414 | GE51: 844 | GF51: 943 | GG51: 229 | GH51: 457 | GI51: 196 | GJ51: 185 | GK51: 227 | GL51: 268 | GM51: 1135 | GN51: 1059 | GO51: -23 | GP51: -151 | GQ51: -548 | GR51: -549 | GS51: 660 | GT51: 804 | GU51: 295 | GV51: 266 | GW51: 500 | GX51: 652 | GY51: 266 | GZ51: 259 | HA51: 1006 | HB51: 949 | HC51: 402 | HD51: 251 | HE51: 911 | HF51: 897 | HG51: -56 | HH51: -63 | HI51: -593 | HJ51: -653 | HK51: 733 | HL51: 903 | HM51: 364 | HN51: 342 | HO51: 411 | HP51: 396 | HQ51: 168 | HR51: 136 | HS51: 895 | HT51: 950 | HU51: 337 | HV51: -40 | HW51: 954 | HX51: 835 | HY51: -5 | IA51: -467 | IC51: 421 | IE51: 91 | IG51: 883 | IH51: 1437 | II51: 230 | IK51: 1205 | IL51: 710 | IM51: 542 | IO51: 1000 | IQ51: 860 | IS51: -666 | IU51: 767 | IW51: 321 | IY51: 386 | JA51: 811 | JC51: 1174 | JE51: 344 | JG51: 976 | JI51: -147 | JK51: -473 | JM51: 934 | JO51: 602 | JQ51: 1044 | JR51: 721 | JS51: 269 | JU51: 1337 | JW51: 62 | JY51: 954
A52: Andre landbrugsindtægter | B52: 85 | C52: 88 | D52: 89 | E52: 87 | F52: 87 | G52: 53 | H52: 61 | I52: 37 | J52: 101 | K52: 81 | L52: 119 | N52: 97 | O52: 106 | P52: 104 | Q52: 129 | R52: 73 | S52: 66 | T52: 67 | U52: 97 | V52: 66 | W52: 91 | X52: 72 | Y52: 107 | Z52: 38 | AB52: 88 | AD52: 112 | AG52: 108 | AH52: 123 | AI52: 43 | AJ52: 56 | AK52: 29 | AL52: 39 | AM52: 26 | AN52: 20 | AO52: 48 | AP52: 46 | AQ52: 46 | AR52: 50 | AS52: 50 | AT52: 48 | AU52: 64 | AV52: 77 | AW52: 85 | AX52: 88 | AY52: 105 | AZ52: 126 | BA52: 46 | BB52: 62 | BC52: 31 | BD52: 42 | BE52: 27 | BF52: 21 | BG52: 48 | BH52: 46 | BI52: 50 | BJ52: 52 | BK52: 53 | BL52: 47 | BM52: 66 | BN52: 81 | BO52: 89 | BP52: 87 | BQ52: 100 | BR52: 95 | BS52: 37 | BT52: 47 | BU52: 23 | BV52: 24 | BW52: 19 | BX52: 26 | BY52: 47 | BZ52: 27 | CA52: 39 | CB52: 25 | CC52: 44 | CD52: 53 | CE52: 59 | CF52: 47 | CG52: 87 | CH52: 53 | CI52: 20 | CJ52: 28 | CK52: 26 | CL52: 20 | CM52: 40 | CN52: 45 | CO52: 39 | CP52: 25 | CQ52: 44 | CR52: 53 | CS52: 41 | CT52: 36 | CU52: 61 | CV52: 37 | CW52: 38 | CX52: 49 | CY52: 22 | CZ52: 32 | DA52: 47 | DB52: 75 | DC52: 52 | DD52: 88 | DE52: 55 | DF52: 35 | DG52: 71 | DH52: 76 | DI52: 101 | DJ52: 81 | DK52: 86 | DL52: 85 | DM52: 45 | DN52: 61 | DO52: 63 | DP52: 127 | DQ52: 34 | DR52: 14 | DS52: 70 | DT52: 38 | DU52: 50 | DV52: 74 | DW52: 52 | DX52: 44 | DY52: 85 | DZ52: 98 | EA52: 119 | EC52: 19 | ED52: 27 | EE52: 25 | EF52: 13 | EG52: 83 | EH52: 73 | EI52: 88 | EJ52: 119 | EK52: 75 | EL52: 42 | EM52: 84 | EN52: 128 | EO52: 97 | EP52: 106 | EQ52: 15 | ER52: 9 | ES52: 26 | ET52: 21 | EU52: 47 | EV52: 51 | EW52: 44 | EX52: 28 | EY52: 55 | EZ52: 33 | FA52: 104 | FB52: 122 | FC52: 104 | FD52: 129 | FE52: 151 | FF52: 304 | FG52: 38 | FH52: 67 | FI52: 18 | FJ52: 30 | FK52: 29 | FL52: 7 | FM52: 26 | FN52: 20 | FO52: 33 | FP52: 28 | FQ52: 30 | FR52: 25 | FS52: 35 | FT52: 53 | FU52: 73 | FV52: 66 | FW52: 119 | FX52: 103 | FY52: 43 | FZ52: 55 | GA52: 75 | GB52: 43 | GC52: 82 | GD52: 25 | GE52: 65 | GF52: 66 | GG52: 79 | GH52: 69 | GI52: 91 | GJ52: 94 | GK52: 66 | GL52: 71 | GM52: 67 | GN52: 97 | GO52: 124 | GP52: 128 | GQ52: 19 | GR52: 8 | GS52: 15 | GT52: 11 | GU52: 18 | GV52: 10 | GW52: 42 | GX52: 54 | GY52: 22 | GZ52: 20 | HA52: 33 | HB52: 25 | HC52: 50 | HD52: 52 | HE52: 66 | HF52: 91 | HG52: 118 | HH52: 166 | HI52: 24 | HJ52: 3 | HK52: 9 | HL52: 8 | HM52: 24 | HN52: 13 | HO52: 44 | HP52: 66 | HQ52: 19 | HR52: 25 | HS52: 35 | HT52: 4 | HU52: 53 | HV52: 67 | HW52: 72 | HX52: 107 | HY52: 207 | IA52: 7 | IC52: 30 | IE52: 8 | IG52: 36 | IH52: 36 | II52: 28 | IK52: 39 | IL52: 59 | IM52: 26 | IO52: 38 | IQ52: 36 | IS52: 25 | IU52: 15 | IW52: 11 | IY52: 35 | JC52: 18 | JE52: 71 | JG52: 88 | JI52: 147 | JK52: 68 | JM52: 675 | JO52: 227 | JQ52: 51 | JR52: 91 | JU52: 70 | JW52: 93 | JY52: 112
A53: Bruttoudbytte i alt | B53: 35440 | C53: 36408 | D53: 35915 | E53: 36713 | F53: 34367 | G53: 35399 | H53: 34795 | I53: 35585 | J53: 36272 | K53: 37611 | L53: 34911 | N53: 36378 | O53: 37341 | P53: 37097 | Q53: 38023 | R53: 35844 | S53: 36235 | T53: 39691 | U53: 41876 | V53: 32082 | W53: 33825 | X53: 31881 | Y53: 33414 | Z53: 31179 | AB53: 32179 | AD53: 36221 | AG53: 29710 | AH53: 30919 | AI53: 30782 | AJ53: 32145 | AK53: 26940 | AL53: 27523 | AM53: 24997 | AN53: 25929 | AO53: 31918 | AP53: 32920 | AQ53: 31023 | AR53: 32113 | AS53: 31061 | AT53: 31892 | AU53: 31359 | AV53: 32259 | AW53: 35440 | AX53: 36408 | AY53: 29869 | AZ53: 31130 | BA53: 31031 | BB53: 32428 | BC53: 27177 | BD53: 27733 | BE53: 25235 | BF53: 26189 | BG53: 32243 | BH53: 33140 | BI53: 31341 | BJ53: 32378 | BK53: 31266 | BL53: 32215 | BM53: 31617 | BN53: 32612 | BO53: 35915 | BP53: 36713 | BQ53: 29651 | BR53: 30884 | BS53: 30904 | BT53: 32160 | BU53: 26430 | BV53: 26623 | BW53: 24453 | BX53: 25973 | BY53: 31187 | BZ53: 32579 | CA53: 29889 | CB53: 30593 | CC53: 30842 | CD53: 31809 | CE53: 30440 | CF53: 31267 | CG53: 34367 | CH53: 35399 | CI53: 27000 | CJ53: 27534 | CK53: 25004 | CL53: 25702 | CM53: 31922 | CN53: 33158 | CO53: 30939 | CP53: 31683 | CQ53: 30842 | CR53: 31809 | CS53: 31064 | CT53: 31493 | CU53: 34795 | CV53: 35585 | CW53: 27455 | CX53: 28239 | CY53: 25684 | CZ53: 26719 | DA53: 32827 | DB53: 34355 | DC53: 31628 | DD53: 33351 | DE53: 31650 | DF53: 32785 | DG53: 31884 | DH53: 33371 | DI53: 36272 | DJ53: 37611 | DK53: 30486 | DL53: 31940 | DM53: 31704 | DN53: 33084 | DO53: 27194 | DP53: 27677 | DQ53: 24735 | DR53: 25621 | DS53: 32044 | DT53: 33555 | DU53: 30774 | DV53: 32320 | DW53: 30939 | DX53: 32520 | DY53: 31200 | DZ53: 31205 | EA53: 34911 | EC53: 27755 | ED53: 28275 | EE53: 25495 | EF53: 26729 | EG53: 33005 | EH53: 33977 | EI53: 31974 | EJ53: 33005 | EK53: 31876 | EL53: 32560 | EM53: 32279 | EN53: 33012 | EO53: 36378 | EP53: 37341 | EQ53: 28096 | ER53: 29042 | ES53: 25696 | ET53: 27243 | EU53: 32949 | EV53: 33536 | EW53: 32449 | EX53: 33007 | EY53: 32428 | EZ53: 33796 | FA53: 33144 | FB53: 34244 | FC53: 37097 | FD53: 38023 | FE53: 29557 | FF53: 31197 | FG53: 30254 | FH53: 32205 | FI53: 26769 | FJ53: 27133 | FK53: 25059 | FL53: 26123 | FM53: 32030 | FN53: 33043 | FO53: 31252 | FP53: 32338 | FQ53: 30932 | FR53: 32073 | FS53: 31336 | FT53: 31728 | FU53: 35844 | FV53: 36235 | FW53: 30384 | FX53: 32082 | FY53: 32859 | FZ53: 34440 | GA53: 32905 | GB53: 34334 | GC53: 34801 | GD53: 36637 | GE53: 37897 | GF53: 39408 | GG53: 36739 | GH53: 38972 | GI53: 36617 | GJ53: 39038 | GK53: 36132 | GL53: 37562 | GM53: 39691 | GN53: 41876 | GO53: 27678 | GP53: 29451 | GQ53: 28612 | GR53: 30360 | GS53: 24752 | GT53: 25811 | GU53: 22789 | GV53: 23527 | GW53: 29073 | GX53: 30089 | GY53: 28339 | GZ53: 29210 | HA53: 29424 | HB53: 30805 | HC53: 29315 | HD53: 30015 | HE53: 32082 | HF53: 33825 | HG53: 27644 | HH53: 29519 | HI53: 28694 | HJ53: 30168 | HK53: 25036 | HL53: 25830 | HM53: 23255 | HN53: 24212 | HO53: 29256 | HP53: 30235 | HQ53: 28454 | HR53: 29573 | HS53: 29672 | HT53: 30913 | HU53: 29521 | HV53: 31723 | HW53: 31881 | HX53: 33414 | HY53: 28149 | IA53: 28672 | IC53: 24036 | IE53: 22725 | IG53: 29358 | IH53: 30694 | II53: 28518 | IK53: 29528 | IL53: 30495 | IM53: 29061 | IO53: 31179 | IQ53: 32502 | IS53: 28596 | IU53: 24924 | IW53: 21867 | IY53: 28310 | JA53: 27810 | JC53: 28644 | JE53: 29365 | JG53: 32179 | JI53: 28279 | JK53: 31239 | JM53: 33501 | JO53: 32969 | JQ53: 35667 | JR53: 37722 | JS53: 35434 | JU53: 34761 | JW53: 34183 | JY53: 36221
A55: Korn | B55: -1204 | C55: -1244 | D55: -1219 | E55: -1263 | F55: -1107 | G55: -1278 | H55: -1241 | I55: -1278 | J55: -1393 | K55: -1529 | L55: -1057 | N55: -1092 | O55: -1112 | P55: -1048 | Q55: -1134 | R55: -1277 | S55: -1303 | T55: -2995 | U55: -2853 | V55: -1056 | W55: -1026 | X55: -1098 | Y55: -965 | Z55: -1465 | AB55: -791 | AD55: -2616 | AG55: -1223 | AH55: -1073 | AI55: -825 | AJ55: -844 | AK55: -756 | AL55: -738 | AM55: -1085 | AN55: -1109 | AO55: -967 | AP55: -941 | AQ55: -1078 | AR55: -1092 | AS55: -1003 | AT55: -990 | AU55: -991 | AV55: -985 | AW55: -1204 | AX55: -1244 | AY55: -1048 | AZ55: -1032 | BA55: -840 | BB55: -865 | BC55: -771 | BD55: -751 | BE55: -1116 | BF55: -1146 | BG55: -988 | BH55: -955 | BI55: -1104 | BJ55: -1130 | BK55: -1016 | BL55: -979 | BM55: -1013 | BN55: -1025 | BO55: -1219 | BP55: -1263 | BQ55: -1075 | BR55: -1023 | BS55: -825 | BT55: -865 | BU55: -676 | BV55: -493 | BW55: -1003 | BX55: -1038 | BY55: -905 | BZ55: -861 | CA55: -989 | CB55: -776 | CC55: -1027 | CD55: -949 | CE55: -881 | CF55: -620 | CG55: -1107 | CH55: -1278 | CI55: -814 | CJ55: -750 | CK55: -1132 | CL55: -1215 | CM55: -1008 | CN55: -1053 | CO55: -1147 | CP55: -1008 | CQ55: -1027 | CR55: -949 | CS55: -915 | CT55: -893 | CU55: -1241 | CV55: -1278 | CW55: -740 | CX55: -734 | CY55: -1112 | CZ55: -1096 | DA55: -1052 | DB55: -1185 | DC55: -1172 | DD55: -1332 | DE55: -1014 | DF55: -1285 | DG55: -1118 | DH55: -1369 | DI55: -1393 | DJ55: -1529 | DK55: -948 | DL55: -896 | DM55: -805 | DN55: -860 | DO55: -855 | DP55: -924 | DQ55: -1073 | DR55: -1281 | DS55: -891 | DT55: -938 | DU55: -1167 | DV55: -986 | DW55: -1139 | DX55: -1096 | DY55: -981 | DZ55: -952 | EA55: -1057 | EC55: -652 | ED55: -590 | EE55: -1006 | EF55: -1089 | EG55: -912 | EH55: -864 | EI55: -1039 | EJ55: -981 | EK55: -1074 | EL55: -1063 | EM55: -979 | EN55: -986 | EO55: -1092 | EP55: -1112 | EQ55: -671 | ER55: -834 | ES55: -1161 | ET55: -1390 | EU55: -1029 | EV55: -1064 | EW55: -982 | EX55: -842 | EY55: -911 | EZ55: -679 | FA55: -907 | FB55: -1061 | FC55: -1048 | FD55: -1134 | FE55: -994 | FF55: -1065 | FG55: -784 | FH55: -854 | FI55: -753 | FJ55: -718 | FK55: -1088 | FL55: -1116 | FM55: -1012 | FN55: -976 | FO55: -966 | FP55: -994 | FQ55: -998 | FR55: -1157 | FS55: -1108 | FT55: -1035 | FU55: -1277 | FV55: -1303 | FW55: -2884 | FX55: -2820 | FY55: -2700 | FZ55: -2661 | GA55: -2638 | GB55: -2476 | GC55: -2905 | GD55: -2774 | GE55: -2989 | GF55: -2830 | GG55: -3298 | GH55: -3399 | GI55: -3107 | GJ55: -3259 | GK55: -2894 | GL55: -2746 | GM55: -2995 | GN55: -2853 | GO55: -861 | GP55: -728 | GQ55: -685 | GR55: -667 | GS55: -620 | GT55: -544 | GU55: -791 | GV55: -793 | GW55: -767 | GX55: -684 | GY55: -818 | GZ55: -745 | HA55: -895 | HB55: -881 | HC55: -804 | HD55: -673 | HE55: -1056 | HF55: -1026 | HG55: -780 | HH55: -765 | HI55: -748 | HJ55: -710 | HK55: -600 | HL55: -511 | HM55: -812 | HN55: -708 | HO55: -773 | HP55: -575 | HQ55: -995 | HR55: -869 | HS55: -987 | HT55: -660 | HU55: -834 | HV55: -519 | HW55: -1098 | HX55: -965 | HY55: -748 | IA55: -549 | IC55: -564 | IE55: -746 | IG55: -733 | IH55: -731 | II55: -652 | IK55: -972 | IL55: -956 | IM55: -760 | IO55: -1465 | IQ55: -1324 | IS55: -661 | IU55: -803 | IW55: -838 | IY55: -804 | JA55: -602 | JC55: -519 | JE55: -716 | JG55: -791 | JI55: -2177 | JK55: -2061 | JM55: -2376 | JO55: -1847 | JQ55: -2390 | JR55: -2332 | JS55: -2899 | JU55: -2624 | JW55: -2505 | JY55: -2616
A56: Råvarer | B56: -3171 | C56: -3553 | D56: -3274 | E56: -3686 | F56: -2212 | G56: -2371 | H56: -2970 | I56: -2858 | J56: -4050 | K56: -4600 | L56: -1313 | N56: -2318 | O56: -2117 | P56: -2830 | Q56: -3274 | R56: -3643 | S56: -4287 | T56: -867 | U56: -988 | V56: -2471 | W56: -2546 | X56: -2157 | Y56: -2211 | Z56: -3297 | AB56: -2466 | AD56: -594 | AG56: -2256 | AH56: -2709 | AI56: -2475 | AJ56: -2796 | AK56: -2573 | AL56: -2631 | AM56: -2668 | AN56: -2887 | AO56: -2723 | AP56: -3064 | AQ56: -2751 | AR56: -3065 | AS56: -2855 | AT56: -3188 | AU56: -2932 | AV56: -3178 | AW56: -3171 | AX56: -3553 | AY56: -2436 | AZ56: -2795 | BA56: -2497 | BB56: -2801 | BC56: -2627 | BD56: -2682 | BE56: -2722 | BF56: -2931 | BG56: -2786 | BH56: -3069 | BI56: -2799 | BJ56: -3125 | BK56: -2907 | BL56: -3330 | BM56: -2991 | BN56: -3237 | BO56: -3274 | BP56: -3686 | BQ56: -2508 | BR56: -2666 | BS56: -2615 | BT56: -2915 | BU56: -1944 | BV56: -2140 | BW56: -1882 | BX56: -1911 | BY56: -2001 | BZ56: -1592 | CA56: -1833 | CB56: -1591 | CC56: -2698 | CD56: -2925 | CE56: -2196 | CF56: -1694 | CG56: -2212 | CH56: -2371 | CI56: -2755 | CJ56: -2856 | CK56: -2813 | CL56: -2907 | CM56: -2798 | CN56: -2948 | CO56: -2710 | CP56: -2847 | CQ56: -2698 | CR56: -2925 | CS56: -2789 | CT56: -2546 | CU56: -2970 | CV56: -2858 | CW56: -3415 | CX56: -3477 | CY56: -3609 | CZ56: -3581 | DA56: -3538 | DB56: -3756 | DC56: -3602 | DD56: -3789 | DE56: -3688 | DF56: -3695 | DG56: -3763 | DH56: -4065 | DI56: -4050 | DJ56: -4600 | DK56: -2222 | DL56: -2405 | DM56: -2399 | DN56: -2636 | DO56: -1813 | DP56: -2118 | DQ56: -1750 | DR56: -1881 | DS56: -1722 | DT56: -2378 | DU56: -1696 | DV56: -2387 | DW56: -1613 | DX56: -1766 | DY56: -1814 | DZ56: -1826 | EA56: -1313 | EC56: -2441 | ED56: -2634 | EE56: -2456 | EF56: -2338 | EG56: -2510 | EH56: -2815 | EI56: -2461 | EJ56: -2449 | EK56: -2418 | EL56: -2465 | EM56: -2317 | EN56: -2510 | EO56: -2318 | EP56: -2117 | EQ56: -2903 | ER56: -2692 | ES56: -2715 | ET56: -2577 | EU56: -2905 | EV56: -3146 | EW56: -2729 | EX56: -3111 | EY56: -2810 | EZ56: -3071 | FA56: -2755 | FB56: -2753 | FC56: -2830 | FD56: -3274 | FE56: -2755 | FF56: -3448 | FG56: -2639 | FH56: -3397 | FI56: -2619 | FJ56: -2378 | FK56: -2955 | FL56: -3106 | FM56: -2946 | FN56: -3462 | FO56: -3084 | FP56: -3182 | FQ56: -3211 | FR56: -3536 | FS56: -3231 | FT56: -3176 | FU56: -3643 | FV56: -4287 | FW56: -695 | FX56: -1000 | FY56: -759 | FZ56: -815 | GA56: -774 | GB56: -389 | GC56: -868 | GD56: -959 | GE56: -857 | GF56: -934 | GG56: -823 | GH56: -1263 | GI56: -1043 | GJ56: -1384 | GK56: -1015 | GL56: -884 | GM56: -867 | GN56: -988 | GO56: -2393 | GP56: -3042 | GQ56: -2287 | GR56: -2675 | GS56: -2088 | GT56: -2468 | GU56: -2165 | GV56: -2666 | GW56: -2146 | GX56: -2558 | GY56: -2280 | GZ56: -2702 | HA56: -2437 | HB56: -2741 | HC56: -2439 | HD56: -2686 | HE56: -2471 | HF56: -2546 | HG56: -2642 | HH56: -3672 | HI56: -2415 | HJ56: -2699 | HK56: -2387 | HL56: -2587 | HM56: -2297 | HN56: -2531 | HO56: -2117 | HP56: -1996 | HQ56: -2403 | HR56: -2757 | HS56: -2642 | HT56: -2872 | HU56: -2735 | HV56: -2655 | HW56: -2157 | HX56: -2211 | HY56: -2309 | IA56: -2178 | IC56: -1830 | IE56: -1875 | IG56: -2202 | IH56: -2852 | II56: -2225 | IK56: -2182 | IL56: -1896 | IM56: -2176 | IO56: -3297 | IQ56: -3015 | IS56: -2485 | IU56: -1593 | IW56: -2447 | IY56: -2302 | JA56: -2417 | JC56: -2073 | JE56: -2277 | JG56: -2466 | JI56: -1914 | JK56: -729 | JM56: -671 | JO56: -468 | JQ56: -904 | JR56: -1075 | JS56: -656 | JU56: -992 | JW56: -810 | JY56: -594
A57: Kraftfoder, tilskudsfoder, færdigblanding mv. | B57: -4016 | C57: -3593 | D57: -4018 | E57: -3564 | F57: -4922 | G57: -3774 | H57: -3998 | I57: -3998 | J57: -3086 | K57: -2498 | L57: -5949 | N57: -5182 | O57: -5355 | P57: -5141 | Q57: -4497 | R57: -3680 | S57: -2865 | T57: -6572 | U57: -6975 | V57: -4042 | W57: -3868 | X57: -4364 | Y57: -4572 | Z57: -2833 | AB57: -4515 | AD57: -6629 | AG57: -3910 | AH57: -3318 | AI57: -3422 | AJ57: -3032 | AK57: -3281 | AL57: -2972 | AM57: -3093 | AN57: -2801 | AO57: -3236 | AP57: -2915 | AQ57: -3360 | AR57: -3059 | AS57: -3673 | AT57: -3326 | AU57: -3649 | AV57: -3352 | AW57: -4016 | AX57: -3593 | AY57: -3817 | AZ57: -3233 | BA57: -3429 | BB57: -3078 | BC57: -3268 | BD57: -2979 | BE57: -3080 | BF57: -2817 | BG57: -3224 | BH57: -2943 | BI57: -3377 | BJ57: -3039 | BK57: -3684 | BL57: -3228 | BM57: -3665 | BN57: -3394 | BO57: -4018 | BP57: -3564 | BQ57: -3501 | BR57: -3303 | BS57: -3047 | BT57: -2652 | BU57: -3548 | BV57: -3252 | BW57: -3563 | BX57: -3445 | BY57: -3785 | BZ57: -4454 | CA57: -3955 | CB57: -4173 | CC57: -3694 | CD57: -3349 | CE57: -4143 | CF57: -4977 | CG57: -4922 | CH57: -3774 | CI57: -2890 | CJ57: -2617 | CK57: -2772 | CL57: -2440 | CM57: -2988 | CN57: -2817 | CO57: -3167 | CP57: -2939 | CQ57: -3694 | CR57: -3349 | CS57: -3774 | CT57: -3947 | CU57: -3998 | CV57: -3998 | CW57: -2461 | CX57: -2448 | CY57: -2164 | CZ57: -2173 | DA57: -2455 | DB57: -2354 | DC57: -2439 | DD57: -2446 | DE57: -3034 | DF57: -3095 | DG57: -2705 | DH57: -2419 | DI57: -3086 | DJ57: -2498 | DK57: -4570 | DL57: -4283 | DM57: -4110 | DN57: -3830 | DO57: -4331 | DP57: -3645 | DQ57: -4067 | DR57: -3622 | DS57: -4339 | DT57: -3537 | DU57: -4253 | DV57: -3852 | DW57: -4919 | DX57: -4491 | DY57: -4649 | DZ57: -4386 | EA57: -5949 | EC57: -4085 | ED57: -3762 | EE57: -3787 | EF57: -3787 | EG57: -3863 | EH57: -3248 | EI57: -4027 | EJ57: -4060 | EK57: -4334 | EL57: -4169 | EM57: -4486 | EN57: -4045 | EO57: -5182 | EP57: -5355 | EQ57: -3487 | ER57: -3672 | ES57: -3414 | ET57: -3357 | EU57: -3232 | EV57: -2710 | EW57: -3933 | EX57: -3699 | EY57: -4498 | EZ57: -4431 | FA57: -4582 | FB57: -4879 | FC57: -5141 | FD57: -4497 | FE57: -3425 | FF57: -2624 | FG57: -3037 | FH57: -2268 | FI57: -3179 | FJ57: -2958 | FK57: -2828 | FL57: -2323 | FM57: -2974 | FN57: -2259 | FO57: -3188 | FP57: -2579 | FQ57: -3093 | FR57: -2321 | FS57: -3363 | FT57: -3017 | FU57: -3680 | FV57: -2865 | FW57: -4846 | FX57: -4615 | FY57: -5011 | FZ57: -5243 | GA57: -4786 | GB57: -5772 | GC57: -5488 | GD57: -5961 | GE57: -6273 | GF57: -6510 | GG57: -6966 | GH57: -6902 | GI57: -6765 | GJ57: -6743 | GK57: -6456 | GL57: -6823 | GM57: -6572 | GN57: -6975 | GO57: -3607 | GP57: -2852 | GQ57: -3369 | GR57: -2856 | GS57: -3383 | GT57: -2564 | GU57: -3225 | GV57: -2510 | GW57: -3387 | GX57: -2977 | GY57: -3335 | GZ57: -2814 | HA57: -3598 | HB57: -3095 | HC57: -3563 | HD57: -3153 | HE57: -4042 | HF57: -3868 | HG57: -3076 | HH57: -1804 | HI57: -2917 | HJ57: -2407 | HK57: -2818 | HL57: -2306 | HM57: -2879 | HN57: -2607 | HO57: -3221 | HP57: -3515 | HQ57: -2835 | HR57: -2486 | HS57: -3245 | HT57: -3387 | HU57: -3280 | HV57: -3782 | HW57: -4364 | HX57: -4572 | HY57: -4095 | IA57: -3804 | IC57: -3777 | IE57: -3661 | IG57: -3616 | IH57: -3022 | II57: -3583 | IK57: -3606 | IL57: -4074 | IM57: -3569 | IO57: -2833 | IQ57: -2889 | IS57: -3586 | IU57: -4694 | IW57: -3384 | IY57: -3336 | JA57: -3710 | JC57: -4646 | JE57: -3894 | JG57: -4515 | JI57: -4850 | JK57: -6282 | JM57: -5852 | JO57: -7429 | JQ57: -6792 | JR57: -7907 | JS57: -7278 | JU57: -6952 | JW57: -7089 | JY57: -6629
A58: Mineraler og vitaminer | B58: -683 | C58: -685 | D58: -683 | E58: -689 | F58: -559 | G58: -468 | H58: -621 | I58: -587 | J58: -706 | K58: -688 | L58: -636 | N58: -699 | O58: -725 | P58: -670 | Q58: -665 | R58: -762 | S58: -825 | T58: -470 | U58: -521 | V58: -702 | W58: -679 | X58: -769 | Y58: -754 | Z58: -608 | AB58: -711 | AD58: -474 | AG58: -561 | AH58: -586 | AI58: -603 | AJ58: -599 | AK58: -590 | AL58: -551 | AM58: -554 | AN58: -547 | AO58: -573 | AP58: -577 | AQ58: -622 | AR58: -639 | AS58: -656 | AT58: -651 | AU58: -658 | AV58: -676 | AW58: -683 | AX58: -685 | AY58: -594 | AZ58: -609 | BA58: -609 | BB58: -598 | BC58: -599 | BD58: -559 | BE58: -562 | BF58: -555 | BG58: -580 | BH58: -584 | BI58: -623 | BJ58: -640 | BK58: -650 | BL58: -667 | BM58: -652 | BN58: -669 | BO58: -683 | BP58: -689 | BQ58: -579 | BR58: -572 | BS58: -602 | BT58: -600 | BU58: -509 | BV58: -491 | BW58: -484 | BX58: -440 | BY58: -501 | BZ58: -494 | CA58: -539 | CB58: -514 | CC58: -619 | CD58: -621 | CE58: -537 | CF58: -547 | CG58: -559 | CH58: -468 | CI58: -600 | CJ58: -577 | CK58: -542 | CL58: -529 | CM58: -566 | CN58: -536 | CO58: -586 | CP58: -599 | CQ58: -619 | CR58: -621 | CS58: -619 | CT58: -607 | CU58: -621 | CV58: -587 | CW58: -616 | CX58: -535 | CY58: -591 | CZ58: -558 | DA58: -599 | DB58: -586 | DC58: -638 | DD58: -618 | DE58: -652 | DF58: -659 | DG58: -657 | DH58: -621 | DI58: -706 | DJ58: -688 | DK58: -624 | DL58: -636 | DM58: -644 | DN58: -613 | DO58: -568 | DP58: -559 | DQ58: -555 | DR58: -547 | DS58: -565 | DT58: -582 | DU58: -569 | DV58: -588 | DW58: -646 | DX58: -561 | DY58: -645 | DZ58: -636 | EA58: -636 | EC58: -642 | ED58: -588 | EE58: -587 | EF58: -527 | EG58: -650 | EH58: -625 | EI58: -654 | EJ58: -673 | EK58: -690 | EL58: -678 | EM58: -652 | EN58: -660 | EO58: -699 | EP58: -725 | EQ58: -627 | ER58: -722 | ES58: -568 | ET58: -543 | EU58: -605 | EV58: -677 | EW58: -659 | EX58: -634 | EY58: -695 | EZ58: -647 | FA58: -729 | FB58: -654 | FC58: -670 | FD58: -665 | FE58: -632 | FF58: -642 | FG58: -639 | FH58: -680 | FI58: -620 | FJ58: -588 | FK58: -607 | FL58: -597 | FM58: -601 | FN58: -671 | FO58: -683 | FP58: -729 | FQ58: -705 | FR58: -720 | FS58: -695 | FT58: -611 | FU58: -762 | FV58: -825 | FW58: -329 | FX58: -353 | FY58: -356 | FZ58: -371 | GA58: -355 | GB58: -355 | GC58: -355 | GD58: -357 | GE58: -394 | GF58: -403 | GG58: -408 | GH58: -428 | GI58: -426 | GJ58: -475 | GK58: -431 | GL58: -428 | GM58: -470 | GN58: -521 | GO58: -528 | GP58: -529 | GQ58: -549 | GR58: -635 | GS58: -516 | GT58: -484 | GU58: -487 | GV58: -502 | GW58: -509 | GX58: -532 | GY58: -622 | GZ58: -606 | HA58: -700 | HB58: -656 | HC58: -718 | HD58: -731 | HE58: -702 | HF58: -679 | HG58: -528 | HH58: -468 | HI58: -554 | HJ58: -615 | HK58: -542 | HL58: -476 | HM58: -498 | HN58: -446 | HO58: -486 | HP58: -456 | HQ58: -619 | HR58: -561 | HS58: -708 | HT58: -645 | HU58: -748 | HV58: -769 | HW58: -769 | HX58: -754 | HY58: -596 | IA58: -556 | IC58: -524 | IE58: -498 | IG58: -522 | IH58: -545 | II58: -562 | IK58: -586 | IL58: -601 | IM58: -553 | IO58: -608 | IQ58: -522 | IS58: -534 | IU58: -446 | IW58: -466 | IY58: -553 | JA58: -821 | JC58: -829 | JE58: -863 | JG58: -711 | JI58: -454 | JK58: -373 | JM58: -457 | JO58: -380 | JQ58: -463 | JR58: -556 | JS58: -491 | JU58: -438 | JW58: -426 | JY58: -474
A59: Biprodukter mv. | B59: -645 | C59: -687 | D59: -638 | E59: -681 | F59: -436 | G59: -664 | H59: -590 | I59: -542 | J59: -824 | K59: -802 | L59: -391 | N59: -475 | O59: -348 | P59: -574 | Q59: -714 | R59: -617 | S59: -671 | T59: -47 | U59: -17 | V59: -688 | W59: -710 | X59: -699 | Y59: -729 | Z59: -715 | AB59: -611 | AD59: -10 | AG59: -584 | AH59: -703 | AI59: -604 | AJ59: -637 | AK59: -573 | AL59: -607 | AM59: -580 | AN59: -610 | AO59: -649 | AP59: -738 | AQ59: -730 | AR59: -781 | AS59: -718 | AT59: -778 | AU59: -708 | AV59: -722 | AW59: -645 | AX59: -687 | AY59: -654 | AZ59: -744 | BA59: -596 | BB59: -616 | BC59: -569 | BD59: -599 | BE59: -581 | BF59: -608 | BG59: -646 | BH59: -730 | BI59: -726 | BJ59: -796 | BK59: -714 | BL59: -820 | BM59: -698 | BN59: -713 | BO59: -638 | BP59: -681 | BQ59: -713 | BR59: -697 | BS59: -656 | BT59: -609 | BU59: -530 | BV59: -600 | BW59: -449 | BX59: -463 | BY59: -526 | BZ59: -519 | CA59: -531 | CB59: -518 | CC59: -648 | CD59: -781 | CE59: -491 | CF59: -527 | CG59: -436 | CH59: -664 | CI59: -607 | CJ59: -567 | CK59: -593 | CL59: -537 | CM59: -572 | CN59: -558 | CO59: -657 | CP59: -623 | CQ59: -648 | CR59: -781 | CS59: -611 | CT59: -505 | CU59: -590 | CV59: -542 | CW59: -699 | CX59: -639 | CY59: -722 | CZ59: -612 | DA59: -794 | DB59: -798 | DC59: -943 | DD59: -1032 | DE59: -838 | DF59: -827 | DG59: -906 | DH59: -1009 | DI59: -824 | DJ59: -802 | DK59: -457 | DL59: -505 | DM59: -490 | DN59: -612 | DO59: -363 | DP59: -411 | DQ59: -314 | DR59: -309 | DS59: -392 | DT59: -419 | DU59: -494 | DV59: -545 | DW59: -472 | DX59: -491 | DY59: -407 | DZ59: -383 | EA59: -391 | EC59: -416 | ED59: -433 | EE59: -355 | EF59: -351 | EG59: -466 | EH59: -495 | EI59: -535 | EJ59: -480 | EK59: -616 | EL59: -476 | EM59: -507 | EN59: -408 | EO59: -475 | EP59: -348 | EQ59: -524 | ER59: -571 | ES59: -582 | ET59: -581 | EU59: -716 | EV59: -1035 | EW59: -671 | EX59: -780 | EY59: -624 | EZ59: -611 | FA59: -603 | FB59: -496 | FC59: -574 | FD59: -714 | FE59: -754 | FF59: -786 | FG59: -656 | FH59: -724 | FI59: -617 | FJ59: -728 | FK59: -676 | FL59: -891 | FM59: -765 | FN59: -985 | FO59: -846 | FP59: -947 | FQ59: -864 | FR59: -952 | FS59: -778 | FT59: -732 | FU59: -617 | FV59: -671 | FW59: -35 | FX59: -45 | FY59: -31 | FZ59: -21 | GA59: -52 | GB59: -73 | GC59: -57 | GD59: -54 | GE59: -112 | GF59: -44 | GG59: -30 | GH59: -16 | GI59: -41 | GJ59: -28 | GK59: -46 | GL59: -17 | GM59: -47 | GN59: -17 | GO59: -619 | GP59: -819 | GQ59: -654 | GR59: -884 | GS59: -609 | GT59: -681 | GU59: -580 | GV59: -695 | GW59: -661 | GX59: -808 | GY59: -760 | GZ59: -712 | HA59: -749 | HB59: -842 | HC59: -792 | HD59: -790 | HE59: -688 | HF59: -710 | HG59: -678 | HH59: -903 | HI59: -743 | HJ59: -1054 | HK59: -709 | HL59: -712 | HM59: -659 | HN59: -755 | HO59: -623 | HP59: -803 | HQ59: -810 | HR59: -782 | HS59: -789 | HT59: -874 | HU59: -872 | HV59: -930 | HW59: -699 | HX59: -729 | HY59: -446 | IA59: -662 | IC59: -561 | IE59: -559 | IG59: -663 | IH59: -751 | II59: -716 | IK59: -673 | IL59: -420 | IM59: -724 | IO59: -715 | IQ59: -665 | IS59: -205 | IU59: -310 | IW59: -386 | IY59: -663 | JA59: -814 | JC59: -683 | JE59: -752 | JG59: -611 | JI59: -30 | JK59: -25 | JM59: -6 | JO59: -5 | JQ59: -89 | JR59: -127 | JS59: -52 | JU59: -1 | JW59: -37 | JY59: -10
A60: Grovfoder til kvæg | B60: -6585 | C60: -6388 | D60: -6745 | E60: -6499 | F60: -7031 | G60: -7057 | H60: -6936 | I60: -6887 | J60: -6718 | K60: -6626 | L60: -7099 | N60: -6922 | O60: -6713 | P60: -6544 | Q60: -6331 | R60: -6694 | S60: -6559 | T60: -8486 | U60: -8636 | V60: -5337 | W60: -5442 | X60: -5267 | Y60: -5375 | Z60: -5271 | AB60: -5375 | AD60: -6605 | AG60: -6527 | AH60: -6216 | AI60: -6438 | AJ60: -6286 | AK60: -6373 | AL60: -6368 | AM60: -5990 | AN60: -6005 | AO60: -6187 | AP60: -6145 | AQ60: -6218 | AR60: -6141 | AS60: -6160 | AT60: -6038 | AU60: -6277 | AV60: -6276 | AW60: -6585 | AX60: -6388 | AY60: -6485 | AZ60: -6342 | BA60: -6590 | BB60: -6475 | BC60: -6539 | BD60: -6541 | BE60: -6145 | BF60: -6131 | BG60: -6332 | BH60: -6279 | BI60: -6374 | BJ60: -6244 | BK60: -6341 | BL60: -6231 | BM60: -6430 | BN60: -6428 | BO60: -6745 | BP60: -6499 | BQ60: -6506 | BR60: -6283 | BS60: -6692 | BT60: -6486 | BU60: -6686 | BV60: -6701 | BW60: -6336 | BX60: -6465 | BY60: -6427 | BZ60: -6487 | CA60: -6555 | CB60: -6496 | CC60: -6426 | CD60: -6300 | CE60: -6632 | CF60: -6539 | CG60: -7031 | CH60: -7057 | CI60: -6603 | CJ60: -6594 | CK60: -6115 | CL60: -5879 | CM60: -6363 | CN60: -6208 | CO60: -6409 | CP60: -6295 | CQ60: -6426 | CR60: -6300 | CS60: -6615 | CT60: -6435 | CU60: -6936 | CV60: -6887 | CW60: -6582 | CX60: -6424 | CY60: -6339 | CZ60: -6681 | DA60: -6354 | DB60: -6419 | DC60: -6329 | DD60: -5946 | DE60: -6218 | DF60: -6087 | DG60: -6325 | DH60: -6227 | DI60: -6718 | DJ60: -6626 | DK60: -6497 | DL60: -6497 | DM60: -6609 | DN60: -6368 | DO60: -6663 | DP60: -6755 | DQ60: -6330 | DR60: -6413 | DS60: -6550 | DT60: -6628 | DU60: -6547 | DV60: -6317 | DW60: -6632 | DX60: -6808 | DY60: -6664 | DZ60: -6301 | EA60: -7099 | EC60: -6598 | ED60: -6336 | EE60: -6291 | EF60: -6406 | EG60: -6494 | EH60: -6493 | EI60: -6400 | EJ60: -6287 | EK60: -6344 | EL60: -6371 | EM60: -6576 | EN60: -6702 | EO60: -6922 | EP60: -6713 | EQ60: -6543 | ER60: -6646 | ES60: -6019 | ET60: -5911 | EU60: -6238 | EV60: -6449 | EW60: -6404 | EX60: -6326 | EY60: -6269 | EZ60: -6386 | FA60: -6383 | FB60: -6419 | FC60: -6544 | FD60: -6331 | FE60: -6445 | FF60: -6206 | FG60: -6348 | FH60: -6427 | FI60: -6409 | FJ60: -6491 | FK60: -5970 | FL60: -5850 | FM60: -6245 | FN60: -6207 | FO60: -6347 | FP60: -6242 | FQ60: -6262 | FR60: -6213 | FS60: -6239 | FT60: -6594 | FU60: -6694 | FV60: -6559 | FW60: -8322 | FX60: -7924 | FY60: -8108 | FZ60: -7718 | GA60: -8561 | GB60: -8458 | GC60: -8260 | GD60: -8181 | GE60: -8262 | GF60: -8109 | GG60: -8348 | GH60: -8291 | GI60: -8162 | GJ60: -8217 | GK60: -8255 | GL60: -8235 | GM60: -8486 | GN60: -8636 | GO60: -4963 | GP60: -4941 | GQ60: -5092 | GR60: -5028 | GS60: -4848 | GT60: -4796 | GU60: -4574 | GV60: -4592 | GW60: -4899 | GX60: -4704 | GY60: -4829 | GZ60: -4797 | HA60: -4726 | HB60: -4568 | HC60: -5012 | HD60: -5224 | HE60: -5337 | HF60: -5442 | HG60: -5015 | HH60: -4932 | HI60: -5232 | HJ60: -4980 | HK60: -5017 | HL60: -5049 | HM60: -4698 | HN60: -4725 | HO60: -5006 | HP60: -4544 | HQ60: -4953 | HR60: -4915 | HS60: -4640 | HT60: -4347 | HU60: -4829 | HV60: -4989 | HW60: -5267 | HX60: -5375 | HY60: -4968 | IA60: -4977 | IC60: -4523 | IE60: -4355 | IG60: -4625 | IH60: -4711 | II60: -4616 | IK60: -4902 | IL60: -5022 | IM60: -5001 | IO60: -5271 | IQ60: -5314 | IS60: -5047 | IU60: -4682 | IW60: -4644 | IY60: -5017 | JA60: -4888 | JC60: -4655 | JE60: -5405 | JG60: -5375 | JI60: -6129 | JK60: -5971 | JM60: -6279 | JO60: -5958 | JQ60: -7087 | JR60: -6868 | JS60: -6920 | JU60: -6768 | JW60: -6631 | JY60: -6605
A61: Dyrlæge og medicin | B61: -634 | C61: -582 | D61: -630 | E61: -575 | F61: -726 | G61: -672 | H61: -658 | I61: -642 | J61: -608 | K61: -547 | L61: -711 | N61: -677 | O61: -642 | P61: -658 | Q61: -630 | R61: -557 | S61: -522 | T61: -750 | U61: -773 | V61: -657 | W61: -640 | X61: -608 | Y61: -612 | Z61: -763 | AB61: -704 | AD61: -700 | AG61: -658 | AH61: -618 | AI61: -693 | AJ61: -642 | AK61: -662 | AL61: -596 | AM61: -606 | AN61: -563 | AO61: -604 | AP61: -555 | AQ61: -610 | AR61: -560 | AS61: -634 | AT61: -589 | AU61: -643 | AV61: -597 | AW61: -634 | AX61: -582 | AY61: -663 | AZ61: -620 | BA61: -696 | BB61: -643 | BC61: -661 | BD61: -595 | BE61: -605 | BF61: -563 | BG61: -601 | BH61: -550 | BI61: -606 | BJ61: -553 | BK61: -627 | BL61: -573 | BM61: -635 | BN61: -588 | BO61: -630 | BP61: -575 | BQ61: -676 | BR61: -655 | BS61: -711 | BT61: -678 | BU61: -751 | BV61: -654 | BW61: -686 | BX61: -630 | BY61: -692 | BZ61: -600 | CA61: -712 | CB61: -646 | CC61: -654 | CD61: -631 | CE61: -745 | CF61: -753 | CG61: -726 | CH61: -672 | CI61: -662 | CJ61: -592 | CK61: -614 | CL61: -582 | CM61: -618 | CN61: -571 | CO61: -622 | CP61: -561 | CQ61: -654 | CR61: -631 | CS61: -663 | CT61: -635 | CU61: -658 | CV61: -642 | CW61: -595 | CX61: -613 | CY61: -558 | CZ61: -540 | DA61: -546 | DB61: -490 | DC61: -546 | DD61: -527 | DE61: -582 | DF61: -526 | DG61: -575 | DH61: -543 | DI61: -608 | DJ61: -547 | DK61: -664 | DL61: -606 | DM61: -704 | DN61: -626 | DO61: -717 | DP61: -612 | DQ61: -680 | DR61: -680 | DS61: -694 | DT61: -646 | DU61: -653 | DV61: -677 | DW61: -709 | DX61: -639 | DY61: -705 | DZ61: -586 | EA61: -711 | EC61: -712 | ED61: -622 | EE61: -657 | EF61: -592 | EG61: -675 | EH61: -638 | EI61: -651 | EJ61: -577 | EK61: -674 | EL61: -634 | EM61: -658 | EN61: -622 | EO61: -677 | EP61: -642 | EQ61: -595 | ER61: -567 | ES61: -566 | ET61: -530 | EU61: -542 | EV61: -524 | EW61: -604 | EX61: -616 | EY61: -619 | EZ61: -582 | FA61: -658 | FB61: -601 | FC61: -658 | FD61: -630 | FE61: -600 | FF61: -575 | FG61: -628 | FH61: -594 | FI61: -613 | FJ61: -493 | FK61: -562 | FL61: -505 | FM61: -545 | FN61: -499 | FO61: -561 | FP61: -489 | FQ61: -582 | FR61: -497 | FS61: -599 | FT61: -496 | FU61: -557 | FV61: -522 | FW61: -655 | FX61: -611 | FY61: -702 | FZ61: -679 | GA61: -737 | GB61: -699 | GC61: -719 | GD61: -738 | GE61: -669 | GF61: -620 | GG61: -707 | GH61: -663 | GI61: -735 | GJ61: -769 | GK61: -730 | GL61: -732 | GM61: -750 | GN61: -773 | GO61: -611 | GP61: -576 | GQ61: -664 | GR61: -668 | GS61: -676 | GT61: -603 | GU61: -611 | GV61: -576 | GW61: -626 | GX61: -606 | GY61: -647 | GZ61: -619 | HA61: -692 | HB61: -672 | HC61: -701 | HD61: -678 | HE61: -657 | HF61: -640 | HG61: -563 | HH61: -528 | HI61: -644 | HJ61: -672 | HK61: -685 | HL61: -570 | HM61: -623 | HN61: -603 | HO61: -630 | HP61: -628 | HQ61: -644 | HR61: -668 | HS61: -670 | HT61: -693 | HU61: -655 | HV61: -664 | HW61: -608 | HX61: -612 | HY61: -694 | IA61: -728 | IC61: -642 | IE61: -653 | IG61: -685 | IH61: -685 | II61: -656 | IK61: -729 | IL61: -691 | IM61: -763 | IO61: -763 | IQ61: -706 | IS61: -635 | IU61: -658 | IW61: -511 | IY61: -589 | JA61: -682 | JC61: -722 | JE61: -736 | JG61: -704 | JI61: -592 | JK61: -691 | JM61: -726 | JO61: -672 | JQ61: -636 | JR61: -615 | JS61: -622 | JU61: -786 | JW61: -738 | JY61: -700
A62: Avl, rådgivning og kontrol | B62: -811 | C62: -765 | D62: -795 | E62: -740 | F62: -884 | G62: -900 | H62: -860 | I62: -816 | J62: -737 | K62: -669 | L62: -902 | N62: -914 | O62: -874 | P62: -776 | Q62: -741 | R62: -743 | S62: -713 | T62: -808 | U62: -835 | V62: -925 | W62: -967 | X62: -939 | Y62: -938 | Z62: -909 | AB62: -938 | AD62: -994 | AG62: -810 | AH62: -780 | AI62: -836 | AJ62: -786 | AK62: -828 | AL62: -755 | AM62: -793 | AN62: -741 | AO62: -795 | AP62: -745 | AQ62: -802 | AR62: -755 | AS62: -816 | AT62: -776 | AU62: -826 | AV62: -764 | AW62: -811 | AX62: -765 | AY62: -810 | AZ62: -786 | BA62: -833 | BB62: -785 | BC62: -820 | BD62: -749 | BE62: -785 | BF62: -739 | BG62: -788 | BH62: -741 | BI62: -790 | BJ62: -750 | BK62: -796 | BL62: -750 | BM62: -811 | BN62: -752 | BO62: -795 | BP62: -740 | BQ62: -806 | BR62: -781 | BS62: -842 | BT62: -793 | BU62: -866 | BV62: -739 | BW62: -851 | BX62: -845 | BY62: -855 | BZ62: -880 | CA62: -865 | CB62: -831 | CC62: -854 | CD62: -834 | CE62: -896 | CF62: -841 | CG62: -884 | CH62: -900 | CI62: -847 | CJ62: -773 | CK62: -826 | CL62: -769 | CM62: -830 | CN62: -790 | CO62: -842 | CP62: -803 | CQ62: -854 | CR62: -834 | CS62: -862 | CT62: -810 | CU62: -860 | CV62: -816 | CW62: -752 | CX62: -654 | CY62: -699 | CZ62: -610 | DA62: -708 | DB62: -636 | DC62: -700 | DD62: -660 | DE62: -716 | DF62: -634 | DG62: -730 | DH62: -670 | DI62: -737 | DJ62: -669 | DK62: -858 | DL62: -832 | DM62: -883 | DN62: -829 | DO62: -896 | DP62: -906 | DQ62: -867 | DR62: -903 | DS62: -877 | DT62: -849 | DU62: -880 | DV62: -895 | DW62: -926 | DX62: -956 | DY62: -935 | DZ62: -870 | EA62: -902 | EC62: -885 | ED62: -824 | EE62: -857 | EF62: -800 | EG62: -879 | EH62: -826 | EI62: -854 | EJ62: -807 | EK62: -885 | EL62: -852 | EM62: -897 | EN62: -871 | EO62: -914 | EP62: -874 | EQ62: -806 | ER62: -730 | ES62: -794 | ET62: -787 | EU62: -749 | EV62: -707 | EW62: -772 | EX62: -792 | EY62: -809 | EZ62: -829 | FA62: -837 | FB62: -770 | FC62: -776 | FD62: -741 | FE62: -731 | FF62: -751 | FG62: -690 | FH62: -697 | FI62: -731 | FJ62: -648 | FK62: -712 | FL62: -675 | FM62: -732 | FN62: -686 | FO62: -743 | FP62: -704 | FQ62: -727 | FR62: -658 | FS62: -787 | FT62: -733 | FU62: -743 | FV62: -713 | FW62: -823 | FX62: -799 | FY62: -835 | FZ62: -852 | GA62: -836 | GB62: -834 | GC62: -818 | GD62: -784 | GE62: -806 | GF62: -764 | GG62: -813 | GH62: -817 | GI62: -794 | GJ62: -783 | GK62: -829 | GL62: -757 | GM62: -808 | GN62: -835 | GO62: -782 | GP62: -713 | GQ62: -857 | GR62: -806 | GS62: -893 | GT62: -825 | GU62: -868 | GV62: -787 | GW62: -856 | GX62: -787 | GY62: -922 | GZ62: -846 | HA62: -973 | HB62: -976 | HC62: -945 | HD62: -853 | HE62: -925 | HF62: -967 | HG62: -813 | HH62: -766 | HI62: -874 | HJ62: -832 | HK62: -879 | HL62: -793 | HM62: -835 | HN62: -744 | HO62: -886 | HP62: -811 | HQ62: -965 | HR62: -924 | HS62: -993 | HT62: -974 | HU62: -947 | HV62: -954 | HW62: -939 | HX62: -938 | HY62: -816 | IA62: -921 | IC62: -951 | IE62: -944 | IG62: -851 | IH62: -726 | II62: -919 | IK62: -997 | IL62: -940 | IM62: -977 | IO62: -909 | IQ62: -908 | IS62: -785 | IU62: -865 | IW62: -868 | IY62: -816 | JA62: -864 | JC62: -942 | JE62: -967 | JG62: -938 | JI62: -802 | JK62: -802 | JM62: -689 | JO62: -738 | JQ62: -837 | JR62: -717 | JS62: -889 | JU62: -980 | JW62: -1037 | JY62: -994
A63: Diverse stykomkostninger, inkl. pasningsaftale | B63: -1266 | C63: -1245 | D63: -1275 | E63: -1259 | F63: -1249 | G63: -1416 | H63: -1254 | I63: -1142 | J63: -1257 | K63: -1210 | L63: -1240 | N63: -1282 | O63: -1433 | P63: -1271 | Q63: -1280 | R63: -1280 | S63: -1210 | T63: -1349 | U63: -1398 | V63: -1228 | W63: -1189 | X63: -1191 | Y63: -1012 | Z63: -1041 | AB63: -1364 | AD63: -1379 | AG63: -856 | AH63: -817 | AI63: -953 | AJ63: -906 | AK63: -955 | AL63: -866 | AM63: -973 | AN63: -923 | AO63: -1047 | AP63: -996 | AQ63: -1114 | AR63: -1067 | AS63: -1166 | AT63: -1117 | AU63: -1162 | AV63: -1138 | AW63: -1266 | AX63: -1245 | AY63: -869 | AZ63: -831 | BA63: -965 | BB63: -929 | BC63: -961 | BD63: -886 | BE63: -977 | BF63: -940 | BG63: -1048 | BH63: -991 | BI63: -1109 | BJ63: -1069 | BK63: -1168 | BL63: -1106 | BM63: -1159 | BN63: -1131 | BO63: -1275 | BP63: -1259 | BQ63: -816 | BR63: -715 | BS63: -982 | BT63: -956 | BU63: -934 | BV63: -848 | BW63: -899 | BX63: -814 | BY63: -1116 | BZ63: -1012 | CA63: -1123 | CB63: -1062 | CC63: -1235 | CD63: -1195 | CE63: -1122 | CF63: -1113 | CG63: -1249 | CH63: -1416 | CI63: -1013 | CJ63: -919 | CK63: -1014 | CL63: -1006 | CM63: -1089 | CN63: -1017 | CO63: -1167 | CP63: -1103 | CQ63: -1235 | CR63: -1195 | CS63: -1169 | CT63: -1088 | CU63: -1254 | CV63: -1142 | CW63: -946 | CX63: -843 | CY63: -993 | CZ63: -987 | DA63: -1010 | DB63: -1046 | DC63: -1050 | DD63: -1005 | DE63: -1144 | DF63: -1049 | DG63: -1206 | DH63: -1175 | DI63: -1257 | DJ63: -1210 | DK63: -951 | DL63: -934 | DM63: -965 | DN63: -981 | DO63: -913 | DP63: -870 | DQ63: -936 | DR63: -884 | DS63: -1072 | DT63: -1030 | DU63: -1079 | DV63: -1058 | DW63: -1123 | DX63: -1135 | DY63: -1138 | DZ63: -1170 | EA63: -1240 | EC63: -968 | ED63: -869 | EE63: -993 | EF63: -853 | EG63: -1017 | EH63: -925 | EI63: -1119 | EJ63: -1120 | EK63: -1178 | EL63: -1136 | EM63: -1155 | EN63: -1200 | EO63: -1282 | EP63: -1433 | EQ63: -967 | ER63: -941 | ES63: -1005 | ET63: -1009 | EU63: -1071 | EV63: -929 | EW63: -1133 | EX63: -1154 | EY63: -1208 | EZ63: -1163 | FA63: -1200 | FB63: -1260 | FC63: -1271 | FD63: -1280 | FE63: -880 | FF63: -731 | FG63: -1011 | FH63: -818 | FI63: -876 | FJ63: -905 | FK63: -960 | FL63: -831 | FM63: -1029 | FN63: -972 | FO63: -1114 | FP63: -1066 | FQ63: -1173 | FR63: -1097 | FS63: -1165 | FT63: -1034 | FU63: -1280 | FV63: -1210 | FW63: -790 | FX63: -740 | FY63: -817 | FZ63: -801 | GA63: -808 | GB63: -793 | GC63: -835 | GD63: -810 | GE63: -905 | GF63: -800 | GG63: -1160 | GH63: -990 | GI63: -1191 | GJ63: -1061 | GK63: -1190 | GL63: -1127 | GM63: -1349 | GN63: -1398 | GO63: -779 | GP63: -754 | GQ63: -850 | GR63: -804 | GS63: -902 | GT63: -750 | GU63: -942 | GV63: -833 | GW63: -1035 | GX63: -999 | GY63: -1132 | GZ63: -1071 | HA63: -1147 | HB63: -1101 | HC63: -1183 | HD63: -1170 | HE63: -1228 | HF63: -1189 | HG63: -702 | HH63: -506 | HI63: -852 | HJ63: -714 | HK63: -870 | HL63: -684 | HM63: -948 | HN63: -783 | HO63: -1027 | HP63: -1032 | HQ63: -1144 | HR63: -1108 | HS63: -1128 | HT63: -1155 | HU63: -1191 | HV63: -1264 | HW63: -1191 | HX63: -1012 | HY63: -836 | IA63: -872 | IC63: -882 | IE63: -886 | IG63: -1010 | IH63: -985 | IK63: -1074 | IL63: -880 | IM63: -1128 | IO63: -1041 | IQ63: -1078 | IS63: -755 | IU63: -1031 | IW63: -979 | IY63: -1089 | JC63: -1274 | JE63: -1253 | JG63: -1364 | JI63: -1104 | JK63: -691 | JM63: -848 | JO63: -884 | JQ63: -865 | JR63: -854 | JU63: -1205 | JW63: -1355 | JY63: -1379
A64: Stykomkostninger i alt | B64: -19015 | C64: -18742 | D64: -19277 | E64: -18956 | F64: -19126 | G64: -18600 | H64: -19128 | I64: -18750 | J64: -19379 | K64: -19169 | L64: -19298 | N64: -19561 | O64: -19319 | P64: -19512 | Q64: -19266 | R64: -19253 | S64: -18955 | T64: -22344 | U64: -22996 | V64: -17106 | W64: -17067 | X64: -17092 | Y64: -17168 | Z64: -16902 | AB64: -17475 | AD64: -20001 | AG64: -17385 | AH64: -16820 | AI64: -16849 | AJ64: -16528 | AK64: -16591 | AL64: -16084 | AM64: -16342 | AN64: -16186 | AO64: -16781 | AP64: -16676 | AQ64: -17285 | AR64: -17159 | AS64: -17681 | AT64: -17453 | AU64: -17846 | AV64: -17688 | AW64: -19015 | AX64: -18742 | AY64: -17376 | AZ64: -16992 | BA64: -17055 | BB64: -16790 | BC64: -16815 | BD64: -16341 | BE64: -16573 | BF64: -16430 | BG64: -16993 | BH64: -16842 | BI64: -17508 | BJ64: -17346 | BK64: -17903 | BL64: -17684 | BM64: -18054 | BN64: -17937 | BO64: -19277 | BP64: -18956 | BQ64: -17180 | BR64: -16695 | BS64: -16972 | BT64: -16554 | BU64: -16444 | BV64: -15918 | BW64: -16153 | BX64: -16051 | BY64: -16808 | BZ64: -16899 | CA64: -17102 | CB64: -16607 | CC64: -17855 | CD64: -17585 | CE64: -17643 | CF64: -17611 | CG64: -19126 | CH64: -18600 | CI64: -16791 | CJ64: -16245 | CK64: -16421 | CL64: -15864 | CM64: -16832 | CN64: -16498 | CO64: -17307 | CP64: -16778 | CQ64: -17855 | CR64: -17585 | CS64: -18017 | CT64: -17466 | CU64: -19128 | CV64: -18750 | CW64: -16806 | CX64: -16367 | CY64: -16787 | CZ64: -16838 | DA64: -17056 | DB64: -17270 | DC64: -17419 | DD64: -17355 | DE64: -17886 | DF64: -17857 | DG64: -17985 | DH64: -18098 | DI64: -19379 | DJ64: -19169 | DK64: -17791 | DL64: -17594 | DM64: -17609 | DN64: -17355 | DO64: -17119 | DP64: -16800 | DQ64: -16572 | DR64: -16520 | DS64: -17102 | DT64: -17007 | DU64: -17338 | DV64: -17305 | DW64: -18179 | DX64: -17943 | DY64: -17938 | DZ64: -17110 | EA64: -19298 | EC64: -17399 | ED64: -16658 | EE64: -16989 | EF64: -16743 | EG64: -17466 | EH64: -16929 | EI64: -17740 | EJ64: -17434 | EK64: -18213 | EL64: -17844 | EM64: -18227 | EN64: -18004 | EO64: -19561 | EP64: -19319 | EQ64: -17123 | ER64: -17375 | ES64: -16824 | ET64: -16685 | EU64: -17087 | EV64: -17241 | EW64: -17887 | EX64: -17954 | EY64: -18443 | EZ64: -18399 | FA64: -18654 | FB64: -18893 | FC64: -19512 | FD64: -19266 | FE64: -17216 | FF64: -16828 | FG64: -16432 | FH64: -16459 | FI64: -16417 | FJ64: -15907 | FK64: -16358 | FL64: -15894 | FM64: -16849 | FN64: -16717 | FO64: -17532 | FP64: -16932 | FQ64: -17615 | FR64: -17151 | FS64: -17965 | FT64: -17428 | FU64: -19253 | FV64: -18955 | FW64: -19379 | FX64: -18907 | FY64: -19319 | FZ64: -19161 | GA64: -19547 | GB64: -19849 | GC64: -20305 | GD64: -20618 | GE64: -21267 | GF64: -21014 | GG64: -22553 | GH64: -22769 | GI64: -22264 | GJ64: -22719 | GK64: -21846 | GL64: -21749 | GM64: -22344 | GN64: -22996 | GO64: -15143 | GP64: -14954 | GQ64: -15007 | GR64: -15023 | GS64: -14535 | GT64: -13715 | GU64: -14243 | GV64: -13954 | GW64: -14886 | GX64: -14655 | GY64: -15345 | GZ64: -14912 | HA64: -15917 | HB64: -15532 | HC64: -16157 | HD64: -15958 | HE64: -17106 | HF64: -17067 | HG64: -14797 | HH64: -14344 | HI64: -14979 | HJ64: -14683 | HK64: -14507 | HL64: -13688 | HM64: -14249 | HN64: -13902 | HO64: -14769 | HP64: -14360 | HQ64: -15368 | HR64: -15070 | HS64: -15802 | HT64: -15607 | HU64: -16091 | HV64: -16526 | HW64: -17092 | HX64: -17168 | HY64: -15508 | IA64: -15247 | IC64: -14254 | IE64: -14177 | IG64: -14907 | IH64: -15008 | II64: -15060 | IK64: -15721 | IL64: -15480 | IM64: -15651 | IO64: -16902 | IQ64: -16421 | IS64: -14693 | IU64: -15082 | IW64: -14523 | IY64: -15169 | JA64: -15951 | JC64: -16343 | JE64: -16863 | JG64: -17475 | JI64: -18052 | JK64: -17625 | JM64: -17904 | JO64: -18381 | JQ64: -20063 | JR64: -21051 | JS64: -20829 | JU64: -20746 | JW64: -20628 | JY64: -20001
A66: Dækningsbidrag | B66: 16425 | C66: 17666 | D66: 16637 | E66: 17757 | F66: 15241 | G66: 16799 | H66: 15667 | I66: 16835 | J66: 16893 | K66: 18442 | L66: 15613 | N66: 16817 | O66: 18023 | P66: 17584 | Q66: 18757 | R66: 16590 | S66: 17280 | T66: 17347 | U66: 18880 | V66: 14976 | W66: 16758 | X66: 14789 | Y66: 16245 | Z66: 14277 | AB66: 14705 | AD66: 16220 | AG66: 12325 | AH66: 14099 | AI66: 13933 | AJ66: 15617 | AK66: 10349 | AL66: 11439 | AM66: 8655 | AN66: 9743 | AO66: 15137 | AP66: 16244 | AQ66: 13737 | AR66: 14953 | AS66: 13379 | AT66: 14440 | AU66: 13513 | AV66: 14571 | AW66: 16425 | AX66: 17666 | AY66: 12493 | AZ66: 14138 | BA66: 13976 | BB66: 15638 | BC66: 10362 | BD66: 11392 | BE66: 8662 | BF66: 9759 | BG66: 15250 | BH66: 16298 | BI66: 13832 | BJ66: 15032 | BK66: 13363 | BL66: 14531 | BM66: 13563 | BN66: 14675 | BO66: 16637 | BP66: 17757 | BQ66: 12471 | BR66: 14189 | BS66: 13932 | BT66: 15606 | BU66: 9986 | BV66: 10705 | BW66: 8300 | BX66: 9922 | BY66: 14379 | BZ66: 15680 | CA66: 12787 | CB66: 13986 | CC66: 12987 | CD66: 14224 | CE66: 12797 | CF66: 13656 | CG66: 15241 | CH66: 16799 | CI66: 10209 | CJ66: 11289 | CK66: 8583 | CL66: 9838 | CM66: 15090 | CN66: 16660 | CO66: 13632 | CP66: 14905 | CQ66: 12987 | CR66: 14224 | CS66: 13047 | CT66: 14027 | CU66: 15667 | CV66: 16835 | CW66: 10649 | CX66: 11872 | CY66: 8897 | CZ66: 9881 | DA66: 15771 | DB66: 17085 | DC66: 14209 | DD66: 15996 | DE66: 13764 | DF66: 14928 | DG66: 13898 | DH66: 15274 | DI66: 16893 | DJ66: 18442 | DK66: 12695 | DL66: 14346 | DM66: 14095 | DN66: 15729 | DO66: 10075 | DP66: 10877 | DQ66: 8163 | DR66: 9101 | DS66: 14942 | DT66: 16548 | DU66: 13436 | DV66: 15014 | DW66: 12761 | DX66: 14577 | DY66: 13263 | DZ66: 14095 | EA66: 15613 | EC66: 10356 | ED66: 11617 | EE66: 8506 | EF66: 9986 | EG66: 15539 | EH66: 17048 | EI66: 14233 | EJ66: 15571 | EK66: 13664 | EL66: 14717 | EM66: 14052 | EN66: 15008 | EO66: 16817 | EP66: 18023 | EQ66: 10973 | ER66: 11667 | ES66: 8872 | ET66: 10558 | EU66: 15862 | EV66: 16295 | EW66: 14563 | EX66: 15053 | EY66: 13985 | EZ66: 15397 | FA66: 14489 | FB66: 15351 | FC66: 17584 | FD66: 18757 | FE66: 12341 | FF66: 14369 | FG66: 13822 | FH66: 15746 | FI66: 10352 | FJ66: 11226 | FK66: 8701 | FL66: 10229 | FM66: 15181 | FN66: 16326 | FO66: 13720 | FP66: 15406 | FQ66: 13317 | FR66: 14923 | FS66: 13371 | FT66: 14301 | FU66: 16590 | FV66: 17280 | FW66: 11005 | FX66: 13175 | FY66: 13540 | FZ66: 15279 | GA66: 13358 | GB66: 14485 | GC66: 14496 | GD66: 16019 | GE66: 16630 | GF66: 18394 | GG66: 14186 | GH66: 16203 | GI66: 14353 | GJ66: 16318 | GK66: 14286 | GL66: 15814 | GM66: 17347 | GN66: 18880 | GO66: 12535 | GP66: 14497 | GQ66: 13605 | GR66: 15337 | GS66: 10217 | GT66: 12096 | GU66: 8546 | GV66: 9573 | GW66: 14187 | GX66: 15434 | GY66: 12995 | GZ66: 14298 | HA66: 13507 | HB66: 15273 | HC66: 13158 | HD66: 14057 | HE66: 14976 | HF66: 16758 | HG66: 12847 | HH66: 15175 | HI66: 13715 | HJ66: 15485 | HK66: 10529 | HL66: 12142 | HM66: 9006 | HN66: 10310 | HO66: 14487 | HP66: 15875 | HQ66: 13086 | HR66: 14503 | HS66: 13870 | HT66: 15306 | HU66: 13430 | HV66: 15197 | HW66: 14789 | HX66: 16245 | HY66: 12641 | IA66: 13425 | IC66: 9782 | IE66: 8548 | IG66: 14451 | IH66: 15686 | II66: 13458 | IK66: 13807 | IL66: 15015 | IM66: 13409 | IO66: 14277 | IQ66: 16081 | IS66: 13903 | IU66: 9842 | IW66: 7344 | IY66: 13141 | JA66: 11858 | JC66: 12301 | JE66: 12502 | JG66: 14705 | JI66: 10227 | JK66: 13614 | JM66: 15597 | JO66: 14588 | JQ66: 15604 | JR66: 16671 | JS66: 14605 | JU66: 14015 | JW66: 13555 | JY66: 16220
A68: Energi | B68: -478 | C68: -447 | D68: -485 | E68: -451 | F68: -460 | G68: -427 | H68: -476 | I68: -433 | J68: -413 | K68: -401 | L68: -644 | N68: -595 | O68: -570 | P68: -597 | Q68: -529 | R68: -442 | S68: -413 | T68: -553 | U68: -499 | V68: -436 | W68: -416 | X68: -429 | Y68: -415 | Z68: -577 | AB68: -366 | AD68: -559 | AG68: -804 | AH68: -749 | AI68: -537 | AJ68: -497 | AK68: -506 | AL68: -462 | AM68: -505 | AN68: -464 | AO68: -457 | AP68: -409 | AQ68: -471 | AR68: -439 | AS68: -387 | AT68: -349 | AU68: -341 | AV68: -311 | AW68: -478 | AX68: -447 | AY68: -807 | AZ68: -760 | BA68: -544 | BB68: -501 | BC68: -511 | BD68: -467 | BE68: -511 | BF68: -467 | BG68: -461 | BH68: -413 | BI68: -475 | BJ68: -444 | BK68: -390 | BL68: -349 | BM68: -344 | BN68: -313 | BO68: -485 | BP68: -451 | BQ68: -768 | BR68: -748 | BS68: -505 | BT68: -478 | BU68: -506 | BV68: -483 | BW68: -517 | BX68: -491 | BY68: -484 | BZ68: -485 | CA68: -528 | CB68: -533 | CC68: -360 | CD68: -348 | CE68: -381 | CF68: -336 | CG68: -460 | CH68: -427 | CI68: -470 | CJ68: -431 | CK68: -480 | CL68: -460 | CM68: -444 | CN68: -407 | CO68: -445 | CP68: -430 | CQ68: -360 | CR68: -348 | CS68: -328 | CT68: -303 | CU68: -476 | CV68: -433 | CW68: -429 | CX68: -429 | CY68: -422 | CZ68: -392 | DA68: -375 | DB68: -348 | DC68: -398 | DD68: -387 | DE68: -339 | DF68: -311 | DG68: -298 | DH68: -293 | DI68: -413 | DJ68: -401 | DK68: -919 | DL68: -880 | DM68: -671 | DN68: -632 | DO68: -694 | DP68: -609 | DQ68: -693 | DR68: -672 | DS68: -638 | DT68: -602 | DU68: -640 | DV68: -622 | DW68: -557 | DX68: -469 | DY68: -479 | DZ68: -432 | EA68: -644 | EC68: -644 | ED68: -574 | EE68: -627 | EF68: -555 | EG68: -572 | EH68: -501 | EI68: -611 | EJ68: -563 | EK68: -500 | EL68: -447 | EM68: -420 | EN68: -405 | EO68: -595 | EP68: -570 | EQ68: -573 | ER68: -551 | ES68: -593 | ET68: -594 | EU68: -502 | EV68: -446 | EW68: -540 | EX68: -489 | EY68: -447 | EZ68: -358 | FA68: -401 | FB68: -377 | FC68: -597 | FD68: -529 | FE68: -745 | FF68: -748 | FG68: -443 | FH68: -428 | FI68: -446 | FJ68: -399 | FK68: -458 | FL68: -420 | FM68: -410 | FN68: -373 | FO68: -429 | FP68: -403 | FQ68: -344 | FR68: -292 | FS68: -308 | FT68: -283 | FU68: -442 | FV68: -413 | FW68: -854 | FX68: -828 | FY68: -617 | FZ68: -620 | GA68: -524 | GB68: -506 | GC68: -546 | GD68: -507 | GE68: -491 | GF68: -454 | GG68: -543 | GH68: -531 | GI68: -463 | GJ68: -440 | GK68: -393 | GL68: -384 | GM68: -553 | GN68: -499 | GO68: -716 | GP68: -620 | GQ68: -470 | GR68: -467 | GS68: -453 | GT68: -410 | GU68: -453 | GV68: -430 | GW68: -427 | GX68: -371 | GY68: -435 | GZ68: -393 | HA68: -367 | HB68: -335 | HC68: -314 | HD68: -298 | HE68: -436 | HF68: -416 | HG68: -668 | HH68: -629 | HI68: -429 | HJ68: -445 | HK68: -390 | HL68: -384 | HM68: -397 | HN68: -382 | HO68: -383 | HP68: -336 | HQ68: -396 | HR68: -355 | HS68: -337 | HT68: -292 | HU68: -289 | HV68: -279 | HW68: -429 | HX68: -415 | HY68: -893 | IA68: -587 | IC68: -641 | IE68: -606 | IG68: -543 | IH68: -437 | II68: -532 | IK68: -462 | IL68: -476 | IM68: -403 | IO68: -577 | IQ68: -522 | IS68: -403 | IU68: -425 | IW68: -422 | IY68: -358 | JA68: -375 | JC68: -326 | JE68: -255 | JG68: -366 | JI68: -784 | JK68: -734 | JM68: -639 | JO68: -458 | JQ68: -449 | JR68: -389 | JS68: -482 | JU68: -461 | JW68: -392 | JY68: -559
A69: Brændstof og maskinstation | B69: -413 | C69: -417 | D69: -412 | E69: -425 | F69: -365 | G69: -408 | H69: -363 | I69: -363 | J69: -481 | K69: -484 | L69: -311 | N69: -337 | O69: -384 | P69: -418 | Q69: -495 | R69: -378 | S69: -365 | T69: -376 | U69: -396 | V69: -425 | W69: -349 | X69: -431 | Y69: -448 | Z69: -433 | AB69: -474 | AD69: -572 | AG69: -39 | AH69: -44 | AI69: -337 | AJ69: -327 | AK69: -312 | AL69: -314 | AM69: -314 | AN69: -301 | AO69: -358 | AP69: -360 | AQ69: -381 | AR69: -367 | AS69: -393 | AT69: -393 | AU69: -410 | AV69: -426 | AW69: -413 | AX69: -417 | AY69: -36 | AZ69: -44 | BA69: -343 | BB69: -329 | BC69: -316 | BD69: -314 | BE69: -316 | BF69: -302 | BG69: -357 | BH69: -356 | BI69: -383 | BJ69: -367 | BK69: -389 | BL69: -390 | BM69: -407 | BN69: -434 | BO69: -412 | BP69: -425 | BQ69: -36 | BR69: -25 | BS69: -361 | BT69: -334 | BU69: -285 | BV69: -276 | BW69: -308 | BX69: -310 | BY69: -323 | BZ69: -380 | CA69: -336 | CB69: -322 | CC69: -382 | CD69: -399 | CE69: -336 | CF69: -252 | CG69: -365 | CH69: -408 | CI69: -323 | CJ69: -298 | CK69: -324 | CL69: -264 | CM69: -351 | CN69: -314 | CO69: -400 | CP69: -419 | CQ69: -382 | CR69: -399 | CS69: -360 | CT69: -369 | CU69: -363 | CV69: -363 | CW69: -359 | CX69: -356 | CY69: -347 | CZ69: -300 | DA69: -377 | DB69: -415 | DC69: -387 | DD69: -362 | DE69: -404 | DF69: -384 | DG69: -448 | DH69: -427 | DI69: -481 | DJ69: -484 | DK69: -33 | DL69: -22 | DM69: -308 | DN69: -289 | DO69: -288 | DP69: -314 | DQ69: -284 | DR69: -264 | DS69: -337 | DT69: -362 | DU69: -333 | DV69: -345 | DW69: -340 | DX69: -345 | DY69: -305 | DZ69: -249 | EA69: -311 | EC69: -304 | ED69: -308 | EE69: -274 | EF69: -251 | EG69: -334 | EH69: -333 | EI69: -346 | EJ69: -338 | EK69: -352 | EL69: -297 | EM69: -303 | EN69: -315 | EO69: -337 | EP69: -384 | EQ69: -287 | ER69: -275 | ES69: -305 | ET69: -315 | EU69: -373 | EV69: -346 | EW69: -403 | EX69: -430 | EY69: -404 | EZ69: -405 | FA69: -438 | FB69: -423 | FC69: -418 | FD69: -495 | FE69: -55 | FF69: -113 | FG69: -363 | FH69: -368 | FI69: -301 | FJ69: -344 | FK69: -322 | FL69: -306 | FM69: -367 | FN69: -364 | FO69: -360 | FP69: -325 | FQ69: -415 | FR69: -380 | FS69: -395 | FT69: -392 | FU69: -378 | FV69: -365 | FW69: -21 | FX69: -26 | FY69: -296 | FZ69: -265 | GA69: -311 | GB69: -306 | GC69: -327 | GD69: -338 | GE69: -350 | GF69: -373 | GG69: -409 | GH69: -375 | GI69: -402 | GJ69: -415 | GK69: -360 | GL69: -338 | GM69: -376 | GN69: -396 | GO69: -77 | GP69: -56 | GQ69: -285 | GR69: -314 | GS69: -268 | GT69: -310 | GU69: -292 | GV69: -256 | GW69: -370 | GX69: -411 | GY69: -384 | GZ69: -353 | HA69: -427 | HB69: -512 | HC69: -442 | HD69: -376 | HE69: -425 | HF69: -349 | HG69: -100 | HH69: -54 | HI69: -276 | HJ69: -279 | HK69: -272 | HL69: -262 | HM69: -320 | HN69: -231 | HO69: -408 | HP69: -424 | HQ69: -419 | HR69: -379 | HS69: -472 | HT69: -554 | HU69: -522 | HV69: -410 | HW69: -431 | HX69: -448 | HY69: -97 | IA69: -315 | IC69: -232 | IE69: -247 | IG69: -300 | IH69: -341 | II69: -328 | IK69: -391 | IL69: -429 | IM69: -357 | IO69: -433 | IQ69: -364 | IS69: -297 | IU69: -195 | IW69: -239 | IY69: -253 | JA69: -287 | JC69: -330 | JE69: -346 | JG69: -474 | JI69: -127 | JK69: -517 | JM69: -579 | JO69: -588 | JQ69: -334 | JR69: -361 | JS69: -589 | JU69: -574 | JW69: -714 | JY69: -572
A70: Vedligehold | B70: -1587 | C70: -1479 | D70: -1611 | E70: -1480 | F70: -1574 | G70: -1475 | H70: -1466 | I70: -1418 | J70: -1405 | K70: -1284 | L70: -2112 | N70: -1998 | O70: -1968 | P70: -2035 | Q70: -2002 | R70: -1473 | S70: -1351 | T70: -1914 | U70: -1865 | V70: -1398 | W70: -1448 | X70: -1288 | Y70: -1356 | Z70: -1709 | AB70: -1258 | AD70: -1594 | AG70: -1304 | AH70: -1143 | AI70: -1441 | AJ70: -1271 | AK70: -1310 | AL70: -1129 | AM70: -1260 | AN70: -1149 | AO70: -1455 | AP70: -1351 | AQ70: -1489 | AR70: -1419 | AS70: -1506 | AT70: -1383 | AU70: -1517 | AV70: -1454 | AW70: -1587 | AX70: -1479 | AY70: -1300 | AZ70: -1141 | BA70: -1460 | BB70: -1285 | BC70: -1319 | BD70: -1129 | BE70: -1273 | BF70: -1166 | BG70: -1467 | BH70: -1359 | BI70: -1497 | BJ70: -1426 | BK70: -1525 | BL70: -1407 | BM70: -1529 | BN70: -1451 | BO70: -1611 | BP70: -1480 | BQ70: -1104 | BR70: -956 | BS70: -1308 | BT70: -1163 | BU70: -1166 | BV70: -1074 | BW70: -1152 | BX70: -1072 | BY70: -1371 | BZ70: -1238 | CA70: -1396 | CB70: -1298 | CC70: -1391 | CD70: -1272 | CE70: -1551 | CF70: -1322 | CG70: -1574 | CH70: -1475 | CI70: -1144 | CJ70: -978 | CK70: -1098 | CL70: -1017 | CM70: -1340 | CN70: -1273 | CO70: -1326 | CP70: -1248 | CQ70: -1391 | CR70: -1272 | CS70: -1408 | CT70: -1299 | CU70: -1466 | CV70: -1418 | CW70: -1060 | CX70: -848 | CY70: -1021 | CZ70: -908 | DA70: -1246 | DB70: -1200 | DC70: -1237 | DD70: -1170 | DE70: -1280 | DF70: -1190 | DG70: -1332 | DH70: -1208 | DI70: -1405 | DJ70: -1284 | DK70: -1707 | DL70: -1601 | DM70: -1864 | DN70: -1744 | DO70: -1884 | DP70: -1784 | DQ70: -1875 | DR70: -1816 | DS70: -2052 | DT70: -1920 | DU70: -2038 | DV70: -1965 | DW70: -2106 | DX70: -2036 | DY70: -2120 | DZ70: -2123 | EA70: -2112 | EC70: -1747 | ED70: -1478 | EE70: -1762 | EF70: -1661 | EG70: -1974 | EH70: -1924 | EI70: -1932 | EJ70: -1834 | EK70: -1976 | EL70: -1839 | EM70: -1894 | EN70: -1848 | EO70: -1998 | EP70: -1968 | EQ70: -1657 | ER70: -1520 | ES70: -1545 | ET70: -1469 | EU70: -1669 | EV70: -1427 | EW70: -1809 | EX70: -1868 | EY70: -1897 | EZ70: -1695 | FA70: -1843 | FB70: -1773 | FC70: -2035 | FD70: -2002 | FE70: -1149 | FF70: -1079 | FG70: -1216 | FH70: -1126 | FI70: -1171 | FJ70: -1092 | FK70: -1187 | FL70: -1202 | FM70: -1399 | FN70: -1350 | FO70: -1427 | FP70: -1385 | FQ70: -1406 | FR70: -1303 | FS70: -1452 | FT70: -1305 | FU70: -1473 | FV70: -1351 | FW70: -1495 | FX70: -1365 | FY70: -1638 | FZ70: -1517 | GA70: -1598 | GB70: -1467 | GC70: -1738 | GD70: -1807 | GE70: -1769 | GF70: -1665 | GG70: -1808 | GH70: -1655 | GI70: -1712 | GJ70: -1673 | GK70: -1765 | GL70: -1668 | GM70: -1914 | GN70: -1865 | GO70: -1109 | GP70: -1002 | GQ70: -1271 | GR70: -1182 | GS70: -1220 | GT70: -1080 | GU70: -1134 | GV70: -998 | GW70: -1359 | GX70: -1307 | GY70: -1426 | GZ70: -1296 | HA70: -1358 | HB70: -1159 | HC70: -1408 | HD70: -1445 | HE70: -1398 | HF70: -1448 | HG70: -943 | HH70: -815 | HI70: -1172 | HJ70: -1173 | HK70: -1050 | HL70: -969 | HM70: -969 | HN70: -852 | HO70: -1237 | HP70: -1171 | HQ70: -1268 | HR70: -1196 | HS70: -1272 | HT70: -1165 | HU70: -1295 | HV70: -1326 | HW70: -1288 | HX70: -1356 | HY70: -1510 | IA70: -1735 | IC70: -1756 | IE70: -1596 | IG70: -1789 | IH70: -1531 | II70: -1690 | IK70: -1651 | IL70: -1669 | IM70: -1796 | IO70: -1709 | IQ70: -1703 | IS70: -1080 | IU70: -1134 | IW70: -976 | IY70: -1077 | JA70: -1252 | JC70: -1217 | JE70: -1257 | JG70: -1258 | JI70: -1264 | JK70: -1563 | JM70: -1802 | JO70: -1782 | JQ70: -1277 | JR70: -984 | JS70: -1534 | JU70: -1487 | JW70: -1521 | JY70: -1594
A71: Lønomkostninger | B71: -3563 | C71: -3734 | D71: -3539 | E71: -3689 | F71: -2130 | G71: -1622 | H71: -3285 | I71: -3116 | J71: -4082 | K71: -3893 | L71: -1519 | N71: -2529 | O71: -2140 | P71: -3472 | Q71: -3425 | R71: -3928 | S71: -4109 | T71: -3988 | U71: -3872 | V71: -3715 | W71: -4025 | X71: -3557 | Y71: -4234 | Z71: -3322 | AB71: -4124 | AD71: -3469 | AG71: -2053 | AH71: -2191 | AI71: -2320 | AJ71: -2271 | AK71: -2450 | AL71: -2143 | AM71: -2465 | AN71: -2634 | AO71: -2700 | AP71: -2862 | AQ71: -2887 | AR71: -2950 | AS71: -3117 | AT71: -3224 | AU71: -3171 | AV71: -3234 | AW71: -3563 | AX71: -3734 | AY71: -2043 | AZ71: -2152 | BA71: -2321 | BB71: -2280 | BC71: -2435 | BD71: -2115 | BE71: -2449 | BF71: -2622 | BG71: -2677 | BH71: -2827 | BI71: -2871 | BJ71: -2942 | BK71: -3096 | BL71: -3233 | BM71: -3143 | BN71: -3197 | BO71: -3539 | BP71: -3689 | BQ71: -2176 | BR71: -2108 | BS71: -2412 | BT71: -2318 | BU71: -1726 | BV71: -1256 | BW71: -1583 | BX71: -1785 | BY71: -1817 | BZ71: -1679 | CA71: -1853 | CB71: -1597 | CC71: -3081 | CD71: -3160 | CE71: -1823 | CF71: -1302 | CG71: -2130 | CH71: -1622 | CI71: -2578 | CJ71: -2246 | CK71: -2448 | CL71: -2657 | CM71: -2627 | CN71: -2467 | CO71: -2809 | CP71: -2615 | CQ71: -3081 | CR71: -3160 | CS71: -3079 | CT71: -3033 | CU71: -3285 | CV71: -3116 | CW71: -3172 | CX71: -2674 | CY71: -3078 | CZ71: -3035 | DA71: -3323 | DB71: -3148 | DC71: -3466 | DD71: -3151 | DE71: -3779 | DF71: -3507 | DG71: -3758 | DH71: -3589 | DI71: -4082 | DJ71: -3893 | DK71: -1632 | DL71: -1603 | DM71: -1870 | DN71: -1815 | DO71: -1103 | DP71: -634 | DQ71: -1043 | DR71: -1039 | DS71: -1111 | DT71: -1100 | DU71: -1214 | DV71: -1190 | DW71: -1191 | DX71: -1287 | DY71: -1244 | DZ71: -1316 | EA71: -1519 | EC71: -1943 | ED71: -1742 | EE71: -1848 | EF71: -2024 | EG71: -2033 | EH71: -2023 | EI71: -2232 | EJ71: -2112 | EK71: -2372 | EL71: -2142 | EM71: -2349 | EN71: -1957 | EO71: -2529 | EP71: -2140 | EQ71: -2486 | ER71: -2274 | ES71: -2640 | ET71: -2566 | EU71: -2682 | EV71: -2670 | EW71: -2792 | EX71: -2438 | EY71: -3006 | EZ71: -2529 | FA71: -2998 | FB71: -2544 | FC71: -3472 | FD71: -3425 | FE71: -2473 | FF71: -2549 | FG71: -2972 | FH71: -2766 | FI71: -2912 | FJ71: -2604 | FK71: -2842 | FL71: -2793 | FM71: -3098 | FN71: -3224 | FO71: -3452 | FP71: -3531 | FQ71: -3597 | FR71: -3621 | FS71: -3490 | FT71: -3526 | FU71: -3928 | FV71: -4109 | FW71: -2067 | FX71: -2132 | FY71: -2361 | FZ71: -2553 | GA71: -2509 | GB71: -2563 | GC71: -2868 | GD71: -2984 | GE71: -2986 | GF71: -3150 | GG71: -3221 | GH71: -3292 | GI71: -3434 | GJ71: -3599 | GK71: -3602 | GL71: -3521 | GM71: -3988 | GN71: -3872 | GO71: -2188 | GP71: -2410 | GQ71: -2332 | GR71: -2367 | GS71: -2588 | GT71: -2503 | GU71: -2607 | GV71: -2712 | GW71: -2913 | GX71: -3026 | GY71: -3114 | GZ71: -3024 | HA71: -3289 | HB71: -3520 | HC71: -3426 | HD71: -3509 | HE71: -3715 | HF71: -4025 | HG71: -2236 | HH71: -2254 | HI71: -2538 | HJ71: -2150 | HK71: -2785 | HL71: -2638 | HM71: -2554 | HN71: -2852 | HO71: -2870 | HP71: -2941 | HQ71: -2955 | HR71: -2847 | HS71: -3230 | HT71: -3554 | HU71: -3386 | HV71: -3360 | HW71: -3557 | HX71: -4234 | HY71: -1888 | IA71: -1791 | IC71: -1901 | IE71: -2434 | IG71: -2650 | IH71: -2972 | II71: -2912 | IK71: -3029 | IL71: -2840 | IM71: -2946 | IO71: -3322 | IQ71: -3416 | IS71: -2581 | IU71: -2909 | IW71: -2927 | IY71: -3367 | JA71: -3574 | JC71: -3603 | JE71: -3638 | JG71: -4124 | JI71: -1396 | JK71: -1978 | JM71: -2357 | JO71: -2458 | JQ71: -2797 | JR71: -3097 | JS71: -3061 | JU71: -3243 | JW71: -3167 | JY71: -3469
A72: Ejeraflønning | B72: -1055 | C72: -776 | D72: -1064 | E72: -780 | F72: -2864 | G72: -3053 | H72: -1581 | I72: -1524 | J72: -686 | K72: -658 | L72: -2590 | N72: -1507 | O72: -1566 | P72: -709 | Q72: -699 | R72: -650 | S72: -403 | T72: -1187 | U72: -1090 | V72: -992 | W72: -749 | X72: -1220 | Y72: -768 | Z72: -1119 | AB72: -605 | AD72: -1445 | AG72: -1892 | AH72: -1555 | AI72: -1869 | AJ72: -1630 | AK72: -1733 | AL72: -1852 | AM72: -1540 | AN72: -1269 | AO72: -1438 | AP72: -1100 | AQ72: -1358 | AR72: -1130 | AS72: -1299 | AT72: -1049 | AU72: -1202 | AV72: -934 | AW72: -1055 | AX72: -776 | AY72: -1922 | AZ72: -1563 | BA72: -1887 | BB72: -1638 | BC72: -1747 | BD72: -1856 | BE72: -1553 | BF72: -1275 | BG72: -1443 | BH72: -1116 | BI72: -1354 | BJ72: -1123 | BK72: -1301 | BL72: -1021 | BM72: -1204 | BN72: -950 | BO72: -1064 | BP72: -780 | BQ72: -1990 | BR72: -1787 | BS72: -2025 | BT72: -1823 | BU72: -3049 | BV72: -3275 | BW72: -3059 | BX72: -2669 | BY72: -2961 | BZ72: -3038 | CA72: -2895 | CB72: -2760 | CC72: -1668 | CD72: -1624 | CE72: -2931 | CF72: -3073 | CG72: -2864 | CH72: -3053 | CI72: -1854 | CJ72: -1927 | CK72: -1751 | CL72: -1660 | CM72: -1744 | CN72: -1715 | CO72: -1713 | CP72: -1708 | CQ72: -1668 | CR72: -1624 | CS72: -1627 | CT72: -1514 | CU72: -1581 | CV72: -1524 | CW72: -923 | CX72: -978 | CY72: -885 | CZ72: -889 | DA72: -880 | DB72: -912 | DC72: -894 | DD72: -1045 | DE72: -797 | DF72: -801 | DG72: -749 | DH72: -744 | DI72: -686 | DJ72: -658 | DK72: -1874 | DL72: -1567 | DM72: -1862 | DN72: -1598 | DO72: -2879 | DP72: -3147 | DQ72: -2709 | DR72: -2521 | DS72: -2722 | DT72: -2705 | DU72: -2556 | DV72: -2496 | DW72: -2565 | DX72: -2260 | DY72: -2549 | DZ72: -2450 | EA72: -2590 | EC72: -1792 | ED72: -1924 | EE72: -1719 | EF72: -1794 | EG72: -1636 | EH72: -1594 | EI72: -1558 | EJ72: -1580 | EK72: -1428 | EL72: -1394 | EM72: -1468 | EN72: -1327 | EO72: -1507 | EP72: -1566 | EQ72: -906 | ER72: -888 | ES72: -821 | ET72: -829 | EU72: -815 | EV72: -878 | EW72: -790 | EX72: -928 | EY72: -759 | EZ72: -948 | FA72: -754 | FB72: -837 | FC72: -709 | FD72: -699 | FE72: -1309 | FF72: -1107 | FG72: -1106 | FH72: -1120 | FI72: -1116 | FJ72: -1297 | FK72: -984 | FL72: -881 | FM72: -911 | FN72: -784 | FO72: -778 | FP72: -651 | FQ72: -818 | FR72: -705 | FS72: -858 | FT72: -784 | FU72: -650 | FV72: -403 | FW72: -1851 | FX72: -1754 | FY72: -1768 | FZ72: -1416 | GA72: -1682 | GB72: -1567 | GC72: -1501 | GD72: -1114 | GE72: -1463 | GF72: -1162 | GG72: -1445 | GH72: -1180 | GI72: -1306 | GJ72: -1091 | GK72: -1331 | GL72: -1251 | GM72: -1187 | GN72: -1090 | GO72: -1662 | GP72: -1312 | GQ72: -1713 | GR72: -1343 | GS72: -1606 | GT72: -1695 | GU72: -1427 | GV72: -1188 | GW72: -1388 | GX72: -1116 | GY72: -1333 | GZ72: -1185 | HA72: -1284 | HB72: -985 | HC72: -1179 | HD72: -857 | HE72: -992 | HF72: -749 | HG72: -1805 | HH72: -1787 | HI72: -1813 | HJ72: -1770 | HK72: -1533 | HL72: -1453 | HM72: -1552 | HN72: -1313 | HO72: -1530 | HP72: -1161 | HQ72: -1512 | HR72: -1419 | HS72: -1408 | HT72: -982 | HU72: -1264 | HV72: -935 | HW72: -1220 | HX72: -768 | HY72: -1480 | IA72: -1675 | IC72: -1775 | IE72: -1311 | IG72: -1371 | IH72: -1083 | II72: -1404 | IK72: -1362 | IL72: -1113 | IM72: -1343 | IO72: -1119 | IQ72: -1020 | IS72: -1126 | IU72: -1129 | IW72: -902 | IY72: -865 | JA72: -724 | JC72: -838 | JE72: -866 | JG72: -605 | JI72: -2154 | JK72: -2122 | JM72: -1984 | JO72: -1879 | JQ72: -1553 | JR72: -1136 | JS72: -1326 | JU72: -1574 | JW72: -1459 | JY72: -1445
A73: Forsikring | B73: -340 | C73: -295 | D73: -341 | E73: -292 | F73: -472 | G73: -454 | H73: -381 | I73: -374 | J73: -308 | K73: -296 | L73: -464 | N73: -430 | O73: -382 | P73: -316 | Q73: -292 | R73: -304 | S73: -241 | T73: -393 | U73: -359 | V73: -330 | W73: -313 | X73: -301 | Y73: -293 | Z73: -363 | AB73: -333 | AD73: -366 | AG73: -302 | AH73: -268 | AI73: -324 | AJ73: -295 | AK73: -326 | AL73: -307 | AM73: -318 | AN73: -295 | AO73: -324 | AP73: -285 | AQ73: -332 | AR73: -288 | AS73: -339 | AT73: -311 | AU73: -343 | AV73: -303 | AW73: -340 | AX73: -295 | AY73: -303 | AZ73: -264 | BA73: -325 | BB73: -292 | BC73: -326 | BD73: -306 | BE73: -320 | BF73: -293 | BG73: -324 | BH73: -283 | BI73: -331 | BJ73: -288 | BK73: -340 | BL73: -306 | BM73: -345 | BN73: -305 | BO73: -341 | BP73: -292 | BQ73: -301 | BR73: -262 | BS73: -328 | BT73: -294 | BU73: -376 | BV73: -347 | BW73: -386 | BX73: -359 | BY73: -393 | BZ73: -369 | CA73: -410 | CB73: -344 | CC73: -361 | CD73: -334 | CE73: -432 | CF73: -380 | CG73: -472 | CH73: -454 | CI73: -331 | CJ73: -293 | CK73: -315 | CL73: -305 | CM73: -335 | CN73: -302 | CO73: -347 | CP73: -321 | CQ73: -361 | CR73: -334 | CS73: -368 | CT73: -348 | CU73: -381 | CV73: -374 | CW73: -265 | CX73: -254 | CY73: -279 | CZ73: -254 | DA73: -273 | DB73: -247 | DC73: -283 | DD73: -258 | DE73: -295 | DF73: -283 | DG73: -295 | DH73: -273 | DI73: -308 | DJ73: -296 | DK73: -302 | DL73: -273 | DM73: -327 | DN73: -291 | DO73: -401 | DP73: -358 | DQ73: -385 | DR73: -339 | DS73: -413 | DT73: -342 | DU73: -418 | DV73: -377 | DW73: -434 | DX73: -386 | DY73: -484 | DZ73: -431 | EA73: -464 | EC73: -339 | ED73: -346 | EE73: -339 | EF73: -338 | EG73: -349 | EH73: -301 | EI73: -363 | EJ73: -306 | EK73: -372 | EL73: -332 | EM73: -392 | EN73: -317 | EO73: -430 | EP73: -382 | EQ73: -270 | ER73: -284 | ES73: -293 | ET73: -311 | EU73: -277 | EV73: -217 | EW73: -310 | EX73: -250 | EY73: -317 | EZ73: -276 | FA73: -327 | FB73: -285 | FC73: -316 | FD73: -292 | FE73: -293 | FF73: -269 | FG73: -289 | FH73: -291 | FI73: -314 | FJ73: -287 | FK73: -303 | FL73: -291 | FM73: -314 | FN73: -270 | FO73: -304 | FP73: -271 | FQ73: -306 | FR73: -254 | FS73: -326 | FT73: -298 | FU73: -304 | FV73: -241 | FW73: -319 | FX73: -293 | FY73: -350 | FZ73: -299 | GA73: -368 | GB73: -345 | GC73: -359 | GD73: -298 | GE73: -339 | GF73: -280 | GG73: -353 | GH73: -331 | GI73: -381 | GJ73: -328 | GK73: -383 | GL73: -337 | GM73: -393 | GN73: -359 | GO73: -276 | GP73: -269 | GQ73: -311 | GR73: -311 | GS73: -326 | GT73: -328 | GU73: -308 | GV73: -294 | GW73: -326 | GX73: -289 | GY73: -324 | GZ73: -287 | HA73: -334 | HB73: -312 | HC73: -325 | HD73: -282 | HE73: -330 | HF73: -313 | HG73: -262 | HH73: -254 | HI73: -299 | HJ73: -317 | HK73: -307 | HL73: -310 | HM73: -295 | HN73: -294 | HO73: -322 | HP73: -306 | HQ73: -321 | HR73: -303 | HS73: -321 | HT73: -307 | HU73: -317 | HV73: -278 | HW73: -301 | HX73: -293 | HY73: -289 | IA73: -352 | IC73: -352 | IE73: -318 | IG73: -332 | IH73: -269 | II73: -356 | IK73: -381 | IL73: -358 | IM73: -373 | IO73: -363 | IQ73: -357 | IS73: -283 | IU73: -345 | IW73: -318 | IY73: -312 | JA73: -279 | JC73: -275 | JE73: -300 | JG73: -333 | JI73: -277 | JK73: -298 | JM73: -326 | JO73: -274 | JQ73: -260 | JR73: -230 | JS73: -264 | JU73: -319 | JW73: -347 | JY73: -366
A74: Diverse kapacitetsomkostninger | B74: -631 | C74: -552 | D74: -627 | E74: -539 | F74: -816 | G74: -750 | H74: -728 | I74: -684 | J74: -543 | K74: -436 | L74: -868 | N74: -712 | O74: -701 | P74: -563 | Q74: -575 | R74: -564 | S74: -455 | T74: -764 | U74: -667 | V74: -664 | W74: -676 | X74: -703 | Y74: -740 | Z74: -677 | AB74: -542 | AD74: -842 | AG74: -589 | AH74: -509 | AI74: -605 | AJ74: -531 | AK74: -598 | AL74: -543 | AM74: -571 | AN74: -481 | AO74: -592 | AP74: -507 | AQ74: -610 | AR74: -535 | AS74: -614 | AT74: -539 | AU74: -608 | AV74: -546 | AW74: -631 | AX74: -552 | AY74: -592 | AZ74: -511 | BA74: -605 | BB74: -528 | BC74: -595 | BD74: -541 | BE74: -569 | BF74: -475 | BG74: -588 | BH74: -504 | BI74: -604 | BJ74: -529 | BK74: -611 | BL74: -532 | BM74: -605 | BN74: -533 | BO74: -627 | BP74: -539 | BQ74: -584 | BR74: -505 | BS74: -626 | BT74: -537 | BU74: -743 | BV74: -693 | BW74: -718 | BX74: -626 | BY74: -759 | BZ74: -750 | CA74: -757 | CB74: -674 | CC74: -656 | CD74: -621 | CE74: -765 | CF74: -661 | CG74: -816 | CH74: -750 | CI74: -630 | CJ74: -566 | CK74: -629 | CL74: -556 | CM74: -643 | CN74: -618 | CO74: -665 | CP74: -615 | CQ74: -656 | CR74: -621 | CS74: -681 | CT74: -623 | CU74: -728 | CV74: -684 | CW74: -493 | CX74: -419 | CY74: -483 | CZ74: -396 | DA74: -500 | DB74: -398 | DC74: -508 | DD74: -525 | DE74: -543 | DF74: -493 | DG74: -522 | DH74: -495 | DI74: -543 | DJ74: -436 | DK74: -623 | DL74: -529 | DM74: -620 | DN74: -546 | DO74: -734 | DP74: -696 | DQ74: -695 | DR74: -590 | DS74: -733 | DT74: -639 | DU74: -774 | DV74: -687 | DW74: -783 | DX74: -648 | DY74: -821 | DZ74: -696 | EA74: -868 | EC74: -622 | ED74: -567 | EE74: -612 | EF74: -528 | EG74: -671 | EH74: -585 | EI74: -679 | EJ74: -618 | EK74: -695 | EL74: -639 | EM74: -643 | EN74: -629 | EO74: -712 | EP74: -701 | EQ74: -442 | ER74: -413 | ES74: -490 | ET74: -386 | EU74: -458 | EV74: -426 | EW74: -495 | EX74: -467 | EY74: -508 | EZ74: -424 | FA74: -514 | FB74: -535 | FC74: -563 | FD74: -575 | FE74: -510 | FF74: -458 | FG74: -484 | FH74: -465 | FI74: -508 | FJ74: -442 | FK74: -467 | FL74: -400 | FM74: -520 | FN74: -469 | FO74: -542 | FP74: -449 | FQ74: -547 | FR74: -452 | FS74: -558 | FT74: -488 | FU74: -564 | FV74: -455 | FW74: -604 | FX74: -569 | FY74: -642 | FZ74: -626 | GA74: -669 | GB74: -639 | GC74: -673 | GD74: -553 | GE74: -685 | GF74: -587 | GG74: -673 | GH74: -568 | GI74: -695 | GJ74: -632 | GK74: -696 | GL74: -620 | GM74: -764 | GN74: -667 | GO74: -544 | GP74: -439 | GQ74: -598 | GR74: -556 | GS74: -628 | GT74: -578 | GU74: -575 | GV74: -498 | GW74: -635 | GX74: -581 | GY74: -647 | GZ74: -570 | HA74: -641 | HB74: -575 | HC74: -635 | HD74: -652 | HE74: -664 | HF74: -676 | HG74: -537 | HH74: -409 | HI74: -572 | HJ74: -552 | HK74: -586 | HL74: -522 | HM74: -581 | HN74: -510 | HO74: -679 | HP74: -581 | HQ74: -697 | HR74: -609 | HS74: -679 | HT74: -575 | HU74: -606 | HV74: -608 | HW74: -703 | HX74: -740 | HY74: -610 | IA74: -695 | IC74: -775 | IE74: -644 | IG74: -641 | IH74: -602 | II74: -665 | IK74: -611 | IL74: -548 | IM74: -688 | IO74: -677 | IQ74: -694 | IS74: -463 | IU74: -541 | IW74: -414 | IY74: -471 | JC74: -520 | JE74: -527 | JG74: -542 | JI74: -605 | JK74: -632 | JM74: -746 | JO74: -693 | JQ74: -642 | JR74: -643 | JU74: -626 | JW74: -669 | JY74: -842
A75: Kapacitetsomkostninger i alt | B75: -8067 | C75: -7700 | D75: -8078 | E75: -7658 | F75: -8682 | G75: -8187 | H75: -8278 | I75: -7912 | J75: -7919 | K75: -7451 | L75: -8509 | N75: -8107 | O75: -7711 | P75: -8111 | Q75: -8018 | R75: -7739 | S75: -7337 | T75: -9175 | U75: -8748 | V75: -7960 | W75: -7975 | X75: -7929 | Y75: -8254 | Z75: -8199 | AB75: -7701 | AD75: -8848 | AG75: -6983 | AH75: -6459 | AI75: -7433 | AJ75: -6822 | AK75: -7235 | AL75: -6750 | AM75: -6973 | AN75: -6593 | AO75: -7324 | AP75: -6874 | AQ75: -7528 | AR75: -7127 | AS75: -7656 | AT75: -7247 | AU75: -7591 | AV75: -7207 | AW75: -8067 | AX75: -7700 | AY75: -7003 | AZ75: -6435 | BA75: -7485 | BB75: -6853 | BC75: -7249 | BD75: -6728 | BE75: -6991 | BF75: -6600 | BG75: -7317 | BH75: -6858 | BI75: -7515 | BJ75: -7117 | BK75: -7651 | BL75: -7239 | BM75: -7576 | BN75: -7183 | BO75: -8078 | BP75: -7658 | BQ75: -6959 | BR75: -6391 | BS75: -7565 | BT75: -6947 | BU75: -7851 | BV75: -7404 | BW75: -7723 | BX75: -7312 | BY75: -8108 | BZ75: -7939 | CA75: -8174 | CB75: -7528 | CC75: -7899 | CD75: -7758 | CE75: -8220 | CF75: -7326 | CG75: -8682 | CH75: -8187 | CI75: -7330 | CJ75: -6739 | CK75: -7045 | CL75: -6919 | CM75: -7484 | CN75: -7096 | CO75: -7706 | CP75: -7356 | CQ75: -7899 | CR75: -7758 | CS75: -7851 | CT75: -7489 | CU75: -8278 | CV75: -7912 | CW75: -6701 | CX75: -5958 | CY75: -6515 | CZ75: -6174 | DA75: -6974 | DB75: -6668 | DC75: -7175 | DD75: -6898 | DE75: -7437 | DF75: -6969 | DG75: -7402 | DH75: -7029 | DI75: -7919 | DJ75: -7451 | DK75: -7090 | DL75: -6475 | DM75: -7522 | DN75: -6915 | DO75: -7983 | DP75: -7542 | DQ75: -7684 | DR75: -7241 | DS75: -8006 | DT75: -7670 | DU75: -7973 | DV75: -7681 | DW75: -7976 | DX75: -7430 | DY75: -8002 | DZ75: -7697 | EA75: -8509 | EC75: -7391 | ED75: -6939 | EE75: -7181 | EF75: -7151 | EG75: -7569 | EH75: -7261 | EI75: -7721 | EJ75: -7352 | EK75: -7694 | EL75: -7091 | EM75: -7470 | EN75: -6799 | EO75: -8107 | EP75: -7711 | EQ75: -6621 | ER75: -6205 | ES75: -6687 | ET75: -6470 | EU75: -6776 | EV75: -6410 | EW75: -7140 | EX75: -6870 | EY75: -7337 | EZ75: -6635 | FA75: -7275 | FB75: -6774 | FC75: -8111 | FD75: -8018 | FE75: -6534 | FF75: -6323 | FG75: -6873 | FH75: -6564 | FI75: -6768 | FJ75: -6465 | FK75: -6563 | FL75: -6293 | FM75: -7019 | FN75: -6834 | FO75: -7293 | FP75: -7017 | FQ75: -7432 | FR75: -7008 | FS75: -7387 | FT75: -7076 | FU75: -7739 | FV75: -7337 | FW75: -7211 | FX75: -6967 | FY75: -7672 | FZ75: -7296 | GA75: -7661 | GB75: -7393 | GC75: -8012 | GD75: -7601 | GE75: -8083 | GF75: -7671 | GG75: -8452 | GH75: -7932 | GI75: -8393 | GJ75: -8179 | GK75: -8532 | GL75: -8119 | GM75: -9175 | GN75: -8748 | GO75: -6572 | GP75: -6108 | GQ75: -6980 | GR75: -6540 | GS75: -7089 | GT75: -6904 | GU75: -6796 | GV75: -6376 | GW75: -7418 | GX75: -7101 | GY75: -7664 | GZ75: -7109 | HA75: -7699 | HB75: -7397 | HC75: -7729 | HD75: -7418 | HE75: -7960 | HF75: -7975 | HG75: -6551 | HH75: -6202 | HI75: -7099 | HJ75: -6686 | HK75: -6923 | HL75: -6538 | HM75: -6668 | HN75: -6434 | HO75: -7429 | HP75: -6920 | HQ75: -7569 | HR75: -7108 | HS75: -7719 | HT75: -7429 | HU75: -7679 | HV75: -7197 | HW75: -7929 | HX75: -8254 | HY75: -6767 | IA75: -7150 | IC75: -7432 | IE75: -7156 | IG75: -7626 | IH75: -7235 | II75: -7887 | IK75: -7887 | IL75: -7434 | IM75: -7906 | IO75: -8199 | IQ75: -8078 | IS75: -6233 | IU75: -6678 | IW75: -6198 | IY75: -6703 | JA75: -6954 | JC75: -7109 | JE75: -7188 | JG75: -7701 | JI75: -6607 | JK75: -7844 | JM75: -8433 | JO75: -8132 | JQ75: -7312 | JR75: -6840 | JS75: -7906 | JU75: -8283 | JW75: -8269 | JY75: -8848
A77: Afskrivning bygninger | B77: -1234 | C77: -1116 | D77: -1253 | E77: -1113 | F77: -1421 | G77: -1287 | H77: -1358 | I77: -1196 | J77: -1230 | K77: -1175 | L77: -1380 | N77: -1484 | O77: -1424 | P77: -1285 | Q77: -1178 | R77: -1057 | S77: -844 | T77: -1409 | U77: -1245 | V77: -1114 | W77: -1183 | X77: -1101 | Y77: -1024 | Z77: -1023 | AB77: -1190 | AD77: -1371 | AG77: -1333 | AH77: -1248 | AI77: -1376 | AJ77: -1341 | AK77: -1416 | AL77: -1315 | AM77: -1314 | AN77: -1303 | AO77: -1287 | AP77: -1186 | AQ77: -1274 | AR77: -1201 | AS77: -1307 | AT77: -1213 | AU77: -1273 | AV77: -1208 | AW77: -1234 | AX77: -1116 | AY77: -1329 | AZ77: -1262 | BA77: -1401 | BB77: -1358 | BC77: -1431 | BD77: -1323 | BE77: -1323 | BF77: -1310 | BG77: -1287 | BH77: -1184 | BI77: -1282 | BJ77: -1197 | BK77: -1327 | BL77: -1208 | BM77: -1284 | BN77: -1226 | BO77: -1253 | BP77: -1113 | BQ77: -1351 | BR77: -1295 | BS77: -1445 | BT77: -1445 | BU77: -1560 | BV77: -1477 | BW77: -1391 | BX77: -1330 | BY77: -1420 | BZ77: -1244 | CA77: -1422 | CB77: -1355 | CC77: -1371 | CD77: -1233 | CE77: -1453 | CF77: -1431 | CG77: -1421 | CH77: -1287 | CI77: -1477 | CJ77: -1389 | CK77: -1337 | CL77: -1340 | CM77: -1344 | CN77: -1254 | CO77: -1368 | CP77: -1209 | CQ77: -1371 | CR77: -1233 | CS77: -1360 | CT77: -1179 | CU77: -1358 | CV77: -1196 | CW77: -1308 | CX77: -1245 | CY77: -1260 | CZ77: -1263 | DA77: -1242 | DB77: -1145 | DC77: -1220 | DD77: -1204 | DE77: -1262 | DF77: -1124 | DG77: -1178 | DH77: -1051 | DI77: -1230 | DJ77: -1175 | DK77: -1478 | DL77: -1443 | DM77: -1521 | DN77: -1395 | DO77: -1727 | DP77: -1574 | DQ77: -1653 | DR77: -1610 | DS77: -1628 | DT77: -1588 | DU77: -1575 | DV77: -1572 | DW77: -1567 | DX77: -1507 | DY77: -1604 | DZ77: -1434 | EA77: -1380 | EC77: -1682 | ED77: -1753 | EE77: -1491 | EF77: -1579 | EG77: -1449 | EH77: -1370 | EI77: -1383 | EJ77: -1330 | EK77: -1485 | EL77: -1360 | EM77: -1457 | EN77: -1352 | EO77: -1484 | EP77: -1424 | EQ77: -1557 | ER77: -1148 | ES77: -1385 | ET77: -1271 | EU77: -1334 | EV77: -1054 | EW77: -1333 | EX77: -1090 | EY77: -1428 | EZ77: -1391 | FA77: -1336 | FB77: -1329 | FC77: -1285 | FD77: -1178 | FE77: -1089 | FF77: -1153 | FG77: -1159 | FH77: -1225 | FI77: -1201 | FJ77: -1102 | FK77: -1234 | FL77: -1247 | FM77: -1132 | FN77: -798 | FO77: -1156 | FP77: -1002 | FQ77: -1145 | FR77: -855 | FS77: -1196 | FT77: -1071 | FU77: -1057 | FV77: -844 | FW77: -1530 | FX77: -1336 | FY77: -1547 | FZ77: -1466 | GA77: -1498 | GB77: -1331 | GC77: -1498 | GD77: -1321 | GE77: -1410 | GF77: -1228 | GG77: -1393 | GH77: -1343 | GI77: -1347 | GJ77: -1204 | GK77: -1387 | GL77: -1190 | GM77: -1409 | GN77: -1245 | GO77: -1139 | GP77: -1137 | GQ77: -1150 | GR77: -1219 | GS77: -1272 | GT77: -1341 | GU77: -1238 | GV77: -1305 | GW77: -1288 | GX77: -1184 | GY77: -1177 | GZ77: -1212 | HA77: -1145 | HB77: -1154 | HC77: -1188 | HD77: -1157 | HE77: -1114 | HF77: -1183 | HG77: -1088 | HH77: -1094 | HI77: -1106 | HJ77: -1109 | HK77: -1247 | HL77: -1351 | HM77: -1188 | HN77: -1175 | HO77: -1360 | HP77: -1164 | HQ77: -1196 | HR77: -1138 | HS77: -1107 | HT77: -1049 | HU77: -1216 | HV77: -1185 | HW77: -1101 | HX77: -1024 | HY77: -1216 | IA77: -1366 | IC77: -1430 | IE77: -1435 | IG77: -1354 | IH77: -1286 | II77: -1311 | IK77: -1268 | IL77: -1368 | IM77: -1231 | IO77: -1023 | IQ77: -1157 | IS77: -1131 | IU77: -1320 | IW77: -1224 | IY77: -1193 | JA77: -1147 | JC77: -1133 | JE77: -1141 | JG77: -1190 | JI77: -1348 | JK77: -1415 | JM77: -1640 | JO77: -1422 | JQ77: -1435 | JR77: -1272 | JS77: -1331 | JU77: -1461 | JW77: -1338 | JY77: -1371
A78: Afskrivning inventar | B78: -1192 | C78: -1128 | D78: -1221 | E78: -1144 | F78: -881 | G78: -812 | H78: -1004 | I78: -972 | J78: -1061 | K78: -1086 | L78: -1794 | N78: -1841 | O78: -1941 | P78: -1695 | Q78: -1526 | R78: -979 | S78: -797 | T78: -1302 | U78: -1185 | V78: -1000 | W78: -998 | X78: -905 | Y78: -913 | Z78: -1156 | AB78: -1093 | AD78: -1281 | AG78: -1255 | AH78: -1087 | AI78: -1243 | AJ78: -1103 | AK78: -1252 | AL78: -1092 | AM78: -1167 | AN78: -1092 | AO78: -1165 | AP78: -1101 | AQ78: -1114 | AR78: -1076 | AS78: -1113 | AT78: -1071 | AU78: -1157 | AV78: -1154 | AW78: -1192 | AX78: -1128 | AY78: -1250 | AZ78: -1101 | BA78: -1269 | BB78: -1137 | BC78: -1274 | BD78: -1103 | BE78: -1181 | BF78: -1107 | BG78: -1180 | BH78: -1114 | BI78: -1129 | BJ78: -1090 | BK78: -1132 | BL78: -1049 | BM78: -1174 | BN78: -1175 | BO78: -1221 | BP78: -1144 | BQ78: -1009 | BR78: -936 | BS78: -1009 | BT78: -936 | BU78: -1004 | BV78: -917 | BW78: -913 | BX78: -872 | BY78: -874 | BZ78: -777 | CA78: -769 | CB78: -767 | CC78: -953 | CD78: -822 | CE78: -840 | CF78: -748 | CG78: -881 | CH78: -812 | CI78: -1051 | CJ78: -977 | CK78: -976 | CL78: -894 | CM78: -990 | CN78: -959 | CO78: -898 | CP78: -868 | CQ78: -953 | CR78: -822 | CS78: -983 | CT78: -925 | CU78: -1004 | CV78: -972 | CW78: -1159 | CX78: -1123 | CY78: -1011 | CZ78: -952 | DA78: -1024 | DB78: -1006 | DC78: -981 | DD78: -995 | DE78: -1028 | DF78: -980 | DG78: -1059 | DH78: -1103 | DI78: -1061 | DJ78: -1086 | DK78: -1827 | DL78: -1718 | DM78: -1847 | DN78: -1635 | DO78: -1975 | DP78: -1621 | DQ78: -1852 | DR78: -1615 | DS78: -1786 | DT78: -1476 | DU78: -1698 | DV78: -1454 | DW78: -1607 | DX78: -1289 | DY78: -1741 | DZ78: -1268 | EA78: -1794 | EC78: -1910 | ED78: -1686 | EE78: -1819 | EF78: -1662 | EG78: -1740 | EH78: -1554 | EI78: -1629 | EJ78: -1701 | EK78: -1639 | EL78: -1525 | EM78: -1674 | EN78: -1702 | EO78: -1841 | EP78: -1941 | EQ78: -1745 | ER78: -1628 | ES78: -1656 | ET78: -1594 | EU78: -1612 | EV78: -1382 | EW78: -1584 | EX78: -1494 | EY78: -1569 | EZ78: -1490 | FA78: -1658 | FB78: -1619 | FC78: -1695 | FD78: -1526 | FE78: -1080 | FF78: -921 | FG78: -1169 | FH78: -1105 | FI78: -1036 | FJ78: -843 | FK78: -995 | FL78: -1115 | FM78: -1034 | FN78: -949 | FO78: -981 | FP78: -845 | FQ78: -965 | FR78: -854 | FS78: -1016 | FT78: -917 | FU78: -979 | FV78: -797 | FW78: -1429 | FX78: -1277 | FY78: -1496 | FZ78: -1333 | GA78: -1416 | GB78: -1347 | GC78: -1418 | GD78: -1362 | GE78: -1398 | GF78: -1340 | GG78: -1302 | GH78: -1174 | GI78: -1186 | GJ78: -1147 | GK78: -1250 | GL78: -1094 | GM78: -1302 | GN78: -1185 | GO78: -1083 | GP78: -999 | GQ78: -1015 | GR78: -870 | GS78: -1050 | GT78: -990 | GU78: -1033 | GV78: -994 | GW78: -1031 | GX78: -925 | GY78: -959 | GZ78: -899 | HA78: -960 | HB78: -983 | HC78: -1009 | HD78: -961 | HE78: -1000 | HF78: -998 | HG78: -943 | HH78: -1022 | HI78: -924 | HJ78: -849 | HK78: -943 | HL78: -966 | HM78: -946 | HN78: -899 | HO78: -992 | HP78: -910 | HQ78: -892 | HR78: -780 | HS78: -859 | HT78: -942 | HU78: -955 | HV78: -1002 | HW78: -905 | HX78: -913 | HY78: -1489 | IA78: -1483 | IC78: -1527 | IE78: -1448 | IG78: -1338 | IH78: -1041 | II78: -1244 | IK78: -1264 | IL78: -1391 | IM78: -1202 | IO78: -1156 | IQ78: -1153 | IS78: -765 | IU78: -911 | IW78: -781 | IY78: -833 | JA78: -816 | JC78: -917 | JE78: -1035 | JG78: -1093 | JI78: -1237 | JK78: -1341 | JM78: -1570 | JO78: -1318 | JQ78: -1064 | JR78: -875 | JS78: -1045 | JU78: -1075 | JW78: -1264 | JY78: -1281
A79: Øvrige kapitalomkostninger | B79: -37 | C79: -69 | D79: -38 | E79: -74 | F79: -29 | G79: -109 | H79: -25 | I79: -26 | J79: -19 | K79: -21 | L79: 0 | N79: 0 | O79: 0 | P79: -63 | Q79: -122 | R79: -64 | S79: -150 | T79: 0 | U79: 0 | V79: -11 | W79: 0 | X79: 0 | Y79: 0 | Z79: 42 | AB79: -73 | AD79: -28 | AQ79: -49 | AR79: -62 | AS79: -40 | AT79: -70 | AU79: -44 | AV79: -76 | AW79: -37 | AX79: -69 | BI79: -49 | BJ79: -62 | BK79: -44 | BL79: -91 | BM79: -43 | BN79: -71 | BO79: -38 | BP79: -74 | CA79: -14 | CB79: 0 | CC79: -43 | CD79: -96 | CE79: -18 | CF79: 0 | CG79: -29 | CH79: -109 | CO79: -19 | CP79: -58 | CQ79: -43 | CR79: -96 | CS79: -29 | CT79: -57 | CU79: -25 | CV79: -26 | DC79: -44 | DD79: -130 | DE79: -40 | DF79: -23 | DG79: -38 | DH79: -84 | DI79: -19 | DJ79: -21 | DU79: 8 | DV79: 32 | DW79: 8 | DX79: 31 | DY79: -7 | DZ79: 0 | EA79: 0 | EI79: -80 | EJ79: -5 | EK79: -82 | EL79: -230 | EM79: -75 | EN79: -247 | EO79: 0 | EP79: 0 | EW79: -17 | EX79: -20 | EY79: -11 | EZ79: 0 | FA79: -4 | FB79: 0 | FC79: -63 | FD79: -122 | FO79: -99 | FP79: -227 | FQ79: -80 | FR79: -207 | FS79: -60 | FT79: -134 | FU79: -64 | FV79: -150 | GG79: -61 | GH79: -81 | GI79: -45 | GJ79: -39 | GK79: 0 | GL79: -2 | GM79: 0 | GN79: 0 | GY79: -45 | GZ79: -70 | HA79: -12 | HB79: -12 | HC79: -39 | HD79: -95 | HE79: -11 | HF79: 0 | HQ79: -75 | HR79: -167 | HS79: -13 | HT79: -20 | HU79: -57 | HV79: -168 | HW79: 0 | HX79: 0 | II79: 19 | IK79: 20 | IL79: 0 | IM79: 20 | IO79: 42 | IQ79: 22 | JA79: -86 | JC79: -53 | JE79: -80 | JG79: -73 | JS79: -30 | JU79: -35 | JW79: -40 | JY79: -28
A80: Leje af driftsbygninger | B80: -234 | C80: -370 | D80: -245 | E80: -399 | F80: -50 | G80: -153 | H80: -79 | I80: -116 | J80: -137 | K80: -166 | L80: -65 | N80: -127 | O80: -214 | P80: -188 | Q80: -174 | R80: -651 | S80: -1084 | T80: -218 | U80: -466 | V80: -162 | W80: -156 | X80: -137 | Y80: -120 | Z80: -278 | AB80: -179 | AD80: -138 | AG80: -237 | AH80: -244 | AI80: -244 | AJ80: -236 | AK80: -232 | AL80: -222 | AM80: -232 | AN80: -176 | AO80: -233 | AP80: -352 | AQ80: -171 | AR80: -228 | AS80: -181 | AT80: -269 | AU80: -185 | AV80: -159 | AW80: -234 | AX80: -370 | AY80: -260 | AZ80: -247 | BA80: -237 | BB80: -248 | BC80: -245 | BD80: -232 | BE80: -246 | BF80: -182 | BG80: -246 | BH80: -372 | BI80: -176 | BJ80: -239 | BK80: -180 | BL80: -286 | BM80: -189 | BN80: -158 | BO80: -245 | BP80: -399 | BQ80: -195 | BR80: -173 | BS80: -168 | BT80: -154 | BU80: -53 | BV80: -30 | BW80: -43 | BX80: -11 | BY80: -39 | BZ80: -78 | CA80: -26 | CB80: -24 | CC80: -121 | CD80: -220 | CE80: -40 | CF80: -67 | CG80: -50 | CH80: -153 | CI80: -176 | CJ80: -186 | CK80: -129 | CL80: -110 | CM80: -127 | CN80: -168 | CO80: -106 | CP80: -128 | CQ80: -121 | CR80: -220 | CS80: -92 | CT80: -95 | CU80: -79 | CV80: -116 | CW80: -245 | CX80: -316 | CY80: -211 | CZ80: -225 | DA80: -196 | DB80: -260 | DC80: -207 | DD80: -237 | DE80: -188 | DF80: -289 | DG80: -229 | DH80: -251 | DI80: -137 | DJ80: -166 | DK80: -156 | DL80: -97 | DM80: -225 | DN80: -280 | DO80: -53 | DP80: -46 | DQ80: -14 | DR80: -13 | DS80: -18 | DT80: -15 | DU80: -22 | DV80: -23 | DW80: -74 | DX80: -86 | DY80: -61 | DZ80: -10 | EA80: -65 | EC80: -82 | ED80: -112 | EE80: -193 | EF80: -77 | EG80: -178 | EH80: -357 | EI80: -95 | EJ80: -103 | EK80: -102 | EL80: -75 | EM80: -137 | EN80: -125 | EO80: -127 | EP80: -214 | EQ80: -295 | ER80: -497 | ES80: -360 | ET80: -483 | EU80: -328 | EV80: -778 | EW80: -171 | EX80: -322 | EY80: -113 | EZ80: -166 | FA80: -181 | FB80: -163 | FC80: -188 | FD80: -174 | FE80: -566 | FF80: -370 | FG80: -454 | FH80: -216 | FI80: -438 | FJ80: -423 | FK80: -410 | FL80: -202 | FM80: -498 | FN80: -1020 | FO80: -362 | FP80: -669 | FQ80: -417 | FR80: -953 | FS80: -216 | FT80: -186 | FU80: -651 | FV80: -1084 | FW80: -78 | FX80: -103 | FY80: -111 | FZ80: -130 | GA80: -264 | GB80: -454 | GC80: -90 | GD80: -127 | GE80: -235 | GF80: -372 | GG80: -192 | GH80: -314 | GI80: -203 | GJ80: -328 | GK80: -264 | GL80: -463 | GM80: -218 | GN80: -466 | GO80: -233 | GP80: -237 | GQ80: -305 | GR80: -108 | GS80: -107 | GT80: -116 | GU80: -113 | GV80: -101 | GW80: -121 | GX80: -172 | GY80: -144 | GZ80: -130 | HA80: -193 | HB80: -238 | HC80: -155 | HD80: -174 | HE80: -162 | HF80: -156 | HG80: -210 | HH80: -23 | HI80: -532 | HJ80: -135 | HK80: -127 | HL80: -160 | HM80: -158 | HN80: -180 | HO80: -160 | HP80: -243 | HQ80: -170 | HR80: -211 | HS80: -221 | HT80: -350 | HU80: -183 | HV80: -263 | HW80: -137 | HX80: -120 | HY80: -280 | IA80: -76 | IC80: -55 | IE80: -23 | IG80: -17 | IH80: -25 | II80: -122 | IK80: -172 | IL80: -90 | IM80: -165 | IO80: -278 | IQ80: -179 | IS80: -122 | IU80: -187 | IW80: -94 | IY80: -96 | JA80: -153 | JC80: -161 | JE80: -92 | JG80: -179 | JI80: -115 | JK80: -84 | JM80: -104 | JO80: -64 | JQ80: -54 | JR80: -19 | JS80: -91 | JU80: -117 | JW80: -212 | JY80: -138
A81: Renteomk. af bundet kapital | B81: -1112 | C81: -1111 | D81: -1134 | E81: -1132 | F81: -865 | G81: -906 | H81: -1038 | I81: -963 | J81: -1206 | K81: -1141 | L81: -1056 | N81: -1213 | O81: -1092 | P81: -1305 | Q81: -1296 | R81: -972 | S81: -905 | T81: -1137 | U81: -1039 | V81: -956 | W81: -959 | X81: -877 | Y81: -851 | Z81: -941 | AB81: -1164 | AD81: -997 | AG81: -1682 | AH81: -1512 | AI81: -1544 | AJ81: -1393 | AK81: -1519 | AL81: -1380 | AM81: -1405 | AN81: -1401 | AO81: -1362 | AP81: -1409 | AQ81: -1240 | AR81: -1254 | AS81: -1193 | AT81: -1180 | AU81: -1157 | AV81: -1178 | AW81: -1112 | AX81: -1111 | AY81: -1691 | AZ81: -1517 | BA81: -1576 | BB81: -1429 | BC81: -1547 | BD81: -1415 | BE81: -1428 | BF81: -1431 | BG81: -1386 | BH81: -1443 | BI81: -1251 | BJ81: -1256 | BK81: -1206 | BL81: -1206 | BM81: -1165 | BN81: -1188 | BO81: -1134 | BP81: -1132 | BQ81: -1601 | BR81: -1463 | BS81: -1485 | BT81: -1376 | BU81: -1297 | BV81: -1219 | BW81: -1176 | BX81: -1117 | BY81: -1125 | BZ81: -1075 | CA81: -1010 | CB81: -972 | CC81: -1147 | CD81: -1149 | CE81: -942 | CF81: -950 | CG81: -865 | CH81: -906 | CI81: -1531 | CJ81: -1334 | CK81: -1403 | CL81: -1355 | CM81: -1336 | CN81: -1377 | CO81: -1146 | CP81: -1239 | CQ81: -1147 | CR81: -1149 | CS81: -1056 | CT81: -1065 | CU81: -1038 | CV81: -963 | CW81: -1693 | CX81: -1579 | CY81: -1593 | CZ81: -1558 | DA81: -1519 | DB81: -1569 | DC81: -1347 | DD81: -1348 | DE81: -1257 | DF81: -1106 | DG81: -1210 | DH81: -1153 | DI81: -1206 | DJ81: -1141 | DK81: -1958 | DL81: -1879 | DM81: -1738 | DN81: -1542 | DO81: -1590 | DP81: -1434 | DQ81: -1428 | DR81: -1432 | DS81: -1390 | DT81: -1328 | DU81: -1242 | DV81: -1279 | DW81: -1178 | DX81: -1184 | DY81: -1122 | DZ81: -1042 | EA81: -1056 | EC81: -1745 | ED81: -1778 | EE81: -1548 | EF81: -1455 | EG81: -1485 | EH81: -1493 | EI81: -1265 | EJ81: -1207 | EK81: -1211 | EL81: -1215 | EM81: -1198 | EN81: -1282 | EO81: -1213 | EP81: -1092 | EQ81: -1695 | ER81: -1429 | ES81: -1548 | ET81: -1595 | EU81: -1478 | EV81: -1486 | EW81: -1476 | EX81: -1359 | EY81: -1442 | EZ81: -1271 | FA81: -1364 | FB81: -1375 | FC81: -1305 | FD81: -1296 | FE81: -1725 | FF81: -1457 | FG81: -1663 | FH81: -1441 | FI81: -1577 | FJ81: -1337 | FK81: -1386 | FL81: -1384 | FM81: -1409 | FN81: -1290 | FO81: -1276 | FP81: -1069 | FQ81: -1203 | FR81: -934 | FS81: -1167 | FT81: -1071 | FU81: -972 | FV81: -905 | FW81: -1788 | FX81: -1552 | FY81: -1460 | FZ81: -1131 | GA81: -1479 | GB81: -1511 | GC81: -1490 | GD81: -1571 | GE81: -1524 | GF81: -1513 | GG81: -1359 | GH81: -1283 | GI81: -1248 | GJ81: -1307 | GK81: -1110 | GL81: -1068 | GM81: -1137 | GN81: -1039 | GO81: -1500 | GP81: -1468 | GQ81: -1262 | GR81: -1147 | GS81: -1263 | GT81: -1110 | GU81: -1194 | GV81: -1171 | GW81: -1147 | GX81: -1148 | GY81: -1127 | GZ81: -1140 | HA81: -1099 | HB81: -1141 | HC81: -1085 | HD81: -1109 | HE81: -956 | HF81: -959 | HG81: -1381 | HH81: -1321 | HI81: -1127 | HJ81: -940 | HK81: -1210 | HL81: -1084 | HM81: -1095 | HN81: -1077 | HO81: -1107 | HP81: -1091 | HQ81: -1064 | HR81: -1078 | HS81: -1042 | HT81: -1056 | HU81: -1021 | HV81: -1140 | HW81: -877 | HX81: -851 | HY81: -1762 | IA81: -1563 | IC81: -1438 | IE81: -1442 | IG81: -1298 | IH81: -1247 | II81: -1200 | IK81: -1052 | IL81: -1131 | IM81: -1130 | IO81: -941 | IQ81: -844 | IS81: -1294 | IU81: -1417 | IW81: -1316 | IY81: -1206 | JA81: -1322 | JC81: -1278 | JE81: -1222 | JG81: -1164 | JI81: -1445 | JK81: -1346 | JM81: -1171 | JO81: -1205 | JQ81: -1232 | JR81: -1194 | JS81: -1090 | JU81: -1152 | JW81: -1089 | JY81: -997
A82: Kapitalomkostninger i alt | B82: -3882 | C82: -3867 | D82: -3966 | E82: -3932 | F82: -3306 | G82: -3302 | H82: -3550 | I82: -3318 | J82: -3735 | K82: -3665 | L82: -4365 | N82: -4739 | O82: -4725 | P82: -4585 | Q82: -4377 | R82: -3850 | S82: -3908 | T82: -4125 | U82: -3990 | V82: -3309 | W82: -3375 | X82: -3067 | Y82: -2959 | Z82: -3423 | AB82: -3749 | AD82: -3906 | AG82: -4507 | AH82: -4091 | AI82: -4407 | AJ82: -4073 | AK82: -4419 | AL82: -4009 | AM82: -4118 | AN82: -3972 | AO82: -4047 | AP82: -4048 | AQ82: -3923 | AR82: -3895 | AS82: -3898 | AT82: -3863 | AU82: -3872 | AV82: -3828 | AW82: -3882 | AX82: -3867 | AY82: -4530 | AZ82: -4127 | BA82: -4483 | BB82: -4172 | BC82: -4497 | BD82: -4073 | BE82: -4178 | BF82: -4030 | BG82: -4099 | BH82: -4113 | BI82: -3965 | BJ82: -3917 | BK82: -3953 | BL82: -3900 | BM82: -3910 | BN82: -3870 | BO82: -3966 | BP82: -3932 | BQ82: -4156 | BR82: -3867 | BS82: -4107 | BT82: -3911 | BU82: -3914 | BV82: -3643 | BW82: -3523 | BX82: -3330 | BY82: -3458 | BZ82: -3174 | CA82: -3321 | CB82: -3202 | CC82: -3672 | CD82: -3556 | CE82: -3376 | CF82: -3218 | CG82: -3306 | CH82: -3302 | CI82: -4235 | CJ82: -3886 | CK82: -3845 | CL82: -3699 | CM82: -3797 | CN82: -3758 | CO82: -3597 | CP82: -3545 | CQ82: -3672 | CR82: -3556 | CS82: -3552 | CT82: -3349 | CU82: -3550 | CV82: -3318 | CW82: -4405 | CX82: -4263 | CY82: -4075 | CZ82: -3998 | DA82: -3981 | DB82: -3980 | DC82: -3870 | DD82: -4040 | DE82: -3852 | DF82: -3614 | DG82: -3783 | DH82: -3702 | DI82: -3735 | DJ82: -3665 | DK82: -5419 | DL82: -5137 | DM82: -5331 | DN82: -4852 | DO82: -5345 | DP82: -4675 | DQ82: -4947 | DR82: -4670 | DS82: -4822 | DT82: -4407 | DU82: -4593 | DV82: -4325 | DW82: -4486 | DX82: -4069 | DY82: -4598 | DZ82: -3772 | EA82: -4365 | EC82: -5419 | ED82: -5329 | EE82: -5051 | EF82: -4773 | EG82: -4852 | EH82: -4774 | EI82: -4500 | EJ82: -4384 | EK82: -4572 | EL82: -4433 | EM82: -4598 | EN82: -4752 | EO82: -4739 | EP82: -4725 | EQ82: -5292 | ER82: -4702 | ES82: -4949 | ET82: -4943 | EU82: -4752 | EV82: -4700 | EW82: -4697 | EX82: -4458 | EY82: -4623 | EZ82: -4370 | FA82: -4586 | FB82: -4505 | FC82: -4585 | FD82: -4377 | FE82: -4460 | FF82: -3901 | FG82: -4445 | FH82: -3987 | FI82: -4252 | FJ82: -3705 | FK82: -4025 | FL82: -3948 | FM82: -4073 | FN82: -4057 | FO82: -3972 | FP82: -3876 | FQ82: -3891 | FR82: -3882 | FS82: -3717 | FT82: -3480 | FU82: -3850 | FV82: -3908 | FW82: -4825 | FX82: -4268 | FY82: -4614 | FZ82: -4060 | GA82: -4657 | GB82: -4643 | GC82: -4496 | GD82: -4381 | GE82: -4567 | GF82: -4453 | GG82: -4378 | GH82: -4242 | GI82: -4090 | GJ82: -4068 | GK82: -4054 | GL82: -3847 | GM82: -4125 | GN82: -3990 | GO82: -3955 | GP82: -3841 | GQ82: -3732 | GR82: -3344 | GS82: -3692 | GT82: -3557 | GU82: -3578 | GV82: -3571 | GW82: -3587 | GX82: -3429 | GY82: -3515 | GZ82: -3521 | HA82: -3462 | HB82: -3562 | HC82: -3552 | HD82: -3576 | HE82: -3309 | HF82: -3375 | HG82: -3622 | HH82: -3460 | HI82: -3689 | HJ82: -3033 | HK82: -3527 | HL82: -3561 | HM82: -3387 | HN82: -3331 | HO82: -3619 | HP82: -3408 | HQ82: -3444 | HR82: -3404 | HS82: -3307 | HT82: -3449 | HU82: -3491 | HV82: -3779 | HW82: -3067 | HX82: -2959 | HY82: -4747 | IA82: -4488 | IC82: -4450 | IE82: -4348 | IG82: -4007 | IH82: -3599 | II82: -3890 | IK82: -3781 | IL82: -4024 | IM82: -3780 | IO82: -3423 | IQ82: -3448 | IS82: -3312 | IU82: -3835 | IW82: -3415 | IY82: -3328 | JA82: -3555 | JC82: -3575 | JE82: -3620 | JG82: -3749 | JI82: -4145 | JK82: -4186 | JM82: -4485 | JO82: -4009 | JQ82: -3785 | JR82: -3360 | JS82: -3631 | JU82: -3886 | JW82: -3988 | JY82: -3906
A84: Resultat, driftsgren | B84: 4476 | C84: 6098 | D84: 4594 | E84: 6167 | F84: 3253 | G84: 5309 | H84: 3838 | I84: 5605 | J84: 5238 | K84: 7326 | L84: 2738 | N84: 3971 | O84: 5586 | P84: 4888 | Q84: 6362 | R84: 5002 | S84: 6035 | T84: 4047 | U84: 6142 | V84: 3707 | W84: 5408 | X84: 3793 | Y84: 5031 | Z84: 2654 | AB84: 3255 | AD84: 3466 | AG84: 835 | AH84: 3549 | AI84: 2093 | AJ84: 4722 | AK84: -1305 | AL84: 680 | AM84: -2436 | AN84: -822 | AO84: 3766 | AP84: 5322 | AQ84: 2286 | AR84: 3931 | AS84: 1825 | AT84: 3329 | AU84: 2050 | AV84: 3535 | AW84: 4476 | AX84: 6098 | AY84: 960 | AZ84: 3576 | BA84: 2008 | BB84: 4613 | BC84: -1384 | BD84: 591 | BE84: -2507 | BF84: -871 | BG84: 3834 | BH84: 5327 | BI84: 2352 | BJ84: 3998 | BK84: 1759 | BL84: 3392 | BM84: 2077 | BN84: 3622 | BO84: 4594 | BP84: 6167 | BQ84: 1356 | BR84: 3931 | BS84: 2260 | BT84: 4748 | BU84: -1779 | BV84: -342 | BW84: -2946 | BX84: -720 | BY84: 2813 | BZ84: 4567 | CA84: 1291 | CB84: 3257 | CC84: 1417 | CD84: 2910 | CE84: 1202 | CF84: 3113 | CG84: 3253 | CH84: 5309 | CI84: -1356 | CJ84: 664 | CK84: -2307 | CL84: -780 | CM84: 3809 | CN84: 5806 | CO84: 2329 | CP84: 4004 | CQ84: 1417 | CR84: 2910 | CS84: 1644 | CT84: 3190 | CU84: 3838 | CV84: 5605 | CW84: -457 | CX84: 1651 | CY84: -1693 | CZ84: -291 | DA84: 4816 | DB84: 6437 | DC84: 3164 | DD84: 5057 | DE84: 2475 | DF84: 4345 | DG84: 2713 | DH84: 4542 | DI84: 5238 | DJ84: 7326 | DK84: 186 | DL84: 2734 | DM84: 1242 | DN84: 3962 | DO84: -3253 | DP84: -1340 | DQ84: -4468 | DR84: -2810 | DS84: 2114 | DT84: 4471 | DU84: 869 | DV84: 3008 | DW84: 299 | DX84: 3078 | DY84: 662 | DZ84: 2625 | EA84: 2738 | EC84: -2454 | ED84: -651 | EE84: -3726 | EF84: -1938 | EG84: 3118 | EH84: 5013 | EI84: 2013 | EJ84: 3835 | EK84: 1398 | EL84: 3193 | EM84: 1985 | EN84: 3458 | EO84: 3971 | EP84: 5586 | EQ84: -940 | ER84: 760 | ES84: -2764 | ET84: -855 | EU84: 4334 | EV84: 5185 | EW84: 2726 | EX84: 3725 | EY84: 2026 | EZ84: 4393 | FA84: 2628 | FB84: 4073 | FC84: 4888 | FD84: 6362 | FE84: 1347 | FF84: 4145 | FG84: 2504 | FH84: 5195 | FI84: -668 | FJ84: 1056 | FK84: -1887 | FL84: -12 | FM84: 4089 | FN84: 5435 | FO84: 2454 | FP84: 4513 | FQ84: 1994 | FR84: 4033 | FS84: 2268 | FT84: 3744 | FU84: 5002 | FV84: 6035 | FW84: -1031 | FX84: 1940 | FY84: 1254 | FZ84: 3923 | GA84: 1040 | GB84: 2449 | GC84: 1988 | GD84: 4037 | GE84: 3980 | GF84: 6270 | GG84: 1356 | GH84: 4030 | GI84: 1870 | GJ84: 4072 | GK84: 1700 | GL84: 3847 | GM84: 4047 | GN84: 6142 | GO84: 2008 | GP84: 4548 | GQ84: 2893 | GR84: 5453 | GS84: -564 | GT84: 1635 | GU84: -1828 | GV84: -374 | GW84: 3182 | GX84: 4904 | GY84: 1815 | GZ84: 3668 | HA84: 2347 | HB84: 4313 | HC84: 1877 | HD84: 3063 | HE84: 3707 | HF84: 5408 | HG84: 2674 | HH84: 5513 | HI84: 2927 | HJ84: 5766 | HK84: 79 | HL84: 2043 | HM84: -1049 | HN84: 545 | HO84: 3439 | HP84: 5547 | HQ84: 2073 | HR84: 3990 | HS84: 2844 | HT84: 4428 | HU84: 2260 | HV84: 4221 | HW84: 3793 | HX84: 5031 | HY84: 1127 | IA84: 1787 | IC84: -2100 | IE84: -2956 | IG84: 2818 | IH84: 4852 | II84: 1681 | IK84: 2139 | IL84: 3557 | IM84: 1723 | IO84: 2654 | IQ84: 4556 | IS84: 4358 | IU84: -671 | IW84: -2269 | IY84: 3110 | JA84: 1349 | JC84: 1617 | JE84: 1695 | JG84: 3255 | JI84: -525 | JK84: 1584 | JM84: 2679 | JO84: 2447 | JQ84: 4507 | JR84: 6471 | JS84: 3068 | JU84: 1846 | JW84: 1298 | JY84: 3466

Sheet Tabel 3 Grovfoder
A1: 2021 | M1: Historik
A2: Grovfoder | B2: ="Alle jordtyper "&A1 -> Alle jordtyper 2021 | D2: ="Lerjord "&A1 -> Lerjord 2021 | F2: ="Sandjord, m. vand "&A1 -> Sandjord, m. vand 2021 | H2: ="Sandjord, u. vand "&A1 -> Sandjord, u. vand 2021 | J2: ="Økologisk Grovfoder "&A1 -> Økologisk Grovfoder 2021 | M2: Alle jordtyper 2013 | O2: Alle jordtyper 2014 | Q2: Alle jordtyper 2015 | S2: Alle jordtyper 2016 | U2: Alle jordtyper 2017 | W2: Alle jordtyper 2018 | Y2: Alle jordtyper 2019 | AA2: Alle jordtyper 2020 | AC2: Alle jordtyper 2021 | AE2: Lerjord 2013 | AG2: Lerjord 2014 | AI2: Lerjord 2015 | AK2: Lerjord 2016 | AM2: Lerjord 2017 | AO2: Lerjord 2018 | AQ2: Lerjord 2019 | AS2: Lerjord 2020 | AU2: Lerjord 2021 | AW2: Sandjord, m. vand 2013 | AY2: Sandjord, m. vand 2014 | BA2: Sandjord, m. vand 2015 | BC2: Sandjord, m. vand 2016 | BE2: Sandjord, m. vand 2017 | BG2: Sandjord, m. vand 2018 | BI2: Sandjord, m. vand 2019 | BK2: Sandjord, m. vand 2020 | BM2: Sandjord, m. vand 2021 | BO2: Sandjord, u. vand 2013 | BQ2: Sandjord, u. vand 2014 | BS2: Sandjord, u. vand 2015 | BU2: Sandjord, u. vand 2016 | BW2: Sandjord, u. vand 2017 | BY2: Sandjord, u. vand 2018 | CA2: Sandjord, u. vand 2019 | CC2: Sandjord, u. vand 2020 | CE2: Sandjord, u. vand 2021 | CG2: Økologisk Grovfoder 2013 | CI2: Økologisk Grovfoder 2014 | CK2: Økologisk Grovfoder 2015 | CM2: Økologisk Grovfoder 2016 | CO2: Økologisk Grovfoder 2017 | CQ2: Økologisk Grovfoder 2018 | CS2: Økologisk Grovfoder 2019 | CU2: Økologisk Grovfoder 2020 | CW2: Økologisk Grovfoder 2021
A3: DG5950 | B3: Gns | C3: Bedste 1/3 | D3: Gns | E3: Bedste 1/3 | F3: Gns | G3: Bedste 1/3 | H3: Gns | I3: Bedste 1/3 | J3: Gns | K3: Bedste 1/3 | M3: Gns | N3: Bedste 1/3 | O3: Gns | P3: Bedste 1/3 | Q3: Gns | R3: Bedste 1/3 | S3: Gns | T3: Bedste 1/3 | U3: Gns | V3: Bedste 1/3 | W3: Gns | X3: Bedste 1/3 | Y3: Gns | Z3: Bedste 1/3 | AA3: Gns | AB3: Bedste 1/3 | AC3: Gns | AD3: Bedste 1/3 | AE3: Gns | AF3: Bedste 1/3 | AG3: Gns | AH3: Bedste 1/3 | AI3: Gns | AJ3: Bedste 1/3 | AK3: Gns | AL3: Bedste 1/3 | AM3: Gns | AN3: Bedste 1/3 | AO3: Gns | AP3: Bedste 1/3 | AQ3: Gns | AR3: Bedste 1/3 | AS3: Gns | AT3: Bedste 1/3 | AU3: Gns | AV3: Bedste 1/3 | AW3: Gns | AX3: Bedste 1/3 | AY3: Gns | AZ3: Bedste 1/3 | BA3: Gns | BB3: Bedste 1/3 | BC3: Gns | BD3: Bedste 1/3 | BE3: Gns | BF3: Bedste 1/3 | BG3: Gns | BH3: Bedste 1/3 | BI3: Gns | BJ3: Bedste 1/3 | BK3: Gns | BL3: Bedste 1/3 | BM3: Gns | BN3: Bedste 1/3 | BO3: Gns | BP3: Bedste 1/3 | BQ3: Gns | BR3: Bedste 1/3 | BS3: Gns | BT3: Bedste 1/3 | BU3: Gns | BV3: Bedste 1/3 | BW3: Gns | BX3: Bedste 1/3 | BY3: Gns | BZ3: Bedste 1/3 | CA3: Gns | CB3: Bedste 1/3 | CC3: Gns | CD3: Bedste 1/3 | CE3: Gns | CF3: Bedste 1/3 | CG3: Gns | CH3: Bedste 1/3 | CI3: Gns | CJ3: Bedste 1/3 | CK3: Gns | CL3: Bedste 1/3 | CM3: Gns | CN3: Bedste 1/3 | CO3: Gns | CP3: Bedste 1/3 | CQ3: Gns | CR3: Bedste 1/3 | CS3: Gns | CT3: Bedste 1/3 | CU3: Gns | CV3: Bedste 1/3 | CW3: Gns | CX3: Bedste 1/3
A4: Antal bedrifter | B4: =_xlfn.XLOOKUP($B$2,$M$2:$UR$2,M4:UR4) -> 745 | C4: =_xlfn.XLOOKUP($B$2,$M$2:$UR$2,N4:US4) -> 196 | D4: =_xlfn.XLOOKUP($D$2,$M$2:$UR$2,M4:UR4) -> 151 | E4: =_xlfn.XLOOKUP($D$2,$M$2:$UR$2,N4:US4) -> 46 | F4: =_xlfn.XLOOKUP($F$2,$M$2:$UR$2,M4:UR4) -> 218 | G4: =_xlfn.XLOOKUP($F$2,$M$2:$UR$2,N4:US4) -> 60 | H4: =_xlfn.XLOOKUP($H$2,$M$2:$UR$2,M4:UR4) -> 368 | I4: =_xlfn.XLOOKUP($H$2,$M$2:$UR$2,N4:US4) -> 96 | J4: =_xlfn.XLOOKUP($J$2,$M$2:$UR$2,M4:UR4) -> 111 | K4: =_xlfn.XLOOKUP($J$2,$M$2:$UR$2,N4:US4) -> 37 | M4: 865 | N4: 289 | O4: 956 | P4: 319 | Q4: 1282 | R4: 320 | S4: 1199 | T4: 305 | U4: 1185 | V4: 359 | W4: 1180 | X4: 137 | Y4: 1110 | Z4: 291 | AA4: 1037 | AB4: 257 | AC4: 745 | AD4: 196 | AE4: 163 | AF4: 55 | AG4: 180 | AH4: 60 | AI4: 272 | AJ4: 77 | AK4: 218 | AL4: 80 | AM4: 202 | AN4: 83 | AO4: 192 | AP4: 79 | AQ4: 218 | AR4: 74 | AS4: 219 | AT4: 54 | AU4: 151 | AV4: 46 | AW4: 166 | AX4: 56 | AY4: 273 | AZ4: 91 | BA4: 300 | BB4: 89 | BC4: 290 | BD4: 89 | BE4: 295 | BF4: 99 | BG4: 304 | BH4: 106 | BI4: 326 | BJ4: 87 | BK4: 320 | BL4: 69 | BM4: 218 | BN4: 60 | BO4: 386 | BP4: 129 | BQ4: 403 | BR4: 135 | BS4: 531 | BT4: 148 | BU4: 508 | BV4: 174 | BW4: 478 | BX4: 176 | BY4: 184 | BZ4: 174 | CA4: 556 | CB4: 171 | CC4: 490 | CD4: 92 | CE4: 368 | CF4: 96 | CG4: 66 | CH4: 22 | CI4: 81 | CJ4: 27 | CK4: 139 | CL4: 48 | CM4: 132 | CN4: 43 | CO4: 158 | CP4: 59 | CQ4: 149 | CR4: 53 | CS4: 162 | CT4: 62 | CU4: 147 | CV4: 31 | CW4: 111 | CX4: 37
A5: Areal med grovfoder | B5: =_xlfn.XLOOKUP($B$2,$M$2:$UR$2,M5:UR5) -> 167 | C5: =_xlfn.XLOOKUP($B$2,$M$2:$UR$2,N5:US5) -> 208.8 | D5: =_xlfn.XLOOKUP($D$2,$M$2:$UR$2,M5:UR5) -> 132.8 | E5: =_xlfn.XLOOKUP($D$2,$M$2:$UR$2,N5:US5) -> 167.6 | F5: =_xlfn.XLOOKUP($F$2,$M$2:$UR$2,M5:UR5) -> 170.8 | G5: =_xlfn.XLOOKUP($F$2,$M$2:$UR$2,N5:US5) -> 230.5 | H5: =_xlfn.XLOOKUP($H$2,$M$2:$UR$2,M5:UR5) -> 180 | I5: =_xlfn.XLOOKUP($H$2,$M$2:$UR$2,N5:US5) -> 217.1 | J5: =_xlfn.XLOOKUP($J$2,$M$2:$UR$2,M5:UR5) -> 196.8 | K5: =_xlfn.XLOOKUP($J$2,$M$2:$UR$2,N5:US5) -> 219.3 | M5: 134 | N5: 143.1 | O5: 137.1 | P5: 152.9 | Q5: 131.8 | R5: 131.8 | S5: 140.2 | T5: 174.8 | U5: 141.1 | V5: 180.3 | W5: 147.9 | X5: 200.8 | Y5: 160.5 | Z5: 172 | AA5: 164.3 | AB5: 209 | AC5: 167 | AD5: 208.8 | AE5: 111.1 | AF5: 115.7 | AG5: 108.9 | AH5: 128.8 | AI5: 105.8 | AJ5: 113.9 | AK5: 116.7 | AL5: 146.9 | AM5: 118.6 | AN5: 151.1 | AO5: 127.5 | AP5: 151.3 | AQ5: 134.1 | AR5: 169.5 | AS5: 133.5 | AT5: 171.6 | AU5: 132.8 | AV5: 167.6 | AW5: 130 | AX5: 141.6 | AY5: 135.9 | AZ5: 144.2 | BA5: 132.3 | BB5: 131.8 | BC5: 136.2 | BD5: 171.6 | BE5: 130.7 | BF5: 137.1 | BG5: 136.3 | BH5: 178.2 | BI5: 160.3 | BJ5: 206.1 | BK5: 170 | BL5: 237.8 | BM5: 170.8 | BN5: 230.5 | BO5: 140.1 | BP5: 152 | BQ5: 140.8 | BR5: 155 | BS5: 135.2 | BT5: 138.3 | BU5: 143.6 | BV5: 181.8 | BW5: 145.4 | BX5: 197.3 | BY5: 127.1 | BZ5: 190.6 | CA5: 170.9 | CB5: 200.2 | CC5: 175.6 | CD5: 210.4 | CE5: 180 | CF5: 217.1 | CG5: 166.6 | CH5: 180.2 | CI5: 178.7 | CJ5: 204.3 | CK5: 164.9 | CL5: 192.6 | CM5: 173 | CN5: 235.1 | CO5: 171.1 | CP5: 220.5 | CQ5: 190.8 | CR5: 230.9 | CS5: 210.4 | CT5: 245.7 | CU5: 209.1 | CV5: 265.5 | CW5: 196.8 | CX5: 219.3
A6: Areal med majshelsæd (ha) | B6: 62.6 | C6: 96.7 | D6: 60.7 | E6: 86.3 | F6: 64.1 | G6: 106.5 | H6: 63.3 | I6: 98.1 | J6: 13.3 | K6: 20.9 | M6: 56.3 | N6: 60.8 | O6: 57 | P6: 63.8 | Q6: 52.6 | R6: 62 | S6: 55 | T6: 85.2 | U6: 54.4 | V6: 88.7 | W6: 59.6 | X6: 98.8 | Y6: 61.9 | Z6: 79.2 | AA6: 64.6 | AB6: 102.2 | AC6: 62.6 | AD6: 96.7 | AE6: 50.7 | AF6: 56.3 | AG6: 49.8 | AH6: 59.9 | AI6: 52.2 | AJ6: 58.3 | AK6: 56.7 | AL6: 72 | AM6: 61.9 | AN6: 82.7 | AO6: 67.7 | AP6: 79.1 | AQ6: 58.8 | AR6: 93.6 | AS6: 59.5 | AT6: 90.5 | AU6: 60.7 | AV6: 86.3 | AW6: 58.7 | AX6: 67.6 | AY6: 62.8 | AZ6: 71.1 | BA6: 60.9 | BB6: 61.7 | BC6: 62.6 | BD6: 82.8 | BE6: 58.8 | BF6: 62.5 | BG6: 65 | BH6: 90.1 | BI6: 60.2 | BJ6: 101.7 | BK6: 66.9 | BL6: 115.6 | BM6: 64.1 | BN6: 106.5 | BO6: 62.2 | BP6: 71.3 | BQ6: 63.2 | BR6: 75.3 | BS6: 60.3 | BT6: 62.5 | BU6: 64.8 | BV6: 87.8 | BW6: 65.4 | BX6: 93.6 | BY6: 67.9 | BZ6: 95.7 | CA6: 64.1 | CB6: 96.7 | CC6: 66.3 | CD6: 97.6 | CE6: 63.3 | CF6: 98.1 | CG6: 25.5 | CH6: 26.6 | CI6: 25.5 | CJ6: 29.3 | CK6: 15.8 | CL6: 16.5 | CM6: 12.6 | CN6: 20 | CO6: 11.6 | CP6: 18 | CQ6: 13.1 | CR6: 23 | CS6: 16.6 | CT6: 24.3 | CU6: 17.4 | CV6: 31 | CW6: 13.3 | CX6: 20.9
A7: Areal med sædskiftegræs (ha) | B7: 82.7 | C7: 88.1 | D7: 57.4 | E7: 62.8 | F7: 83 | G7: 94.5 | H7: 93.2 | I7: 94.9 | J7: 152.2 | K7: 167.7 | M7: 62.2 | N7: 66.7 | O7: 64.9 | P7: 72.7 | Q7: 63.6 | R7: 57.2 | S7: 66.3 | T7: 72.2 | U7: 70 | V7: 74 | W7: 69.6 | X7: 80.8 | Y7: 79.2 | Z7: 75.8 | AA7: 81.4 | AB7: 86 | AC7: 82.7 | AD7: 88.1 | AE7: 49.4 | AF7: 47.9 | AG7: 49.1 | AH7: 57 | AI7: 42.3 | AJ7: 43.6 | AK7: 47.7 | AL7: 60.6 | AM7: 46.9 | AN7: 56 | AO7: 49 | AP7: 60.2 | AQ7: 62.8 | AR7: 64.5 | AS7: 61.3 | AT7: 62.6 | AU7: 57.4 | AV7: 62.8 | AW7: 56 | AX7: 60.9 | AY7: 58 | AZ7: 59.9 | BA7: 58.5 | BB7: 58.3 | BC7: 57.6 | BD7: 70.9 | BE7: 56.9 | BF7: 59.7 | BG7: 57 | BH7: 68.8 | BI7: 78.6 | BJ7: 83.1 | BK7: 82.9 | BL7: 95.8 | BM7: 83 | BN7: 94.5 | BO7: 62.7 | BP7: 65.7 | BQ7: 64.5 | BR7: 66.8 | BS7: 61 | BT7: 62 | BU7: 62 | BV7: 76.5 | BW7: 64.5 | BX7: 83.2 | BY7: 48.4 | BZ7: 76.8 | CA7: 85.9 | CB7: 84.3 | CC7: 89.7 | CD7: 93.8 | CE7: 93.2 | CF7: 94.9 | CG7: 108.6 | CH7: 126.7 | CI7: 118.4 | CJ7: 138.9 | CK7: 116.7 | CL7: 140 | CM7: 120.4 | CN7: 162 | CO7: 128.9 | CP7: 164.2 | CQ7: 136.4 | CR7: 160.2 | CS7: 154.4 | CT7: 177 | CU7: 157 | CV7: 189.6 | CW7: 152.2 | CX7: 167.7
A8: Areal med andet grovfoder ekskl. vedv. græs (ha) | B8: 14.2 | C8: 12.4 | D8: 11.2 | E8: 12.4 | F8: 13.2 | G8: 10.8 | H8: 16 | I8: 14.9 | J8: 28.7 | K8: 27 | M8: 15.6 | N8: 15.6 | O8: 12.8 | P8: 13.3 | Q8: 14.2 | R8: 11.4 | S8: 15 | T8: 12.4 | U8: 12.3 | V8: 10.7 | W8: 16.2 | X8: 14.5 | Y8: 14.9 | Z8: 11.1 | AA8: 13.4 | AB8: 12.4 | AC8: 14.2 | AD8: 12.4 | AE8: 11 | AF8: 11.6 | AG8: 8.6 | AH8: 10.4 | AI8: 10 | AJ8: 11.1 | AK8: 9.5 | AL8: 10.9 | AM8: 6.2 | AN8: 7 | AO8: 9.9 | AP8: 10.6 | AQ8: 9.7 | AR8: 7 | AS8: 9 | AT8: 11.7 | AU8: 11.2 | AV8: 12.4 | AW8: 15.3 | AX8: 13 | AY8: 11 | AZ8: 8.6 | BA8: 11.4 | BB8: 10.6 | BC8: 9.7 | BD8: 11.1 | BE8: 8.4 | BF8: 9.6 | BG8: 10 | BH8: 12.4 | BI8: 15.4 | BJ8: 11.1 | BK8: 14.1 | BL8: 13.1 | BM8: 13.2 | BN8: 10.8 | BO8: 15.2 | BP8: 14.9 | BQ8: 11.1 | BR8: 9.9 | BS8: 12.7 | BT8: 12 | BU8: 12.5 | BV8: 12.7 | BW8: 10.6 | BX8: 13 | BY8: 10.1 | BZ8: 13.7 | CA8: 16.5 | CB8: 12.7 | CC8: 15 | CD8: 12.7 | CE8: 16 | CF8: 14.9 | CG8: 32.5 | CH8: 26.9 | CI8: 33.9 | CJ8: 35.2 | CK8: 30.9 | CL8: 36.2 | CM8: 39.5 | CN8: 52 | CO8: 29.9 | CP8: 36.7 | CQ8: 40.4 | CR8: 45.8 | CS8: 38.5 | CT8: 42.9 | CU8: 34.4 | CV8: 45 | CW8: 28.7 | CX8: 27
A10: Udbytte majs (FEN/ha) | B10: 11107 | C10: 11297 | D10: 11652 | E10: 12051 | F10: 10903 | G10: 10877 | H10: 11021 | I10: 11222 | J10: 9381 | K10: 9370 | M10: 9860 | N10: 10188 | O10: 11215 | P10: 11599 | Q10: 7828 | R10: 8092 | S10: 11271 | T10: 11606 | U10: 10452 | V10: 10664 | W10: 9875 | X10: 10187 | Y10: 10827 | Z10: 11047 | AA10: 10885 | AB10: 11124 | AC10: 11107 | AD10: 11297 | AE10: 10695 | AF10: 11410 | AG10: 11781 | AH10: 12263 | AI10: 8598 | AJ10: 8402 | AK10: 11645 | AL10: 11926 | AM10: 10998 | AN10: 11208 | AO10: 9719 | AP10: 9745 | AQ10: 11369 | AR10: 11663 | AS10: 11529 | AT10: 11891 | AU10: 11652 | AV10: 12051 | AW10: 10156 | AX10: 10487 | AY10: 11438 | AZ10: 12090 | BA10: 7916 | BB10: 8141 | BC10: 11438 | BD10: 11645 | BE10: 10733 | BF10: 11298 | BG10: 10344 | BH10: 10749 | BI10: 10894 | BJ10: 11369 | BK10: 10667 | BL10: 10971 | BM10: 10903 | BN10: 10877 | BO10: 9720 | BP10: 10084 | BQ10: 10989 | BR10: 11262 | BS10: 7555 | BT10: 7896 | BU10: 11141 | BV10: 11459 | BW10: 10277 | BX10: 10405 | BY10: 9662 | BZ10: 10083 | CA10: 10601 | CB10: 10866 | CC10: 10775 | CD10: 10911 | CE10: 11021 | CF10: 11222 | CG10: 8011 | CH10: 7718 | CI10: 9637 | CJ10: 9719 | CK10: 5871 | CL10: 5107 | CM10: 9485 | CN10: 9856 | CO10: 7929 | CP10: 8167 | CQ10: 9883 | CR10: 10154 | CS10: 8583 | CT10: 8982 | CU10: 8323 | CV10: 8533 | CW10: 9381 | CX10: 9370
A11: Udbytte græs (FEN/ha) | B11: 8129 | C11: 8975 | D11: 8866 | E11: 9771 | F11: 8396 | G11: 9447 | H11: 7825 | I11: 8474 | J11: 6690 | K11: 7161 | M11: 6894 | N11: 7167 | O11: 7687 | P11: 7619 | Q11: 7747 | R11: 8454 | S11: 8113 | T11: 8814 | U11: 8052 | V11: 8870 | W11: 6197 | X11: 6996 | Y11: 8072 | Z11: 8669 | AA11: 8362 | AB11: 9533 | AC11: 8129 | AD11: 8975 | AE11: 7124 | AF11: 7525 | AG11: 8404 | AH11: 8612 | AI11: 8170 | AJ11: 8280 | AK11: 8566 | AL11: 8610 | AM11: 9027 | AN11: 9217 | AO11: 6656 | AP11: 6864 | AQ11: 8385 | AR11: 9334 | AS11: 8738 | AT11: 9835 | AU11: 8866 | AV11: 9771 | AW11: 7286 | AX11: 7772 | AY11: 8102 | AZ11: 8190 | BA11: 8175 | BB11: 8575 | BC11: 8710 | BD11: 9066 | BE11: 8512 | BF11: 9005 | BG11: 6958 | BH11: 7427 | BI11: 7968 | BJ11: 9132 | BK11: 8306 | BL11: 9910 | BM11: 8396 | BN11: 9447 | BO11: 6887 | BP11: 7228 | BQ11: 7781 | BR11: 7910 | BS11: 8226 | BT11: 8316 | BU11: 8572 | BV11: 8827 | BW11: 8573 | BX11: 8869 | BY11: 6619 | BZ11: 6750 | CA11: 8029 | CB11: 8933 | CC11: 8287 | CD11: 9447 | CE11: 7825 | CF11: 8474 | CG11: 5259 | CH11: 5627 | CI11: 6163 | CJ11: 6307 | CK11: 6369 | CL11: 6541 | CM11: 6782 | CN11: 6969 | CO11: 6746 | CP11: 7030 | CQ11: 5115 | CR11: 5388 | CS11: 6414 | CT11: 6611 | CU11: 6478 | CV11: 6776 | CW11: 6690 | CX11: 7161
A12: Gennemsnitligt udbytte grovfoder totalt (FEN/ha) | B12: 8967 | C12: 9796 | D12: 9799 | E12: 10579 | F12: 9057 | G12: 9818 | H12: 8683 | I12: 9489 | J12: 6449 | K12: 6932 | M12: 8303.162869 | N12: 8607.602353 | O12: 9336.680066 | P12: 9479.249084 | Q12: 7783.666093 | R12: 8265.711409 | S12: 9544.904369 | T12: 10325.2986 | U12: 8767 | V12: 9596 | W12: 7516 | X12: 8430 | Y12: 8913 | Z12: 9611 | AA12: 9101 | AB12: 10024 | AC12: 8967 | AD12: 9796 | AE12: 8932.688312 | AF12: 9624.09309 | AG12: 10104.45096 | AH12: 10482.78614 | AI12: 8406.419048 | AJ12: 8349.799804 | AK12: 10238.21552 | AL12: 10410.54299 | AM12: 9874 | AN12: 10156 | AO12: 8133 | AP12: 8291 | AQ12: 9546 | AR12: 10513 | AS12: 9785 | AT12: 10653 | AU12: 9799 | AV12: 10579 | AW12: 8754.779425 | AX12: 9147.915698 | AY12: 9836.278146 | AZ12: 10051.86441 | BA12: 8042.896985 | BB12: 8361.233129 | BC12: 10130.73877 | BD12: 10402.13457 | BE12: 9370 | BF12: 9884 | BG12: 8523 | BH12: 9051 | BI12: 8856 | BJ12: 10128 | BK12: 8954 | BL12: 10070 | BM12: 9057 | BN12: 9818 | BO12: 8297.829464 | BP12: 8714.370803 | BQ12: 9368.671104 | BR12: 9686.253343 | BS12: 7892.436109 | BT12: 8105.156627 | BU12: 9884.864353 | BV12: 10233.51004 | BW12: 9155 | BX12: 9413 | BY12: 8092 | BZ12: 8299 | CA12: 8748 | CB12: 9660 | CC12: 8975 | CD12: 9789 | CE12: 8683 | CF12: 9489 | CG12: 5782.310962 | CH12: 5989.821918 | CI12: 6778.61501 | CJ12: 6901.361474 | CK12: 6309.615849 | CL12: 6389.811502 | CM12: 7038.073684 | CN12: 7286.252747 | CO12: 6425 | CP12: 6709 | CQ12: 5149 | CR12: 5662 | CS12: 6212 | CT12: 6551 | CU12: 6298 | CV12: 6590 | CW12: 6449 | CX12: 6932
A14: JB 5-6 og 7-9 | B14: 0.22 | C14: 0.22 | D14: 0.88 | E14: 0.9 | F14: 0.04 | G14: 0.05 | H14: 0.05 | I14: 0.04 | J14: 0.05 | K14: 0.05 | M14: 0.1945945946 | N14: 0.2373737374 | O14: 0.2010582011 | P14: 0.1904761905 | Q14: 0.2422680412 | R14: 0.2513368984 | S14: 0.2163461538 | T14: 0.2092050209 | U14: 0.2037037037 | V14: 0.1967871486 | W14: 0.2 | X14: 0.15 | Y14: 0.21 | Z14: 0.23 | AA14: 0.22 | AB14: 0.22 | AC14: 0.22 | AD14: 0.22 | AE14: 0.8882352941 | AF14: 0.9106145251 | AG14: 0.8908045977 | AH14: 0.9 | AI14: 0.9042553191 | AJ14: 0.8870967742 | AK14: 0.8861386139 | AL14: 0.9004329004 | AM14: 0.8726415094 | AN14: 0.8825910931 | AO14: 0.88 | AP14: 0.87 | AQ14: 0.88 | AR14: 0.89 | AS14: 0.87 | AT14: 0.88 | AU14: 0.88 | AV14: 0.9 | AW14: 0.02941176471 | AX14: 0.02083333333 | AY14: 0.0393258427 | AZ14: 0.03076923077 | BA14: 0.03783783784 | BB14: 0.03333333333 | BC14: 0.03645833333 | BD14: 0.03930131004 | BE14: 0.04060913706 | BF14: 0.03773584906 | BG14: 0.04 | BH14: 0.04 | BI14: 0.04 | BJ14: 0.03 | BK14: 0.04 | BL14: 0.04 | BM14: 0.04 | BN14: 0.05 | BO14: 0.04761904762 | BP14: 0.05 | BQ14: 0.04761904762 | BR14: 0.03883495146 | BS14: 0.04188481675 | BT14: 0.0320855615 | BU14: 0.03883495146 | BV14: 0.0375 | BW14: 0.04245283019 | BX14: 0.03543307087 | BY14: 0.89 | BZ14: 0.03 | CA14: 0.05 | CB14: 0.04 | CC14: 0.05 | CD14: 0.04 | CE14: 0.05 | CF14: 0.04 | CG14: 0.03846153846 | CH14: 0.02008032129 | CI14: 0.05306122449 | CJ14: 0.05226480836 | CK14: 0.04291845494 | CL14: 0.03112840467 | CM14: 0.03968253968 | CN14: 0.03067484663 | CO14: 0.04214559387 | CP14: 0.04255319149 | CQ14: 0.03 | CR14: 0.02 | CS14: 0.06 | CT14: 0.06 | CU14: 0.04 | CV14: 0.04 | CW14: 0.05 | CX14: 0.05
A15: JB 2 & 4 | B15: 0.39 | C15: 0.36 | D15: 0.07 | E15: 0.07 | F15: 0.28 | G15: 0.31 | H15: 0.59 | I15: 0.54 | J15: 0.43 | K15: 0.33 | M15: 0.4 | N15: 0.3333333333 | O15: 0.3703703704 | P15: 0.3333333333 | Q15: 0.381443299 | R15: 0.3636363636 | S15: 0.3653846154 | T15: 0.3765690377 | U15: 0.3703703704 | V15: 0.3373493976 | W15: 0.37 | X15: 0.3 | Y15: 0.36 | Z15: 0.33 | AA15: 0.36 | AB15: 0.31 | AC15: 0.39 | AD15: 0.36 | AE15: 0.08235294118 | AF15: 0.05586592179 | AG15: 0.08045977011 | AH15: 0.085 | AI15: 0.06914893617 | AJ15: 0.08064516129 | AK15: 0.08415841584 | AL15: 0.07359307359 | AM15: 0.09905660377 | AN15: 0.08906882591 | AO15: 0.08 | AP15: 0.08 | AQ15: 0.08 | AR15: 0.08 | AS15: 0.08 | AT15: 0.08 | AU15: 0.07 | AV15: 0.07 | AW15: 0.2705882353 | AX15: 0.2552083333 | AY15: 0.3146067416 | AZ15: 0.3179487179 | BA15: 0.3459459459 | BB15: 0.3444444444 | BC15: 0.296875 | BD15: 0.3144104803 | BE15: 0.3096446701 | BF15: 0.3160377358 | BG15: 0.29 | BH15: 0.22 | BI15: 0.26 | BJ15: 0.24 | BK15: 0.25 | BL15: 0.25 | BM15: 0.28 | BN15: 0.31 | BO15: 0.6031746032 | BP15: 0.545 | BQ15: 0.5555555556 | BR15: 0.4563106796 | BS15: 0.5916230366 | BT15: 0.5401069519 | BU15: 0.5533980583 | BV15: 0.5208333333 | BW15: 0.5377358491 | BX15: 0.4606299213 | BY15: 0.08 | BZ15: 0.47 | CA15: 0.54 | CB15: 0.47 | CC15: 0.56 | CD15: 0.5 | CE15: 0.59 | CF15: 0.54 | CG15: 0.3247863248 | CH15: 0.3172690763 | CI15: 0.2979591837 | CJ15: 0.2508710801 | CK15: 0.3433476395 | CL15: 0.3307392996 | CM15: 0.3492063492 | CN15: 0.3404907975 | CO15: 0.4099616858 | CP15: 0.3920972644 | CQ15: 0.4 | CR15: 0.31 | CS15: 0.39 | CT15: 0.36 | CU15: 0.39 | CV15: 0.43 | CW15: 0.43 | CX15: 0.33
A16: JB 1 & 3 | B16: 0.36 | C16: 0.39 | D16: 0.03 | E16: 0.01 | F16: 0.65 | G16: 0.6 | H16: 0.33 | I16: 0.39 | J16: 0.49 | K16: 0.58 | M16: 0.3783783784 | N16: 0.4090909091 | O16: 0.4021164021 | P16: 0.4571428571 | Q16: 0.3608247423 | R16: 0.3743315508 | S16: 0.3846153846 | T16: 0.3849372385 | U16: 0.3888888889 | V16: 0.4297188755 | W16: 0.39 | X16: 0.53 | Y16: 0.4 | Z16: 0.4 | AA16: 0.39 | AB16: 0.45 | AC16: 0.36 | AD16: 0.39 | AE16: 0.02352941176 | AF16: 0.02234636872 | AG16: 0.02873563218 | AH16: 0.025 | AI16: 0.02127659574 | AJ16: 0.03225806452 | AK16: 0.02475247525 | AL16: 0.02597402597 | AM16: 0.02830188679 | AN16: 0.02834008097 | AO16: 0.02 | AP16: 0.03 | AQ16: 0.03 | AR16: 0.02 | AS16: 0.03 | AT16: 0.03 | AU16: 0.03 | AV16: 0.01 | AW16: 0.6823529412 | AX16: 0.6927083333 | AY16: 0.6292134831 | AZ16: 0.6358974359 | BA16: 0.5945945946 | BB16: 0.6 | BC16: 0.640625 | BD16: 0.6200873362 | BE16: 0.6294416244 | BF16: 0.6273584906 | BG16: 0.64 | BH16: 0.71 | BI16: 0.66 | BJ16: 0.69 | BK16: 0.68 | BL16: 0.68 | BM16: 0.65 | BN16: 0.6 | BO16: 0.328042328 | BP16: 0.385 | BQ16: 0.3756613757 | BR16: 0.4951456311 | BS16: 0.3560209424 | BT16: 0.4171122995 | BU16: 0.3834951456 | BV16: 0.4125 | BW16: 0.4009433962 | BX16: 0.4803149606 | BY16: 0.02 | BZ16: 0.47 | CA16: 0.39 | CB16: 0.47 | CC16: 0.36 | CD16: 0.43 | CE16: 0.33 | CF16: 0.39 | CG16: 0.6111111111 | CH16: 0.6305220884 | CI16: 0.6244897959 | CJ16: 0.6829268293 | CK16: 0.5965665236 | CL16: 0.6186770428 | CM16: 0.5753968254 | CN16: 0.5950920245 | CO16: 0.5172413793 | CP16: 0.5288753799 | CQ16: 0.53 | CR16: 0.63 | CS16: 0.52 | CT16: 0.56 | CU16: 0.52 | CV16: 0.5 | CW16: 0.49 | CX16: 0.58
A17: Andel der kan vandes (% af areal) | B17: 0.21 | C17: 0.22 | D17: 0.03 | E17: 0.04 | F17: 0.66 | G17: 0.64 | H17: 0.02 | I17: 0.01 | J17: 0.29 | K17: 0.3 | W17: 0.22 | X17: 0.24 | Y17: 0.21 | Z17: 0.23 | AA17: 0.22 | AB17: 0.25 | AC17: 0.21 | AD17: 0.22 | AO17: 0.03 | AP17: 0.03 | AQ17: 0.04 | AR17: 0.03 | AS17: 0.03 | AT17: 0.04 | AU17: 0.03 | AV17: 0.04 | BG17: 0.65 | BH17: 0.66 | BI17: 0.65 | BJ17: 0.66 | BK17: 0.65 | BL17: 0.61 | BM17: 0.66 | BN17: 0.64 | BY17: 0 | BZ17: 0.01 | CA17: 0.01 | CB17: 0.01 | CC17: 0.02 | CD17: 0.01 | CE17: 0.02 | CF17: 0.01 | CQ17: 0.33 | CR17: 0.38 | CS17: 0.3 | CT17: 0.26 | CU17: 0.31 | CV17: 0.28 | CW17: 0.29 | CX17: 0.3
A18: Forpagtet andel af areal | B18: 0.34 | C18: 0.38 | D18: 0.33 | E18: 0.42 | F18: 0.31 | G18: 0.3 | H18: 0.35 | I18: 0.42 | J18: 0.44 | K18: 0.52 | M18: 0.3376693767 | N18: 0.3326612903 | O18: 0.3382820785 | P18: 0.3415794481 | Q18: 0.3408973698 | R18: 0.3193997856 | S18: 0.3586904189 | T18: 0.3181438127 | U18: 0.3599815157 | V18: 0.391234419 | W18: 0.33 | X18: 0.38 | Y18: 0.34 | Z18: 0.3 | AA18: 0.34 | AB18: 0.38 | AC18: 0.34 | AD18: 0.38 | AE18: 0.3672150411 | AF18: 0.3469273743 | AG18: 0.3629587156 | AH18: 0.3850776164 | AI18: 0.3806485912 | AJ18: 0.3949353448 | AK18: 0.4186046512 | AL18: 0.3889129493 | AM18: 0.3854511101 | AN18: 0.4586709887 | AO18: 0.36 | AP18: 0.41 | AQ18: 0.35 | AR18: 0.41 | AS18: 0.36 | AT18: 0.41 | AU18: 0.33 | AV18: 0.42 | AW18: 0.2954679223 | AX18: 0.2762747138 | AY18: 0.3183352081 | AZ18: 0.3213552361 | BA18: 0.2871072589 | BB18: 0.258908686 | BC18: 0.3098591549 | BD18: 0.3077593723 | BE18: 0.2943262411 | BF18: 0.2843691149 | BG18: 0.28 | BH18: 0.31 | BI18: 0.3 | BJ18: 0.32 | BK18: 0.3 | BL18: 0.35 | BM18: 0.31 | BN18: 0.3 | BO18: 0.3342161017 | BP18: 0.3451548452 | BQ18: 0.3225806452 | BR18: 0.3069066148 | BS18: 0.3211105291 | BT18: 0.3194221509 | BU18: 0.333171678 | BV18: 0.3040399833 | BW18: 0.3503064592 | BX18: 0.387007874 | BY18: 0.36 | BZ18: 0.36 | CA18: 0.35 | CB18: 0.37 | CC18: 0.35 | CD18: 0.36 | CE18: 0.35 | CF18: 0.42 | CG18: 0.3709401709 | CH18: 0.3684210526 | CI18: 0.3919084593 | CJ18: 0.3796102992 | CK18: 0.4135855546 | CL18: 0.5081648523 | CM18: 0.4209062003 | CN18: 0.5383435583 | CO18: 0.4361132364 | CP18: 0.5553191489 | CQ18: 0.41 | CR18: 0.47 | CS18: 0.43 | CT18: 0.51 | CU18: 0.43 | CV18: 0.52 | CW18: 0.44 | CX18: 0.52
A20: Stykomkostninger øre pr. FEN | B20: 24 | C20: 24 | D20: 24 | E20: 23 | F20: 24 | G20: 25 | H20: 24 | I20: 25 | J20: 16 | K20: 16 | M20: 28.01342135 | N20: 24.87336092 | O20: 24.34484189 | P20: 22.02706123 | Q20: 28.12299466 | R20: 28.26133026 | S20: 22.97560997 | T20: 22.94364639 | U20: 24.14737082 | V20: 24.96873697 | W20: 27 | X20: 26 | Y20: 24 | Z20: 25 | AA20: 23 | AB20: 24 | AC20: 24 | AD20: 24 | AE20: 28.56922699 | AF20: 24.81272757 | AG20: 24.56343259 | AH20: 22.14106029 | AI20: 30.02467502 | AJ20: 29.72526358 | AK20: =-AK50/AK12*100 -> 24.90668414 | AL20: 23.75476479 | AM20: 25.24812639 | AN20: 24.85230406 | AO20: 29 | AP20: 28 | AQ20: 23 | AR20: 23 | AS20: 23 | AT20: 23 | AU20: 24 | AV20: 23 | AW20: 28.90992311 | AX20: 26.49783929 | AY20: 24.92812793 | AZ20: 23.08029542 | BA20: 30.30002752 | BB20: 28.428821 | BC20: 24.77608057 | BD20: 23.53363134 | BE20: 25.88046958 | BF20: 24.39295832 | BG20: 28 | BH20: 26 | BI20: 24 | BJ20: 25 | BK20: 24 | BL20: 25 | BM20: 24 | BN20: 25 | BO20: 28.99553444 | BP20: 26.71449325 | BQ20: 25.45718569 | BR20: 24.09600407 | BS20: 29.78801434 | BT20: 27.6490647 | BU20: 23.85465208 | BV20: 22.47518193 | BW20: 25.35226652 | BX20: 24.72113035 | BY20: 29 | BZ20: 26 | CA20: 24 | CB20: 25 | CC20: 23 | CD20: 24 | CE20: 24 | CF20: 25 | CG20: 19.09271236 | CH20: 14.80845361 | CI20: 17.43719031 | CJ20: 15.28683875 | CK20: 16.73635963 | CL20: 16.94885678 | CM20: 14.76256212 | CN20: 14.20483252 | CO20: 15.93774319 | CP20: 15.71023998 | CQ20: 20 | CR20: 18 | CS20: 17 | CT20: 17 | CU20: 16 | CV20: 16 | CW20: 16 | CX20: 16
A21: Maskinomkostninger inkl. arbejde øre pr. FEN | B21: 75 | C21: 69 | D21: 72 | E21: 65 | F21: 75 | G21: 69 | H21: 77 | I21: 69 | J21: 97 | K21: 94 | M21: 85.09909069 | N21: 71.02772598 | O21: 77.47894203 | P21: 66.9960791 | Q21: 86.14316086 | R21: 78.98613644 | S21: 69.3080542 | T21: 63.13655134 | U21: 76.93769542 | V21: 70.36133612 | W21: 90 | X21: 79 | Y21: 76 | Z21: 70 | AA21: 74 | AB21: 67 | AC21: 75 | AD21: 69 | AE21: 81.61403706 | AF21: 68.37475435 | AG21: 75.24612425 | AH21: 60.52131131 | AI21: 85.05246986 | AJ21: 80.81533308 | AK21: =AK29/AK12*100 -> 67.69923128 | AL21: 64.57573156 | AM21: 70.24246218 | AN21: 64.84329072 | AO21: 85 | AP21: 80 | AQ21: 73 | AR21: 66 | AS21: 71 | AT21: 65 | AU21: 72 | AV21: 65 | AW21: 81.42669467 | AX21: 68.52389276 | AY21: 73.92891719 | AZ21: 64.92399553 | BA21: 81.79534633 | BB21: 75.23472255 | BC21: 66.02234473 | BD21: 61.93391483 | BE21: 72.36545267 | BF21: 63.58211474 | BG21: 80 | BH21: 76 | BI21: 77 | BJ21: 68 | BK21: 75 | BL21: 65 | BM21: 75 | BN21: 69 | BO21: 86.35837256 | BP21: 69.54537247 | BQ21: 77.87302113 | BR21: 66.24895537 | BS21: 85.7901268 | BT21: 81.22171638 | BU21: 66.93022813 | BV21: 63.45005634 | BW21: 74.82656683 | BX21: 72.59488448 | BY21: 85 | BZ21: 81 | CA21: 77 | CB21: 70 | CC21: 75 | CD21: 70 | CE21: 77 | CF21: 69 | CG21: 108.5344371 | CH21: 89.45452684 | CI21: 95.26105952 | CJ21: 83.62449546 | CK21: 98.51608841 | CL21: 91.35680422 | CM21: 89.02693901 | CN21: 81.94547115 | CO21: 97.41141559 | CP21: 90.27258465 | CQ21: 121 | CR21: 111 | CS21: 97 | CT21: 89 | CU21: 97 | CV21: 90 | CW21: 97 | CX21: 94
A22: Øvrige omkostninger øre pr. FEN | B22: 12 | C22: 11 | D22: 11 | E22: 9 | F22: 13 | G22: 12 | H22: 12 | I22: 12 | J22: 15 | K22: 14 | M22: 9.687287999 | N22: 7.536953506 | O22: 40.13639827 | P22: 30.09617881 | Q22: 45.61066383 | R22: 42.35988368 | S22: 34.081886 | T22: 33.75096316 | U22: 35.70577136 | V22: 33.56465679 | W22: 15 | X22: 13 | Y22: 11 | Z22: 11 | AA22: 11 | AB22: 11 | AC22: 12 | AD22: 11 | AE22: 9.883065653 | AF22: 7.368282756 | AG22: 38.37438332 | AH22: 28.85795054 | AI22: 42.82860516 | AJ22: 41.25793367 | AK22: 32.62282311 | AL22: 30.27689615 | AM22: 34.01912681 | AN22: 29.68920901 | AO22: 13 | AP22: 11 | AQ22: 10 | AR22: 9 | AS22: 11 | AT22: 9 | AU22: 11 | AV22: 9 | AW22: 10.90462298 | AX22: 9.54742792 | AY22: 39.23671698 | AZ22: 32.07847019 | BA22: 47.05696063 | BB22: 42.57904783 | BC22: 35.27945463 | BD22: 33.54527658 | BE22: 36.7669436 | BF22: 37.14228679 | BG22: 15 | BH22: 14 | BI22: 13 | BJ22: 11 | BK22: 12 | BL22: 11 | BM22: 13 | BN22: 12 | BO22: 10.18687503 | BP22: 7.870753749 | BQ22: 41.4516224 | BR22: 30.90056455 | BS22: 48.40993652 | BT22: 42.8021921 | BU22: 34.94835456 | BV22: 34.16314295 | BW22: 37.3522462 | BX22: 35.99523765 | BY22: 13 | BZ22: 12 | CA22: 11 | CB22: 10 | CC22: 10 | CD22: 9 | CE22: 12 | CF22: 12 | CG22: 2.553600905 | CH22: 0.323385993 | CI22: 42.05104811 | CJ22: 29.38282396 | CK22: 37.64806598 | CL22: 31.89266099 | CM22: 30.65437768 | CN22: 23.73708786 | CO22: 29.64602636 | CP22: 21.86299911 | CQ22: 20 | CR22: 19 | CS22: 15 | CT22: 14 | CU22: 15 | CV22: 13 | CW22: 15 | CX22: 14
A23: Jordleje øre pr. FEN | B23: 41 | C23: 37 | D23: 40 | E23: 41 | F23: 37 | G23: 34 | H23: 43 | I23: 39 | J23: 63 | K23: 62 | M23: 59.73305207 | N23: 48.7413873 | O23: 17.63616143 | P23: 16.49268858 | Q23: 20.95056753 | R23: 19.59768603 | S23: 17.52274319 | T23: 14.34413548 | U23: 18.92947721 | V23: 19.02106836 | W23: 52 | X23: 47 | Y23: 43 | Z23: 38 | AA23: 41 | AB23: 37 | AC23: 41 | AD23: 37 | AE23: 54.88660109 | AF23: 41.87843532 | AG23: 18.9448347 | AH23: 19.19874256 | AI23: 22.36125681 | AJ23: 23.64280173 | AK23: 19.8551384 | AL23: 19.24324621 | AM23: 20.15607357 | AN23: 23.66364048 | AO23: 51 | AP23: 52 | AQ23: 44 | AR23: 40 | AS23: 41 | AT23: 39 | AU23: 40 | AV23: 41 | AW23: 54.85685666 | AX23: 47.22498045 | AY23: 15.22642442 | AZ23: 12.87764758 | BA23: 17.27663168 | BB23: 17.09455985 | BC23: 13.68487897 | BD23: 13.68109609 | BE23: 14.24006904 | BF23: 13.65236901 | BG23: 43 | BH23: 42 | BI23: 40 | BJ23: 35 | BK23: 39 | BL23: 35 | BM23: 37 | BN23: 34 | BO23: 60.19453668 | BP23: 48.47936581 | BQ23: 16.82059903 | BR23: 14.71003626 | BS23: 19.71945953 | BT23: 19.24290961 | BU23: 15.80639087 | BV23: 13.72689763 | BW23: 17.02926998 | BX23: 18.35134181 | BY23: 51 | BZ23: 48 | CA23: 44 | CB23: 39 | CC23: 42 | CD23: 38 | CE23: 43 | CF23: 39 | CG23: 87.91544131 | CH23: 75.61932495 | CI23: 27.08725689 | CJ23: 24.70463836 | CK23: 30.56548892 | CL23: 32.32632912 | CM23: 29.00993705 | CN23: 34.70510464 | CO23: 32.08652692 | CP23: 37.90167962 | CQ23: 78 | CR23: 70 | CS23: 65 | CT23: 64 | CU23: 63 | CV23: 61 | CW23: 63 | CX23: 62
A24: EU-støtte øre pr. FEN | B24: -30 | C24: -27 | D24: -28 | E24: -26 | F24: -29 | G24: -27 | H24: -31 | I24: -28 | J24: -40 | K24: -38 | M24: -41.67086753 | N24: -39.72070107 | O24: -36.30840916 | P24: -35.23485848 | Q24: -42.2680002 | R24: -40.63776043 | S24: -32.85522703 | T24: -31.03057958 | U24: -34.80095814 | V24: -32.03418091 | W24: -40 | X24: -35 | Y24: -31 | Z24: -29 | AA24: -29 | AB24: -26 | AC24: -30 | AD24: -27 | AE24: -38.4878536 | AF24: -35.40073821 | AG24: -34.19285237 | AH24: -32.06208688 | AI24: -40.10030883 | AJ24: -40.45605978 | AK24: =-AK65/AK12*100 -> -31.38242201 | AL24: -30.85333785 | AM24: -31.5778813 | AN24: -30.48444269 | AO24: -38 | AP24: -37 | AQ24: -29 | AR24: -27 | AS24: -28 | AT24: -26 | AU24: -28 | AV24: -26 | AW24: -40.52643508 | AX24: -39.81234765 | AY24: -34.64725122 | AZ24: -34.08322935 | BA24: -41.19162543 | BB24: -39.77882148 | BC24: -31.2218099 | BD24: -29.49394646 | BE24: -33.03094984 | BF24: -30.72642655 | BG24: -36 | BH24: -33 | BI24: -31 | BJ24: -26 | BK24: -29 | BL24: -25 | BM24: -29 | BN24: -27 | BO24: -42.07124303 | BP24: -39.34879612 | BQ24: -36.56868687 | BR24: -34.84319355 | BS24: -42.77513246 | BT24: -41.67717116 | BU24: -32.62563739 | BV24: -31.84635561 | BW24: -34.04696887 | BX24: -32.66758738 | BY24: -38 | BZ24: -37 | CA24: -32 | CB24: -29 | CC24: -30 | CD24: -28 | CE24: -31 | CF24: -28 | CG24: -55.39307763 | CH24: -53.89141855 | CI24: -46.44016507 | CJ24: -45.03459225 | CK24: -46.48460493 | CL24: -45.63514901 | CM24: -40.22407447 | CN24: -37.65996178 | CO24: -43.59533074 | CP24: -41.03443136 | CQ24: -54 | CR24: -49 | CS24: -43 | CT24: -40 | CU24: -40 | CV24: -39 | CW24: -40 | CX24: -38
A25: Andre landbrugsindtægter øre pr. FEN | B25: -4 | C25: -2 | D25: -2 | E25: -1 | F25: -4 | G25: -2 | H25: -4 | I25: -2 | J25: -17 | K25: -17 | W25: -5 | X25: -2 | Y25: -4 | Z25: -2 | AA25: -4 | AB25: -1 | AC25: -4 | AD25: -2 | AO25: -2 | AP25: -1 | AQ25: -2 | AR25: -1 | AS25: -2 | AT25: -1 | AU25: -2 | AV25: -1 | BG25: -2 | BH25: -2 | BI25: -4 | BJ25: -1 | BK25: -4 | BL25: -1 | BM25: -4 | BN25: -2 | BY25: -2 | BZ25: -2 | CA25: -4 | CB25: -1 | CC25: -4 | CD25: -2 | CE25: -4 | CF25: -2 | CQ25: -24 | CR25: -20 | CS25: -17 | CT25: -16 | CU25: -16 | CV25: -16 | CW25: -17 | CX25: -17
A26: Fremstillingspris øre pr. FEN | B26: 118 | C26: 112 | D26: 117 | E26: 111 | F26: 116 | G26: 111 | H26: 121 | I26: 115 | J26: 134 | K26: 131 | M26: 140.8619846 | N26: 112.4587266 | O26: 123.2879345 | P26: 100.3771492 | Q26: 138.5593867 | R26: 128.567276 | S26: 111.0330663 | T26: 103.1447168 | U26: 120.9193567 | V26: 115.8816173 | W26: =SUM(W20:W25) -> 139 | X26: =SUM(X20:X25) -> 128 | Y26: =SUM(Y20:Y25) -> 119 | Z26: =SUM(Z20:Z25) -> 113 | AA26: 116 | AB26: 112 | AC26: 118 | AD26: 112 | AE26: 136.4650772 | AF26: 107.0334618 | AG26: 122.9359225 | AH26: 98.65697783 | AI26: 140.166698 | AJ26: 134.9852723 | AK26: =SUM(AK20:AK24) -> 113.7014549 | AL26: 106.9973009 | AM26: 118.0879076 | AN26: 112.5640016 | AO26: =SUM(AO20:AO25) -> 138 | AP26: =SUM(AP20:AP25) -> 133 | AQ26: =SUM(AQ20:AQ25) -> 119 | AR26: =SUM(AR20:AR25) -> 110 | AS26: 116 | AT26: 109 | AU26: 117 | AV26: 111 | AW26: 135.5716623 | AX26: 111.9817928 | AY26: 118.6729353 | AZ26: 98.87717937 | BA26: 135.2373407 | BB26: 123.5583297 | BC26: 108.540949 | BD26: 103.1999724 | BE26: 116.2219851 | BF26: 108.0433023 | BG26: =SUM(BG20:BG25) -> 128 | BH26: =SUM(BH20:BH25) -> 123 | BI26: =SUM(BI20:BI25) -> 119 | BJ26: =SUM(BJ20:BJ25) -> 112 | BK26: 117 | BL26: 110 | BM26: 116 | BN26: 111 | BO26: 143.6640757 | BP26: 113.2611892 | BQ26: 125.0337414 | BR26: 101.1123667 | BS26: 140.9324047 | BT26: 129.2387116 | BU26: 108.9139882 | BV26: 101.9689232 | BW26: 120.5133807 | BX26: 118.9950069 | BY26: =SUM(BY20:BY25) -> 138 | BZ26: =SUM(BZ20:BZ25) -> 128 | CA26: =SUM(CA20:CA25) -> 120 | CB26: =SUM(CB20:CB25) -> 114 | CC26: 116 | CD26: 111 | CE26: 121 | CF26: 115 | CG26: 162.7031141 | CH26: 126.3142728 | CI26: 135.3963898 | CJ26: 107.9642043 | CK26: 136.981398 | CL26: 126.8895021 | CM26: 123.2297414 | CN26: 116.9325344 | CO26: 131.4863813 | CP26: 124.713072 | CQ26: =SUM(CQ20:CQ25) -> 161 | CR26: =SUM(CR20:CR25) -> 149 | CS26: =SUM(CS20:CS25) -> 134 | CT26: =SUM(CT20:CT25) -> 128 | CU26: 135 | CV26: 125 | CW26: 134 | CX26: 131
A27: Anvendt intern overførselspris øre pr. FEN | B27: 117 | C27: 113 | D27: 114 | E27: 113 | F27: 117 | G27: 114 | H27: 118 | I27: 113 | J27: 136 | K27: 136 | W27: 116 | X27: 111 | Y27: 119 | Z27: 115 | AA27: 118 | AB27: 115 | AC27: 117 | AD27: 113 | AO27: 110 | AP27: 110 | AQ27: 116 | AR27: 112 | AS27: 117 | AT27: 114 | AU27: 114 | AV27: 113 | BG27: 112 | BH27: 111 | BI27: 119 | BJ27: 114 | BK27: 119 | BL27: 116 | BM27: 117 | BN27: 114 | BY27: 110 | BZ27: 111 | CA27: 119 | CB27: 113 | CC27: 119 | CD27: 116 | CE27: 118 | CF27: 113 | CQ27: 143 | CR27: 142 | CS27: 144 | CT27: 143 | CU27: 134 | CV27: 132 | CW27: 136 | CX27: 136
A29: Maskinomkostninger inkl. Arbejde pr. ha | B29: 6760 | C29: 6726 | D29: 7067 | E29: 6923 | F29: 6811 | G29: 6789 | H29: 6644 | I29: 6575 | J29: 6234 | K29: 6500 | M29: 7065.9161 | N29: 6113.784213 | O29: 7233.960935 | P29: 6350.725215 | Q29: 6705.096003 | R29: 6528.766092 | S29: 6615.387494 | T29: 6519.037453 | U29: 6745.127757 | V29: 6751.873814 | W29: 6729 | X29: 6689 | Y29: 6770 | Z29: 6771 | AA29: 6746 | AB29: 6745 | AC29: 6760 | AD29: 6726 | AE29: 7290.32755 | AF29: 6580.450008 | AG29: 7603.207724 | AH29: 6344.319635 | AI29: 7149.867026 | AJ29: 6747.918523 | AK29: 6931.193202 | AL29: 6722.684293 | AM29: 6935.740715 | AN29: 6585.484606 | AO29: 6930 | AP29: 6634 | AQ29: 6956 | AR29: 6988 | AS29: 6921 | AT29: 6898 | AU29: 7067 | AV29: 6923 | AW29: 7128.727511 | AX29: 6268.507943 | AY29: 7271.853925 | AZ29: 6526.071998 | BA29: 6578.715444 | BB29: 6290.550546 | BC29: 6688.551273 | BD29: 6442.449163 | BE29: 6780.642915 | BF29: 6284.456221 | BG29: 6847 | BH29: 6851 | BI29: 6815 | BJ29: 6842 | BK29: 6718 | BL29: 6571 | BM29: 6811 | BN29: 6789 | BO29: 7165.870483 | BP29: 6060.441633 | BQ29: 7295.667229 | BR29: 6417.041654 | BS29: 6770.930945 | BT29: 6583.147327 | BU29: 6615.962262 | BV29: 6493.167888 | BW29: 6850.372193 | BX29: 6833.356476 | BY29: 6916 | BZ29: 6693 | CA29: 6693 | CB29: 6718 | CC29: 6700 | CD29: 6833 | CE29: 6644 | CF29: 6575 | CG29: 6275.798655 | CH29: 5358.166855 | CI29: 6457.38048 | CJ29: 5771.228713 | CK29: 6215.986728 | CL29: 5837.527583 | CM29: 6265.781566 | CN29: 5970.754143 | CO29: 6258.683451 | CP29: 6056.387704 | CQ29: 6253 | CR29: 6276 | CS29: 5995 | CT29: 5822 | CU29: 6094 | CV29: 5898 | CW29: 6234 | CX29: 6500
A30: Øvrige omkostninger pr. ha | B30: 1073 | C30: 1118 | D30: 1101 | E30: 950 | F30: 1174 | G30: 1195 | H30: 1011 | I30: 1108 | J30: 992 | K30: 943 | W30: 1095 | X30: 1113 | Y30: 1020 | Z30: 1010 | AA30: 1016 | AB30: 1055 | AC30: 1073 | AD30: 1118 | AO30: 1066 | AP30: 949 | AQ30: 981 | AR30: 944 | AS30: 1059 | AT30: 1006 | AU30: 1101 | AV30: 950 | BG30: 1265 | BH30: 1276 | BI30: 1142 | BJ30: 1104 | BK30: 1107 | BL30: 1109 | BM30: 1174 | BN30: 1195 | BY30: 1058 | BZ30: 1017 | CA30: 966 | CB30: 987 | CC30: 939 | CD30: 901 | CE30: 1011 | CF30: 1108 | CQ30: 1055 | CR30: 1091 | CS30: 932 | CT30: 887 | CU30: 935 | CV30: 883 | CW30: 992 | CX30: 943
A31: Jordleje inkl. forpagtning korr. for EU-støtte | B31: 994 | C31: 968 | D31: 1195 | E31: 1595 | F31: 738 | G31: 681 | H31: 1094 | I31: 957 | J31: 1513 | K31: 1634 | M31: 1482.00353 | N31: 767.357381 | O31: 1178.707975 | P31: 479.107661 | Q31: 1134.897438 | R31: 870.3892277 | S31: 1087.885837 | T31: 967.8024969 | U31: 1114.191252 | V31: 1148.189764 | W31: 916 | X31: 966 | Y31: 1049 | Z31: 901 | AA31: 1046 | AB31: 1030 | AC31: 994 | AD31: 968 | AE31: 1413.250202 | AF31: 551.0294237 | AG31: 1267.6528 | AH31: 721.6356444 | AI31: 1176.495369 | AJ31: 1136.13811 | AK31: 1230.664058 | AL31: 1107.240473 | AM31: 1287.289874 | AN31: 1418.918511 | AO31: 1087 | AP31: 1244 | AQ31: 1377 | AR31: 1407 | AS31: 1281 | AT31: 1349 | AU31: 1195 | AV31: 1595 | AW31: 1183.934325 | AX31: 637.637886 | AY31: 1009.223467 | AZ31: 281.0099072 | BA31: 927.2675058 | BB31: 682.850029 | BC31: 881.2794484 | BD31: 989.9396249 | BE31: 794.4806758 | BF31: 290.3796255 | BG31: 610 | BH31: 829 | BI31: 819 | BJ31: 906 | BK31: 847 | BL31: 973 | BM31: 738 | BN31: 681 | BO31: 1373.271026 | BP31: 1853.393447 | BQ31: 1179.127033 | BR31: 380.0574409 | BS31: 1149.16046 | BT31: 819.724851 | BU31: 982.9256848 | BV31: 895.2347358 | BW31: 1055.286347 | BX31: 1244.121435 | BY31: 1103 | BZ31: 960 | CA31: 1076 | CB31: 937 | CC31: 1096 | CD31: 1000 | CE31: 1094 | CF31: 957 | CG31: 1804.946592 | CH31: 1219.923706 | CI31: 1390.586288 | CJ31: 707.7134211 | CK31: 1334.109689 | CL31: 1187.068667 | CM31: 1462.446634 | CN31: 1650.579602 | CO31: 1483.998575 | CP31: 1599.784979 | CQ31: 1223 | CR31: 1176 | CS31: 1364 | CT31: 1604 | CU31: 1413 | CV31: 1476 | CW31: 1513 | CX31: 1634
A32: Rest til jordleje ekskl. EU-støtte til salgsafgrøder
A34: Jordværdi (ejet jord), kr. pr. ha | B34: 143483 | C34: 137997 | D34: 156186 | E34: 154743 | F34: 137412 | G34: 136410 | H34: 141960 | I34: 131670 | J34: 136681 | K34: 127990 | W34: 140748 | X34: 125539 | Y34: 140177 | Z34: 141254 | AA34: 140365 | AB34: 133078 | AC34: 143483 | AD34: 137997 | AO34: 143836 | AP34: 136287 | AQ34: 154026 | AR34: 140901 | AS34: 151293 | AT34: 148672 | AU34: 156186 | AV34: 154743 | BG34: 135198 | BH34: 129757 | BI34: 135019 | BJ34: 133124 | BK34: 135124 | BL34: 133178 | BM34: 137412 | BN34: 136410 | BY34: 144504 | BZ34: 136870 | CA34: 137769 | CB34: 132048 | CC34: 138402 | CD34: 129777 | CE34: 141960 | CF34: 131670 | CQ34: 140718 | CR34: 130497 | CS34: 133138 | CT34: 123207 | CU34: 137991 | CV34: 132418 | CW34: 136681 | CX34: 127990
A35: Bundet kapital - Inventar | B35: 5357 | C35: 5080 | D35: 5807 | E35: 4507 | F35: 5627 | G35: 5617 | H35: 5110 | I35: 4866 | J35: 5538 | K35: 5486 | M35: 6727 | N35: 5821 | O35: 6719 | P35: 5961 | Q35: 6064 | R35: 6570 | S35: 5466 | T35: 5355 | U35: 5330 | V35: 5058 | W35: 5792 | X35: 5017 | Y35: 5486 | Z35: 6385 | AA35: 5277 | AB35: 4828 | AC35: 5357 | AD35: 5080 | AE35: 6698 | AF35: 6442 | AG35: 7242 | AH35: 6696 | AI35: 6189 | AJ35: 6528 | AK35: 5973 | AL35: 5995 | AM35: 5572 | AN35: 5378 | AO35: 5488 | AP35: 4603 | AQ35: 5491 | AR35: 6132 | AS35: 5724 | AT35: 5228 | AU35: 5807 | AV35: 4507 | AW35: 6045 | AX35: 5821 | AY35: 6529 | AZ35: 6263 | BA35: 6008 | BB35: 6409 | BC35: 5148 | BD35: 5533 | BE35: 5300 | BF35: 5796 | BG35: 6640 | BH35: 8413 | BI35: 5692 | BJ35: 5562 | BK35: 5496 | BL35: 5686 | BM35: 5627 | BN35: 5617 | BO35: 7323 | BP35: 6123 | BQ35: 6777 | BR35: 5799 | BS35: 6033 | BT35: 6484 | BU35: 5274 | BV35: 5265 | BW35: 5262 | BX35: 4779 | BY35: 5517 | BZ35: 6174 | CA35: 5384 | CB35: 6003 | CC35: 4984 | CD35: 4106 | CE35: 5110 | CF35: 4866 | CG35: 5832 | CH35: 6007 | CI35: 6093 | CJ35: 6061 | CK35: 6078 | CL35: 6132 | CM35: 6140 | CN35: 5906 | CO35: 5619 | CP35: 5719 | CQ35: 5478 | CR35: 5087 | CS35: 5454 | CT35: 5581 | CU35: 5703 | CV35: 5085 | CW35: 5538 | CX35: 5486
A36: Gennemsnitlig betalt rente | B36: 2.22 | C36: 2.31 | D36: 2.23 | E36: 2.41 | F36: 2.16 | G36: 2.13 | H36: 2.26 | I36: 2.36 | J36: 2.25 | K36: 2.19 | M36: 3.203489873 | N36: 2.860938252 | O36: 2.91162328 | P36: 2.371800549 | Q36: 2.798849295 | R36: 2.738023899 | S36: 2.625852183 | T36: 2.597102145 | U36: 2.636909331 | V36: 2.773066828 | W36: 2.45 | X36: 2.69 | Y36: 2.38 | Z36: 2.19 | AA36: 2.27 | AB36: 2.4 | AC36: 2.22 | AD36: 2.31 | AE36: 2.931552699 | AF36: 2.400572969 | AG36: 2.737800765 | AH36: 2.263487529 | AI36: 2.710954136 | AJ36: 2.75929247 | AK36: 2.575119041 | AL36: 2.424127088 | AM36: 2.606078676 | AN36: 2.719957731 | AO36: 2.38 | AP36: 2.57 | AQ36: 2.37 | AR36: 2.42 | AS36: 2.23 | AT36: 2.32 | AU36: 2.23 | AV36: 2.41 | AW36: 3.293486629 | AX36: 3.092629977 | AY36: 2.951653515 | AZ36: 2.481936354 | BA36: 2.838576709 | BB36: 2.657450476 | BC36: 2.707446378 | BD36: 2.659064265 | BE36: 2.628197534 | BF36: 2.267083384 | BG36: 2.44 | BH36: 2.6 | BI36: 2.32 | BJ36: 2.43 | BK36: 2.24 | BL36: 2.38 | BM36: 2.16 | BN36: 2.13 | BO36: 3.215771892 | BP36: 2.914107549 | BQ36: 2.949189926 | BR36: 2.342669061 | BS36: 2.856717135 | BT36: 2.740098142 | BU36: 2.624958215 | BV36: 2.597216485 | BW36: 2.680153307 | BX36: 2.896250355 | BY36: 2.39 | BZ36: 2.61 | CA36: 2.42 | CB36: 2.55 | CC36: 2.31 | CD36: 2.42 | CE36: 2.26 | CF36: 2.36 | CG36: 3.315208643 | CH36: 3.026403496 | CI36: 2.890872497 | CJ36: 2.292631482 | CK36: 2.658192391 | CL36: 2.749372085 | CM36: 2.552780864 | CN36: 2.670193711 | CO36: 2.590485046 | CP36: 2.619753206 | CQ36: 2.4 | CR36: 2.38 | CS36: 2.25 | CT36: 2.25 | CU36: 2.21 | CV36: 2.46 | CW36: 2.25 | CX36: 2.19
A37: Resultatkorr. ved 2 % rente på jord og 4 % på andet | B37: 2305 | C37: 2274 | D37: 2565 | E37: 2378 | F37: 2204 | G37: 2057 | H37: 2287 | I37: 2282 | J37: 1965 | K37: 1698 | M37: -1274.9 | N37: -1579.22 | O37: 828.76 | P37: 182.98 | Q37: 714.98 | R37: 605.56 | S37: 530.78 | T37: 541.96 | U37: 533.28 | V37: 614.52 | W37: 2611 | X37: 2656 | Y37: 2450 | Z37: 2439 | AA37: 2347 | AB37: 2373 | AC37: 2305 | AD37: 2274 | AE37: -1621.68 | AF37: -2288.64 | AG37: 624.76 | AH37: 66.5 | AI37: 584.6 | AJ37: 608.74 | AK37: 429.84 | AL37: 291.66 | AM37: 468.86 | AN37: 497.38 | AO37: 2537 | AP37: 2432 | AQ37: 2507 | AR37: 2248 | AS37: 2433 | AT37: 2372 | AU37: 2565 | AV37: 2378 | AW37: -1147.94 | AX37: -1437.7 | AY37: 863.92 | AZ37: 291.92 | BA37: 764.96 | BB37: 519.54 | BC37: 630.28 | BD37: 582.54 | BE37: 545.16 | BF37: 487.26 | BG37: 2588 | BH37: 2558 | BI37: 2407 | BJ37: 2393 | BK37: 2279 | BL37: 2259 | BM37: 2204 | BN37: 2057 | BO37: -1278.26 | BP37: -1430.5 | BQ37: 894 | BR37: 176.82 | BS37: 818.02 | BT37: 617.4 | BU37: 557.96 | BV37: 558.48 | BW37: 595.24 | BX37: 758.76 | BY37: 2522 | BZ37: 2754 | CA37: 2443 | CB37: 2563 | CC37: 2353 | CD37: 2504 | CE37: 2287 | CF37: 2282 | CG37: -1038.76 | CH37: -1317.86 | CI37: 762.58 | CJ37: 100.8 | CK37: 491.82 | CL37: 489.42 | CM37: 402.2 | CN37: 394.64 | CO37: 434.44 | CP37: 359.68 | CQ37: 2215 | CR37: 1948 | CS37: 1913 | CT37: 1672 | CU37: 1946 | CV37: 1787 | CW37: 1965 | CX37: 1698
A38: Afkastningsgrad | B38: 2.2 | C38: 2.5 | D38: 2.2 | E38: 2.8 | F38: 2.3 | G38: 2.6 | H38: 2.1 | I38: 2.4 | J38: 2.6 | K38: 3.1 | M38: -0.2 | N38: 3 | O38: 1.8 | P38: 4.3 | Q38: 1.3 | R38: 1.6 | S38: 2.4 | T38: 2.8 | U38: 2.2 | V38: 2.2 | W38: 0.9 | X38: 1.3 | Y38: 2.4 | Z38: 2.4 | AA38: 2.5 | AB38: 2.9 | AC38: 2.2 | AD38: 2.5 | AE38: -2 | AF38: 3.2 | AG38: 1.5 | AH38: 3.9 | AI38: 0.8 | AJ38: 1.3 | AK38: 1.8 | AL38: 2.3 | AM38: 1.9 | AN38: 2.4 | AO38: 0.3 | AP38: 0.7 | AQ38: 2.3 | AR38: 2.6 | AS38: 2.4 | AT38: 2.9 | AU38: 2.2 | AV38: 2.8 | AW38: -0.5 | AX38: 2.8 | AY38: 1.9 | AZ38: 4 | BA38: 1.2 | BB38: 1.8 | BC38: 2.4 | BD38: 2.9 | BE38: 2.2 | BF38: 2.6 | BG38: 1.2 | BH38: 1.6 | BI38: 2.4 | BJ38: 2.7 | BK38: 2.5 | BL38: 3.1 | BM38: 2.3 | BN38: 2.6 | BO38: -0.1 | BP38: 2.7 | BQ38: 1.5 | BR38: 4.5 | BS38: 1 | BT38: 1.6 | BU38: 2.3 | BV38: 2.9 | BW38: 1.9 | BX38: 2.1 | BY38: 0.2 | BZ38: 1.1 | CA38: 2.4 | CB38: 2.6 | CC38: 2.6 | CD38: 2.9 | CE38: 2.1 | CF38: 2.4 | CG38: 2 | CH38: 4.1 | CI38: 3.3 | CJ38: 4.7 | CK38: 2.8 | CL38: 3.8 | CM38: 3.4 | CN38: 4.4 | CO38: 3.4 | CP38: 4.2 | CQ38: 1.6 | CR38: 2 | CS38: 3.4 | CT38: 3.9 | CU38: 2.5 | CV38: 3.1 | CW38: 2.6 | CX38: 3.1
BW39: 0 | BX39: 0
A40: Specifikation af resultat
A41: Bruttoudbytte grovfoder | B41: 10655 | C41: 11311 | D41: 11452 | E41: 12198 | F41: 10740 | G41: 11379 | H41: 10382 | I41: 10922 | J41: 9074 | K41: 9796 | M41: 9225 | N41: 9749 | O41: 10389 | P41: 10879 | Q41: 8983 | R41: 9377 | S41: 10392 | T41: 10914 | U41: 10130 | V41: 10598 | W41: 8814 | X41: 9535 | Y41: 10720 | Z41: 11110 | AA41: 10898 | AB41: 11664 | AC41: 10655 | AD41: 11311 | AE41: 9870 | AF41: 10609 | AG41: 11100 | AH41: 11604 | AI41: 9502 | AJ41: 9714 | AK41: 10818 | AL41: 11043 | AM41: 10873 | AN41: 11112 | AO41: 9098 | AP41: 9347 | AQ41: 11219 | AR41: 11939 | AS41: 11539 | AT41: 12222 | AU41: 11452 | AV41: 12198 | AW41: 9459 | AX41: 10006 | AY41: 10696 | AZ41: 11469 | BA41: 8962 | BB41: 9391 | BC41: 10700 | BD41: 11016 | BE41: 10373 | BF41: 10638 | BG41: 9603 | BH41: 10114 | BI41: 10707 | BJ41: 11526 | BK41: 10753 | BL41: 11813 | BM41: 10740 | BN41: 11379 | BO41: 9093 | BP41: 9633 | BQ41: 10201 | BR41: 10711 | BS41: 8844 | BT41: 9163 | BU41: 10449 | BV41: 10795 | BW41: 10153 | BX41: 10419 | BY41: 9046 | BZ41: 9270 | CA41: 10574 | CB41: 11094 | CC41: 10781 | CD41: 11465 | CE41: 10382 | CF41: 10922 | CG41: 8131 | CH41: 8603 | CI41: 9418 | CJ41: 9876 | CK41: 8840 | CL41: 9004 | CM41: 9522 | CN41: 9949 | CO41: 9223 | CP41: 9709 | CQ41: 7621 | CR41: 8230 | CS41: 9272 | CT41: 9639 | CU41: 8735 | CV41: 8909 | CW41: 9074 | CX41: 9796
A42: Maskinstationsindtægter | B42: 64 | C42: 90 | D42: 38 | E42: 36 | F42: 56 | G42: 36 | H42: 76 | I42: 141 | J42: 46 | K42: 50 | M42: 81 | N42: 77 | O42: 89 | P42: 88 | Q42: 83 | R42: 73 | S42: 73 | T42: 64 | U42: 70 | V42: 79 | W42: 58 | X42: 56 | Y42: 58 | Z42: 59 | AA42: 64 | AB42: 73 | AC42: 64 | AD42: 90 | AE42: 117 | AF42: 68 | AG42: 128 | AH42: 71 | AI42: 95 | AJ42: 86 | AK42: 70 | AL42: 124 | AM42: 75 | AN42: 99 | AO42: 39 | AP42: 14 | AQ42: 29 | AR42: 35 | AS42: 58 | AT42: 148 | AU42: 38 | AV42: 36 | AW42: 60 | AX42: 104 | AY42: 65 | AZ42: 74 | BA42: 62 | BB42: 52 | BC42: 54 | BD42: 46 | BE42: 43 | BF42: 44 | BG42: 39 | BH42: 48 | BI42: 53 | BJ42: 62 | BK42: 32 | BL42: 30 | BM42: 56 | BN42: 36 | BO42: 93 | BP42: 112 | BQ42: 78 | BR42: 106 | BS42: 103 | BT42: 50 | BU42: 90 | BV42: 86 | BW42: 90 | BX42: 100 | BY42: 41 | BZ42: 86 | CA42: 69 | CB42: 94 | CC42: 86 | CD42: 84 | CE42: 76 | CF42: 141 | CG42: 30 | CH42: 53 | CI42: 85 | CJ42: 73 | CK42: 47 | CL42: 43 | CM42: 40 | CN42: 34 | CO42: 45 | CP42: 37 | CQ42: 46 | CR42: 29 | CS42: 52 | CT42: 48 | CU42: 66 | CV42: 79 | CW42: 46 | CX42: 50
A43: Andre landbrugsindtægter | B43: 11 | C43: 9 | D43: 13 | E43: 4 | F43: 17 | G43: 10 | H43: 7 | I43: 9 | J43: 27 | K43: 21 | M43: 153 | N43: 192 | O43: 161 | P43: 249 | Q43: 194 | R43: 59 | S43: 197 | T43: 55 | U43: 277 | V43: 60 | W43: 352 | X43: 141 | Y43: 9 | Z43: 9 | AA43: 5 | AB43: 4 | AC43: 11 | AD43: 9 | AE43: 71 | AF43: 100 | AG43: 43 | AH43: 53 | AI43: 153 | AJ43: 74 | AK43: 69 | AL43: 76 | AM43: 75 | AN43: 72 | AO43: 131 | AP43: 59 | AQ43: 10 | AR43: 12 | AS43: 6 | AT43: 4 | AU43: 13 | AV43: 4 | AW43: 49 | AX43: 27 | AY43: 87 | AZ43: 106 | BA43: 56 | BB43: 54 | BC43: 33 | BD43: 34 | BE43: 56 | BF43: 65 | BG43: 151 | BH43: 177 | BI43: 9 | BJ43: 16 | BK43: 7 | BL43: 6 | BM43: 17 | BN43: 10 | BO43: 112 | BP43: 122 | BQ43: 73 | BR43: 113 | BS43: 44 | BT43: 57 | BU43: 49 | BV43: 68 | BW43: 58 | BX43: 59 | BY43: 136 | BZ43: 135 | CA43: 9 | CB43: 16 | CC43: 3 | CD43: 2 | CE43: 7 | CF43: 9 | CG43: 700 | CH43: 735 | CI43: 768 | CJ43: 882 | CK43: 839 | CL43: 814 | CM43: 942 | CN43: 944 | CO43: 1159 | CP43: 1116 | CQ43: 1239 | CR43: 1147 | CS43: 6 | CT43: 6 | CU43: 3 | CV43: 1 | CW43: 27 | CX43: 21
A44: Bruttoudbytte | B44: 11060 | C44: 11564 | D44: 11705 | E44: 12361 | F44: 11148 | G44: 11599 | H44: 10831 | I44: 11225 | J44: 10225 | K44: 11011 | M44: 9459 | N44: 10018 | O44: 10639 | P44: 11216 | Q44: 9260 | R44: 9509 | S44: 10662 | T44: 11033 | U44: 10477 | V44: 10737 | W44: 9224 | X44: 9732 | Y44: 11090 | Z44: 11335 | AA44: 11286 | AB44: 11874 | AC44: 11060 | AD44: 11564 | AE44: 10058 | AF44: 10777 | AG44: 11271 | AH44: 11728 | AI44: 9750 | AJ44: 9874 | AK44: =SUM(AK41:AK43) -> 10957 | AL44: 11243 | AM44: 11023 | AN44: 11283 | AO44: 9268 | AP44: 9420 | AQ44: 11485 | AR44: 12057 | AS44: 11835 | AT44: 12512 | AU44: 11705 | AV44: 12361 | AW44: 9568 | AX44: 10137 | AY44: 10848 | AZ44: 11649 | BA44: 9080 | BB44: 9497 | BC44: 10787 | BD44: 11096 | BE44: 10472 | BF44: 10747 | BG44: 9793 | BH44: 10339 | BI44: 11106 | BJ44: 11719 | BK44: 11136 | BL44: 11985 | BM44: 11148 | BN44: 11599 | BO44: 9298 | BP44: 9867 | BQ44: 10352 | BR44: 10930 | BS44: 8991 | BT44: 9270 | BU44: 10588 | BV44: 10949 | BW44: 10301 | BX44: 10578 | BY44: 9223 | BZ44: 9491 | CA44: 10960 | CB44: 11294 | CC44: 11199 | CD44: 11699 | CE44: 10831 | CF44: 11225 | CG44: 8861 | CH44: 9391 | CI44: 10271 | CJ44: 10831 | CK44: 9726 | CL44: 9861 | CM44: 10504 | CN44: 10927 | CO44: 10427 | CP44: 10862 | CQ44: 8906 | CR44: 9406 | CS44: 10387 | CT44: 10755 | CU44: 9831 | CV44: 10013 | CW44: 10225 | CX44: 11011
A46: Udsæd | B46: -833 | C46: -908 | D46: -901 | E46: -933 | F46: -840 | G46: -906 | H46: -811 | I46: -897 | J46: -570 | K46: -634 | M46: -882 | N46: -842 | O46: -872 | P46: -869 | Q46: -820 | R46: -859 | S46: -806 | T46: -870 | U46: -798 | V46: -877 | W46: -863 | X46: -878 | Y46: -814 | Z46: -864 | AA46: -808 | AB46: -875 | AC46: -833 | AD46: -908 | AE46: -927 | AF46: -887 | AG46: -927 | AH46: -905 | AI46: -944 | AJ46: -954 | AK46: -910 | AL46: -915 | AM46: -932 | AN46: -970 | AO46: -978 | AP46: -959 | AQ46: -862 | AR46: -937 | AS46: -894 | AT46: -925 | AU46: -901 | AV46: -933 | AW46: -898 | AX46: -877 | AY46: -907 | AZ46: -922 | BA46: -849 | BB46: -835 | BC46: -864 | BD46: -865 | BE46: -840 | BF46: -862 | BG46: -903 | BH46: -903 | BI46: -832 | BJ46: -855 | BK46: -824 | BL46: -888 | BM46: -840 | BN46: -906 | BO46: -890 | BP46: -859 | BQ46: -869 | BR46: -886 | BS46: -834 | BT46: -835 | BU46: -831 | BV46: -842 | BW46: -830 | BX46: -846 | BY46: -976 | BZ46: -905 | CA46: -790 | CB46: -861 | CC46: -770 | CD46: -812 | CE46: -811 | CF46: -897 | CG46: -734 | CH46: -640 | CI46: -740 | CJ46: -735 | CK46: -618 | CL46: -609 | CM46: -596 | CN46: -605 | CO46: -575 | CP46: -588 | CQ46: -660 | CR46: -657 | CS46: -639 | CT46: -666 | CU46: -564 | CV46: -595 | CW46: -570 | CX46: -634
A47: Gødning | B47: -605 | C47: -716 | D47: -630 | E47: -664 | F47: -677 | G47: -824 | H47: -559 | I47: -656 | J47: -142 | K47: -147 | M47: -755 | N47: -674 | O47: -691 | P47: -587 | Q47: -694 | R47: -775 | S47: -748 | T47: -817 | U47: -669 | V47: -806 | W47: -622 | X47: -728 | Y47: -695 | Z47: -787 | AA47: -681 | AB47: -828 | AC47: -605 | AD47: -716 | AE47: -870 | AF47: -791 | AG47: -720 | AH47: -657 | AI47: -752 | AJ47: -739 | AK47: -874 | AL47: -829 | AM47: -754 | AN47: -735 | AO47: -713 | AP47: -702 | AQ47: -676 | AR47: -748 | AS47: -662 | AT47: -744 | AU47: -630 | AV47: -664 | AW47: -890 | AX47: -863 | AY47: -794 | AZ47: -721 | BA47: -862 | BB47: -852 | BC47: -942 | BD47: -910 | BE47: -856 | BF47: -847 | BG47: -801 | BH47: -805 | BI47: -716 | BJ47: -901 | BK47: -721 | BL47: -906 | BM47: -677 | BN47: -824 | BO47: -792 | BP47: -759 | BQ47: -762 | BR47: -706 | BS47: -786 | BT47: -735 | BU47: -832 | BV47: -781 | BW47: -781 | BX47: -803 | BY47: -719 | BZ47: -687 | CA47: -689 | CB47: -812 | CC47: -662 | CD47: -823 | CE47: -559 | CF47: -656 | CG47: -80 | CH47: -26 | CI47: -145 | CJ47: -61 | CK47: -153 | CL47: -181 | CM47: -158 | CN47: -172 | CO47: -166 | CP47: -178 | CQ47: -141 | CR47: -123 | CS47: -150 | CT47: -163 | CU47: -163 | CV47: -187 | CW47: -142 | CX47: -147
A48: Planteværn | B48: -321 | C48: -386 | D48: -414 | E48: -481 | F48: -297 | G48: -350 | H48: -308 | I48: -383 | J48: -2 | K48: -1 | M48: -359 | N48: -329 | O48: -338 | P48: -305 | Q48: -335 | R48: -387 | S48: -300 | T48: -355 | U48: -300 | V48: -364 | W48: -258 | X48: -292 | Y48: -293 | Z48: -357 | AA48: -299 | AB48: -377 | AC48: -321 | AD48: -386 | AE48: -397 | AF48: -393 | AG48: -442 | AH48: -421 | AI48: -455 | AJ48: -444 | AK48: -393 | AL48: -388 | AM48: -411 | AN48: -424 | AO48: -354 | AP48: -331 | AQ48: -335 | AR48: -398 | AS48: -364 | AT48: -444 | AU48: -414 | AV48: -481 | AW48: -376 | AX48: -368 | AY48: -355 | AZ48: -330 | BA48: -381 | BB48: -374 | BC48: -344 | BD48: -339 | BE48: -356 | BF48: -347 | BG48: -310 | BH48: -305 | BI48: -281 | BJ48: -386 | BK48: -279 | BL48: -360 | BM48: -297 | BN48: -350 | BO48: -410 | BP48: -408 | BQ48: -382 | BR48: -390 | BS48: -387 | BT48: -370 | BU48: -358 | BV48: -348 | BW48: -364 | BX48: -349 | BY48: -355 | BZ48: -309 | CA48: -287 | CB48: -377 | CC48: -290 | CD48: -358 | CE48: -308 | CF48: -383 | CG48: 0 | CH48: 0 | CI48: 0 | CJ48: 0 | CK48: 0 | CL48: 0 | CM48: -1 | CN48: 0 | CO48: -1 | CP48: -1 | CQ48: -1 | CR48: -1 | CS48: -2 | CT48: -1 | CU48: -3 | CV48: -9 | CW48: -2 | CX48: -1
A49: Diverse vedrørende mark | B49: -384 | C49: -382 | D49: -367 | E49: -360 | F49: -391 | G49: -347 | H49: -385 | I49: -407 | J49: -313 | K49: -346 | M49: -330 | N49: -296 | O49: -372 | P49: -327 | Q49: -340 | R49: -315 | S49: -339 | T49: -327 | U49: -350 | V49: -349 | W49: -311 | X49: -308 | Y49: -343 | Z49: -352 | AA49: -341 | AB49: -344 | AC49: -384 | AD49: -382 | AE49: -358 | AF49: -317 | AG49: -393 | AH49: -338 | AI49: -373 | AJ49: -345 | AK49: -373 | AL49: -341 | AM49: -396 | AN49: -395 | AO49: -335 | AP49: -311 | AQ49: -365 | AR49: -378 | AS49: -358 | AT49: -371 | AU49: -367 | AV49: -360 | AW49: -367 | AX49: -316 | AY49: -396 | AZ49: -347 | BA49: -345 | BB49: -316 | BC49: -360 | BD49: -334 | BE49: -373 | BF49: -355 | BG49: -342 | BH49: -337 | BI49: -332 | BJ49: -340 | BK49: -328 | BL49: -321 | BM49: -391 | BN49: -347 | BO49: -314 | BP49: -302 | BQ49: -372 | BR49: -352 | BS49: -344 | BT49: -301 | BU49: -337 | BV49: -329 | BW49: -346 | BX49: -329 | BY49: -335 | BZ49: -294 | CA49: -343 | CB49: -346 | CC49: -341 | CD49: -352 | CE49: -385 | CF49: -407 | CG49: -290 | CH49: -221 | CI49: -297 | CJ49: -259 | CK49: -285 | CL49: -293 | CM49: -284 | CN49: -258 | CO49: -282 | CP49: -287 | CQ49: -237 | CR49: -249 | CS49: -263 | CT49: -263 | CU49: -274 | CV49: -279 | CW49: -313 | CX49: -346
A50: Stykomkostninger | B50: -2144 | C50: -2393 | D50: -2311 | E50: -2438 | F50: -2205 | G50: -2425 | H50: -2062 | I50: -2341 | J50: -1029 | K50: -1128 | M50: -2326 | N50: -2141 | O50: -2273 | P50: -2088 | Q50: -2189 | R50: -2336 | S50: -2193 | T50: -2369 | U50: -2117 | V50: -2396 | W50: -2053 | X50: -2206 | Y50: -2145 | Z50: -2359 | AA50: -2129 | AB50: -2425 | AC50: -2144 | AD50: -2393 | AE50: -2552 | AF50: -2388 | AG50: -2482 | AH50: -2321 | AI50: -2524 | AJ50: -2482 | AK50: =SUM(AK46:AK49) -> -2550 | AL50: -2473 | AM50: -2493 | AN50: -2524 | AO50: -2379 | AP50: -2304 | AQ50: -2238 | AR50: -2461 | AS50: -2278 | AT50: -2484 | AU50: -2311 | AV50: -2438 | AW50: -2531 | AX50: -2424 | AY50: -2452 | AZ50: -2320 | BA50: -2437 | BB50: -2377 | BC50: -2510 | BD50: -2448 | BE50: -2425 | BF50: -2411 | BG50: -2356 | BH50: -2350 | BI50: -2162 | BJ50: -2482 | BK50: -2152 | BL50: -2475 | BM50: -2205 | BN50: -2425 | BO50: -2406 | BP50: -2328 | BQ50: -2385 | BR50: -2334 | BS50: -2351 | BT50: -2241 | BU50: -2358 | BV50: -2300 | BW50: -2321 | BX50: -2327 | BY50: -2386 | BZ50: -2195 | CA50: -2109 | CB50: -2395 | CC50: -2064 | CD50: -2345 | CE50: -2062 | CF50: -2341 | CG50: -1104 | CH50: -887 | CI50: -1182 | CJ50: -1055 | CK50: -1056 | CL50: -1083 | CM50: -1039 | CN50: -1035 | CO50: -1024 | CP50: -1054 | CQ50: -1039 | CR50: -1031 | CS50: -1053 | CT50: -1093 | CU50: -1004 | CV50: -1070 | CW50: -1029 | CX50: -1128
A52: Dækningsbidrag | B52: 8916 | C52: 9171 | D52: 9394 | E52: 9923 | F52: 8942 | G52: 9174 | H52: 8768 | I52: 8884 | J52: 9196 | K52: 9884 | M52: 7133 | N52: 7877 | O52: 8366 | P52: 9128 | Q52: 7071 | R52: 7173 | S52: 8469 | T52: 8664 | U52: 8360 | V52: 8341 | W52: 7171 | X52: 7526 | Y52: 8946 | Z52: 8976 | AA52: 9156 | AB52: 9448 | AC52: 8916 | AD52: 9171 | AE52: 7506 | AF52: 8389 | AG52: 8789 | AH52: 9407 | AI52: 7226 | AJ52: 7392 | AK52: =SUM(AK44,AK50) -> 8407 | AL52: 8770 | AM52: 8530 | AN52: 8759 | AO52: 6889 | AP52: 7116 | AQ52: 9247 | AR52: 9596 | AS52: 9557 | AT52: 10029 | AU52: 9394 | AV52: 9923 | AW52: 7037 | AX52: 7713 | AY52: 8396 | AZ52: 9329 | BA52: 6643 | BB52: 7120 | BC52: 8277 | BD52: 8648 | BE52: 8047 | BF52: 8336 | BG52: 7437 | BH52: 7989 | BI52: 8944 | BJ52: 9237 | BK52: 8984 | BL52: 9510 | BM52: 8942 | BN52: 9174 | BO52: 6892 | BP52: 7539 | BQ52: 7967 | BR52: 8596 | BS52: 6640 | BT52: 7029 | BU52: 8230 | BV52: 8649 | BW52: 7980 | BX52: 8251 | BY52: 6837 | BZ52: 7296 | CA52: 8852 | CB52: 8898 | CC52: 9135 | CD52: 9354 | CE52: 8768 | CF52: 8884 | CG52: 7757 | CH52: 8504 | CI52: 9089 | CJ52: 9776 | CK52: 8670 | CL52: 8778 | CM52: 9465 | CN52: 9892 | CO52: 9403 | CP52: 9808 | CQ52: 7866 | CR52: 8375 | CS52: 9334 | CT52: 9661 | CU52: 8827 | CV52: 8943 | CW52: 9196 | CX52: 9884
A54: Brændstof og energi | B54: -394 | C54: -395 | D54: -359 | E54: -290 | F54: -443 | G54: -466 | H54: -378 | I54: -376 | J54: -433 | K54: -454 | M54: -620 | N54: -570 | O54: -591 | P54: -535 | Q54: -431 | R54: -430 | S54: -395 | T54: -403 | U54: -395 | V54: -385 | W54: -544 | X54: -548 | Y54: -446 | Z54: -451 | AA54: -402 | AB54: -417 | AC54: -394 | AD54: -395 | AE54: -578 | AF54: -541 | AG54: -601 | AH54: -542 | AI54: -468 | AJ54: -430 | AK54: -417 | AL54: -398 | AM54: -435 | AN54: -414 | AO54: -475 | AP54: -420 | AQ54: -393 | AR54: -425 | AS54: -391 | AT54: -364 | AU54: -359 | AV54: -290 | AW54: -621 | AX54: -540 | AY54: -627 | AZ54: -553 | BA54: -441 | BB54: -402 | BC54: -417 | BD54: -437 | BE54: -391 | BF54: -385 | BG54: -666 | BH54: -697 | BI54: -517 | BJ54: -510 | BK54: -437 | BL54: -487 | BM54: -443 | BN54: -466 | BO54: -623 | BP54: -578 | BQ54: -549 | BR54: -485 | BS54: -415 | BT54: -436 | BU54: -387 | BV54: -381 | BW54: -387 | BX54: -386 | BY54: -470 | BZ54: -504 | CA54: -425 | CB54: -442 | CC54: -383 | CD54: -388 | CE54: -378 | CF54: -376 | CG54: -721 | CH54: -702 | CI54: -661 | CJ54: -613 | CK54: -434 | CL54: -432 | CM54: -390 | CN54: -390 | CO54: -407 | CP54: -428 | CQ54: -620 | CR54: -751 | CS54: -474 | CT54: -556 | CU54: -446 | CV54: -457 | CW54: -433 | CX54: -454
A55: Maskinstation | B55: -3750 | C55: -3923 | D55: -3939 | E55: -4486 | F55: -3609 | G55: -3658 | H55: -3770 | I55: -3901 | J55: -2994 | K55: -3089 | M55: -3197 | N55: -2741 | O55: -3309 | P55: -2962 | Q55: -3155 | R55: -3026 | S55: -3252 | T55: -3281 | U55: -3464 | V55: -3706 | W55: -3423 | X55: -3680 | Y55: -3622 | Z55: -3638 | AA55: -3639 | AB55: -3802 | AC55: -3750 | AD55: -3923 | AE55: -3373 | AF55: -2869 | AG55: -3567 | AH55: -3009 | AI55: -3386 | AJ55: -3225 | AK55: -3352 | AL55: -3286 | AM55: -3586 | AN55: -3544 | AO55: -3593 | AP55: -3642 | AQ55: -3811 | AR55: -3707 | AS55: -3789 | AT55: -4294 | AU55: -3939 | AV55: -4486 | AW55: -3259 | AX55: -2964 | AY55: -3235 | AZ55: -3047 | BA55: -3055 | BB55: -2915 | BC55: -3230 | BD55: -2980 | BE55: -3544 | BF55: -3641 | BG55: -3360 | BH55: -3350 | BI55: -3367 | BJ55: -3511 | BK55: -3389 | BL55: -3237 | BM55: -3609 | BN55: -3658 | BO55: -3300 | BP55: -2799 | BQ55: -3460 | BR55: -3225 | BS55: -3372 | BT55: -3077 | BU55: -3446 | BV55: -3389 | BW55: -3631 | BX55: -3741 | BY55: -3586 | BZ55: -3662 | CA55: -3699 | CB55: -3862 | CC55: -3750 | CD55: -4140 | CE55: -3770 | CF55: -3901 | CG55: -2329 | CH55: -1794 | CI55: -2574 | CJ55: -2247 | CK55: -2456 | CL55: -2376 | CM55: -2696 | CN55: -2581 | CO55: -2807 | CP55: -2663 | CQ55: -2789 | CR55: -2634 | CS55: -2725 | CT55: -2482 | CU55: -2806 | CV55: -2742 | CW55: -2994 | CX55: -3089
A56: Vedligehold | B56: -904 | C56: -873 | D56: -925 | E56: -744 | F56: -1010 | G56: -1013 | H56: -837 | I56: -821 | J56: -889 | K56: -933 | M56: -891 | N56: -798 | O56: -921 | P56: -813 | Q56: -824 | R56: -810 | S56: -820 | T56: -786 | U56: -844 | V56: -792 | W56: -910 | X56: -894 | Y56: -864 | Z56: -843 | AA56: -891 | AB56: -893 | AC56: -904 | AD56: -873 | AE56: -961 | AF56: -946 | AG56: -999 | AH56: -798 | AI56: -918 | AJ56: -827 | AK56: -922 | AL56: -919 | AM56: -917 | AN56: -877 | AO56: -932 | AP56: -861 | AQ56: -830 | AR56: -871 | AS56: -949 | AT56: -923 | AU56: -925 | AV56: -744 | AW56: -890 | AX56: -769 | AY56: -970 | AZ56: -857 | BA56: -826 | BB56: -809 | BC56: -850 | BD56: -839 | BE56: -819 | BF56: -742 | BG56: -1006 | BH56: -1018 | BI56: -971 | BJ56: -950 | BK56: -959 | BL56: -953 | BM56: -1010 | BN56: -1013 | BO56: -887 | BP56: -766 | BQ56: -866 | BR56: -754 | BS56: -779 | BT56: -787 | BU56: -750 | BV56: -735 | BW56: -836 | BX56: -797 | BY56: -936 | BZ56: -806 | CA56: -819 | CB56: -817 | CC56: -827 | CD56: -799 | CE56: -837 | CF56: -821 | CG56: -848 | CH56: -758 | CI56: -885 | CJ56: -805 | CK56: -847 | CL56: -839 | CM56: -871 | CN56: -815 | CO56: -831 | CP56: -825 | CQ56: -908 | CR56: -981 | CS56: -849 | CT56: -859 | CU56: -872 | CV56: -890 | CW56: -889 | CX56: -933
A57: Løn | B57: -658 | C57: -641 | D57: -551 | E57: -399 | F57: -752 | G57: -752 | H57: -644 | I57: -644 | J57: -820 | K57: -938 | M57: -584 | N57: -523 | O57: -626 | P57: -590 | Q57: -602 | R57: -536 | S57: -625 | T57: -655 | U57: -627 | V57: -640 | W57: -655 | X57: -677 | Y57: -658 | Z57: -709 | AA57: -662 | AB57: -663 | AC57: -658 | AD57: -641 | AE57: -559 | AF57: -481 | AG57: -650 | AH57: -522 | AI57: -587 | AJ57: -483 | AK57: -580 | AL57: -613 | AM57: -579 | AN57: -603 | AO57: -562 | AP57: -506 | AQ57: -583 | AR57: -669 | AS57: -557 | AT57: -469 | AU57: -551 | AV57: -399 | AW57: -518 | AX57: -554 | AY57: -587 | AZ57: -489 | BA57: -548 | BB57: -446 | BC57: -600 | BD57: -692 | BE57: -569 | BF57: -606 | BG57: -600 | BH57: -694 | BI57: -753 | BJ57: -764 | BK57: -784 | BL57: -811 | BM57: -752 | BN57: -752 | BO57: -597 | BP57: -499 | BQ57: -585 | BR57: -537 | BS57: -564 | BT57: -581 | BU57: -591 | BV57: -670 | BW57: -603 | BX57: -680 | BY57: -568 | BZ57: -627 | CA57: -630 | CB57: -620 | CC57: -622 | CD57: -590 | CE57: -644 | CF57: -644 | CG57: -791 | CH57: -683 | CI57: -817 | CJ57: -847 | CK57: -803 | CL57: -652 | CM57: -801 | CN57: -828 | CO57: -785 | CP57: -900 | CQ57: -905 | CR57: -1048 | CS57: -850 | CT57: -916 | CU57: -868 | CV57: -909 | CW57: -820 | CX57: -938
A58: Ejeraflønning | B58: -574 | C58: -503 | D58: -628 | E58: -521 | F58: -579 | G58: -480 | H58: -551 | I58: -496 | J58: -567 | K58: -527 | M58: -820 | N58: -674 | O58: -794 | P58: -668 | Q58: -786 | R58: -855 | S58: -725 | T58: -628 | U58: -696 | V58: -599 | W58: -684 | X58: -534 | Y58: -627 | Z58: -576 | AA58: -613 | AB58: -534 | AC58: -574 | AD58: -503 | AE58: -876 | AF58: -801 | AG58: -882 | AH58: -787 | AI58: -899 | AJ58: -925 | AK58: -818 | AL58: -754 | AM58: -726 | AN58: -590 | AO58: -716 | AP58: -622 | AQ58: -643 | AR58: -565 | AS58: -624 | AT58: -474 | AU58: -628 | AV58: -521 | AW58: -884 | AX58: -635 | AY58: -843 | AZ58: -701 | BA58: -779 | BB58: -865 | BC58: -739 | BD58: -633 | BE58: -735 | BF58: -596 | BG58: -773 | BH58: -724 | BI58: -671 | BJ58: -604 | BK58: -636 | BL58: -552 | BM58: -579 | BN58: -480 | BO58: -795 | BP58: -654 | BQ58: -777 | BR58: -637 | BS58: -752 | BT58: -819 | BU58: -704 | BV58: -614 | BW58: -681 | BX58: -599 | BY58: -707 | BZ58: -598 | CA58: -599 | CB58: -555 | CC58: -590 | CD58: -517 | CE58: -551 | CF58: -496 | CG58: -705 | CH58: -644 | CI58: -646 | CJ58: -527 | CK58: -749 | CL58: -674 | CM58: -647 | CN58: -545 | CO58: -668 | CP58: -532 | CQ58: -579 | CR58: -495 | CS58: -564 | CT58: -507 | CU58: -539 | CV58: -403 | CW58: -567 | CX58: -527
A59: Ejendomsskat og forsikring | B59: -300 | C59: -291 | D59: -362 | E59: -301 | F59: -312 | G59: -318 | H59: -274 | I59: -266 | J59: -263 | K59: -233 | M59: -265 | N59: -250 | O59: -285 | P59: -272 | Q59: -293 | R59: -306 | S59: -296 | T59: -293 | U59: -304 | V59: -292 | W59: -302 | X59: -281 | Y59: -295 | Z59: -310 | AA59: -297 | AB59: -299 | AC59: -300 | AD59: -291 | AE59: -322 | AF59: -313 | AG59: -331 | AH59: -311 | AI59: -343 | AJ59: -335 | AK59: -333 | AL59: -315 | AM59: -346 | AN59: -318 | AO59: -330 | AP59: -307 | AQ59: -334 | AR59: -318 | AS59: -346 | AT59: -328 | AU59: -362 | AV59: -301 | AW59: -279 | AX59: -283 | AY59: -291 | AZ59: -283 | BA59: -293 | BB59: -309 | BC59: -308 | BD59: -303 | BE59: -323 | BF59: -304 | BG59: -329 | BH59: -329 | BI59: -314 | BJ59: -316 | BK59: -314 | BL59: -321 | BM59: -312 | BN59: -318 | BO59: -246 | BP59: -218 | BQ59: -272 | BR59: -264 | BS59: -278 | BT59: -290 | BU59: -282 | BV59: -280 | BW59: -289 | BX59: -276 | BY59: -325 | BZ59: -284 | CA59: -273 | CB59: -290 | CC59: -268 | CD59: -271 | CE59: -274 | CF59: -266 | CG59: -235 | CH59: -210 | CI59: -255 | CJ59: -242 | CK59: -266 | CL59: -238 | CM59: -262 | CN59: -245 | CO59: -265 | CP59: -236 | CQ59: -252 | CR59: -227 | CS59: -243 | CT59: -228 | CU59: -251 | CV59: -232 | CW59: -263 | CX59: -233
A60: Diverse | B60: -330 | C60: -333 | D60: -364 | E60: -337 | F60: -349 | G60: -364 | H60: -310 | I60: -310 | J60: -343 | K60: -334 | M60: -369 | N60: -313 | O60: -373 | P60: -314 | Q60: -357 | R60: -333 | S60: -336 | T60: -296 | U60: -331 | V60: -315 | W60: -334 | X60: -291 | Y60: -341 | Z60: -324 | AA60: -335 | AB60: -325 | AC60: -330 | AD60: -333 | AE60: -359 | AF60: -306 | AG60: -396 | AH60: -330 | AI60: -394 | AJ60: -337 | AK60: -358 | AL60: -314 | AM60: -354 | AN60: -342 | AO60: -350 | AP60: -308 | AQ60: -355 | AR60: -329 | AS60: -342 | AT60: -325 | AU60: -364 | AV60: -337 | AW60: -428 | AX60: -345 | AY60: -395 | AZ60: -316 | BA60: -372 | BB60: -373 | BC60: -362 | BD60: -306 | BE60: -353 | BF60: -339 | BG60: -363 | BH60: -350 | BI60: -353 | BJ60: -347 | BK60: -351 | BL60: -344 | BM60: -349 | BN60: -364 | BO60: -353 | BP60: -295 | BQ60: -358 | BR60: -320 | BS60: -340 | BT60: -309 | BU60: -324 | BV60: -291 | BW60: -312 | BX60: -297 | BY60: -348 | BZ60: -301 | CA60: -330 | CB60: -291 | CC60: -321 | CD60: -302 | CE60: -310 | CF60: -310 | CG60: -359 | CH60: -314 | CI60: -342 | CJ60: -294 | CK60: -345 | CL60: -291 | CM60: -319 | CN60: -271 | CO60: -326 | CP60: -272 | CQ60: -307 | CR60: -289 | CS60: -315 | CT60: -283 | CU60: -322 | CV60: -283 | CW60: -343 | CX60: -334
A61: Kapacitetsomkostninger | B61: -6909 | C61: -6959 | D61: -7127 | E61: -7078 | F61: -7054 | G61: -7051 | H61: -6764 | I61: -6813 | J61: -6309 | K61: -6509 | M61: -6746 | N61: -5869 | O61: -6899 | P61: -6154 | Q61: -6448 | R61: -6296 | S61: -6449 | T61: -6342 | U61: -6661 | V61: -6729 | W61: -6853 | X61: -6906 | Y61: -6853 | Z61: -6850 | AA61: -6839 | AB61: -6933 | AC61: -6909 | AD61: -6959 | AE61: -7028 | AF61: -6257 | AG61: -7426 | AH61: -6299 | AI61: -6995 | AJ61: -6562 | AK61: =SUM(AK54:AK60) -> -6780 | AL61: -6599 | AM61: -6943 | AN61: -6688 | AO61: -6958 | AP61: -6666 | AQ61: -6949 | AR61: -6884 | AS61: -6998 | AT61: -7177 | AU61: -7127 | AV61: -7078 | AW61: -6879 | AX61: -6090 | AY61: -6948 | AZ61: -6246 | BA61: -6314 | BB61: -6119 | BC61: -6506 | BD61: -6190 | BE61: -6734 | BF61: -6613 | BG61: -7098 | BH61: -7162 | BI61: -6947 | BJ61: -7002 | BK61: -6869 | BL61: -6704 | BM61: -7054 | BN61: -7051 | BO61: -6801 | BP61: -5809 | BQ61: -6867 | BR61: -6222 | BS61: -6500 | BT61: -6299 | BU61: -6484 | BV61: -6360 | BW61: -6739 | BX61: -6776 | BY61: -6941 | BZ61: -6783 | CA61: -6776 | CB61: -6877 | CC61: -6762 | CD61: -7008 | CE61: -6764 | CF61: -6813 | CG61: -5988 | CH61: -5105 | CI61: -6180 | CJ61: -5575 | CK61: -5900 | CL61: -5502 | CM61: -5986 | CN61: -5675 | CO61: -6089 | CP61: -5856 | CQ61: -6360 | CR61: -6426 | CS61: -6021 | CT61: -5831 | CU61: -6104 | CV61: -5918 | CW61: -6309 | CX61: -6509
A63: Afskrivninger bygninger og grundforbedringer | B63: -103 | C63: -84 | D63: -114 | E63: -69 | F63: -116 | G63: -96 | H63: -92 | I63: -76 | J63: -87 | K63: -81 | M63: -123 | N63: -113 | O63: -125 | P63: -112 | Q63: -128 | R63: -120 | S63: -124 | T63: -112 | U63: -115 | V63: -92 | W63: -99 | X63: -93 | Y63: -90 | Z63: -89 | AA63: -100 | AB63: -93 | AC63: -103 | AD63: -84 | AE63: -128 | AF63: -122 | AG63: -118 | AH63: -100 | AI63: -141 | AJ63: -119 | AK63: -126 | AL63: -140 | AM63: -130 | AN63: -123 | AO63: -104 | AP63: -102 | AQ63: -101 | AR63: -96 | AS63: -103 | AT63: -79 | AU63: -114 | AV63: -69 | AW63: -145 | AX63: -120 | AY63: -138 | AZ63: -142 | BA63: -146 | BB63: -139 | BC63: -152 | BD63: -120 | BE63: -138 | BF63: -100 | BG63: -108 | BH63: -94 | BI63: -108 | BJ63: -89 | BK63: -123 | BL63: -102 | BM63: -116 | BN63: -96 | BO63: -111 | BP63: -93 | BQ63: -110 | BR63: -89 | BS63: -111 | BT63: -111 | BU63: -108 | BV63: -96 | BW63: -100 | BX63: -79 | BY63: -105 | BZ63: -82 | CA63: -77 | CB63: -70 | CC63: -83 | CD63: -85 | CE63: -92 | CF63: -76 | CG63: -138 | CH63: -111 | CI63: -166 | CJ63: -140 | CK63: -132 | CL63: -114 | CM63: -128 | CN63: -122 | CO63: -113 | CP63: -99 | CQ63: -94 | CR63: -100 | CS63: -85 | CT63: -74 | CU63: -104 | CV63: -103 | CW63: -87 | CX63: -81
A64: Afskrivninger inventar | B64: -706 | C64: -662 | D64: -781 | E64: -584 | F64: -737 | G64: -738 | H64: -670 | I64: -632 | J64: -718 | K64: -734 | M64: -845 | N64: -725 | O64: -884 | P64: -730 | Q64: -849 | R64: -802 | S64: -791 | T64: -761 | U64: -732 | V64: -680 | W64: -746 | X64: -658 | Y64: -725 | Z64: -727 | AA64: -720 | AB64: -667 | AC64: -706 | AD64: -662 | AE64: -858 | AF64: -805 | AG64: -875 | AH64: -728 | AI64: -856 | AJ64: -819 | AK64: -830 | AL64: -801 | AM64: -713 | AN64: -624 | AO64: -755 | AP64: -665 | AQ64: -728 | AR64: -774 | AS64: -745 | AT64: -620 | AU64: -781 | AV64: -584 | AW64: -845 | AX64: -714 | AY64: -883 | AZ64: -792 | BA64: -856 | BB64: -799 | BC64: -820 | BD64: -853 | BE64: -705 | BF64: -632 | BG64: -769 | BH64: -692 | BI64: -793 | BJ64: -753 | BK64: -730 | BL64: -747 | BM64: -737 | BN64: -738 | BO64: -862 | BP64: -754 | BQ64: -910 | BR64: -725 | BS64: -837 | BT64: -766 | BU64: -756 | BV64: -718 | BW64: -751 | BX64: -705 | BY64: -746 | BZ64: -729 | CA64: -690 | CB64: -648 | CC64: -701 | CD64: -607 | CE64: -670 | CF64: -632 | CG64: -747 | CH64: -714 | CI64: -787 | CJ64: -677 | CK64: -850 | CL64: -833 | CM64: -823 | CN64: -786 | CO64: -747 | CP64: -713 | CQ64: -740 | CR64: -735 | CS64: -715 | CT64: -691 | CU64: -730 | CV64: -677 | CW64: -718 | CX64: -734
A65: EU-støtte | B65: 2672 | C65: 2681 | D65: 2715 | E65: 2730 | F65: 2649 | G65: 2623 | H65: 2665 | I65: 2700 | J65: 2555 | K65: 2641 | M65: 3460 | N65: 3419 | O65: 3390 | P65: 3340 | Q65: 3290 | R65: 3359 | S65: 3136 | T65: 3204 | U65: 3051 | V65: 3074 | W65: 3023 | X65: 2958 | Y65: 2785 | Z65: 2752 | AA65: 2674 | AB65: 2650 | AC65: 2672 | AD65: 2681 | AE65: 3438 | AF65: 3407 | AG65: 3455 | AH65: 3361 | AI65: 3371 | AJ65: 3378 | AK65: 3213 | AL65: 3212 | AM65: 3118 | AN65: 3096 | AO65: 3077 | AP65: 3054 | AQ65: 2786 | AR65: 2816 | AS65: 2721 | AT65: 2802 | AU65: 2715 | AV65: 2730 | AW65: 3548 | AX65: 3642 | AY65: 3408 | AZ65: 3426 | BA65: 3313 | BB65: 3326 | BC65: 3163 | BD65: 3068 | BE65: 3095 | BF65: 3037 | BG65: 3034 | BH65: 2957 | BI65: 2754 | BJ65: 2651 | BK65: 2632 | BL65: 2515 | BM65: 2649 | BN65: 2623 | BO65: 3491 | BP65: 3429 | BQ65: 3426 | BR65: 3375 | BS65: 3376 | BT65: 3378 | BU65: 3225 | BV65: 3259 | BW65: 3117 | BX65: 3075 | BY65: 3062 | BZ65: 3058 | CA65: 2802 | CB65: 2813 | CC65: 2683 | CD65: 2717 | CE65: 2665 | CF65: 2700 | CG65: 3203 | CH65: 3228 | CI65: 3148 | CJ65: 3108 | CK65: 2933 | CL65: 2916 | CM65: 2831 | CN65: 2744 | CO65: 2801 | CP65: 2753 | CQ65: 2805 | CR65: 2785 | CS65: 2644 | CT65: 2614 | CU65: 2526 | CV65: 2542 | CW65: 2555 | CX65: 2641
A66: Renteomkostninger af bundet kapital | B66: -2268 | C66: -2228 | D66: -2590 | E66: -2439 | F66: -2171 | G66: -2066 | H66: -2233 | I66: -2228 | J66: -1923 | K66: -1692 | M66: -3848 | N66: -3209 | O66: -3512 | P66: -2678 | Q66: -3269 | R66: -3107 | S66: -2908 | T66: -3031 | U66: -2851 | V66: -2747 | W66: -2611 | X66: -2610 | Y66: -2423 | Z66: -2448 | AA66: -2339 | AB66: -2337 | AC66: -2268 | AD66: -2228 | AE66: -3521 | AF66: -2849 | AG66: -3409 | AH66: -2472 | AI66: -3170 | AJ66: -3031 | AK66: -2823 | AL66: -2675 | AM66: -2797 | AN66: -2471 | AO66: -2568 | AP66: -2452 | AQ66: -2548 | AR66: -2275 | AS66: -2483 | AT66: -2362 | AU66: -2590 | AV66: -2439 | AW66: -3893 | AX66: -3738 | AY66: -3505 | AZ66: -2906 | BA66: -3333 | BB66: -3068 | BC66: -3008 | BD66: -2994 | BE66: -2884 | BF66: -2573 | BG66: -2618 | BH66: -2643 | BI66: -2396 | BJ66: -2373 | BK66: -2251 | BL66: -2205 | BM66: -2171 | BN66: -2066 | BO66: -3918 | BP66: -3103 | BQ66: -3637 | BR66: -2726 | BS66: -3451 | BT66: -3127 | BU66: -2984 | BV66: -3081 | BW66: -2965 | BX66: -2956 | BY66: -2554 | BZ66: -2678 | CA66: -2401 | CB66: -2452 | CC66: -2339 | CD66: -2515 | CE66: -2233 | CF66: -2228 | CG66: -3707 | CH66: -3269 | CI66: -3203 | CJ66: -2500 | CK66: -2752 | CL66: -2452 | CM66: -2619 | CN66: -2251 | CO66: -2563 | CP66: -2157 | CQ66: -2210 | CR66: -1862 | CS66: -1932 | CT66: -1693 | CU66: -1919 | CV66: -1724 | CW66: -1923 | CX66: -1692
A67: Forpagtning | B67: -1573 | C67: -1622 | D67: -1516 | E67: -2065 | F67: -1364 | G67: -1377 | H67: -1712 | I67: -1679 | J67: -2312 | K67: -2762 | M67: -1502 | N67: -1311 | O67: -1458 | P67: -1430 | Q67: -1469 | R67: -1457 | S67: -1539 | T67: -1358 | U67: -1523 | V67: -1689 | W67: -1529 | X67: -1534 | Y67: -1592 | Z67: -1382 | AA67: -1554 | AB67: -1526 | AC67: -1573 | AD67: -1622 | AE67: -1729 | AF67: -1455 | AG67: -1738 | AH67: -1907 | AI67: -1716 | AJ67: -1796 | AK67: -1884 | AL67: -1863 | AM67: -1852 | AN67: -2269 | AO67: -1837 | AP67: -2019 | AQ67: -1811 | AR67: -2157 | AS67: -1748 | AT67: -1982 | AU67: -1516 | AV67: -2065 | AW67: -1233 | AX67: -931 | AY67: -1307 | AZ67: -1139 | BA67: -1222 | BB67: -1261 | BC67: -1250 | BD67: -1278 | BE67: -1198 | BF67: -1520 | BG67: -1231 | BH67: -1404 | BI67: -1352 | BJ67: -1353 | BK67: -1382 | BL67: -1442 | BM67: -1364 | BN67: -1377 | BO67: -1519 | BP67: -1446 | BQ67: -1382 | BR67: -1292 | BS67: -1396 | BT67: -1416 | BU67: -1440 | BV67: -1293 | BW67: -1422 | BX67: -1592 | BY67: -1856 | BZ67: -1556 | CA67: -1658 | CB67: -1493 | CC67: -1606 | CD67: -1329 | CE67: -1712 | CF67: -1679 | CG67: -1657 | CH67: -1496 | CI67: -1661 | CJ67: -1567 | CK67: -1772 | CL67: -1897 | CM67: -1891 | CN67: -2373 | CO67: -1917 | CP67: -2394 | CQ67: -1987 | CR67: -2252 | CS67: -2240 | CT67: -2693 | CU67: -2177 | CV67: -2453 | CW67: -2312 | CX67: -2762
A68: Øvrige kapitalomkostninger | B68: -14 | C68: -30 | D68: -3 | E68: -6 | F68: -2 | G68: 0 | H68: -24 | I68: -58 | J68: -1 | K68: -2 | W68: -12 | X68: -1 | Y68: -13 | Z68: -5 | AA68: -14 | AB68: -19 | AC68: -14 | AD68: -30 | AO68: -39 | AP68: -76 | AQ68: -10 | AR68: -23 | AS68: -5 | AT68: -3 | AU68: -3 | AV68: -6 | BG68: -3 | BH68: -1 | BI68: -3 | BJ68: -1 | BK68: -4 | BL68: -6 | BM68: -2 | BN68: 0 | BY68: -40 | BZ68: -1 | CA68: -20 | CB68: -28 | CC68: -23 | CD68: -1 | CE68: -24 | CF68: -58 | CQ68: -8 | CR68: -10 | CS68: -4 | CT68: -3 | CU68: -7 | CV68: -4 | CW68: -1 | CX68: -2
A69: Kapitalomkostninger | B69: =_xlfn.XLOOKUP($B$2,$M$2:$UR$2,M69:UR69) -> -1990 | C69: =_xlfn.XLOOKUP($B$2,$M$2:$UR$2,N69:US69) -> -1948 | D69: =_xlfn.XLOOKUP($D$2,$M$2:$UR$2,M69:UR69) -> -2275 | E69: =_xlfn.XLOOKUP($D$2,$M$2:$UR$2,N69:US69) -> -2434 | F69: =_xlfn.XLOOKUP($F$2,$M$2:$UR$2,M69:UR69) -> -1741 | G69: =_xlfn.XLOOKUP($F$2,$M$2:$UR$2,N69:US69) -> -1655 | H69: =_xlfn.XLOOKUP($H$2,$M$2:$UR$2,M69:UR69) -> -2066 | I69: =_xlfn.XLOOKUP($H$2,$M$2:$UR$2,N69:US69) -> -1972 | J69: =_xlfn.XLOOKUP($J$2,$M$2:$UR$2,M69:UR69) -> -2485 | K69: =_xlfn.XLOOKUP($J$2,$M$2:$UR$2,N69:US69) -> -2629 | M69: -2858 | N69: -1939 | O69: -2589 | P69: -1610 | Q69: -2425 | R69: -2127 | S69: -2226 | T69: -2058 | U69: -2170 | V69: -2134 | W69: -1971 | X69: -1937 | Y69: -2058 | Z69: -1897 | AA69: -2049 | AB69: -1992 | AC69: -1990 | AD69: -1948 | AE69: -2798 | AF69: -1824 | AG69: -2685 | AH69: -1846 | AI69: -2512 | AJ69: -2387 | AK69: =SUM(AK63:AK67) -> -2450 | AL69: -2267 | AM69: -2374 | AN69: -2391 | AO69: -2202 | AP69: -2212 | AQ69: -2410 | AR69: -2502 | AS69: -2347 | AT69: -2245 | AU69: -2275 | AV69: -2434 | AW69: -2568 | AX69: -1861 | AY69: -2425 | AZ69: -1553 | BA69: -2244 | BB69: -1941 | BC69: -2067 | BD69: -2177 | BE69: -1830 | BF69: -1788 | BG69: -1695 | BH69: -1878 | BI69: -1897 | BJ69: -1918 | BK69: -1858 | BL69: -1985 | BM69: -1741 | BN69: -1655 | BO69: -2919 | BP69: -1967 | BQ69: -2613 | BR69: -1457 | BS69: -2419 | BT69: -2042 | BU69: -2063 | BV69: -1929 | BW69: -2121 | BX69: -2257 | BY69: -2216 | BZ69: -1988 | CA69: -2044 | CB69: -1877 | CC69: -2069 | CD69: -1820 | CE69: -2066 | CF69: -1972 | CG69: -3046 | CH69: -2362 | CI69: -2669 | CJ69: -1776 | CK69: -2573 | CL69: -2380 | CM69: -2630 | CN69: -2788 | CO69: -2539 | CP69: -2610 | CQ69: -2233 | CR69: -2173 | CS69: -2334 | CT69: -2539 | CU69: -2412 | CV69: -2420 | CW69: -2485 | CX69: -2629
A71: Årets resultat | B71: 15 | C71: 264 | D71: -22 | E71: 411 | F71: 148 | G71: 468 | H71: -62 | I71: 98 | J71: 402 | K71: 746 | M71: -2471 | N71: 69 | O71: -1122 | P71: 1364 | Q71: -1802 | R71: -1250 | S71: -206 | T71: 264 | U71: -471 | V71: -522 | W71: -1656 | X71: -1318 | Y71: 34 | Z71: 227 | AA71: 266 | AB71: 523 | AC71: 15 | AD71: 264 | AE71: -2320 | AF71: 308 | AG71: -1322 | AH71: 1262 | AI71: -2281 | AJ71: -1557 | AK71: =SUM(AK52,AK61,AK69) -> -823 | AL71: -96 | AM71: -787 | AN71: -320 | AO71: -2294 | AP71: -1808 | AQ71: -115 | AR71: 203 | AS71: 196 | AT71: 607 | AU71: -22 | AV71: 411 | AW71: -2410 | AX71: -238 | AY71: -977 | AZ71: 1530 | BA71: -1915 | BB71: -940 | BC71: -296 | BD71: 281 | BE71: -517 | BF71: -65 | BG71: -1356 | BH71: -1051 | BI71: 100 | BJ71: 316 | BK71: 257 | BL71: 821 | BM71: 148 | BN71: 468 | BO71: -2828 | BP71: -237 | BQ71: -1513 | BR71: 917 | BS71: -2279 | BT71: -1312 | BU71: -317 | BV71: 360 | BW71: -880 | BX71: -782 | BY71: -2343 | BZ71: -1475 | CA71: 32 | CB71: 144 | CC71: 304 | CD71: 526 | CE71: -62 | CF71: 98 | CG71: -1277 | CH71: 1037 | CI71: 240 | CJ71: 2425 | CK71: 197 | CL71: 896 | CM71: 849 | CN71: 1429 | CO71: 775 | CP71: 1342 | CQ71: -727 | CR71: -224 | CS71: 980 | CT71: 1291 | CU71: 312 | CV71: 605 | CW71: 402 | CX71: 746

Sheet Tabel 4 Sohold frav_og_30kg
A1: 2021 | K1: Historik
A2: Sohold (fravænnede grise og 30kg's grise) | B2: ="Sohold, 30 kg - alle "&A1 -> Sohold, 30 kg - alle 2021 | D2: ="Sohold, 7 kg "&A1 -> Sohold, 7 kg 2021 | F2: ="Sohold, 30 kg, < 750 årssøer "&A1 -> Sohold, 30 kg, < 750 årssøer 2021 | H2: ="Sohold, 30 kg, > 750 årssøer "&A1 -> Sohold, 30 kg, > 750 årssøer 2021 | K2: Sohold, 30 kg - alle 2013 | M2: Sohold, 30 kg - alle 2014 | O2: Sohold, 30 kg - alle 2015 | Q2: Sohold, 30 kg - alle 2016 | S2: Sohold, 30 kg - alle 2017 | U2: Sohold, 30 kg - alle 2018 | W2: Sohold, 30 kg - alle 2019 | Y2: Sohold, 30 kg - alle 2020 | AA2: Sohold, 30 kg - alle 2021 | AC2: Sohold, 7 kg 2013 | AE2: Sohold, 7 kg 2014 | AG2: Sohold, 7 kg 2015 | AI2: Sohold, 7 kg 2016 | AK2: Sohold, 7 kg 2017 | AM2: Sohold, 7 kg 2018 | AO2: Sohold, 7 kg 2019 | AQ2: Sohold, 7 kg 2020 | AS2: Sohold, 7 kg 2021 | AU2: Sohold, 30 kg, < 750 årssøer 2013 | AW2: Sohold, 30 kg, < 750 årssøer 2014 | AY2: Sohold, 30 kg, < 750 årssøer 2015 | BA2: Sohold, 30 kg, < 750 årssøer 2016 | BC2: Sohold, 30 kg, < 750 årssøer 2017 | BE2: Sohold, 30 kg, < 750 årssøer 2018 | BG2: Sohold, 30 kg, < 750 årssøer 2019 | BI2: Sohold, 30 kg, < 750 årssøer 2020 | BK2: Sohold, 30 kg, < 750 årssøer 2021 | BM2: Sohold, 30 kg, > 750 årssøer 2013 | BO2: Sohold, 30 kg, > 750 årssøer 2014 | BQ2: Sohold, 30 kg, > 750 årssøer 2015 | BS2: Sohold, 30 kg, > 750 årssøer 2016 | BU2: Sohold, 30 kg, > 750 årssøer 2017 | BW2: Sohold, 30 kg, > 750 årssøer 2018 | BY2: Sohold, 30 kg, > 750 årssøer 2019 | CA2: Sohold, 30 kg, > 750 årssøer 2020 | CC2: Sohold, 30 kg, > 750 årssøer 2021
A3: DG7910 og DG7000 | B3: Gns | C3: Bedste 1/3 | D3: Gns | E3: Bedste 1/3 | F3: Gns | G3: Bedste 1/3 | H3: Gns | I3: Bedste 1/3 | K3: Gns | L3: Bedste 1/3 | M3: Gns | N3: Bedste 1/3 | O3: Gns | P3: Bedste 1/3 | Q3: Gns | R3: Bedste 1/3 | S3: Gns | T3: Bedste 1/3 | U3: Gns | V3: Bedste 1/3 | W3: Gns | X3: Bedste 1/3 | Y3: Gns | Z3: Bedste 1/3 | AA3: Gns | AB3: Bedste 1/3 | AC3: Gns | AD3: Bedste 1/3 | AE3: Gns | AF3: Bedste 1/3 | AG3: Gns | AH3: Bedste 1/3 | AI3: Gns | AJ3: Bedste 1/3 | AK3: Gns | AL3: Bedste 1/3 | AM3: Gns | AN3: Bedste 1/3 | AO3: Gns | AP3: Bedste 1/3 | AQ3: Gns | AR3: Bedste 1/3 | AS3: Gns | AT3: Bedste 1/3 | AU3: Gns | AV3: Bedste 1/3 | AW3: Gns | AX3: Bedste 1/3 | AY3: Gns | AZ3: Bedste 1/3 | BA3: Gns | BB3: Bedste 1/3 | BC3: Gns | BD3: Bedste 1/3 | BE3: Gns | BF3: Bedste 1/3 | BG3: Gns | BH3: Bedste 1/3 | BI3: Gns | BJ3: Bedste 1/3 | BK3: Gns | BL3: Bedste 1/3 | BM3: Gns | BN3: Bedste 1/3 | BO3: Gns | BP3: Bedste 1/3 | BQ3: Gns | BR3: Bedste 1/3 | BS3: Gns | BT3: Bedste 1/3 | BU3: Gns | BV3: Bedste 1/3 | BW3: Sohold, 30 kg, > 750 årssøer 2018 | BX3: Bedste 1/3 | BY3: Gns | BZ3: Bedste 1/3 | CA3: Gns | CB3: Bedste 1/3 | CC3: Gns | CD3: Bedste 1/3
A4: Antal | B4: =_xlfn.XLOOKUP($B$2,$K$2:$UP$2,K4:UP4) -> 348 | C4: =_xlfn.XLOOKUP($B$2,$K$2:$UP$2,L4:UQ4) -> 69 | D4: =_xlfn.XLOOKUP($D$2,$K$2:$UP$2,K4:UP4) -> 40 | E4: =_xlfn.XLOOKUP($D$2,$K$2:$UP$2,L4:UQ4) -> 4 | F4: =_xlfn.XLOOKUP($F$2,$K$2:$UP$2,K4:UP4) -> 199 | G4: =_xlfn.XLOOKUP($F$2,$K$2:$UP$2,L4:UQ4) -> 35 | H4: =_xlfn.XLOOKUP($H$2,$K$2:$UP$2,K4:UP4) -> 150 | I4: =_xlfn.XLOOKUP($H$2,$K$2:$UP$2,L4:UQ4) -> 41 | K4: 390 | L4: 130 | M4: 445 | N4: 149 | O4: 494 | P4: 97 | Q4: 515 | R4: 90 | S4: 382 | T4: 87 | U4: 472 | V4: 108 | W4: 380 | X4: 98 | Y4: 457 | Z4: 79 | AA4: 348 | AB4: 69 | AC4: 110 | AD4: 37 | AE4: 138 | AF4: 46 | AG4: 130 | AH4: 21 | AI4: 102 | AJ4: 20 | AK4: 66 | AL4: 14 | AM4: 70 | AN4: 15 | AO4: 57 | AP4: 13 | AQ4: 58 | AR4: 11 | AS4: 40 | AT4: 4 | AU4: 202 | AV4: 68 | AW4: 201 | AX4: 67 | AY4: 368 | AZ4: 68 | BA4: 366 | BB4: 54 | BC4: 251 | BD4: 52 | BE4: 314 | BF4: 57 | BG4: 236 | BH4: 49 | BI4: 284 | BJ4: 38 | BK4: 199 | BL4: 35 | BM4: 38 | BN4: 63 | BO4: 244 | BP4: 82 | BQ4: 126 | BR4: 28 | BS4: 151 | BT4: 36 | BU4: 132 | BV4: 32 | BW4: 160 | BX4: 48 | BY4: 144 | BZ4: 48 | CA4: 174 | CB4: 46 | CC4: 150 | CD4: 41
A5: Antal årssøer | B5: =_xlfn.XLOOKUP($B$2,$K$2:$UP$2,K5:UP5) -> 832 | C5: =_xlfn.XLOOKUP($B$2,$K$2:$UP$2,L5:UQ5) -> 874 | D5: =_xlfn.XLOOKUP($D$2,$K$2:$UP$2,K5:UP5) -> 920 | E5: =_xlfn.XLOOKUP($D$2,$K$2:$UP$2,L5:UQ5) ->  | F5: =_xlfn.XLOOKUP($F$2,$K$2:$UP$2,K5:UP5) -> 503 | G5: =_xlfn.XLOOKUP($F$2,$K$2:$UP$2,L5:UQ5) -> 564 | H5: =_xlfn.XLOOKUP($H$2,$K$2:$UP$2,K5:UP5) -> 1268 | I5: =_xlfn.XLOOKUP($H$2,$K$2:$UP$2,L5:UQ5) -> 1201 | K5: 548 | L5: 650 | M5: 617 | N5: 691 | O5: 624 | P5: 649 | Q5: 668 | R5: 971 | S5: 725 | T5: 985 | U5: 740 | V5: 986 | W5: 772 | X5: 1042 | Y5: 769 | Z5: 1109 | AA5: 832 | AB5: 874 | AC5: 822 | AD5: 1124 | AE5: 864 | AF5: 1008 | AG5: 863 | AH5: 973 | AI5: 978 | AJ5: 1385 | AK5: 1029 | AL5: 1628 | AM5: 1006 | AN5: 1555 | AO5: 1055 | AP5: 1584 | AQ5: 952 | AR5: 1265 | AS5: 920 | AU5: 340 | AV5: 379 | AW5: 343 | AX5: 362 | AY5: 460 | AZ5: 495 | BA5: 467 | BB5: 607 | BC5: 498 | BD5: 604 | BE5: 489 | BF5: 564 | BG5: 494 | BH5: 566 | BI5: 485 | BJ5: 557 | BK5: 503 | BL5: 564 | BM5: 557 | BN5: 805 | BO5: 842 | BP5: 862 | BQ5: 1103 | BR5: 1114 | BS5: 1156 | BT5: 1168 | BU5: 1159 | BV5: 1285 | BW5: 1231 | BX5: 1338 | BY5: 1227 | BZ5: 1209 | CA5: 1232 | CB5: 1335 | CC5: 1268 | CD5: 1201
A6: Antal frav./prod. smågrise | B6: 27312 | C6: 30030 | D6: 30057.86667 | F6: 16272 | G6: 18875 | H6: 41908 | I6: 41110 | K6: 15690.72386 | L6: 19325.44355 | M6: 17584.5 | N6: 20522.7 | O6: 18602.46486 | P6: 19894.99032 | Q6: 19973.2 | R6: 30392.3 | S6: 22910 | T6: 32406.5 | U6: 24115 | V6: 33678 | W6: 24864 | X6: 34454 | Y6: 25298 | Z6: 38132 | AA6: 27312 | AB6: 30030 | AC6: 24338.27097 | AD6: 34134.71724 | AE6: 26092.8 | AF6: 31852.8 | AG6: 26344.01304 | AH6: 29937.67368 | AI6: 29144.4 | AJ6: 45151 | AK6: 33442.5 | AL6: 54375.2 | AM6: 33097.4 | AN6: 53336.5 | AO6: 33865.5 | AP6: 53856 | AQ6: 31035.2 | AR6: 43769 | AS6: 30057.86667 | AU6: 9593.608247 | AV6: 11052.65821 | AW6: 9501.1 | AX6: 10317 | AY6: 13682.82778 | AZ6: 15178.76866 | BA6: 13963.3 | BB6: 18938.4 | BC6: 15637.2 | BD6: 19750.8 | BE6: 15743 | BF6: 18701 | BG6: 15737 | BH6: 18767 | BI6: 15714 | BJ6: 18990 | BK6: 16272 | BL6: 18875 | BM6: 18990 | BN6: 24079.38596 | BO6: 24586.4 | BP6: 26118.6 | BQ6: 33100.02727 | BR6: 34452.59231 | BS6: 34564.4 | BT6: 37142.4 | BU6: 37088 | BV6: 42148 | BW6: 40561 | BX6: 46179 | BY6: 39823 | BZ6: 40952 | CA6: 40937 | CB6: 46151 | CC6: 41908 | CD6: 41110
A7: Frav./prod. smågrise pr. årsso | B7: 32.6715942 | C7: 33.89558824 | D7: 32.6715942 | F7: 32.3 | G7: 33.5 | H7: 33.1 | I7: 34.3 | K7: 28.63270777 | L7: 29.73145161 | M7: 28.5 | N7: 29.7 | O7: 29.81164241 | P7: 30.65483871 | Q7: 30.5 | R7: 31.6 | S7: 31.6 | T7: 32.9 | U7: 32.3 | V7: 34 | W7: 32.1 | X7: 33.4 | Y7: 32.6 | Z7: 34.7 | AA7: 32.6715942 | AB7: 33.89558824 | AC7: 29.60860215 | AD7: 30.36896552 | AE7: 30.2 | AF7: 31.6 | AG7: 30.52608696 | AH7: 30.76842105 | AI7: 31.6 | AJ7: 32.6 | AK7: 32.9 | AL7: 34.3 | AM7: 32.9 | AN7: 34.3 | AO7: 32.1 | AP7: 34 | AQ7: 32.6 | AR7: 34.6 | AS7: 32.6715942 | AU7: 28.21649485 | AV7: 29.16268657 | AW7: 27.7 | AX7: 28.5 | AY7: 29.74527778 | AZ7: 30.6641791 | BA7: 30.3 | BB7: 31.8 | BC7: 31.4 | BD7: 32.7 | BE7: 31.2 | BF7: 33.1 | BG7: 31.7 | BH7: 33 | BI7: 32.2 | BJ7: 34 | BK7: 32.3 | BL7: 33.5 | BM7: 34 | BN7: 29.9122807 | BO7: 29.2 | BP7: 30.3 | BQ7: 30.00909091 | BR7: 30.92692308 | BS7: 31 | BT7: 31.8 | BU7: 32 | BV7: 32.8 | BW7: 33 | BX7: 34.6 | BY7: 32.7 | BZ7: 33.9 | CA7: 33.4 | CB7: 34.9 | CC7: 33.1 | CD7: 34.3
A8: Vægt solgte/overførte smågrise, kg. | B8: 31.14534884 | C8: 31.8 | F8: 31.3 | G8: 32.1 | H8: 30.7 | I8: 31.4 | U8: 31 | V8: 30.9 | W8: 30.5 | X8: 30.5 | Y8: 31.1 | Z8: 31.5 | AA8: 31.14534884 | AB8: 31.8 | BE8: 31.2 | BF8: 31.2 | BG8: 30.5 | BH8: 30.7 | BI8: 31.3 | BJ8: 32 | BK8: 31.3 | BL8: 32.1 | BM8: 32 | BW8: 30.6 | BX8: 30.7 | BY8: 30.3 | BZ8: 30.5 | CA8: 30.7 | CB8: 31.3 | CC8: 30.7 | CD8: 31.4
A10: Nøgletal
A12: Foderomkostninger pr. enhed | B12: -6415.07 | C12: -6489.03 | D12: -3207.31 | E12: 0 | F12: -6420.8 | G12: -6415.4 | H12: -6410.51 | I12: -6321.76 | K12: 6650 | L12: 6666 | M12: 5934.49 | N12: 5884.93 | O12: 5712.59 | P12: 5677.87 | Q12: 5720.69 | R12: 5752.06 | S12: 5709.41 | T12: 5715.17 | U12: -5900.89 | V12: -5978.14 | W12: -6073.79 | X12: -6048.19 | Y12: -6049.81 | Z12: -6166.75 | AA12: -6415.07 | AB12: -6489.03 | AC12: 3461 | AD12: 3283 | AE12: 3042.12 | AF12: 2925.8 | AG12: 2961.44 | AH12: 2975.85 | AI12: 2919.54 | AJ12: 2843.53 | AK12: 2909.79 | AL12: 3134.57 | AM12: -2969.96 | AN12: -3030.13 | AO12: -3093.51 | AQ12: -3090.54 | AS12: -3207.31 | AT12: 0 | AU12: 6861 | AV12: 6751 | AW12: 5959.5 | AX12: 5712.28 | AY12: 5688.12 | AZ12: 5619.6 | BA12: 5670.27 | BB12: 5585.16 | BC12: 5668.25 | BD12: 5736.7 | BE12: -5874.03 | BF12: -5784.77 | BG12: -6052.93 | BH12: -6158.94 | BI12: -5984.82 | BJ12: -6009.57 | BK12: -6420.8 | BL12: -6415.4 | BM12: -6009.57 | BN12: 6555 | BO12: 5926.11 | BP12: 5948.33 | BQ12: 5742.41 | BR12: 5921.63 | BS12: 5768.81 | BT12: 5837.11 | BU12: 5741.76 | BV12: 5777.58 | BW12: -5924.64 | BX12: -6030.28 | BY12: -6087.52 | BZ12: -6196.77 | CA12: -6094.6 | CB12: -6188.05 | CC12: -6410.51 | CD12: -6321.76
A13: Arbejdsomkostninger pr. enhed | B13: -2240.94 | C13: -2181.55 | D13: -1746.61 | E13: 0 | F13: -2335.42 | G13: -2170.09 | H13: -2191.48 | I13: -2133.42 | K13: 1772 | L13: 1701 | M13: 1777.11 | N13: 1729.05 | O13: 1770.21 | P13: 1740.69 | Q13: 1823.64 | R13: 1746.17 | S13: 1925.97 | T13: 1870.25 | U13: -1955.67 | V13: -1877.41 | W13: -2047.04 | X13: -2014.34 | Y13: -2162.69 | Z13: -2162.29 | AA13: -2240.94 | AB13: -2181.55 | AC13: 1345 | AD13: 1231 | AE13: 1358.78 | AF13: 1258.36 | AG13: 1395.42 | AH13: 1336.49 | AI13: 1409.32 | AJ13: 1342.37 | AK13: 1445.71 | AL13: 1377.52 | AM13: -1477.31 | AN13: -1467.67 | AO13: -1561.11 | AP13: -1391.34 | AQ13: -1637.35 | AR13: -1458.65 | AS13: -1746.61 | AT13: 0 | AU13: 1871 | AV13: 1755 | AW13: 1895.63 | AX13: 1885.1 | AY13: 1827.6 | AZ13: 1808.37 | BA13: 1891.23 | BB13: 1857.13 | BC13: 2036.33 | BD13: 2077.87 | BE13: -2028.11 | BF13: -1998.28 | BG13: -2128.25 | BH13: -2065.7 | BI13: -2205.44 | BJ13: -2191.69 | BK13: -2335.42 | BL13: -2170.09 | BM13: -2191.69 | BN13: 1638 | BO13: 1737.31 | BP13: 1685.32 | BQ13: 1700.23 | BR13: 1640.67 | BS13: 1756.45 | BT13: 1665.61 | BU13: 1834.36 | BV13: 1761.82 | BW13: -1898.06 | BX13: -1840.93 | BY13: -1993.5 | BZ13: -2012.91 | CA13: -2133.84 | CB13: -2122.33 | CC13: -2191.48 | CD13: -2133.42
